Workbook

Sheet Proxy Group
B3: =COUNTA(B7:B50) -> 13 | C3: Utilities in original Proxy Group
B4: =COUNT(A7:A50) -> 13 | C4: Utilities in ROE Study proxy Group
E5: Enter qualification condition in row 6, indicate utilities disqualified with a 1
B6: Ticker | C6: Company | D6: Number of disqualifying conditions | E6: condition 1 | F6: condition 2 | G6: condition 3 | H6: condition 4 | I6: condition 5 | J6: condition 6 | K6: condition 7 | L6: condition 8 | M6: condition 9 | N6: condition 10
A7: =IF(AND(ISTEXT(B7),D7=0),MAX(A$6:A6)+1,"") -> 1 | B7: ALE | C7: =IF(LEN(B7>0),VLOOKUP(B7,CompanyList,2,FALSE),"") -> ALLETE, Inc. | D7: =SUM(E7:N7) -> 0
A8: =IF(AND(ISTEXT(B8),D8=0),MAX(A$6:A7)+1,"") -> 2 | B8: LNT | C8: Alliant Energy Corporation | D8: =SUM(E8:N8) -> 0
A9: =IF(AND(ISTEXT(B9),D9=0),MAX(A$6:A8)+1,"") -> 3 | B9: AVA | C9: Avista Corporation | D9: 0
A10: =IF(AND(ISTEXT(B10),D10=0),MAX(A$6:A9)+1,"") -> 4 | B10: DTE | C10: DTE Energy Company | D10: 0
A11: =IF(AND(ISTEXT(B11),D11=0),MAX(A$6:A10)+1,"") -> 5 | B11: IDA | C11: IDACORP, Inc. | D11: 0
A12: =IF(AND(ISTEXT(B12),D12=0),MAX(A$6:A11)+1,"") -> 6 | B12: TEG | C12: Integrys Energy Group, Inc. | D12: 0
A13: =IF(AND(ISTEXT(B13),D13=0),MAX(A$6:A12)+1,"") -> 7 | B13: NEE | C13: NextEra Energy, Inc. | D13: 0
A14: =IF(AND(ISTEXT(B14),D14=0),MAX(A$6:A13)+1,"") -> 8 | B14: POR | C14: Portland General Electric Company | D14: 0
A15: =IF(AND(ISTEXT(B15),D15=0),MAX(A$6:A14)+1,"") -> 9 | B15: SRE | C15: Sempra Energy | D15: 0
A16: =IF(AND(ISTEXT(B16),D16=0),MAX(A$6:A15)+1,"") -> 10 | B16: SO | C16: Southern Company | D16: 0
A17: =IF(AND(ISTEXT(B17),D17=0),MAX(A$6:A16)+1,"") -> 11 | B17: WR | C17: Westar Energy, Inc. | D17: 0
A18: =IF(AND(ISTEXT(B18),D18=0),MAX(A$6:A17)+1,"") -> 12 | B18: WEC | C18: Wisconsin Energy Corporation | D18: 0
A19: =IF(AND(ISTEXT(B19),D19=0),MAX(A$6:A18)+1,"") -> 13 | B19: XEL | C19: Xcel Energy Inc. | D19: 0
A20: =IF(AND(ISTEXT(B20),D20=0),MAX(A$6:A19)+1,"") ->  | D20: 0
A21: =IF(AND(ISTEXT(B21),D21=0),MAX(A$6:A20)+1,"") ->  | D21: 0
A22: =IF(AND(ISTEXT(B22),D22=0),MAX(A$6:A21)+1,"") ->  | D22: 0
A23: =IF(AND(ISTEXT(B23),D23=0),MAX(A$6:A22)+1,"") ->  | D23: 0
A24: =IF(AND(ISTEXT(B24),D24=0),MAX(A$6:A23)+1,"") ->  | D24: 0
A25: =IF(AND(ISTEXT(B25),D25=0),MAX(A$6:A24)+1,"") ->  | D25: 0
A26: =IF(AND(ISTEXT(B26),D26=0),MAX(A$6:A25)+1,"") ->  | D26: 0
A27: =IF(AND(ISTEXT(B27),D27=0),MAX(A$6:A26)+1,"") ->  | D27: 0
A28: =IF(AND(ISTEXT(B28),D28=0),MAX(A$6:A27)+1,"") ->  | D28: 0
A29: =IF(AND(ISTEXT(B29),D29=0),MAX(A$6:A28)+1,"") ->  | D29: 0
A30: =IF(AND(ISTEXT(B30),D30=0),MAX(A$6:A29)+1,"") ->  | D30: 0
A31: =IF(AND(ISTEXT(B31),D31=0),MAX(A$6:A30)+1,"") ->  | C31: =IF(LEN(B31>0),VLOOKUP(B31,CompanyList,2,FALSE),"") ->  | D31: 0
A32: =IF(AND(ISTEXT(B32),D32=0),MAX(A$6:A31)+1,"") ->  | D32: =SUM(E32:N32) -> 0
A33: =IF(AND(ISTEXT(B33),D33=0),MAX(A$6:A32)+1,"") ->  | D33: 0
A34: =IF(AND(ISTEXT(B34),D34=0),MAX(A$6:A33)+1,"") ->  | D34: 0
A35: =IF(AND(ISTEXT(B35),D35=0),MAX(A$6:A34)+1,"") ->  | D35: 0
A36: =IF(AND(ISTEXT(B36),D36=0),MAX(A$6:A35)+1,"") ->  | D36: 0
A37: =IF(AND(ISTEXT(B37),D37=0),MAX(A$6:A36)+1,"") ->  | D37: 0
A38: =IF(AND(ISTEXT(B38),D38=0),MAX(A$6:A37)+1,"") ->  | D38: 0
A39: =IF(AND(ISTEXT(B39),D39=0),MAX(A$6:A38)+1,"") ->  | D39: 0
A40: =IF(AND(ISTEXT(B40),D40=0),MAX(A$6:A39)+1,"") ->  | D40: 0
A41: =IF(AND(ISTEXT(B41),D41=0),MAX(A$6:A40)+1,"") ->  | D41: 0
A42: =IF(AND(ISTEXT(B42),D42=0),MAX(A$6:A41)+1,"") ->  | D42: 0
A43: =IF(AND(ISTEXT(B43),D43=0),MAX(A$6:A42)+1,"") ->  | D43: 0
A44: =IF(AND(ISTEXT(B44),D44=0),MAX(A$6:A43)+1,"") ->  | D44: 0
A45: =IF(AND(ISTEXT(B45),D45=0),MAX(A$6:A44)+1,"") ->  | D45: 0
A46: =IF(AND(ISTEXT(B46),D46=0),MAX(A$6:A45)+1,"") ->  | D46: 0
A47: =IF(AND(ISTEXT(B47),D47=0),MAX(A$6:A46)+1,"") ->  | D47: 0
A48: =IF(AND(ISTEXT(B48),D48=0),MAX(A$6:A47)+1,"") ->  | D48: 0
A49: =IF(AND(ISTEXT(B49),D49=0),MAX(A$6:A48)+1,"") ->  | D49: 0
A50: =IF(AND(ISTEXT(B50),D50=0),MAX(A$6:A49)+1,"") ->  | D50: 0
A51: =IF(AND(ISTEXT(B51),D51=0),MAX(A$6:A50)+1,"") ->  | D51: 0
A52: =IF(AND(ISTEXT(B52),D52=0),MAX(A$6:A51)+1,"") ->  | D52: 0
A53: =IF(AND(ISTEXT(B53),D53=0),MAX(A$6:A52)+1,"") ->  | D53: 0
A54: =IF(AND(ISTEXT(B54),D54=0),MAX(A$6:A53)+1,"") ->  | D54: 0
A55: =IF(AND(ISTEXT(B55),D55=0),MAX(A$6:A54)+1,"") ->  | D55: 0
A56: =IF(AND(ISTEXT(B56),D56=0),MAX(A$6:A55)+1,"") ->  | D56: 0

Sheet FEA___(MPG-2)
A1: Rocky Mountain Power
A4: Proxy Group
G8: Credit Ratings1 | J8: Common Equity Ratios | M8: S&P Business
A9: Line | B9: =MAX('Proxy Group'!A6:A85) -> 13 | D9: Company | F9: Ticker | G9: S&P | H9: Moody's | J9: SNL1 | K9: Value Line2 | M9: Risk Score3 | R9: 2014-03-27
G10: (1) | H10: (2) | J10: (3) | K10: (4) | M10: (5)
M11: =IF(ISNUMBER(A11),VLOOKUP(F11,RDLU,4,FALSE),"") ->  | P11: S&P | Q11: Moody's
A12: =IF(A11<$B$9,A11+1,"") -> 1 | B12: =ISNUMBER(A12) -> TRUE | D12: =IF(B12,VLOOKUP(A12,TickerLU,3,FALSE),"") -> ALLETE, Inc. | F12: =IF(B12,VLOOKUP(A12,TickerLU,2,FALSE),"") -> ALE | G12: =IF(B12,VLOOKUP(F12,SNLLU,8,FALSE),"") -> BBB+ | H12: =IF(B12,VLOOKUP(F12,SNLLU,9,FALSE),"") -> A3 | J12: =IF(B12,VLOOKUP(F12,SNLLU,7,FALSE)/100,"") -> 0.5474297827 | K12: =IF(B12,VLOOKUP(F12,VLLU,6,FALSE),"") -> 0.554 | M12: =IF(B12,VLOOKUP(F12,RDLU,4,FALSE),"") -> Strong | P12: =IF(G12="N/A",G12,VLOOKUP(G12,'Credit Ratings (WP)'!$C$4:$D$24,2,)) -> 14 | Q12: =IF(H12="N/A",H12,VLOOKUP(H12,'Credit Ratings (WP)'!$E$4:$F$24,2,)) -> 15
A13: =IF(A12<$B$9,A12+1,"") -> 2 | B13: =ISNUMBER(A13) -> TRUE | D13: Alliant Energy Corporation | F13: LNT | G13: A- | H13: A3 | J13: 0.4556930384 | K13: 0.47 | M13: Excellent | P13: =IF(G13=0,"N/A",VLOOKUP(G13,'Credit Ratings (WP)'!$C$4:$D$24,2,)) -> 15 | Q13: =IF(H13=0,"N/A",VLOOKUP(H13,'Credit Ratings (WP)'!$E$4:$F$24,2,)) -> 15
A14: 3 | B14: TRUE | D14: Avista Corporation | F14: AVA | G14: BBB | H14: Baa1 | J14: 0.4487108945 | K14: 0.485 | M14: Excellent | P14: =IF(G14=0,"N/A",VLOOKUP(G14,'Credit Ratings (WP)'!$C$4:$D$24,2,)) -> 13 | Q14: =IF(H14=0,"N/A",VLOOKUP(H14,'Credit Ratings (WP)'!$E$4:$F$24,2,)) -> 14
A15: 4 | B15: TRUE | D15: DTE Energy Company | F15: DTE | G15: BBB+ | H15: A3 | J15: 0.4890411805 | K15: 0.525 | M15: Strong | P15: =IF(G15=0,"N/A",VLOOKUP(G15,'Credit Ratings (WP)'!$C$4:$D$24,2,)) -> 14 | Q15: =IF(H15=0,"N/A",VLOOKUP(H15,'Credit Ratings (WP)'!$E$4:$F$24,2,)) -> 15
A16: 5 | B16: TRUE | D16: IDACORP, Inc. | F16: IDA | G16: BBB | H16: Baa1 | J16: 0.5248861822 | K16: 0.535 | M16: Excellent | P16: =IF(G16=0,"N/A",VLOOKUP(G16,'Credit Ratings (WP)'!$C$4:$D$24,2,)) -> 13 | Q16: =IF(H16=0,"N/A",VLOOKUP(H16,'Credit Ratings (WP)'!$E$4:$F$24,2,)) -> 14
A17: 6 | B17: TRUE | D17: Integrys Energy Group, Inc. | F17: TEG | G17: A- | H17: Baa1 | J17: 0.4870810682 | K17: 0.52 | M17: Excellent | P17: =IF(G17=0,"N/A",VLOOKUP(G17,'Credit Ratings (WP)'!$C$4:$D$24,2,)) -> 15 | Q17: =IF(H17=0,"N/A",VLOOKUP(H17,'Credit Ratings (WP)'!$E$4:$F$24,2,)) -> 14
A18: 7 | B18: TRUE | D18: NextEra Energy, Inc. | F18: NEE | G18: A- | H18: Baa1 | J18: 0.3882408643 | K18: 0.43 | M18: Strong | P18: =IF(G18=0,"N/A",VLOOKUP(G18,'Credit Ratings (WP)'!$C$4:$D$24,2,)) -> 15 | Q18: =IF(H18=0,"N/A",VLOOKUP(H18,'Credit Ratings (WP)'!$E$4:$F$24,2,)) -> 14
A19: 8 | B19: TRUE | D19: Portland General Electric Company | F19: POR | G19: BBB | H19: A3 | J19: 0.4868843683 | K19: 0.485 | M19: Excellent | P19: =IF(G19=0,"N/A",VLOOKUP(G19,'Credit Ratings (WP)'!$C$4:$D$24,2,)) -> 13 | Q19: =IF(H19=0,"N/A",VLOOKUP(H19,'Credit Ratings (WP)'!$E$4:$F$24,2,)) -> 15
A20: 9 | B20: TRUE | D20: Sempra Energy | F20: SRE | G20: BBB+ | H20: Baa1 | J20: 0.4439604759 | K20: 0.455 | M20: Strong | P20: =IF(G20=0,"N/A",VLOOKUP(G20,'Credit Ratings (WP)'!$C$4:$D$24,2,)) -> 14 | Q20: =IF(H20=0,"N/A",VLOOKUP(H20,'Credit Ratings (WP)'!$E$4:$F$24,2,)) -> 14
A21: 10 | B21: TRUE | D21: Southern Company | F21: SO | G21: A | H21: Baa1 | J21: 0.4376295068 | K21: 0.465 | M21: Excellent | P21: =IF(G21=0,"N/A",VLOOKUP(G21,'Credit Ratings (WP)'!$C$4:$D$24,2,)) -> 16 | Q21: =IF(H21=0,"N/A",VLOOKUP(H21,'Credit Ratings (WP)'!$E$4:$F$24,2,)) -> 14
A22: 11 | B22: TRUE | D22: Westar Energy, Inc. | F22: WR | G22: BBB | H22: Baa1 | J22: 0.4572381376 | K22: 0.49 | M22: Excellent | P22: =IF(G22=0,"N/A",VLOOKUP(G22,'Credit Ratings (WP)'!$C$4:$D$24,2,)) -> 13 | Q22: =IF(H22=0,"N/A",VLOOKUP(H22,'Credit Ratings (WP)'!$E$4:$F$24,2,)) -> 14
A23: 12 | B23: TRUE | D23: Wisconsin Energy Corporation | F23: WEC | G23: A- | H23: A2 | J23: 0.4452883381 | K23: 0.49 | M23: Excellent | P23: =IF(G23=0,"N/A",VLOOKUP(G23,'Credit Ratings (WP)'!$C$4:$D$24,2,)) -> 15 | Q23: =IF(H23=0,"N/A",VLOOKUP(H23,'Credit Ratings (WP)'!$E$4:$F$24,2,)) -> 16
A24: 13 | B24: TRUE | D24: Xcel Energy Inc. | F24: XEL | G24: A- | H24: A3 | J24: 0.4445873944 | K24: 0.47 | M24: Excellent | P24: =IF(G24=0,"N/A",VLOOKUP(G24,'Credit Ratings (WP)'!$C$4:$D$24,2,)) -> 15 | Q24: =IF(H24=0,"N/A",VLOOKUP(H24,'Credit Ratings (WP)'!$E$4:$F$24,2,)) -> 15
B25: FALSE | P25: =IF(G25=0,"N/A",VLOOKUP(G25,'Credit Ratings (WP)'!$C$4:$D$24,2,)) ->  | Q25: =IF(H25=0,"N/A",VLOOKUP(H25,'Credit Ratings (WP)'!$E$4:$F$24,2,)) -> 
B26: FALSE | P26: =IF(G26=0,"N/A",VLOOKUP(G26,'Credit Ratings (WP)'!$C$4:$D$24,2,)) ->  | Q26: =IF(H26=0,"N/A",VLOOKUP(H26,'Credit Ratings (WP)'!$E$4:$F$24,2,)) -> 
B27: FALSE | P27: =IF(G27=0,"N/A",VLOOKUP(G27,'Credit Ratings (WP)'!$C$4:$D$24,2,)) ->  | Q27: =IF(H27=0,"N/A",VLOOKUP(H27,'Credit Ratings (WP)'!$E$4:$F$24,2,)) -> 
B28: FALSE | P28: =IF(G28=0,"N/A",VLOOKUP(G28,'Credit Ratings (WP)'!$C$4:$D$24,2,)) ->  | Q28: =IF(H28=0,"N/A",VLOOKUP(H28,'Credit Ratings (WP)'!$E$4:$F$24,2,)) -> 
B29: FALSE | P29: =IF(G29=0,"N/A",VLOOKUP(G29,'Credit Ratings (WP)'!$C$4:$D$24,2,)) ->  | Q29: =IF(H29=0,"N/A",VLOOKUP(H29,'Credit Ratings (WP)'!$E$4:$F$24,2,)) -> 
B30: FALSE | P30: =IF(G30=0,"N/A",VLOOKUP(G30,'Credit Ratings (WP)'!$C$4:$D$24,2,)) ->  | Q30: =IF(H30=0,"N/A",VLOOKUP(H30,'Credit Ratings (WP)'!$E$4:$F$24,2,)) -> 
B31: FALSE | P31: =IF(G31=0,"N/A",VLOOKUP(G31,'Credit Ratings (WP)'!$C$4:$D$24,2,)) ->  | Q31: =IF(H31=0,"N/A",VLOOKUP(H31,'Credit Ratings (WP)'!$E$4:$F$24,2,)) -> 
B32: FALSE | P32: =IF(G32=0,"N/A",VLOOKUP(G32,'Credit Ratings (WP)'!$C$4:$D$24,2,)) ->  | Q32: =IF(H32=0,"N/A",VLOOKUP(H32,'Credit Ratings (WP)'!$E$4:$F$24,2,)) -> 
B33: FALSE | P33: =IF(G33=0,"N/A",VLOOKUP(G33,'Credit Ratings (WP)'!$C$4:$D$24,2,)) ->  | Q33: =IF(H33=0,"N/A",VLOOKUP(H33,'Credit Ratings (WP)'!$E$4:$F$24,2,)) -> 
B34: FALSE | P34: =IF(G34=0,"N/A",VLOOKUP(G34,'Credit Ratings (WP)'!$C$4:$D$24,2,)) ->  | Q34: =IF(H34=0,"N/A",VLOOKUP(H34,'Credit Ratings (WP)'!$E$4:$F$24,2,)) -> 
B35: FALSE | P35: =IF(G35=0,"N/A",VLOOKUP(G35,'Credit Ratings (WP)'!$C$4:$D$24,2,)) ->  | Q35: =IF(H35=0,"N/A",VLOOKUP(H35,'Credit Ratings (WP)'!$E$4:$F$24,2,)) -> 
B36: FALSE | P36: =IF(G36=0,"N/A",VLOOKUP(G36,'Credit Ratings (WP)'!$C$4:$D$24,2,)) ->  | Q36: =IF(H36=0,"N/A",VLOOKUP(H36,'Credit Ratings (WP)'!$E$4:$F$24,2,)) -> 
B37: FALSE | P37: =IF(G37=0,"N/A",VLOOKUP(G37,'Credit Ratings (WP)'!$C$4:$D$24,2,)) ->  | Q37: =IF(H37=0,"N/A",VLOOKUP(H37,'Credit Ratings (WP)'!$E$4:$F$24,2,)) -> 
B38: FALSE | P38: =IF(G38=0,"N/A",VLOOKUP(G38,'Credit Ratings (WP)'!$C$4:$D$24,2,)) ->  | Q38: =IF(H38=0,"N/A",VLOOKUP(H38,'Credit Ratings (WP)'!$E$4:$F$24,2,)) -> 
B39: FALSE | P39: =IF(G39=0,"N/A",VLOOKUP(G39,'Credit Ratings (WP)'!$C$4:$D$24,2,)) ->  | Q39: =IF(H39=0,"N/A",VLOOKUP(H39,'Credit Ratings (WP)'!$E$4:$F$24,2,)) -> 
B40: FALSE | P40: =IF(G40=0,"N/A",VLOOKUP(G40,'Credit Ratings (WP)'!$C$4:$D$24,2,)) ->  | Q40: =IF(H40=0,"N/A",VLOOKUP(H40,'Credit Ratings (WP)'!$E$4:$F$24,2,)) -> 
B41: FALSE | P41: =IF(G41=0,"N/A",VLOOKUP(G41,'Credit Ratings (WP)'!$C$4:$D$24,2,)) ->  | Q41: =IF(H41=0,"N/A",VLOOKUP(H41,'Credit Ratings (WP)'!$E$4:$F$24,2,)) -> 
B42: FALSE | P42: =IF(G42=0,"N/A",VLOOKUP(G42,'Credit Ratings (WP)'!$C$4:$D$24,2,)) ->  | Q42: =IF(H42=0,"N/A",VLOOKUP(H42,'Credit Ratings (WP)'!$E$4:$F$24,2,)) -> 
B43: FALSE | P43: =IF(G43=0,"N/A",VLOOKUP(G43,'Credit Ratings (WP)'!$C$4:$D$24,2,)) ->  | Q43: =IF(H43=0,"N/A",VLOOKUP(H43,'Credit Ratings (WP)'!$E$4:$F$24,2,)) -> 
B44: FALSE | D44: =IF(B44,VLOOKUP(A44,TickerLU,3,FALSE),"") ->  | F44: =IF(B44,VLOOKUP(A44,TickerLU,2,FALSE),"") ->  | G44: =IF(B44,VLOOKUP(F44,SNLLU,8,FALSE),"") ->  | H44: =IF(B44,VLOOKUP(F44,SNLLU,9,FALSE),"") ->  | J44: =IF(B44,VLOOKUP(F44,SNLLU,7,FALSE)/100,"") ->  | K44: =IF(B44,VLOOKUP(F44,VLLU,6,FALSE),"") ->  | M44: =IF(B44,VLOOKUP(F44,RDLU,4,FALSE),"") ->  | P44: =IF(G44=0,"N/A",VLOOKUP(G44,'Credit Ratings (WP)'!$C$4:$D$24,2,)) ->  | Q44: =IF(H44=0,"N/A",VLOOKUP(H44,'Credit Ratings (WP)'!$E$4:$F$24,2,)) -> 
B45: FALSE | P45: =IF(G45=0,"N/A",VLOOKUP(G45,'Credit Ratings (WP)'!$C$4:$D$24,2,)) ->  | Q45: =IF(H45=0,"N/A",VLOOKUP(H45,'Credit Ratings (WP)'!$E$4:$F$24,2,)) -> 
B46: FALSE | P46: =IF(G46=0,"N/A",VLOOKUP(G46,'Credit Ratings (WP)'!$C$4:$D$24,2,)) ->  | Q46: =IF(H46=0,"N/A",VLOOKUP(H46,'Credit Ratings (WP)'!$E$4:$F$24,2,)) -> 
B47: FALSE | P47: =IF(G47=0,"N/A",VLOOKUP(G47,'Credit Ratings (WP)'!$C$4:$D$24,2,)) ->  | Q47: =IF(H47=0,"N/A",VLOOKUP(H47,'Credit Ratings (WP)'!$E$4:$F$24,2,)) -> 
B48: FALSE | P48: =IF(G48=0,"N/A",VLOOKUP(G48,'Credit Ratings (WP)'!$C$4:$D$24,2,)) ->  | Q48: =IF(H48=0,"N/A",VLOOKUP(H48,'Credit Ratings (WP)'!$E$4:$F$24,2,)) -> 
B49: FALSE | P49: =IF(G49=0,"N/A",VLOOKUP(G49,'Credit Ratings (WP)'!$C$4:$D$24,2,)) ->  | Q49: =IF(H49=0,"N/A",VLOOKUP(H49,'Credit Ratings (WP)'!$E$4:$F$24,2,)) -> 
B50: FALSE | P50: =IF(G50=0,"N/A",VLOOKUP(G50,'Credit Ratings (WP)'!$C$4:$D$24,2,)) ->  | Q50: =IF(H50=0,"N/A",VLOOKUP(H50,'Credit Ratings (WP)'!$E$4:$F$24,2,)) -> 
B51: FALSE | P51: =IF(G51=0,"N/A",VLOOKUP(G51,'Credit Ratings (WP)'!$C$4:$D$24,2,)) ->  | Q51: =IF(H51=0,"N/A",VLOOKUP(H51,'Credit Ratings (WP)'!$E$4:$F$24,2,)) -> 
B52: FALSE | P52: =IF(G52=0,"N/A",VLOOKUP(G52,'Credit Ratings (WP)'!$C$4:$D$24,2,)) ->  | Q52: =IF(H52=0,"N/A",VLOOKUP(H52,'Credit Ratings (WP)'!$E$4:$F$24,2,)) -> 
B53: FALSE | P53: =IF(G53=0,"N/A",VLOOKUP(G53,'Credit Ratings (WP)'!$C$4:$D$24,2,)) ->  | Q53: =IF(H53=0,"N/A",VLOOKUP(H53,'Credit Ratings (WP)'!$E$4:$F$24,2,)) -> 
B54: FALSE | P54: =IF(G54=0,"N/A",VLOOKUP(G54,'Credit Ratings (WP)'!$C$4:$D$24,2,)) ->  | Q54: =IF(H54=0,"N/A",VLOOKUP(H54,'Credit Ratings (WP)'!$E$4:$F$24,2,)) -> 
B55: FALSE | P55: =IF(G55=0,"N/A",VLOOKUP(G55,'Credit Ratings (WP)'!$C$4:$D$24,2,)) ->  | Q55: =IF(H55=0,"N/A",VLOOKUP(H55,'Credit Ratings (WP)'!$E$4:$F$24,2,)) -> 
B56: FALSE | P56: =IF(G56=0,"N/A",VLOOKUP(G56,'Credit Ratings (WP)'!$C$4:$D$24,2,)) ->  | Q56: =IF(H56=0,"N/A",VLOOKUP(H56,'Credit Ratings (WP)'!$E$4:$F$24,2,)) -> 
B57: FALSE | P57: =IF(G57=0,"N/A",VLOOKUP(G57,'Credit Ratings (WP)'!$C$4:$D$24,2,)) ->  | Q57: =IF(H57=0,"N/A",VLOOKUP(H57,'Credit Ratings (WP)'!$E$4:$F$24,2,)) -> 
B58: FALSE | P58: =IF(G58=0,"N/A",VLOOKUP(G58,'Credit Ratings (WP)'!$C$4:$D$24,2,)) ->  | Q58: =IF(H58=0,"N/A",VLOOKUP(H58,'Credit Ratings (WP)'!$E$4:$F$24,2,)) -> 
B59: FALSE | P59: =IF(G59=0,"N/A",VLOOKUP(G59,'Credit Ratings (WP)'!$C$4:$D$24,2,)) ->  | Q59: =IF(H59=0,"N/A",VLOOKUP(H59,'Credit Ratings (WP)'!$E$4:$F$24,2,)) -> 
B60: FALSE | P60: =IF(G60=0,"N/A",VLOOKUP(G60,'Credit Ratings (WP)'!$C$4:$D$24,2,)) ->  | Q60: =IF(H60=0,"N/A",VLOOKUP(H60,'Credit Ratings (WP)'!$E$4:$F$24,2,)) -> 
B61: FALSE | P61: =IF(G61=0,"N/A",VLOOKUP(G61,'Credit Ratings (WP)'!$C$4:$D$24,2,)) ->  | Q61: =IF(H61=0,"N/A",VLOOKUP(H61,'Credit Ratings (WP)'!$E$4:$F$24,2,)) -> 
A63: =IF(D63=0,"N/A",MAX(A13:A62)+1) -> 14 | D63: Average | G63: =VLOOKUP(P63,'Credit Ratings (WP)'!$B$4:$C$24,2,) -> BBB+ | H63: =VLOOKUP(Q63,'Credit Ratings (WP)'!$D$4:$E$24,2,) -> A3 | J63: =AVERAGE(J12:J61) -> 0.4658977871 | K63: =AVERAGE(K12:K61) -> 0.4903076923 | M63: =CHOOSE(ROUND((COUNTIF(M12:M61,"Excellent")*2+COUNTIF(M12:M61,"Strong"))/('Proxy Group'!$B$4-COUNTIF(M12:M61,"N/A")),0),"Strong","Excellent") -> Excellent | P63: =ROUND(AVERAGEIF(P12:P62,">0"),0) -> 14 | Q63: =ROUND(AVERAGEIF(Q12:Q62,">0"),0) -> 15
A65: =IF(D65=0,"N/A",MAX(A62:A64)+1) -> 15 | D65: =A1&" (PacifiCorp)" -> Rocky Mountain Power (PacifiCorp) | G65: A-1 | H65: A31 | K65: 51.6%4 | M65: =CHOOSE(ROUND((COUNTIF(M14:M63,"Excellent")*2+COUNTIF(M14:M63,"Strong"))/('Proxy Group'!$B$4-COUNTIF(M14:M63,"N/A")),0),"Strong","Excellent") -> Excellent
C69: Sources:
C70: =+A70+1 -> 1 | D70: ="SNL Financial, Downloaded on "& TEXT($R$9,"mmmm d, yyyy")&"." -> SNL Financial, Downloaded on March 27, 2014.
C71: =+C70+1 -> 2 | D71: The Value Line Investment Survey, January 31, February 21, and March 21, 2014.
C72: =+C71+1 -> 3 | D72: S&P RatingsDirect: "U.S. Regulated Utilities, Strongest To Weakest," July 30, 2013.
C73: 4 | D73: Williams Direct at 2.

Sheet Sheet1

Sheet FEA___(MPG-3)
A1: ='FEA___(MPG-2)'!A1 -> Rocky Mountain Power
A4: Consensus Analysts' Growth Rates
F7: Zacks | I7: SNL | L7: Reuters | O7: Average of
F8: Estimated | G8: Number of | I8: Estimated | J8: Number of | L8: Estimated | M8: Number of | O8: Growth
A9: Line | C9: Company | F9: Growth %1 | G9: Estimates | I9: Growth %2 | J9: Estimates | L9: Growth %3 | M9: Estimates | O9: Rates | T9: 2014-03-27
F10: (1) | G10: (2) | I10: (3) | J10: (4) | L10: (5) | M10: (6) | O10: (7)
S11: Zacks | T11: SNL | U11: Reuters
A12: ='FEA___(MPG-2)'!A12 -> 1 | C12: ='FEA___(MPG-2)'!D12 -> ALLETE, Inc. | E12: ='FEA___(MPG-2)'!F12 -> ALE | F12: =IF('FEA___(MPG-2)'!$B12,VLOOKUP($E12,GRLU,5,FALSE),"") -> 0.06 | G12: =IF('FEA___(MPG-2)'!$B12,VLOOKUP($E12,GRLU,6,FALSE),"") -> N/A | I12: =IF('FEA___(MPG-2)'!$B12,VLOOKUP($E12,GRLU,8,FALSE),"") -> N/A | J12: =IF('FEA___(MPG-2)'!$B12,VLOOKUP($E12,GRLU,9,FALSE),"") -> N/A | L12: =IF('FEA___(MPG-2)'!$B12,VLOOKUP($E12,GRLU,11,FALSE),"") -> NA | M12: =IF('FEA___(MPG-2)'!$B12,VLOOKUP($E12,GRLU,12,FALSE),"") -> NA | O12: =IF('FEA___(MPG-2)'!$B12,AVERAGEIF(S12:U12,">0"),"") -> 0.06 | S12: =+F12 -> 0.06 | T12: =+I12 -> N/A | U12: =+L12 -> NA
A13: ='FEA___(MPG-2)'!A13 -> 2 | C13: ='FEA___(MPG-2)'!D13 -> Alliant Energy Corporation | E13: ='FEA___(MPG-2)'!F13 -> LNT | F13: =IF('FEA___(MPG-2)'!$B13,VLOOKUP($E13,GRLU,5,FALSE),"") -> 0.055 | G13: =IF('FEA___(MPG-2)'!$B13,VLOOKUP($E13,GRLU,6,FALSE),"") -> N/A | I13: =IF('FEA___(MPG-2)'!$B13,VLOOKUP($E13,GRLU,8,FALSE),"") -> 0.054 | J13: =IF('FEA___(MPG-2)'!$B13,VLOOKUP($E13,GRLU,9,FALSE),"") -> 2 | L13: =IF('FEA___(MPG-2)'!$B13,VLOOKUP($E13,GRLU,11,FALSE),"") -> 0.056 | M13: =IF('FEA___(MPG-2)'!$B13,VLOOKUP($E13,GRLU,12,FALSE),"") -> 3 | O13: =IF('FEA___(MPG-2)'!$B13,AVERAGEIF(S13:U13,">0"),"") -> 0.055 | S13: =+F13 -> 0.055 | T13: =+I13 -> 0.054 | U13: =+L13 -> 0.056
A14: ='FEA___(MPG-2)'!A14 -> 3 | C14: ='FEA___(MPG-2)'!D14 -> Avista Corporation | E14: ='FEA___(MPG-2)'!F14 -> AVA | F14: =IF('FEA___(MPG-2)'!$B14,VLOOKUP($E14,GRLU,5,FALSE),"") -> 0.05 | G14: =IF('FEA___(MPG-2)'!$B14,VLOOKUP($E14,GRLU,6,FALSE),"") -> N/A | I14: =IF('FEA___(MPG-2)'!$B14,VLOOKUP($E14,GRLU,8,FALSE),"") -> N/A | J14: =IF('FEA___(MPG-2)'!$B14,VLOOKUP($E14,GRLU,9,FALSE),"") -> N/A | L14: =IF('FEA___(MPG-2)'!$B14,VLOOKUP($E14,GRLU,11,FALSE),"") -> NA | M14: =IF('FEA___(MPG-2)'!$B14,VLOOKUP($E14,GRLU,12,FALSE),"") -> NA | O14: =IF('FEA___(MPG-2)'!$B14,AVERAGEIF(S14:U14,">0"),"") -> 0.05 | S14: 0.05 | T14: N/A | U14: NA
A15: ='FEA___(MPG-2)'!A15 -> 4 | C15: ='FEA___(MPG-2)'!D15 -> DTE Energy Company | E15: ='FEA___(MPG-2)'!F15 -> DTE | F15: =IF('FEA___(MPG-2)'!$B15,VLOOKUP($E15,GRLU,5,FALSE),"") -> 0.062 | G15: =IF('FEA___(MPG-2)'!$B15,VLOOKUP($E15,GRLU,6,FALSE),"") -> N/A | I15: =IF('FEA___(MPG-2)'!$B15,VLOOKUP($E15,GRLU,8,FALSE),"") -> 0.058 | J15: =IF('FEA___(MPG-2)'!$B15,VLOOKUP($E15,GRLU,9,FALSE),"") -> 3 | L15: =IF('FEA___(MPG-2)'!$B15,VLOOKUP($E15,GRLU,11,FALSE),"") -> 0.0521 | M15: =IF('FEA___(MPG-2)'!$B15,VLOOKUP($E15,GRLU,12,FALSE),"") -> 4 | O15: =IF('FEA___(MPG-2)'!$B15,AVERAGEIF(S15:U15,">0"),"") -> 0.05736666667 | S15: 0.062 | T15: 0.058 | U15: 0.0521
A16: ='FEA___(MPG-2)'!A16 -> 5 | C16: ='FEA___(MPG-2)'!D16 -> IDACORP, Inc. | E16: ='FEA___(MPG-2)'!F16 -> IDA | F16: =IF('FEA___(MPG-2)'!$B16,VLOOKUP($E16,GRLU,5,FALSE),"") -> 0.04 | G16: =IF('FEA___(MPG-2)'!$B16,VLOOKUP($E16,GRLU,6,FALSE),"") -> N/A | I16: =IF('FEA___(MPG-2)'!$B16,VLOOKUP($E16,GRLU,8,FALSE),"") -> 0.04 | J16: =IF('FEA___(MPG-2)'!$B16,VLOOKUP($E16,GRLU,9,FALSE),"") -> 1 | L16: =IF('FEA___(MPG-2)'!$B16,VLOOKUP($E16,GRLU,11,FALSE),"") -> 0.04 | M16: =IF('FEA___(MPG-2)'!$B16,VLOOKUP($E16,GRLU,12,FALSE),"") -> 1 | O16: =IF('FEA___(MPG-2)'!$B16,AVERAGEIF(S16:U16,">0"),"") -> 0.04 | S16: 0.04 | T16: 0.04 | U16: 0.04
A17: ='FEA___(MPG-2)'!A17 -> 6 | C17: ='FEA___(MPG-2)'!D17 -> Integrys Energy Group, Inc. | E17: ='FEA___(MPG-2)'!F17 -> TEG | F17: =IF('FEA___(MPG-2)'!$B17,VLOOKUP($E17,GRLU,5,FALSE),"") -> 0.045 | G17: =IF('FEA___(MPG-2)'!$B17,VLOOKUP($E17,GRLU,6,FALSE),"") -> N/A | I17: =IF('FEA___(MPG-2)'!$B17,VLOOKUP($E17,GRLU,8,FALSE),"") -> 0.054 | J17: =IF('FEA___(MPG-2)'!$B17,VLOOKUP($E17,GRLU,9,FALSE),"") -> 2 | L17: =IF('FEA___(MPG-2)'!$B17,VLOOKUP($E17,GRLU,11,FALSE),"") -> NA | M17: =IF('FEA___(MPG-2)'!$B17,VLOOKUP($E17,GRLU,12,FALSE),"") -> NA | O17: =IF('FEA___(MPG-2)'!$B17,AVERAGEIF(S17:U17,">0"),"") -> 0.0495 | S17: 0.045 | T17: 0.054 | U17: NA
A18: ='FEA___(MPG-2)'!A18 -> 7 | C18: ='FEA___(MPG-2)'!D18 -> NextEra Energy, Inc. | E18: ='FEA___(MPG-2)'!F18 -> NEE | F18: =IF('FEA___(MPG-2)'!$B18,VLOOKUP($E18,GRLU,5,FALSE),"") -> 0.061 | G18: =IF('FEA___(MPG-2)'!$B18,VLOOKUP($E18,GRLU,6,FALSE),"") -> N/A | I18: =IF('FEA___(MPG-2)'!$B18,VLOOKUP($E18,GRLU,8,FALSE),"") -> 0.064 | J18: =IF('FEA___(MPG-2)'!$B18,VLOOKUP($E18,GRLU,9,FALSE),"") -> 5 | L18: =IF('FEA___(MPG-2)'!$B18,VLOOKUP($E18,GRLU,11,FALSE),"") -> 0.0618 | M18: =IF('FEA___(MPG-2)'!$B18,VLOOKUP($E18,GRLU,12,FALSE),"") -> 5 | O18: =IF('FEA___(MPG-2)'!$B18,AVERAGEIF(S18:U18,">0"),"") -> 0.06226666667 | S18: 0.061 | T18: 0.064 | U18: 0.0618
A19: ='FEA___(MPG-2)'!A19 -> 8 | C19: ='FEA___(MPG-2)'!D19 -> Portland General Electric Company | E19: ='FEA___(MPG-2)'!F19 -> POR | F19: =IF('FEA___(MPG-2)'!$B19,VLOOKUP($E19,GRLU,5,FALSE),"") -> 0.066 | G19: =IF('FEA___(MPG-2)'!$B19,VLOOKUP($E19,GRLU,6,FALSE),"") -> N/A | I19: =IF('FEA___(MPG-2)'!$B19,VLOOKUP($E19,GRLU,8,FALSE),"") -> 0.068 | J19: =IF('FEA___(MPG-2)'!$B19,VLOOKUP($E19,GRLU,9,FALSE),"") -> 3 | L19: =IF('FEA___(MPG-2)'!$B19,VLOOKUP($E19,GRLU,11,FALSE),"") -> 0.0967 | M19: =IF('FEA___(MPG-2)'!$B19,VLOOKUP($E19,GRLU,12,FALSE),"") -> 4 | O19: =IF('FEA___(MPG-2)'!$B19,AVERAGEIF(S19:U19,">0"),"") -> 0.0769 | S19: 0.066 | T19: 0.068 | U19: 0.0967
A20: ='FEA___(MPG-2)'!A20 -> 9 | C20: ='FEA___(MPG-2)'!D20 -> Sempra Energy | E20: ='FEA___(MPG-2)'!F20 -> SRE | F20: =IF('FEA___(MPG-2)'!$B20,VLOOKUP($E20,GRLU,5,FALSE),"") -> 0.075 | G20: =IF('FEA___(MPG-2)'!$B20,VLOOKUP($E20,GRLU,6,FALSE),"") -> N/A | I20: =IF('FEA___(MPG-2)'!$B20,VLOOKUP($E20,GRLU,8,FALSE),"") -> 0.051 | J20: =IF('FEA___(MPG-2)'!$B20,VLOOKUP($E20,GRLU,9,FALSE),"") -> 2 | L20: =IF('FEA___(MPG-2)'!$B20,VLOOKUP($E20,GRLU,11,FALSE),"") -> 0.0628 | M20: =IF('FEA___(MPG-2)'!$B20,VLOOKUP($E20,GRLU,12,FALSE),"") -> 4 | O20: =IF('FEA___(MPG-2)'!$B20,AVERAGEIF(S20:U20,">0"),"") -> 0.06293333333 | S20: 0.075 | T20: 0.051 | U20: 0.0628
A21: ='FEA___(MPG-2)'!A21 -> 10 | C21: ='FEA___(MPG-2)'!D21 -> Southern Company | E21: ='FEA___(MPG-2)'!F21 -> SO | F21: =IF('FEA___(MPG-2)'!$B21,VLOOKUP($E21,GRLU,5,FALSE),"") -> 0.041 | G21: =IF('FEA___(MPG-2)'!$B21,VLOOKUP($E21,GRLU,6,FALSE),"") -> N/A | I21: =IF('FEA___(MPG-2)'!$B21,VLOOKUP($E21,GRLU,8,FALSE),"") -> 0.033 | J21: =IF('FEA___(MPG-2)'!$B21,VLOOKUP($E21,GRLU,9,FALSE),"") -> 5 | L21: =IF('FEA___(MPG-2)'!$B21,VLOOKUP($E21,GRLU,11,FALSE),"") -> 0.0387 | M21: =IF('FEA___(MPG-2)'!$B21,VLOOKUP($E21,GRLU,12,FALSE),"") -> 7 | O21: =IF('FEA___(MPG-2)'!$B21,AVERAGEIF(S21:U21,">0"),"") -> 0.03756666667 | S21: 0.041 | T21: 0.033 | U21: 0.0387
A22: ='FEA___(MPG-2)'!A22 -> 11 | C22: ='FEA___(MPG-2)'!D22 -> Westar Energy, Inc. | E22: ='FEA___(MPG-2)'!F22 -> WR | F22: =IF('FEA___(MPG-2)'!$B22,VLOOKUP($E22,GRLU,5,FALSE),"") -> 0.043 | G22: =IF('FEA___(MPG-2)'!$B22,VLOOKUP($E22,GRLU,6,FALSE),"") -> N/A | I22: =IF('FEA___(MPG-2)'!$B22,VLOOKUP($E22,GRLU,8,FALSE),"") -> 0.032 | J22: =IF('FEA___(MPG-2)'!$B22,VLOOKUP($E22,GRLU,9,FALSE),"") -> 3 | L22: =IF('FEA___(MPG-2)'!$B22,VLOOKUP($E22,GRLU,11,FALSE),"") -> 0.028 | M22: =IF('FEA___(MPG-2)'!$B22,VLOOKUP($E22,GRLU,12,FALSE),"") -> 2 | O22: =IF('FEA___(MPG-2)'!$B22,AVERAGEIF(S22:U22,">0"),"") -> 0.03433333333 | S22: 0.043 | T22: 0.032 | U22: 0.028
A23: ='FEA___(MPG-2)'!A23 -> 12 | C23: ='FEA___(MPG-2)'!D23 -> Wisconsin Energy Corporation | E23: ='FEA___(MPG-2)'!F23 -> WEC | F23: =IF('FEA___(MPG-2)'!$B23,VLOOKUP($E23,GRLU,5,FALSE),"") -> 0.052 | G23: =IF('FEA___(MPG-2)'!$B23,VLOOKUP($E23,GRLU,6,FALSE),"") -> N/A | I23: =IF('FEA___(MPG-2)'!$B23,VLOOKUP($E23,GRLU,8,FALSE),"") -> 0.052 | J23: =IF('FEA___(MPG-2)'!$B23,VLOOKUP($E23,GRLU,9,FALSE),"") -> 2 | L23: =IF('FEA___(MPG-2)'!$B23,VLOOKUP($E23,GRLU,11,FALSE),"") -> 0.0486 | M23: =IF('FEA___(MPG-2)'!$B23,VLOOKUP($E23,GRLU,12,FALSE),"") -> 3 | O23: =IF('FEA___(MPG-2)'!$B23,AVERAGEIF(S23:U23,">0"),"") -> 0.05086666667 | S23: 0.052 | T23: 0.052 | U23: 0.0486
A24: ='FEA___(MPG-2)'!A24 -> 13 | C24: ='FEA___(MPG-2)'!D24 -> Xcel Energy Inc. | E24: ='FEA___(MPG-2)'!F24 -> XEL | F24: =IF('FEA___(MPG-2)'!$B24,VLOOKUP($E24,GRLU,5,FALSE),"") -> 0.042 | G24: =IF('FEA___(MPG-2)'!$B24,VLOOKUP($E24,GRLU,6,FALSE),"") -> N/A | I24: =IF('FEA___(MPG-2)'!$B24,VLOOKUP($E24,GRLU,8,FALSE),"") -> 0.049 | J24: =IF('FEA___(MPG-2)'!$B24,VLOOKUP($E24,GRLU,9,FALSE),"") -> 3 | L24: =IF('FEA___(MPG-2)'!$B24,VLOOKUP($E24,GRLU,11,FALSE),"") -> 0.0529 | M24: =IF('FEA___(MPG-2)'!$B24,VLOOKUP($E24,GRLU,12,FALSE),"") -> 5 | O24: =IF('FEA___(MPG-2)'!$B24,AVERAGEIF(S24:U24,">0"),"") -> 0.04796666667 | S24: 0.042 | T24: 0.049 | U24: 0.0529
A25: ='FEA___(MPG-2)'!A25 ->  | C25: ='FEA___(MPG-2)'!D25 ->  | E25: ='FEA___(MPG-2)'!F25 ->  | F25: =IF('FEA___(MPG-2)'!$B25,VLOOKUP($E25,GRLU,5,FALSE),"") ->  | G25: =IF('FEA___(MPG-2)'!$B25,VLOOKUP($E25,GRLU,6,FALSE),"") ->  | I25: =IF('FEA___(MPG-2)'!$B25,VLOOKUP($E25,GRLU,8,FALSE),"") ->  | J25: =IF('FEA___(MPG-2)'!$B25,VLOOKUP($E25,GRLU,9,FALSE),"") ->  | L25: =IF('FEA___(MPG-2)'!$B25,VLOOKUP($E25,GRLU,11,FALSE),"") ->  | M25: =IF('FEA___(MPG-2)'!$B25,VLOOKUP($E25,GRLU,12,FALSE),"") ->  | O25: =IF('FEA___(MPG-2)'!$B25,AVERAGEIF(S25:U25,">0"),"") -> 
A26: ='FEA___(MPG-2)'!A26 ->  | C26: ='FEA___(MPG-2)'!D26 ->  | E26: ='FEA___(MPG-2)'!F26 ->  | F26: =IF('FEA___(MPG-2)'!$B26,VLOOKUP($E26,GRLU,5,FALSE),"") ->  | G26: =IF('FEA___(MPG-2)'!$B26,VLOOKUP($E26,GRLU,6,FALSE),"") ->  | I26: =IF('FEA___(MPG-2)'!$B26,VLOOKUP($E26,GRLU,8,FALSE),"") ->  | J26: =IF('FEA___(MPG-2)'!$B26,VLOOKUP($E26,GRLU,9,FALSE),"") ->  | L26: =IF('FEA___(MPG-2)'!$B26,VLOOKUP($E26,GRLU,11,FALSE),"") ->  | M26: =IF('FEA___(MPG-2)'!$B26,VLOOKUP($E26,GRLU,12,FALSE),"") ->  | O26: =IF('FEA___(MPG-2)'!$B26,AVERAGEIF(S26:U26,">0"),"") -> 
A27: ='FEA___(MPG-2)'!A27 ->  | C27: ='FEA___(MPG-2)'!D27 ->  | E27: ='FEA___(MPG-2)'!F27 ->  | F27: =IF('FEA___(MPG-2)'!$B27,VLOOKUP($E27,GRLU,5,FALSE),"") ->  | G27: =IF('FEA___(MPG-2)'!$B27,VLOOKUP($E27,GRLU,6,FALSE),"") ->  | I27: =IF('FEA___(MPG-2)'!$B27,VLOOKUP($E27,GRLU,8,FALSE),"") ->  | J27: =IF('FEA___(MPG-2)'!$B27,VLOOKUP($E27,GRLU,9,FALSE),"") ->  | L27: =IF('FEA___(MPG-2)'!$B27,VLOOKUP($E27,GRLU,11,FALSE),"") ->  | M27: =IF('FEA___(MPG-2)'!$B27,VLOOKUP($E27,GRLU,12,FALSE),"") ->  | O27: =IF('FEA___(MPG-2)'!$B27,AVERAGEIF(S27:U27,">0"),"") -> 
A28: ='FEA___(MPG-2)'!A28 ->  | C28: ='FEA___(MPG-2)'!D28 ->  | E28: ='FEA___(MPG-2)'!F28 ->  | F28: =IF('FEA___(MPG-2)'!$B28,VLOOKUP($E28,GRLU,5,FALSE),"") ->  | G28: =IF('FEA___(MPG-2)'!$B28,VLOOKUP($E28,GRLU,6,FALSE),"") ->  | I28: =IF('FEA___(MPG-2)'!$B28,VLOOKUP($E28,GRLU,8,FALSE),"") ->  | J28: =IF('FEA___(MPG-2)'!$B28,VLOOKUP($E28,GRLU,9,FALSE),"") ->  | L28: =IF('FEA___(MPG-2)'!$B28,VLOOKUP($E28,GRLU,11,FALSE),"") ->  | M28: =IF('FEA___(MPG-2)'!$B28,VLOOKUP($E28,GRLU,12,FALSE),"") ->  | O28: =IF('FEA___(MPG-2)'!$B28,AVERAGEIF(S28:U28,">0"),"") -> 
A29: ='FEA___(MPG-2)'!A29 ->  | C29: ='FEA___(MPG-2)'!D29 ->  | E29: ='FEA___(MPG-2)'!F29 ->  | F29: =IF('FEA___(MPG-2)'!$B29,VLOOKUP($E29,GRLU,5,FALSE),"") ->  | G29: =IF('FEA___(MPG-2)'!$B29,VLOOKUP($E29,GRLU,6,FALSE),"") ->  | I29: =IF('FEA___(MPG-2)'!$B29,VLOOKUP($E29,GRLU,8,FALSE),"") ->  | J29: =IF('FEA___(MPG-2)'!$B29,VLOOKUP($E29,GRLU,9,FALSE),"") ->  | L29: =IF('FEA___(MPG-2)'!$B29,VLOOKUP($E29,GRLU,11,FALSE),"") ->  | M29: =IF('FEA___(MPG-2)'!$B29,VLOOKUP($E29,GRLU,12,FALSE),"") ->  | O29: =IF('FEA___(MPG-2)'!$B29,AVERAGEIF(S29:U29,">0"),"") -> 
A30: ='FEA___(MPG-2)'!A30 ->  | C30: ='FEA___(MPG-2)'!D30 ->  | E30: ='FEA___(MPG-2)'!F30 ->  | F30: =IF('FEA___(MPG-2)'!$B30,VLOOKUP($E30,GRLU,5,FALSE),"") ->  | G30: =IF('FEA___(MPG-2)'!$B30,VLOOKUP($E30,GRLU,6,FALSE),"") ->  | I30: =IF('FEA___(MPG-2)'!$B30,VLOOKUP($E30,GRLU,8,FALSE),"") ->  | J30: =IF('FEA___(MPG-2)'!$B30,VLOOKUP($E30,GRLU,9,FALSE),"") ->  | L30: =IF('FEA___(MPG-2)'!$B30,VLOOKUP($E30,GRLU,11,FALSE),"") ->  | M30: =IF('FEA___(MPG-2)'!$B30,VLOOKUP($E30,GRLU,12,FALSE),"") ->  | O30: =IF('FEA___(MPG-2)'!$B30,AVERAGEIF(S30:U30,">0"),"") -> 
A31: ='FEA___(MPG-2)'!A31 ->  | C31: ='FEA___(MPG-2)'!D31 ->  | E31: ='FEA___(MPG-2)'!F31 ->  | F31: =IF('FEA___(MPG-2)'!$B31,VLOOKUP($E31,GRLU,5,FALSE),"") ->  | G31: =IF('FEA___(MPG-2)'!$B31,VLOOKUP($E31,GRLU,6,FALSE),"") ->  | I31: =IF('FEA___(MPG-2)'!$B31,VLOOKUP($E31,GRLU,8,FALSE),"") ->  | J31: =IF('FEA___(MPG-2)'!$B31,VLOOKUP($E31,GRLU,9,FALSE),"") ->  | L31: =IF('FEA___(MPG-2)'!$B31,VLOOKUP($E31,GRLU,11,FALSE),"") ->  | M31: =IF('FEA___(MPG-2)'!$B31,VLOOKUP($E31,GRLU,12,FALSE),"") ->  | O31: =IF('FEA___(MPG-2)'!$B31,AVERAGEIF(S31:U31,">0"),"") -> 
A32: ='FEA___(MPG-2)'!A32 ->  | C32: ='FEA___(MPG-2)'!D32 ->  | E32: ='FEA___(MPG-2)'!F32 ->  | F32: =IF('FEA___(MPG-2)'!$B32,VLOOKUP($E32,GRLU,5,FALSE),"") ->  | G32: =IF('FEA___(MPG-2)'!$B32,VLOOKUP($E32,GRLU,6,FALSE),"") ->  | I32: =IF('FEA___(MPG-2)'!$B32,VLOOKUP($E32,GRLU,8,FALSE),"") ->  | J32: =IF('FEA___(MPG-2)'!$B32,VLOOKUP($E32,GRLU,9,FALSE),"") ->  | L32: =IF('FEA___(MPG-2)'!$B32,VLOOKUP($E32,GRLU,11,FALSE),"") ->  | M32: =IF('FEA___(MPG-2)'!$B32,VLOOKUP($E32,GRLU,12,FALSE),"") ->  | O32: =IF('FEA___(MPG-2)'!$B32,AVERAGEIF(S32:U32,">0"),"") -> 
A33: ='FEA___(MPG-2)'!A33 ->  | C33: ='FEA___(MPG-2)'!D33 ->  | E33: ='FEA___(MPG-2)'!F33 ->  | F33: =IF('FEA___(MPG-2)'!$B33,VLOOKUP($E33,GRLU,5,FALSE),"") ->  | G33: =IF('FEA___(MPG-2)'!$B33,VLOOKUP($E33,GRLU,6,FALSE),"") ->  | I33: =IF('FEA___(MPG-2)'!$B33,VLOOKUP($E33,GRLU,8,FALSE),"") ->  | J33: =IF('FEA___(MPG-2)'!$B33,VLOOKUP($E33,GRLU,9,FALSE),"") ->  | L33: =IF('FEA___(MPG-2)'!$B33,VLOOKUP($E33,GRLU,11,FALSE),"") ->  | M33: =IF('FEA___(MPG-2)'!$B33,VLOOKUP($E33,GRLU,12,FALSE),"") ->  | O33: =IF('FEA___(MPG-2)'!$B33,AVERAGEIF(S33:U33,">0"),"") -> 
A34: ='FEA___(MPG-2)'!A34 ->  | C34: ='FEA___(MPG-2)'!D34 ->  | E34: ='FEA___(MPG-2)'!F34 ->  | F34: =IF('FEA___(MPG-2)'!$B34,VLOOKUP($E34,GRLU,5,FALSE),"") ->  | G34: =IF('FEA___(MPG-2)'!$B34,VLOOKUP($E34,GRLU,6,FALSE),"") ->  | I34: =IF('FEA___(MPG-2)'!$B34,VLOOKUP($E34,GRLU,8,FALSE),"") ->  | J34: =IF('FEA___(MPG-2)'!$B34,VLOOKUP($E34,GRLU,9,FALSE),"") ->  | L34: =IF('FEA___(MPG-2)'!$B34,VLOOKUP($E34,GRLU,11,FALSE),"") ->  | M34: =IF('FEA___(MPG-2)'!$B34,VLOOKUP($E34,GRLU,12,FALSE),"") ->  | O34: =IF('FEA___(MPG-2)'!$B34,AVERAGEIF(S34:U34,">0"),"") -> 
A35: ='FEA___(MPG-2)'!A35 ->  | C35: ='FEA___(MPG-2)'!D35 ->  | E35: ='FEA___(MPG-2)'!F35 ->  | F35: =IF('FEA___(MPG-2)'!$B35,VLOOKUP($E35,GRLU,5,FALSE),"") ->  | G35: =IF('FEA___(MPG-2)'!$B35,VLOOKUP($E35,GRLU,6,FALSE),"") ->  | I35: =IF('FEA___(MPG-2)'!$B35,VLOOKUP($E35,GRLU,8,FALSE),"") ->  | J35: =IF('FEA___(MPG-2)'!$B35,VLOOKUP($E35,GRLU,9,FALSE),"") ->  | L35: =IF('FEA___(MPG-2)'!$B35,VLOOKUP($E35,GRLU,11,FALSE),"") ->  | M35: =IF('FEA___(MPG-2)'!$B35,VLOOKUP($E35,GRLU,12,FALSE),"") ->  | O35: =IF('FEA___(MPG-2)'!$B35,AVERAGEIF(S35:U35,">0"),"") -> 
A36: ='FEA___(MPG-2)'!A36 ->  | C36: ='FEA___(MPG-2)'!D36 ->  | E36: ='FEA___(MPG-2)'!F36 ->  | F36: =IF('FEA___(MPG-2)'!$B36,VLOOKUP($E36,GRLU,5,FALSE),"") ->  | G36: =IF('FEA___(MPG-2)'!$B36,VLOOKUP($E36,GRLU,6,FALSE),"") ->  | I36: =IF('FEA___(MPG-2)'!$B36,VLOOKUP($E36,GRLU,8,FALSE),"") ->  | J36: =IF('FEA___(MPG-2)'!$B36,VLOOKUP($E36,GRLU,9,FALSE),"") ->  | L36: =IF('FEA___(MPG-2)'!$B36,VLOOKUP($E36,GRLU,11,FALSE),"") ->  | M36: =IF('FEA___(MPG-2)'!$B36,VLOOKUP($E36,GRLU,12,FALSE),"") ->  | O36: =IF('FEA___(MPG-2)'!$B36,AVERAGEIF(S36:U36,">0"),"") -> 
A37: ='FEA___(MPG-2)'!A37 ->  | C37: ='FEA___(MPG-2)'!D37 ->  | E37: ='FEA___(MPG-2)'!F37 ->  | F37: =IF('FEA___(MPG-2)'!$B37,VLOOKUP($E37,GRLU,5,FALSE),"") ->  | G37: =IF('FEA___(MPG-2)'!$B37,VLOOKUP($E37,GRLU,6,FALSE),"") ->  | I37: =IF('FEA___(MPG-2)'!$B37,VLOOKUP($E37,GRLU,8,FALSE),"") ->  | J37: =IF('FEA___(MPG-2)'!$B37,VLOOKUP($E37,GRLU,9,FALSE),"") ->  | L37: =IF('FEA___(MPG-2)'!$B37,VLOOKUP($E37,GRLU,11,FALSE),"") ->  | M37: =IF('FEA___(MPG-2)'!$B37,VLOOKUP($E37,GRLU,12,FALSE),"") ->  | O37: =IF('FEA___(MPG-2)'!$B37,AVERAGEIF(S37:U37,">0"),"") -> 
A38: ='FEA___(MPG-2)'!A38 ->  | C38: ='FEA___(MPG-2)'!D38 ->  | E38: ='FEA___(MPG-2)'!F38 ->  | F38: =IF('FEA___(MPG-2)'!$B38,VLOOKUP($E38,GRLU,5,FALSE),"") ->  | G38: =IF('FEA___(MPG-2)'!$B38,VLOOKUP($E38,GRLU,6,FALSE),"") ->  | I38: =IF('FEA___(MPG-2)'!$B38,VLOOKUP($E38,GRLU,8,FALSE),"") ->  | J38: =IF('FEA___(MPG-2)'!$B38,VLOOKUP($E38,GRLU,9,FALSE),"") ->  | L38: =IF('FEA___(MPG-2)'!$B38,VLOOKUP($E38,GRLU,11,FALSE),"") ->  | M38: =IF('FEA___(MPG-2)'!$B38,VLOOKUP($E38,GRLU,12,FALSE),"") ->  | O38: =IF('FEA___(MPG-2)'!$B38,AVERAGEIF(S38:U38,">0"),"") -> 
A39: ='FEA___(MPG-2)'!A39 ->  | C39: ='FEA___(MPG-2)'!D39 ->  | E39: ='FEA___(MPG-2)'!F39 ->  | F39: =IF('FEA___(MPG-2)'!$B39,VLOOKUP($E39,GRLU,5,FALSE),"") ->  | G39: =IF('FEA___(MPG-2)'!$B39,VLOOKUP($E39,GRLU,6,FALSE),"") ->  | I39: =IF('FEA___(MPG-2)'!$B39,VLOOKUP($E39,GRLU,8,FALSE),"") ->  | J39: =IF('FEA___(MPG-2)'!$B39,VLOOKUP($E39,GRLU,9,FALSE),"") ->  | L39: =IF('FEA___(MPG-2)'!$B39,VLOOKUP($E39,GRLU,11,FALSE),"") ->  | M39: =IF('FEA___(MPG-2)'!$B39,VLOOKUP($E39,GRLU,12,FALSE),"") ->  | O39: =IF('FEA___(MPG-2)'!$B39,AVERAGEIF(S39:U39,">0"),"") -> 
A40: ='FEA___(MPG-2)'!A40 ->  | C40: ='FEA___(MPG-2)'!D40 ->  | E40: ='FEA___(MPG-2)'!F40 ->  | F40: =IF('FEA___(MPG-2)'!$B40,VLOOKUP($E40,GRLU,5,FALSE),"") ->  | G40: =IF('FEA___(MPG-2)'!$B40,VLOOKUP($E40,GRLU,6,FALSE),"") ->  | I40: =IF('FEA___(MPG-2)'!$B40,VLOOKUP($E40,GRLU,8,FALSE),"") ->  | J40: =IF('FEA___(MPG-2)'!$B40,VLOOKUP($E40,GRLU,9,FALSE),"") ->  | L40: =IF('FEA___(MPG-2)'!$B40,VLOOKUP($E40,GRLU,11,FALSE),"") ->  | M40: =IF('FEA___(MPG-2)'!$B40,VLOOKUP($E40,GRLU,12,FALSE),"") ->  | O40: =IF('FEA___(MPG-2)'!$B40,AVERAGEIF(S40:U40,">0"),"") -> 
A41: ='FEA___(MPG-2)'!A41 ->  | C41: ='FEA___(MPG-2)'!D41 ->  | E41: ='FEA___(MPG-2)'!F41 ->  | F41: =IF('FEA___(MPG-2)'!$B41,VLOOKUP($E41,GRLU,5,FALSE),"") ->  | G41: =IF('FEA___(MPG-2)'!$B41,VLOOKUP($E41,GRLU,6,FALSE),"") ->  | I41: =IF('FEA___(MPG-2)'!$B41,VLOOKUP($E41,GRLU,8,FALSE),"") ->  | J41: =IF('FEA___(MPG-2)'!$B41,VLOOKUP($E41,GRLU,9,FALSE),"") ->  | L41: =IF('FEA___(MPG-2)'!$B41,VLOOKUP($E41,GRLU,11,FALSE),"") ->  | M41: =IF('FEA___(MPG-2)'!$B41,VLOOKUP($E41,GRLU,12,FALSE),"") ->  | O41: =IF('FEA___(MPG-2)'!$B41,AVERAGEIF(S41:U41,">0"),"") -> 
A42: ='FEA___(MPG-2)'!A42 ->  | C42: ='FEA___(MPG-2)'!D42 ->  | E42: ='FEA___(MPG-2)'!F42 ->  | F42: =IF('FEA___(MPG-2)'!$B42,VLOOKUP($E42,GRLU,5,FALSE),"") ->  | G42: =IF('FEA___(MPG-2)'!$B42,VLOOKUP($E42,GRLU,6,FALSE),"") ->  | I42: =IF('FEA___(MPG-2)'!$B42,VLOOKUP($E42,GRLU,8,FALSE),"") ->  | J42: =IF('FEA___(MPG-2)'!$B42,VLOOKUP($E42,GRLU,9,FALSE),"") ->  | L42: =IF('FEA___(MPG-2)'!$B42,VLOOKUP($E42,GRLU,11,FALSE),"") ->  | M42: =IF('FEA___(MPG-2)'!$B42,VLOOKUP($E42,GRLU,12,FALSE),"") ->  | O42: =IF('FEA___(MPG-2)'!$B42,AVERAGEIF(S42:U42,">0"),"") -> 
A43: ='FEA___(MPG-2)'!A43 ->  | C43: ='FEA___(MPG-2)'!D43 ->  | E43: ='FEA___(MPG-2)'!F43 ->  | F43: =IF('FEA___(MPG-2)'!$B43,VLOOKUP($E43,GRLU,5,FALSE),"") ->  | G43: =IF('FEA___(MPG-2)'!$B43,VLOOKUP($E43,GRLU,6,FALSE),"") ->  | I43: =IF('FEA___(MPG-2)'!$B43,VLOOKUP($E43,GRLU,8,FALSE),"") ->  | J43: =IF('FEA___(MPG-2)'!$B43,VLOOKUP($E43,GRLU,9,FALSE),"") ->  | L43: =IF('FEA___(MPG-2)'!$B43,VLOOKUP($E43,GRLU,11,FALSE),"") ->  | M43: =IF('FEA___(MPG-2)'!$B43,VLOOKUP($E43,GRLU,12,FALSE),"") ->  | O43: =IF('FEA___(MPG-2)'!$B43,AVERAGEIF(S43:U43,">0"),"") -> 
A44: ='FEA___(MPG-2)'!A44 ->  | C44: ='FEA___(MPG-2)'!D44 ->  | E44: ='FEA___(MPG-2)'!F44 ->  | F44: =IF('FEA___(MPG-2)'!$B44,VLOOKUP($E44,GRLU,5,FALSE),"") ->  | G44: =IF('FEA___(MPG-2)'!$B44,VLOOKUP($E44,GRLU,6,FALSE),"") ->  | I44: =IF('FEA___(MPG-2)'!$B44,VLOOKUP($E44,GRLU,8,FALSE),"") ->  | J44: =IF('FEA___(MPG-2)'!$B44,VLOOKUP($E44,GRLU,9,FALSE),"") ->  | L44: =IF('FEA___(MPG-2)'!$B44,VLOOKUP($E44,GRLU,11,FALSE),"") ->  | M44: =IF('FEA___(MPG-2)'!$B44,VLOOKUP($E44,GRLU,12,FALSE),"") ->  | O44: =IF('FEA___(MPG-2)'!$B44,AVERAGEIF(S44:U44,">0"),"") -> 
A45: ='FEA___(MPG-2)'!A45 ->  | C45: ='FEA___(MPG-2)'!D45 ->  | E45: ='FEA___(MPG-2)'!F45 ->  | F45: =IF('FEA___(MPG-2)'!$B45,VLOOKUP($E45,GRLU,5,FALSE),"") ->  | G45: =IF('FEA___(MPG-2)'!$B45,VLOOKUP($E45,GRLU,6,FALSE),"") ->  | I45: =IF('FEA___(MPG-2)'!$B45,VLOOKUP($E45,GRLU,8,FALSE),"") ->  | J45: =IF('FEA___(MPG-2)'!$B45,VLOOKUP($E45,GRLU,9,FALSE),"") ->  | L45: =IF('FEA___(MPG-2)'!$B45,VLOOKUP($E45,GRLU,11,FALSE),"") ->  | M45: =IF('FEA___(MPG-2)'!$B45,VLOOKUP($E45,GRLU,12,FALSE),"") ->  | O45: =IF('FEA___(MPG-2)'!$B45,AVERAGEIF(S45:U45,">0"),"") -> 
A46: ='FEA___(MPG-2)'!A46 ->  | C46: ='FEA___(MPG-2)'!D46 ->  | E46: ='FEA___(MPG-2)'!F46 ->  | F46: =IF('FEA___(MPG-2)'!$B46,VLOOKUP($E46,GRLU,5,FALSE),"") ->  | G46: =IF('FEA___(MPG-2)'!$B46,VLOOKUP($E46,GRLU,6,FALSE),"") ->  | I46: =IF('FEA___(MPG-2)'!$B46,VLOOKUP($E46,GRLU,8,FALSE),"") ->  | J46: =IF('FEA___(MPG-2)'!$B46,VLOOKUP($E46,GRLU,9,FALSE),"") ->  | L46: =IF('FEA___(MPG-2)'!$B46,VLOOKUP($E46,GRLU,11,FALSE),"") ->  | M46: =IF('FEA___(MPG-2)'!$B46,VLOOKUP($E46,GRLU,12,FALSE),"") ->  | O46: =IF('FEA___(MPG-2)'!$B46,AVERAGEIF(S46:U46,">0"),"") -> 
A47: ='FEA___(MPG-2)'!A47 ->  | C47: ='FEA___(MPG-2)'!D47 ->  | E47: ='FEA___(MPG-2)'!F47 ->  | F47: =IF('FEA___(MPG-2)'!$B47,VLOOKUP($E47,GRLU,5,FALSE),"") ->  | G47: =IF('FEA___(MPG-2)'!$B47,VLOOKUP($E47,GRLU,6,FALSE),"") ->  | I47: =IF('FEA___(MPG-2)'!$B47,VLOOKUP($E47,GRLU,8,FALSE),"") ->  | J47: =IF('FEA___(MPG-2)'!$B47,VLOOKUP($E47,GRLU,9,FALSE),"") ->  | L47: =IF('FEA___(MPG-2)'!$B47,VLOOKUP($E47,GRLU,11,FALSE),"") ->  | M47: =IF('FEA___(MPG-2)'!$B47,VLOOKUP($E47,GRLU,12,FALSE),"") ->  | O47: =IF('FEA___(MPG-2)'!$B47,AVERAGEIF(S47:U47,">0"),"") -> 
A48: ='FEA___(MPG-2)'!A48 ->  | C48: ='FEA___(MPG-2)'!D48 ->  | E48: ='FEA___(MPG-2)'!F48 ->  | F48: =IF('FEA___(MPG-2)'!$B48,VLOOKUP($E48,GRLU,5,FALSE),"") ->  | G48: =IF('FEA___(MPG-2)'!$B48,VLOOKUP($E48,GRLU,6,FALSE),"") ->  | I48: =IF('FEA___(MPG-2)'!$B48,VLOOKUP($E48,GRLU,8,FALSE),"") ->  | J48: =IF('FEA___(MPG-2)'!$B48,VLOOKUP($E48,GRLU,9,FALSE),"") ->  | L48: =IF('FEA___(MPG-2)'!$B48,VLOOKUP($E48,GRLU,11,FALSE),"") ->  | M48: =IF('FEA___(MPG-2)'!$B48,VLOOKUP($E48,GRLU,12,FALSE),"") ->  | O48: =IF('FEA___(MPG-2)'!$B48,AVERAGEIF(S48:U48,">0"),"") -> 
A49: ='FEA___(MPG-2)'!A49 ->  | C49: ='FEA___(MPG-2)'!D49 ->  | E49: ='FEA___(MPG-2)'!F49 ->  | F49: =IF('FEA___(MPG-2)'!$B49,VLOOKUP($E49,GRLU,5,FALSE),"") ->  | G49: =IF('FEA___(MPG-2)'!$B49,VLOOKUP($E49,GRLU,6,FALSE),"") ->  | I49: =IF('FEA___(MPG-2)'!$B49,VLOOKUP($E49,GRLU,8,FALSE),"") ->  | J49: =IF('FEA___(MPG-2)'!$B49,VLOOKUP($E49,GRLU,9,FALSE),"") ->  | L49: =IF('FEA___(MPG-2)'!$B49,VLOOKUP($E49,GRLU,11,FALSE),"") ->  | M49: =IF('FEA___(MPG-2)'!$B49,VLOOKUP($E49,GRLU,12,FALSE),"") ->  | O49: =IF('FEA___(MPG-2)'!$B49,AVERAGEIF(S49:U49,">0"),"") -> 
A50: ='FEA___(MPG-2)'!A50 ->  | C50: ='FEA___(MPG-2)'!D50 ->  | E50: ='FEA___(MPG-2)'!F50 ->  | F50: =IF('FEA___(MPG-2)'!$B50,VLOOKUP($E50,GRLU,5,FALSE),"") ->  | G50: =IF('FEA___(MPG-2)'!$B50,VLOOKUP($E50,GRLU,6,FALSE),"") ->  | I50: =IF('FEA___(MPG-2)'!$B50,VLOOKUP($E50,GRLU,8,FALSE),"") ->  | J50: =IF('FEA___(MPG-2)'!$B50,VLOOKUP($E50,GRLU,9,FALSE),"") ->  | L50: =IF('FEA___(MPG-2)'!$B50,VLOOKUP($E50,GRLU,11,FALSE),"") ->  | M50: =IF('FEA___(MPG-2)'!$B50,VLOOKUP($E50,GRLU,12,FALSE),"") ->  | O50: =IF('FEA___(MPG-2)'!$B50,AVERAGEIF(S50:U50,">0"),"") -> 
A51: ='FEA___(MPG-2)'!A51 ->  | C51: ='FEA___(MPG-2)'!D51 ->  | E51: ='FEA___(MPG-2)'!F51 ->  | F51: =IF('FEA___(MPG-2)'!$B51,VLOOKUP($E51,GRLU,5,FALSE),"") ->  | G51: =IF('FEA___(MPG-2)'!$B51,VLOOKUP($E51,GRLU,6,FALSE),"") ->  | I51: =IF('FEA___(MPG-2)'!$B51,VLOOKUP($E51,GRLU,8,FALSE),"") ->  | J51: =IF('FEA___(MPG-2)'!$B51,VLOOKUP($E51,GRLU,9,FALSE),"") ->  | L51: =IF('FEA___(MPG-2)'!$B51,VLOOKUP($E51,GRLU,11,FALSE),"") ->  | M51: =IF('FEA___(MPG-2)'!$B51,VLOOKUP($E51,GRLU,12,FALSE),"") ->  | O51: =IF('FEA___(MPG-2)'!$B51,AVERAGEIF(S51:U51,">0"),"") -> 
A52: ='FEA___(MPG-2)'!A52 ->  | C52: ='FEA___(MPG-2)'!D52 ->  | E52: ='FEA___(MPG-2)'!F52 ->  | F52: =IF('FEA___(MPG-2)'!$B52,VLOOKUP($E52,GRLU,5,FALSE),"") ->  | G52: =IF('FEA___(MPG-2)'!$B52,VLOOKUP($E52,GRLU,6,FALSE),"") ->  | I52: =IF('FEA___(MPG-2)'!$B52,VLOOKUP($E52,GRLU,8,FALSE),"") ->  | J52: =IF('FEA___(MPG-2)'!$B52,VLOOKUP($E52,GRLU,9,FALSE),"") ->  | L52: =IF('FEA___(MPG-2)'!$B52,VLOOKUP($E52,GRLU,11,FALSE),"") ->  | M52: =IF('FEA___(MPG-2)'!$B52,VLOOKUP($E52,GRLU,12,FALSE),"") ->  | O52: =IF('FEA___(MPG-2)'!$B52,AVERAGEIF(S52:U52,">0"),"") -> 
A53: ='FEA___(MPG-2)'!A53 ->  | C53: ='FEA___(MPG-2)'!D53 ->  | E53: ='FEA___(MPG-2)'!F53 ->  | F53: =IF('FEA___(MPG-2)'!$B53,VLOOKUP($E53,GRLU,5,FALSE),"") ->  | G53: =IF('FEA___(MPG-2)'!$B53,VLOOKUP($E53,GRLU,6,FALSE),"") ->  | I53: =IF('FEA___(MPG-2)'!$B53,VLOOKUP($E53,GRLU,8,FALSE),"") ->  | J53: =IF('FEA___(MPG-2)'!$B53,VLOOKUP($E53,GRLU,9,FALSE),"") ->  | L53: =IF('FEA___(MPG-2)'!$B53,VLOOKUP($E53,GRLU,11,FALSE),"") ->  | M53: =IF('FEA___(MPG-2)'!$B53,VLOOKUP($E53,GRLU,12,FALSE),"") ->  | O53: =IF('FEA___(MPG-2)'!$B53,AVERAGEIF(S53:U53,">0"),"") -> 
A54: ='FEA___(MPG-2)'!A54 ->  | C54: ='FEA___(MPG-2)'!D54 ->  | E54: ='FEA___(MPG-2)'!F54 ->  | F54: =IF('FEA___(MPG-2)'!$B54,VLOOKUP($E54,GRLU,5,FALSE),"") ->  | G54: =IF('FEA___(MPG-2)'!$B54,VLOOKUP($E54,GRLU,6,FALSE),"") ->  | I54: =IF('FEA___(MPG-2)'!$B54,VLOOKUP($E54,GRLU,8,FALSE),"") ->  | J54: =IF('FEA___(MPG-2)'!$B54,VLOOKUP($E54,GRLU,9,FALSE),"") ->  | L54: =IF('FEA___(MPG-2)'!$B54,VLOOKUP($E54,GRLU,11,FALSE),"") ->  | M54: =IF('FEA___(MPG-2)'!$B54,VLOOKUP($E54,GRLU,12,FALSE),"") ->  | O54: =IF('FEA___(MPG-2)'!$B54,AVERAGEIF(S54:U54,">0"),"") -> 
A55: ='FEA___(MPG-2)'!A55 ->  | C55: ='FEA___(MPG-2)'!D55 ->  | E55: ='FEA___(MPG-2)'!F55 ->  | F55: =IF('FEA___(MPG-2)'!$B55,VLOOKUP($E55,GRLU,5,FALSE),"") ->  | G55: =IF('FEA___(MPG-2)'!$B55,VLOOKUP($E55,GRLU,6,FALSE),"") ->  | I55: =IF('FEA___(MPG-2)'!$B55,VLOOKUP($E55,GRLU,8,FALSE),"") ->  | J55: =IF('FEA___(MPG-2)'!$B55,VLOOKUP($E55,GRLU,9,FALSE),"") ->  | L55: =IF('FEA___(MPG-2)'!$B55,VLOOKUP($E55,GRLU,11,FALSE),"") ->  | M55: =IF('FEA___(MPG-2)'!$B55,VLOOKUP($E55,GRLU,12,FALSE),"") ->  | O55: =IF('FEA___(MPG-2)'!$B55,AVERAGEIF(S55:U55,">0"),"") -> 
A56: ='FEA___(MPG-2)'!A56 ->  | C56: ='FEA___(MPG-2)'!D56 ->  | E56: ='FEA___(MPG-2)'!F56 ->  | F56: =IF('FEA___(MPG-2)'!$B56,VLOOKUP($E56,GRLU,5,FALSE),"") ->  | G56: =IF('FEA___(MPG-2)'!$B56,VLOOKUP($E56,GRLU,6,FALSE),"") ->  | I56: =IF('FEA___(MPG-2)'!$B56,VLOOKUP($E56,GRLU,8,FALSE),"") ->  | J56: =IF('FEA___(MPG-2)'!$B56,VLOOKUP($E56,GRLU,9,FALSE),"") ->  | L56: =IF('FEA___(MPG-2)'!$B56,VLOOKUP($E56,GRLU,11,FALSE),"") ->  | M56: =IF('FEA___(MPG-2)'!$B56,VLOOKUP($E56,GRLU,12,FALSE),"") ->  | O56: =IF('FEA___(MPG-2)'!$B56,AVERAGEIF(S56:U56,">0"),"") -> 
A57: ='FEA___(MPG-2)'!A57 ->  | C57: ='FEA___(MPG-2)'!D57 ->  | E57: ='FEA___(MPG-2)'!F57 ->  | F57: =IF('FEA___(MPG-2)'!$B57,VLOOKUP($E57,GRLU,5,FALSE),"") ->  | G57: =IF('FEA___(MPG-2)'!$B57,VLOOKUP($E57,GRLU,6,FALSE),"") ->  | I57: =IF('FEA___(MPG-2)'!$B57,VLOOKUP($E57,GRLU,8,FALSE),"") ->  | J57: =IF('FEA___(MPG-2)'!$B57,VLOOKUP($E57,GRLU,9,FALSE),"") ->  | L57: =IF('FEA___(MPG-2)'!$B57,VLOOKUP($E57,GRLU,11,FALSE),"") ->  | M57: =IF('FEA___(MPG-2)'!$B57,VLOOKUP($E57,GRLU,12,FALSE),"") ->  | O57: =IF('FEA___(MPG-2)'!$B57,AVERAGEIF(S57:U57,">0"),"") -> 
A58: ='FEA___(MPG-2)'!A58 ->  | C58: ='FEA___(MPG-2)'!D58 ->  | E58: ='FEA___(MPG-2)'!F58 ->  | F58: =IF('FEA___(MPG-2)'!$B58,VLOOKUP($E58,GRLU,5,FALSE),"") ->  | G58: =IF('FEA___(MPG-2)'!$B58,VLOOKUP($E58,GRLU,6,FALSE),"") ->  | I58: =IF('FEA___(MPG-2)'!$B58,VLOOKUP($E58,GRLU,8,FALSE),"") ->  | J58: =IF('FEA___(MPG-2)'!$B58,VLOOKUP($E58,GRLU,9,FALSE),"") ->  | L58: =IF('FEA___(MPG-2)'!$B58,VLOOKUP($E58,GRLU,11,FALSE),"") ->  | M58: =IF('FEA___(MPG-2)'!$B58,VLOOKUP($E58,GRLU,12,FALSE),"") ->  | O58: =IF('FEA___(MPG-2)'!$B58,AVERAGEIF(S58:U58,">0"),"") -> 
A59: ='FEA___(MPG-2)'!A59 ->  | C59: ='FEA___(MPG-2)'!D59 ->  | E59: ='FEA___(MPG-2)'!F59 ->  | F59: =IF('FEA___(MPG-2)'!$B59,VLOOKUP($E59,GRLU,5,FALSE),"") ->  | G59: =IF('FEA___(MPG-2)'!$B59,VLOOKUP($E59,GRLU,6,FALSE),"") ->  | I59: =IF('FEA___(MPG-2)'!$B59,VLOOKUP($E59,GRLU,8,FALSE),"") ->  | J59: =IF('FEA___(MPG-2)'!$B59,VLOOKUP($E59,GRLU,9,FALSE),"") ->  | L59: =IF('FEA___(MPG-2)'!$B59,VLOOKUP($E59,GRLU,11,FALSE),"") ->  | M59: =IF('FEA___(MPG-2)'!$B59,VLOOKUP($E59,GRLU,12,FALSE),"") ->  | O59: =IF('FEA___(MPG-2)'!$B59,AVERAGEIF(S59:U59,">0"),"") -> 
A60: ='FEA___(MPG-2)'!A60 ->  | C60: ='FEA___(MPG-2)'!D60 ->  | E60: ='FEA___(MPG-2)'!F60 ->  | F60: =IF('FEA___(MPG-2)'!$B60,VLOOKUP($E60,GRLU,5,FALSE),"") ->  | G60: =IF('FEA___(MPG-2)'!$B60,VLOOKUP($E60,GRLU,6,FALSE),"") ->  | I60: =IF('FEA___(MPG-2)'!$B60,VLOOKUP($E60,GRLU,8,FALSE),"") ->  | J60: =IF('FEA___(MPG-2)'!$B60,VLOOKUP($E60,GRLU,9,FALSE),"") ->  | L60: =IF('FEA___(MPG-2)'!$B60,VLOOKUP($E60,GRLU,11,FALSE),"") ->  | M60: =IF('FEA___(MPG-2)'!$B60,VLOOKUP($E60,GRLU,12,FALSE),"") ->  | O60: =IF('FEA___(MPG-2)'!$B60,AVERAGEIF(S60:U60,">0"),"") -> 
A61: ='FEA___(MPG-2)'!A61 ->  | C61: ='FEA___(MPG-2)'!D61 ->  | E61: ='FEA___(MPG-2)'!F61 ->  | F61: =IF('FEA___(MPG-2)'!$B61,VLOOKUP($E61,GRLU,5,FALSE),"") ->  | G61: =IF('FEA___(MPG-2)'!$B61,VLOOKUP($E61,GRLU,6,FALSE),"") ->  | I61: =IF('FEA___(MPG-2)'!$B61,VLOOKUP($E61,GRLU,8,FALSE),"") ->  | J61: =IF('FEA___(MPG-2)'!$B61,VLOOKUP($E61,GRLU,9,FALSE),"") ->  | L61: =IF('FEA___(MPG-2)'!$B61,VLOOKUP($E61,GRLU,11,FALSE),"") ->  | M61: =IF('FEA___(MPG-2)'!$B61,VLOOKUP($E61,GRLU,12,FALSE),"") ->  | O61: =IF('FEA___(MPG-2)'!$B61,AVERAGEIF(S61:U61,">0"),"") -> 
A63: =IF(C63=0,"N/A",MAX(A13:A62)+1) -> 14 | C63: Average | F63: =AVERAGEIF(F12:F61,">0") -> 0.05323076923 | G63: N/A | I63: =AVERAGEIF(I12:I61,">0") -> 0.05045454545 | J63: =AVERAGE(J12:J61) -> 2.818181818 | L63: =AVERAGEIF(L12:L61,">0") -> 0.05376 | M63: =AVERAGE(M12:M61) -> 3.8 | O63: =AVERAGEIF(O12:O62,">0") -> 0.05266923077
B67: Sources:
B68: =A68+1 -> 1 | C68: ="Zacks Elite, http://www.zackselite.com/, downloaded on " & TEXT($T$9,"mmmm d, yyyy") &"." -> Zacks Elite, http://www.zackselite.com/, downloaded on March 27, 2014.
B69: =+B68+1 -> 2 | C69: ="SNL Interactive, http://www.snl.com/, downloaded on " & TEXT($T$9,"mmmm d, yyyy") & "." -> SNL Interactive, http://www.snl.com/, downloaded on March 27, 2014.
B70: 3 | C70: ="Reuters, http://www.reuters.com/, downloaded on " & TEXT($T$9,"mmmm d, yyyy") & "." -> Reuters, http://www.reuters.com/, downloaded on March 27, 2014.

Sheet FEA___(MPG-4)
A1: ='FEA___(MPG-2)'!A1 -> Rocky Mountain Power
A4: Constant Growth DCF Model
A5: (Consensus Analysts' Growth Rates)
F8: 13-Week AVG | G8: Analysts' | H8: Annualized | I8: Adjusted | J8: Constant
A9: Line | C9: Company | F9: Stock Price1 | G9: Growth2 | H9: Dividend3 | I9: Yield | J9: Growth DCF | M9: 2014-03-31
F10: (1) | G10: (2) | H10: (3) | I10: (4) | J10: (5)
A12: ='FEA___(MPG-2)'!A12 -> 1 | C12: ='FEA___(MPG-2)'!D12 -> ALLETE, Inc. | E12: ='FEA___(MPG-2)'!F12 -> ALE | F12: =+'Stock Prices (WP)'!D5 -> 50.05269231 | G12: =+'FEA___(MPG-3)'!O12 -> 0.06 | H12: =IF(ISNUMBER(A12),IFERROR(VLOOKUP(E12,VLLU,4,FALSE)*4,"N/A"),"") -> 1.96 | I12: =IF(ISNUMBER(A12),IFERROR(H12*(1+G12)/F12,"N/A"),"") -> 0.04150825668 | J12: =IF(ISNUMBER(A12),IFERROR(G12+I12,"N/A"),"") -> 0.1015082567
A13: ='FEA___(MPG-2)'!A13 -> 2 | C13: ='FEA___(MPG-2)'!D13 -> Alliant Energy Corporation | E13: ='FEA___(MPG-2)'!F13 -> LNT | F13: =+'Stock Prices (WP)'!D6 -> 52.68884615 | G13: =+'FEA___(MPG-3)'!O13 -> 0.055 | H13: =IF(ISNUMBER(A13),IFERROR(VLOOKUP(E13,VLLU,4,FALSE)*4,"N/A"),"") -> 2.04 | I13: =IF(ISNUMBER(A13),IFERROR(H13*(1+G13)/F13,"N/A"),"") -> 0.04084735494 | J13: =IF(ISNUMBER(A13),IFERROR(G13+I13,"N/A"),"") -> 0.09584735494
A14: ='FEA___(MPG-2)'!A14 -> 3 | C14: ='FEA___(MPG-2)'!D14 -> Avista Corporation | E14: ='FEA___(MPG-2)'!F14 -> AVA | F14: =+'Stock Prices (WP)'!D7 -> 29.04269231 | G14: =+'FEA___(MPG-3)'!O14 -> 0.05 | H14: 1.22 | I14: 0.04410748103 | J14: 0.09410748103
A15: ='FEA___(MPG-2)'!A15 -> 4 | C15: ='FEA___(MPG-2)'!D15 -> DTE Energy Company | E15: ='FEA___(MPG-2)'!F15 -> DTE | F15: =+'Stock Prices (WP)'!D8 -> 69.03230769 | G15: =+'FEA___(MPG-3)'!O15 -> 0.05736666667 | H15: 2.62 | I15: 0.04013049483 | J15: 0.09749716149
A16: ='FEA___(MPG-2)'!A16 -> 5 | C16: ='FEA___(MPG-2)'!D16 -> IDACORP, Inc. | E16: ='FEA___(MPG-2)'!F16 -> IDA | F16: =+'Stock Prices (WP)'!D9 -> 53.55961538 | G16: =+'FEA___(MPG-3)'!O16 -> 0.04 | H16: 1.72 | I16: 0.03339829809 | J16: 0.07339829809
A17: ='FEA___(MPG-2)'!A17 -> 6 | C17: ='FEA___(MPG-2)'!D17 -> Integrys Energy Group, Inc. | E17: ='FEA___(MPG-2)'!F17 -> TEG | F17: =+'Stock Prices (WP)'!D10 -> 55.35961538 | G17: =+'FEA___(MPG-3)'!O17 -> 0.0495 | H17: 2.72 | I17: 0.05156538715 | J17: 0.1010653872
A18: ='FEA___(MPG-2)'!A18 -> 7 | C18: ='FEA___(MPG-2)'!D18 -> NextEra Energy, Inc. | E18: ='FEA___(MPG-2)'!F18 -> NEE | F18: =+'Stock Prices (WP)'!D11 -> 90.29615385 | G18: =+'FEA___(MPG-3)'!O18 -> 0.06226666667 | H18: 2.64 | I18: 0.03105762406 | J18: 0.09332429072
A19: ='FEA___(MPG-2)'!A19 -> 8 | C19: ='FEA___(MPG-2)'!D19 -> Portland General Electric Company | E19: ='FEA___(MPG-2)'!F19 -> POR | F19: =+'Stock Prices (WP)'!D12 -> 30.79769231 | G19: =+'FEA___(MPG-3)'!O19 -> 0.0769 | H19: 1.1 | I19: 0.03846359617 | J19: 0.1153635962
A20: ='FEA___(MPG-2)'!A20 -> 9 | C20: ='FEA___(MPG-2)'!D20 -> Sempra Energy | E20: ='FEA___(MPG-2)'!F20 -> SRE | F20: =+'Stock Prices (WP)'!D13 -> 92.83423077 | G20: =+'FEA___(MPG-3)'!O20 -> 0.06293333333 | H20: 2.52 | I20: 0.02885349486 | J20: 0.09178682819
A21: ='FEA___(MPG-2)'!A21 -> 10 | C21: ='FEA___(MPG-2)'!D21 -> Southern Company | E21: ='FEA___(MPG-2)'!F21 -> SO | F21: =+'Stock Prices (WP)'!D14 -> 41.85846154 | G21: =+'FEA___(MPG-3)'!O21 -> 0.03756666667 | H21: 2.03 | I21: 0.05031862749 | J21: 0.08788529415
A22: ='FEA___(MPG-2)'!A22 -> 11 | C22: ='FEA___(MPG-2)'!D22 -> Westar Energy, Inc. | E22: ='FEA___(MPG-2)'!F22 -> WR | F22: =+'Stock Prices (WP)'!D15 -> 33.55269231 | G22: =+'FEA___(MPG-3)'!O22 -> 0.03433333333 | H22: 1.4 | I22: 0.04315798725 | J22: 0.07749132058
A23: ='FEA___(MPG-2)'!A23 -> 12 | C23: ='FEA___(MPG-2)'!D23 -> Wisconsin Energy Corporation | E23: ='FEA___(MPG-2)'!F23 -> WEC | F23: =+'Stock Prices (WP)'!D16 -> 42.94692308 | G23: =+'FEA___(MPG-3)'!O23 -> 0.05086666667 | H23: 1.56 | I23: 0.0381715821 | J23: 0.08903824876
A24: ='FEA___(MPG-2)'!A24 -> 13 | C24: ='FEA___(MPG-2)'!D24 -> Xcel Energy Inc. | E24: ='FEA___(MPG-2)'!F24 -> XEL | F24: =+'Stock Prices (WP)'!D17 -> 29.09 | G24: =+'FEA___(MPG-3)'!O24 -> 0.04796666667 | H24: 1.12 | I24: 0.04034797754 | J24: 0.08831464421
A25: ='FEA___(MPG-2)'!A25 ->  | C25: ='FEA___(MPG-2)'!D25 ->  | E25: ='FEA___(MPG-2)'!F25 ->  | F25: =+'Stock Prices (WP)'!D18 ->  | G25: =+'FEA___(MPG-3)'!O25 -> 
A26: ='FEA___(MPG-2)'!A26 ->  | C26: ='FEA___(MPG-2)'!D26 ->  | E26: ='FEA___(MPG-2)'!F26 ->  | F26: =+'Stock Prices (WP)'!D19 ->  | G26: =+'FEA___(MPG-3)'!O26 -> 
A27: ='FEA___(MPG-2)'!A27 ->  | C27: ='FEA___(MPG-2)'!D27 ->  | E27: ='FEA___(MPG-2)'!F27 ->  | F27: =+'Stock Prices (WP)'!D20 ->  | G27: =+'FEA___(MPG-3)'!O27 -> 
A28: ='FEA___(MPG-2)'!A28 ->  | C28: ='FEA___(MPG-2)'!D28 ->  | E28: ='FEA___(MPG-2)'!F28 ->  | F28: =+'Stock Prices (WP)'!D21 ->  | G28: =+'FEA___(MPG-3)'!O28 -> 
A29: ='FEA___(MPG-2)'!A29 ->  | C29: ='FEA___(MPG-2)'!D29 ->  | E29: ='FEA___(MPG-2)'!F29 ->  | F29: =+'Stock Prices (WP)'!D22 ->  | G29: =+'FEA___(MPG-3)'!O29 -> 
A30: ='FEA___(MPG-2)'!A30 ->  | C30: ='FEA___(MPG-2)'!D30 ->  | E30: ='FEA___(MPG-2)'!F30 ->  | F30: =+'Stock Prices (WP)'!D23 ->  | G30: =+'FEA___(MPG-3)'!O30 -> 
A31: ='FEA___(MPG-2)'!A31 ->  | C31: ='FEA___(MPG-2)'!D31 ->  | E31: ='FEA___(MPG-2)'!F31 ->  | F31: =+'Stock Prices (WP)'!D24 ->  | G31: =+'FEA___(MPG-3)'!O31 -> 
A32: ='FEA___(MPG-2)'!A32 ->  | C32: ='FEA___(MPG-2)'!D32 ->  | E32: ='FEA___(MPG-2)'!F32 ->  | F32: =+'Stock Prices (WP)'!D25 ->  | G32: =+'FEA___(MPG-3)'!O32 -> 
A33: ='FEA___(MPG-2)'!A33 ->  | C33: ='FEA___(MPG-2)'!D33 ->  | E33: ='FEA___(MPG-2)'!F33 ->  | F33: =+'Stock Prices (WP)'!D26 ->  | G33: =+'FEA___(MPG-3)'!O33 -> 
A34: ='FEA___(MPG-2)'!A34 ->  | C34: ='FEA___(MPG-2)'!D34 ->  | E34: ='FEA___(MPG-2)'!F34 ->  | F34: =+'Stock Prices (WP)'!D27 ->  | G34: =+'FEA___(MPG-3)'!O34 -> 
A35: ='FEA___(MPG-2)'!A35 ->  | C35: ='FEA___(MPG-2)'!D35 ->  | E35: ='FEA___(MPG-2)'!F35 ->  | F35: =+'Stock Prices (WP)'!D28 ->  | G35: =+'FEA___(MPG-3)'!O35 -> 
A36: ='FEA___(MPG-2)'!A36 ->  | C36: ='FEA___(MPG-2)'!D36 ->  | E36: ='FEA___(MPG-2)'!F36 ->  | F36: =+'Stock Prices (WP)'!D29 ->  | G36: =+'FEA___(MPG-3)'!O36 -> 
A37: ='FEA___(MPG-2)'!A37 ->  | C37: ='FEA___(MPG-2)'!D37 ->  | E37: ='FEA___(MPG-2)'!F37 ->  | F37: =+'Stock Prices (WP)'!D30 ->  | G37: =+'FEA___(MPG-3)'!O37 -> 
A38: ='FEA___(MPG-2)'!A38 ->  | C38: ='FEA___(MPG-2)'!D38 ->  | E38: ='FEA___(MPG-2)'!F38 ->  | F38: =+'Stock Prices (WP)'!D31 ->  | G38: =+'FEA___(MPG-3)'!O38 -> 
A39: ='FEA___(MPG-2)'!A39 ->  | C39: ='FEA___(MPG-2)'!D39 ->  | E39: ='FEA___(MPG-2)'!F39 ->  | F39: =+'Stock Prices (WP)'!D32 ->  | G39: =+'FEA___(MPG-3)'!O39 -> 
A40: ='FEA___(MPG-2)'!A40 ->  | C40: ='FEA___(MPG-2)'!D40 ->  | E40: ='FEA___(MPG-2)'!F40 ->  | F40: =+'Stock Prices (WP)'!D33 ->  | G40: =+'FEA___(MPG-3)'!O40 -> 
A41: ='FEA___(MPG-2)'!A41 ->  | C41: ='FEA___(MPG-2)'!D41 ->  | E41: ='FEA___(MPG-2)'!F41 ->  | F41: =+'Stock Prices (WP)'!D34 ->  | G41: =+'FEA___(MPG-3)'!O41 -> 
A42: ='FEA___(MPG-2)'!A42 ->  | C42: ='FEA___(MPG-2)'!D42 ->  | E42: ='FEA___(MPG-2)'!F42 ->  | F42: =+'Stock Prices (WP)'!D35 ->  | G42: =+'FEA___(MPG-3)'!O42 -> 
A43: ='FEA___(MPG-2)'!A43 ->  | C43: ='FEA___(MPG-2)'!D43 ->  | E43: ='FEA___(MPG-2)'!F43 ->  | F43: =+'Stock Prices (WP)'!D36 ->  | G43: =+'FEA___(MPG-3)'!O43 -> 
A44: ='FEA___(MPG-2)'!A44 ->  | C44: ='FEA___(MPG-2)'!D44 ->  | E44: ='FEA___(MPG-2)'!F44 ->  | F44: =+'Stock Prices (WP)'!D37 ->  | G44: =+'FEA___(MPG-3)'!O44 -> 
A45: ='FEA___(MPG-2)'!A45 ->  | C45: ='FEA___(MPG-2)'!D45 ->  | E45: ='FEA___(MPG-2)'!F45 ->  | F45: =+'Stock Prices (WP)'!D38 ->  | G45: =+'FEA___(MPG-3)'!O45 -> 
A46: ='FEA___(MPG-2)'!A46 ->  | C46: ='FEA___(MPG-2)'!D46 ->  | E46: ='FEA___(MPG-2)'!F46 ->  | F46: =+'Stock Prices (WP)'!D39 ->  | G46: =+'FEA___(MPG-3)'!O46 -> 
A47: ='FEA___(MPG-2)'!A47 ->  | C47: ='FEA___(MPG-2)'!D47 ->  | E47: ='FEA___(MPG-2)'!F47 ->  | F47: =+'Stock Prices (WP)'!D40 ->  | G47: =+'FEA___(MPG-3)'!O47 -> 
A48: ='FEA___(MPG-2)'!A48 ->  | C48: ='FEA___(MPG-2)'!D48 ->  | E48: ='FEA___(MPG-2)'!F48 ->  | F48: =+'Stock Prices (WP)'!D41 ->  | G48: =+'FEA___(MPG-3)'!O48 -> 
A49: ='FEA___(MPG-2)'!A49 ->  | C49: ='FEA___(MPG-2)'!D49 ->  | E49: ='FEA___(MPG-2)'!F49 ->  | F49: =+'Stock Prices (WP)'!D42 ->  | G49: =+'FEA___(MPG-3)'!O49 -> 
A50: ='FEA___(MPG-2)'!A50 ->  | C50: ='FEA___(MPG-2)'!D50 ->  | E50: ='FEA___(MPG-2)'!F50 ->  | F50: =+'Stock Prices (WP)'!D43 ->  | G50: =+'FEA___(MPG-3)'!O50 -> 
A51: ='FEA___(MPG-2)'!A51 ->  | C51: ='FEA___(MPG-2)'!D51 ->  | E51: ='FEA___(MPG-2)'!F51 ->  | F51: =+'Stock Prices (WP)'!D44 ->  | G51: =+'FEA___(MPG-3)'!O51 -> 
A52: ='FEA___(MPG-2)'!A52 ->  | C52: ='FEA___(MPG-2)'!D52 ->  | E52: ='FEA___(MPG-2)'!F52 ->  | F52: =+'Stock Prices (WP)'!D45 ->  | G52: =+'FEA___(MPG-3)'!O52 -> 
A53: ='FEA___(MPG-2)'!A53 ->  | C53: ='FEA___(MPG-2)'!D53 ->  | E53: ='FEA___(MPG-2)'!F53 ->  | F53: =+'Stock Prices (WP)'!D46 ->  | G53: =+'FEA___(MPG-3)'!O53 -> 
A54: ='FEA___(MPG-2)'!A54 ->  | C54: ='FEA___(MPG-2)'!D54 ->  | E54: ='FEA___(MPG-2)'!F54 ->  | F54: =+'Stock Prices (WP)'!D47 ->  | G54: =+'FEA___(MPG-3)'!O54 -> 
A55: ='FEA___(MPG-2)'!A55 ->  | C55: ='FEA___(MPG-2)'!D55 ->  | E55: ='FEA___(MPG-2)'!F55 ->  | F55: =+'Stock Prices (WP)'!D48 ->  | G55: =+'FEA___(MPG-3)'!O55 -> 
A56: ='FEA___(MPG-2)'!A56 ->  | C56: ='FEA___(MPG-2)'!D56 ->  | E56: ='FEA___(MPG-2)'!F56 ->  | F56: =+'Stock Prices (WP)'!D49 ->  | G56: =+'FEA___(MPG-3)'!O56 -> 
A57: ='FEA___(MPG-2)'!A57 ->  | C57: ='FEA___(MPG-2)'!D57 ->  | E57: ='FEA___(MPG-2)'!F57 ->  | F57: =+'Stock Prices (WP)'!D50 ->  | G57: =+'FEA___(MPG-3)'!O57 -> 
A58: ='FEA___(MPG-2)'!A58 ->  | C58: ='FEA___(MPG-2)'!D58 ->  | E58: ='FEA___(MPG-2)'!F58 ->  | F58: =+'Stock Prices (WP)'!D51 ->  | G58: =+'FEA___(MPG-3)'!O58 -> 
A59: ='FEA___(MPG-2)'!A59 ->  | C59: ='FEA___(MPG-2)'!D59 ->  | E59: ='FEA___(MPG-2)'!F59 ->  | F59: =+'Stock Prices (WP)'!D52 ->  | G59: =+'FEA___(MPG-3)'!O59 -> 
A60: ='FEA___(MPG-2)'!A60 ->  | C60: ='FEA___(MPG-2)'!D60 ->  | E60: ='FEA___(MPG-2)'!F60 ->  | F60: =+'Stock Prices (WP)'!D53 ->  | G60: =+'FEA___(MPG-3)'!O60 -> 
A61: ='FEA___(MPG-2)'!A61 ->  | C61: ='FEA___(MPG-2)'!D61 ->  | E61: ='FEA___(MPG-2)'!F61 ->  | F61: =+'Stock Prices (WP)'!D54 ->  | G61: =+'FEA___(MPG-3)'!O61 -> 
A62: =IF(C62=0,"",MAX(#REF!)+1) -> 
A63: =IF(C63=0,"",MAX(A21:A62)+1) -> 14 | C63: Average | F63: =AVERAGE(F12:F61) -> 51.62399408 | G63: =AVERAGE(G12:G61) -> 0.05266923077 | H63: =AVERAGE(H12:H61) -> 1.896153846 | I63: =AVERAGE(I12:I61) -> 0.04014832017 | J63: =AVERAGE(J12:J61) -> 0.09281755094
A64: =IF(C64=0,"",MAX(A62:A63)+1) -> 15 | C64: Median | J64: =MEDIAN(J12:J61) -> 0.09332429072
B67: Sources:
B68: =+A68+1 -> 1 | C68: ="SNL Financial, Downloaded on "& TEXT($M$9,"mmmm d, yyyy.") -> SNL Financial, Downloaded on March 31, 2014.
B69: =+B68+1 -> 2 | C69: Exhibit MPG-3.
B70: =+B69+1 -> 3 | C70: The Value Line Investment Survey, January 31, February 21, and March 21, 2014.

Sheet FEA___(MPG-5)
A1: ='FEA___(MPG-2)'!A1 -> Rocky Mountain Power
A4: Payout Ratios
E8: Dividends Per Share | H8: Earnings Per Share | K8: Payout Ratio
A9: Line | B9: Company | E9: 2012 | F9: Projected | H9: 2012 | I9: Projected | K9: 2012 | L9: Projected
E10: (1) | F10: (2) | H10: (3) | I10: (4) | K10: (5) | L10: (6)
A12: ='FEA___(MPG-2)'!A12 -> 1 | B12: ='FEA___(MPG-2)'!D12 -> ALLETE, Inc. | D12: ='FEA___(MPG-2)'!F12 -> ALE | E12: =IF('FEA___(MPG-2)'!$B12,VLOOKUP(D12,VLLU,14,FALSE),"") -> 1.9 | F12: =IF('FEA___(MPG-2)'!$B12,VLOOKUP(D12,VLLU,15,FALSE),"") -> 2.3 | H12: =IF('FEA___(MPG-2)'!$B12,VLOOKUP(D12,VLLU,17,FALSE),"") -> 2.63 | I12: =IF('FEA___(MPG-2)'!$B12,VLOOKUP(D12,VLLU,18,FALSE),"") -> 3.75 | K12: =IF('FEA___(MPG-2)'!$B12,IFERROR(E12/H12,"N/A"),"") -> 0.7224334601 | L12: =IF('FEA___(MPG-2)'!$B12,IFERROR(F12/I12,"N/A"),"") -> 0.6133333333
A13: ='FEA___(MPG-2)'!A13 -> 2 | B13: ='FEA___(MPG-2)'!D13 -> Alliant Energy Corporation | D13: ='FEA___(MPG-2)'!F13 -> LNT | E13: =IF('FEA___(MPG-2)'!$B13,VLOOKUP(D13,VLLU,14,FALSE),"") -> 1.88 | F13: =IF('FEA___(MPG-2)'!$B13,VLOOKUP(D13,VLLU,15,FALSE),"") -> 2.4 | H13: =IF('FEA___(MPG-2)'!$B13,VLOOKUP(D13,VLLU,17,FALSE),"") -> 3.29 | I13: =IF('FEA___(MPG-2)'!$B13,VLOOKUP(D13,VLLU,18,FALSE),"") -> 4 | K13: =IF('FEA___(MPG-2)'!$B13,IFERROR(E13/H13,"N/A"),"") -> 0.5714285714 | L13: =IF('FEA___(MPG-2)'!$B13,IFERROR(F13/I13,"N/A"),"") -> 0.6
A14: ='FEA___(MPG-2)'!A14 -> 3 | B14: ='FEA___(MPG-2)'!D14 -> Avista Corporation | D14: ='FEA___(MPG-2)'!F14 -> AVA | E14: =IF('FEA___(MPG-2)'!$B14,VLOOKUP(D14,VLLU,14,FALSE),"") -> 1.22 | F14: =IF('FEA___(MPG-2)'!$B14,VLOOKUP(D14,VLLU,15,FALSE),"") -> 1.4 | H14: =IF('FEA___(MPG-2)'!$B14,VLOOKUP(D14,VLLU,17,FALSE),"") -> 1.8 | I14: =IF('FEA___(MPG-2)'!$B14,VLOOKUP(D14,VLLU,18,FALSE),"") -> 2.25 | K14: =IF('FEA___(MPG-2)'!$B14,IFERROR(E14/H14,"N/A"),"") -> 0.6777777778 | L14: =IF('FEA___(MPG-2)'!$B14,IFERROR(F14/I14,"N/A"),"") -> 0.6222222222
A15: ='FEA___(MPG-2)'!A15 -> 4 | B15: ='FEA___(MPG-2)'!D15 -> DTE Energy Company | D15: ='FEA___(MPG-2)'!F15 -> DTE | E15: =IF('FEA___(MPG-2)'!$B15,VLOOKUP(D15,VLLU,14,FALSE),"") -> 2.59 | F15: =IF('FEA___(MPG-2)'!$B15,VLOOKUP(D15,VLLU,15,FALSE),"") -> 3.35 | H15: =IF('FEA___(MPG-2)'!$B15,VLOOKUP(D15,VLLU,17,FALSE),"") -> 3.76 | I15: =IF('FEA___(MPG-2)'!$B15,VLOOKUP(D15,VLLU,18,FALSE),"") -> 5.25 | K15: =IF('FEA___(MPG-2)'!$B15,IFERROR(E15/H15,"N/A"),"") -> 0.6888297872 | L15: =IF('FEA___(MPG-2)'!$B15,IFERROR(F15/I15,"N/A"),"") -> 0.6380952381
A16: ='FEA___(MPG-2)'!A16 -> 5 | B16: ='FEA___(MPG-2)'!D16 -> IDACORP, Inc. | D16: ='FEA___(MPG-2)'!F16 -> IDA | E16: =IF('FEA___(MPG-2)'!$B16,VLOOKUP(D16,VLLU,14,FALSE),"") -> 1.57 | F16: =IF('FEA___(MPG-2)'!$B16,VLOOKUP(D16,VLLU,15,FALSE),"") -> 2.2 | H16: =IF('FEA___(MPG-2)'!$B16,VLOOKUP(D16,VLLU,17,FALSE),"") -> 3.5 | I16: =IF('FEA___(MPG-2)'!$B16,VLOOKUP(D16,VLLU,18,FALSE),"") -> 3.6 | K16: =IF('FEA___(MPG-2)'!$B16,IFERROR(E16/H16,"N/A"),"") -> 0.4485714286 | L16: =IF('FEA___(MPG-2)'!$B16,IFERROR(F16/I16,"N/A"),"") -> 0.6111111111
A17: ='FEA___(MPG-2)'!A17 -> 6 | B17: ='FEA___(MPG-2)'!D17 -> Integrys Energy Group, Inc. | D17: ='FEA___(MPG-2)'!F17 -> TEG | E17: =IF('FEA___(MPG-2)'!$B17,VLOOKUP(D17,VLLU,14,FALSE),"") -> 2.72 | F17: =IF('FEA___(MPG-2)'!$B17,VLOOKUP(D17,VLLU,15,FALSE),"") -> 3 | H17: =IF('FEA___(MPG-2)'!$B17,VLOOKUP(D17,VLLU,17,FALSE),"") -> 4.33 | I17: =IF('FEA___(MPG-2)'!$B17,VLOOKUP(D17,VLLU,18,FALSE),"") -> 4.5 | K17: =IF('FEA___(MPG-2)'!$B17,IFERROR(E17/H17,"N/A"),"") -> 0.6281755196 | L17: =IF('FEA___(MPG-2)'!$B17,IFERROR(F17/I17,"N/A"),"") -> 0.6666666667
A18: ='FEA___(MPG-2)'!A18 -> 7 | B18: ='FEA___(MPG-2)'!D18 -> NextEra Energy, Inc. | D18: ='FEA___(MPG-2)'!F18 -> NEE | E18: =IF('FEA___(MPG-2)'!$B18,VLOOKUP(D18,VLLU,14,FALSE),"") -> 2.64 | F18: =IF('FEA___(MPG-2)'!$B18,VLOOKUP(D18,VLLU,15,FALSE),"") -> 3.9 | H18: =IF('FEA___(MPG-2)'!$B18,VLOOKUP(D18,VLLU,17,FALSE),"") -> 4.83 | I18: =IF('FEA___(MPG-2)'!$B18,VLOOKUP(D18,VLLU,18,FALSE),"") -> 6.5 | K18: =IF('FEA___(MPG-2)'!$B18,IFERROR(E18/H18,"N/A"),"") -> 0.5465838509 | L18: =IF('FEA___(MPG-2)'!$B18,IFERROR(F18/I18,"N/A"),"") -> 0.6
A19: ='FEA___(MPG-2)'!A19 -> 8 | B19: ='FEA___(MPG-2)'!D19 -> Portland General Electric Company | D19: ='FEA___(MPG-2)'!F19 -> POR | E19: =IF('FEA___(MPG-2)'!$B19,VLOOKUP(D19,VLLU,14,FALSE),"") -> 1.1 | F19: =IF('FEA___(MPG-2)'!$B19,VLOOKUP(D19,VLLU,15,FALSE),"") -> 1.25 | H19: =IF('FEA___(MPG-2)'!$B19,VLOOKUP(D19,VLLU,17,FALSE),"") -> 1.65 | I19: =IF('FEA___(MPG-2)'!$B19,VLOOKUP(D19,VLLU,18,FALSE),"") -> 2.25 | K19: =IF('FEA___(MPG-2)'!$B19,IFERROR(E19/H19,"N/A"),"") -> 0.6666666667 | L19: =IF('FEA___(MPG-2)'!$B19,IFERROR(F19/I19,"N/A"),"") -> 0.5555555556
A20: ='FEA___(MPG-2)'!A20 -> 9 | B20: ='FEA___(MPG-2)'!D20 -> Sempra Energy | D20: ='FEA___(MPG-2)'!F20 -> SRE | E20: =IF('FEA___(MPG-2)'!$B20,VLOOKUP(D20,VLLU,14,FALSE),"") -> 2.52 | F20: =IF('FEA___(MPG-2)'!$B20,VLOOKUP(D20,VLLU,15,FALSE),"") -> 3 | H20: =IF('FEA___(MPG-2)'!$B20,VLOOKUP(D20,VLLU,17,FALSE),"") -> 4.15 | I20: =IF('FEA___(MPG-2)'!$B20,VLOOKUP(D20,VLLU,18,FALSE),"") -> 5.5 | K20: =IF('FEA___(MPG-2)'!$B20,IFERROR(E20/H20,"N/A"),"") -> 0.6072289157 | L20: =IF('FEA___(MPG-2)'!$B20,IFERROR(F20/I20,"N/A"),"") -> 0.5454545455
A21: ='FEA___(MPG-2)'!A21 -> 10 | B21: ='FEA___(MPG-2)'!D21 -> Southern Company | D21: ='FEA___(MPG-2)'!F21 -> SO | E21: =IF('FEA___(MPG-2)'!$B21,VLOOKUP(D21,VLLU,14,FALSE),"") -> 2.01 | F21: =IF('FEA___(MPG-2)'!$B21,VLOOKUP(D21,VLLU,15,FALSE),"") -> 2.36 | H21: =IF('FEA___(MPG-2)'!$B21,VLOOKUP(D21,VLLU,17,FALSE),"") -> 2.7 | I21: =IF('FEA___(MPG-2)'!$B21,VLOOKUP(D21,VLLU,18,FALSE),"") -> 3.25 | K21: =IF('FEA___(MPG-2)'!$B21,IFERROR(E21/H21,"N/A"),"") -> 0.7444444444 | L21: =IF('FEA___(MPG-2)'!$B21,IFERROR(F21/I21,"N/A"),"") -> 0.7261538462
A22: ='FEA___(MPG-2)'!A22 -> 11 | B22: ='FEA___(MPG-2)'!D22 -> Westar Energy, Inc. | D22: ='FEA___(MPG-2)'!F22 -> WR | E22: =IF('FEA___(MPG-2)'!$B22,VLOOKUP(D22,VLLU,14,FALSE),"") -> 1.36 | F22: =IF('FEA___(MPG-2)'!$B22,VLOOKUP(D22,VLLU,15,FALSE),"") -> 1.56 | H22: =IF('FEA___(MPG-2)'!$B22,VLOOKUP(D22,VLLU,17,FALSE),"") -> 2.27 | I22: =IF('FEA___(MPG-2)'!$B22,VLOOKUP(D22,VLLU,18,FALSE),"") -> 2.75 | K22: =IF('FEA___(MPG-2)'!$B22,IFERROR(E22/H22,"N/A"),"") -> 0.5991189427 | L22: =IF('FEA___(MPG-2)'!$B22,IFERROR(F22/I22,"N/A"),"") -> 0.5672727273
A23: ='FEA___(MPG-2)'!A23 -> 12 | B23: ='FEA___(MPG-2)'!D23 -> Wisconsin Energy Corporation | D23: ='FEA___(MPG-2)'!F23 -> WEC | E23: =IF('FEA___(MPG-2)'!$B23,VLOOKUP(D23,VLLU,14,FALSE),"") -> 1.45 | F23: =IF('FEA___(MPG-2)'!$B23,VLOOKUP(D23,VLLU,15,FALSE),"") -> 2.1 | H23: =IF('FEA___(MPG-2)'!$B23,VLOOKUP(D23,VLLU,17,FALSE),"") -> 2.51 | I23: =IF('FEA___(MPG-2)'!$B23,VLOOKUP(D23,VLLU,18,FALSE),"") -> 3.25 | K23: =IF('FEA___(MPG-2)'!$B23,IFERROR(E23/H23,"N/A"),"") -> 0.577689243 | L23: =IF('FEA___(MPG-2)'!$B23,IFERROR(F23/I23,"N/A"),"") -> 0.6461538462
A24: ='FEA___(MPG-2)'!A24 -> 13 | B24: ='FEA___(MPG-2)'!D24 -> Xcel Energy Inc. | D24: ='FEA___(MPG-2)'!F24 -> XEL | E24: =IF('FEA___(MPG-2)'!$B24,VLOOKUP(D24,VLLU,14,FALSE),"") -> 1.11 | F24: =IF('FEA___(MPG-2)'!$B24,VLOOKUP(D24,VLLU,15,FALSE),"") -> 1.35 | H24: =IF('FEA___(MPG-2)'!$B24,VLOOKUP(D24,VLLU,17,FALSE),"") -> 1.9 | I24: =IF('FEA___(MPG-2)'!$B24,VLOOKUP(D24,VLLU,18,FALSE),"") -> 2.25 | K24: =IF('FEA___(MPG-2)'!$B24,IFERROR(E24/H24,"N/A"),"") -> 0.5842105263 | L24: =IF('FEA___(MPG-2)'!$B24,IFERROR(F24/I24,"N/A"),"") -> 0.6
A25: ='FEA___(MPG-2)'!A25 ->  | B25: ='FEA___(MPG-2)'!D25 ->  | D25: ='FEA___(MPG-2)'!F25 ->  | E25: =IF('FEA___(MPG-2)'!$B25,VLOOKUP(D25,VLLU,14,FALSE),"") ->  | F25: =IF('FEA___(MPG-2)'!$B25,VLOOKUP(D25,VLLU,15,FALSE),"") ->  | H25: =IF('FEA___(MPG-2)'!$B25,VLOOKUP(D25,VLLU,17,FALSE),"") ->  | I25: =IF('FEA___(MPG-2)'!$B25,VLOOKUP(D25,VLLU,18,FALSE),"") ->  | K25: =IF('FEA___(MPG-2)'!$B25,IFERROR(E25/H25,"N/A"),"") ->  | L25: =IF('FEA___(MPG-2)'!$B25,IFERROR(F25/I25,"N/A"),"") -> 
A26: ='FEA___(MPG-2)'!A26 ->  | B26: ='FEA___(MPG-2)'!D26 ->  | D26: ='FEA___(MPG-2)'!F26 ->  | E26: =IF('FEA___(MPG-2)'!$B26,VLOOKUP(D26,VLLU,14,FALSE),"") ->  | F26: =IF('FEA___(MPG-2)'!$B26,VLOOKUP(D26,VLLU,15,FALSE),"") ->  | H26: =IF('FEA___(MPG-2)'!$B26,VLOOKUP(D26,VLLU,17,FALSE),"") ->  | I26: =IF('FEA___(MPG-2)'!$B26,VLOOKUP(D26,VLLU,18,FALSE),"") ->  | K26: =IF('FEA___(MPG-2)'!$B26,IFERROR(E26/H26,"N/A"),"") ->  | L26: =IF('FEA___(MPG-2)'!$B26,IFERROR(F26/I26,"N/A"),"") -> 
A27: ='FEA___(MPG-2)'!A27 ->  | B27: ='FEA___(MPG-2)'!D27 ->  | D27: ='FEA___(MPG-2)'!F27 ->  | E27: =IF('FEA___(MPG-2)'!$B27,VLOOKUP(D27,VLLU,14,FALSE),"") ->  | F27: =IF('FEA___(MPG-2)'!$B27,VLOOKUP(D27,VLLU,15,FALSE),"") ->  | H27: =IF('FEA___(MPG-2)'!$B27,VLOOKUP(D27,VLLU,17,FALSE),"") ->  | I27: =IF('FEA___(MPG-2)'!$B27,VLOOKUP(D27,VLLU,18,FALSE),"") ->  | K27: =IF('FEA___(MPG-2)'!$B27,IFERROR(E27/H27,"N/A"),"") ->  | L27: =IF('FEA___(MPG-2)'!$B27,IFERROR(F27/I27,"N/A"),"") -> 
A28: ='FEA___(MPG-2)'!A28 ->  | B28: ='FEA___(MPG-2)'!D28 ->  | D28: ='FEA___(MPG-2)'!F28 ->  | E28: =IF('FEA___(MPG-2)'!$B28,VLOOKUP(D28,VLLU,14,FALSE),"") ->  | F28: =IF('FEA___(MPG-2)'!$B28,VLOOKUP(D28,VLLU,15,FALSE),"") ->  | H28: =IF('FEA___(MPG-2)'!$B28,VLOOKUP(D28,VLLU,17,FALSE),"") ->  | I28: =IF('FEA___(MPG-2)'!$B28,VLOOKUP(D28,VLLU,18,FALSE),"") ->  | K28: =IF('FEA___(MPG-2)'!$B28,IFERROR(E28/H28,"N/A"),"") ->  | L28: =IF('FEA___(MPG-2)'!$B28,IFERROR(F28/I28,"N/A"),"") -> 
A29: ='FEA___(MPG-2)'!A29 ->  | B29: ='FEA___(MPG-2)'!D29 ->  | D29: ='FEA___(MPG-2)'!F29 ->  | E29: =IF('FEA___(MPG-2)'!$B29,VLOOKUP(D29,VLLU,14,FALSE),"") ->  | F29: =IF('FEA___(MPG-2)'!$B29,VLOOKUP(D29,VLLU,15,FALSE),"") ->  | H29: =IF('FEA___(MPG-2)'!$B29,VLOOKUP(D29,VLLU,17,FALSE),"") ->  | I29: =IF('FEA___(MPG-2)'!$B29,VLOOKUP(D29,VLLU,18,FALSE),"") ->  | K29: =IF('FEA___(MPG-2)'!$B29,IFERROR(E29/H29,"N/A"),"") ->  | L29: =IF('FEA___(MPG-2)'!$B29,IFERROR(F29/I29,"N/A"),"") -> 
A30: ='FEA___(MPG-2)'!A30 ->  | B30: ='FEA___(MPG-2)'!D30 ->  | D30: ='FEA___(MPG-2)'!F30 ->  | E30: =IF('FEA___(MPG-2)'!$B30,VLOOKUP(D30,VLLU,14,FALSE),"") ->  | F30: =IF('FEA___(MPG-2)'!$B30,VLOOKUP(D30,VLLU,15,FALSE),"") ->  | H30: =IF('FEA___(MPG-2)'!$B30,VLOOKUP(D30,VLLU,17,FALSE),"") ->  | I30: =IF('FEA___(MPG-2)'!$B30,VLOOKUP(D30,VLLU,18,FALSE),"") ->  | K30: =IF('FEA___(MPG-2)'!$B30,IFERROR(E30/H30,"N/A"),"") ->  | L30: =IF('FEA___(MPG-2)'!$B30,IFERROR(F30/I30,"N/A"),"") -> 
A31: ='FEA___(MPG-2)'!A31 ->  | B31: ='FEA___(MPG-2)'!D31 ->  | D31: ='FEA___(MPG-2)'!F31 ->  | E31: =IF('FEA___(MPG-2)'!$B31,VLOOKUP(D31,VLLU,14,FALSE),"") ->  | F31: =IF('FEA___(MPG-2)'!$B31,VLOOKUP(D31,VLLU,15,FALSE),"") ->  | H31: =IF('FEA___(MPG-2)'!$B31,VLOOKUP(D31,VLLU,17,FALSE),"") ->  | I31: =IF('FEA___(MPG-2)'!$B31,VLOOKUP(D31,VLLU,18,FALSE),"") ->  | K31: =IF('FEA___(MPG-2)'!$B31,IFERROR(E31/H31,"N/A"),"") ->  | L31: =IF('FEA___(MPG-2)'!$B31,IFERROR(F31/I31,"N/A"),"") -> 
A32: ='FEA___(MPG-2)'!A32 ->  | B32: ='FEA___(MPG-2)'!D32 ->  | D32: ='FEA___(MPG-2)'!F32 ->  | E32: =IF('FEA___(MPG-2)'!$B32,VLOOKUP(D32,VLLU,14,FALSE),"") ->  | F32: =IF('FEA___(MPG-2)'!$B32,VLOOKUP(D32,VLLU,15,FALSE),"") ->  | H32: =IF('FEA___(MPG-2)'!$B32,VLOOKUP(D32,VLLU,17,FALSE),"") ->  | I32: =IF('FEA___(MPG-2)'!$B32,VLOOKUP(D32,VLLU,18,FALSE),"") ->  | K32: =IF('FEA___(MPG-2)'!$B32,IFERROR(E32/H32,"N/A"),"") ->  | L32: =IF('FEA___(MPG-2)'!$B32,IFERROR(F32/I32,"N/A"),"") -> 
A33: ='FEA___(MPG-2)'!A33 ->  | B33: ='FEA___(MPG-2)'!D33 ->  | D33: ='FEA___(MPG-2)'!F33 ->  | E33: =IF('FEA___(MPG-2)'!$B33,VLOOKUP(D33,VLLU,14,FALSE),"") ->  | F33: =IF('FEA___(MPG-2)'!$B33,VLOOKUP(D33,VLLU,15,FALSE),"") ->  | H33: =IF('FEA___(MPG-2)'!$B33,VLOOKUP(D33,VLLU,17,FALSE),"") ->  | I33: =IF('FEA___(MPG-2)'!$B33,VLOOKUP(D33,VLLU,18,FALSE),"") ->  | K33: =IF('FEA___(MPG-2)'!$B33,IFERROR(E33/H33,"N/A"),"") ->  | L33: =IF('FEA___(MPG-2)'!$B33,IFERROR(F33/I33,"N/A"),"") -> 
A34: ='FEA___(MPG-2)'!A34 ->  | B34: ='FEA___(MPG-2)'!D34 ->  | D34: ='FEA___(MPG-2)'!F34 ->  | E34: =IF('FEA___(MPG-2)'!$B34,VLOOKUP(D34,VLLU,14,FALSE),"") ->  | F34: =IF('FEA___(MPG-2)'!$B34,VLOOKUP(D34,VLLU,15,FALSE),"") ->  | H34: =IF('FEA___(MPG-2)'!$B34,VLOOKUP(D34,VLLU,17,FALSE),"") ->  | I34: =IF('FEA___(MPG-2)'!$B34,VLOOKUP(D34,VLLU,18,FALSE),"") ->  | K34: =IF('FEA___(MPG-2)'!$B34,IFERROR(E34/H34,"N/A"),"") ->  | L34: =IF('FEA___(MPG-2)'!$B34,IFERROR(F34/I34,"N/A"),"") -> 
A35: ='FEA___(MPG-2)'!A35 ->  | B35: ='FEA___(MPG-2)'!D35 ->  | D35: ='FEA___(MPG-2)'!F35 ->  | E35: =IF('FEA___(MPG-2)'!$B35,VLOOKUP(D35,VLLU,14,FALSE),"") ->  | F35: =IF('FEA___(MPG-2)'!$B35,VLOOKUP(D35,VLLU,15,FALSE),"") ->  | H35: =IF('FEA___(MPG-2)'!$B35,VLOOKUP(D35,VLLU,17,FALSE),"") ->  | I35: =IF('FEA___(MPG-2)'!$B35,VLOOKUP(D35,VLLU,18,FALSE),"") ->  | K35: =IF('FEA___(MPG-2)'!$B35,IFERROR(E35/H35,"N/A"),"") ->  | L35: =IF('FEA___(MPG-2)'!$B35,IFERROR(F35/I35,"N/A"),"") -> 
A36: ='FEA___(MPG-2)'!A36 ->  | B36: ='FEA___(MPG-2)'!D36 ->  | D36: ='FEA___(MPG-2)'!F36 ->  | E36: =IF('FEA___(MPG-2)'!$B36,VLOOKUP(D36,VLLU,14,FALSE),"") ->  | F36: =IF('FEA___(MPG-2)'!$B36,VLOOKUP(D36,VLLU,15,FALSE),"") ->  | H36: =IF('FEA___(MPG-2)'!$B36,VLOOKUP(D36,VLLU,17,FALSE),"") ->  | I36: =IF('FEA___(MPG-2)'!$B36,VLOOKUP(D36,VLLU,18,FALSE),"") ->  | K36: =IF('FEA___(MPG-2)'!$B36,IFERROR(E36/H36,"N/A"),"") ->  | L36: =IF('FEA___(MPG-2)'!$B36,IFERROR(F36/I36,"N/A"),"") -> 
A37: ='FEA___(MPG-2)'!A37 ->  | B37: ='FEA___(MPG-2)'!D37 ->  | D37: ='FEA___(MPG-2)'!F37 ->  | E37: =IF('FEA___(MPG-2)'!$B37,VLOOKUP(D37,VLLU,14,FALSE),"") ->  | F37: =IF('FEA___(MPG-2)'!$B37,VLOOKUP(D37,VLLU,15,FALSE),"") ->  | H37: =IF('FEA___(MPG-2)'!$B37,VLOOKUP(D37,VLLU,17,FALSE),"") ->  | I37: =IF('FEA___(MPG-2)'!$B37,VLOOKUP(D37,VLLU,18,FALSE),"") ->  | K37: =IF('FEA___(MPG-2)'!$B37,IFERROR(E37/H37,"N/A"),"") ->  | L37: =IF('FEA___(MPG-2)'!$B37,IFERROR(F37/I37,"N/A"),"") -> 
A38: ='FEA___(MPG-2)'!A38 ->  | B38: ='FEA___(MPG-2)'!D38 ->  | D38: ='FEA___(MPG-2)'!F38 ->  | E38: =IF('FEA___(MPG-2)'!$B38,VLOOKUP(D38,VLLU,14,FALSE),"") ->  | F38: =IF('FEA___(MPG-2)'!$B38,VLOOKUP(D38,VLLU,15,FALSE),"") ->  | H38: =IF('FEA___(MPG-2)'!$B38,VLOOKUP(D38,VLLU,17,FALSE),"") ->  | I38: =IF('FEA___(MPG-2)'!$B38,VLOOKUP(D38,VLLU,18,FALSE),"") ->  | K38: =IF('FEA___(MPG-2)'!$B38,IFERROR(E38/H38,"N/A"),"") ->  | L38: =IF('FEA___(MPG-2)'!$B38,IFERROR(F38/I38,"N/A"),"") -> 
A39: ='FEA___(MPG-2)'!A39 ->  | B39: ='FEA___(MPG-2)'!D39 ->  | D39: ='FEA___(MPG-2)'!F39 ->  | E39: =IF('FEA___(MPG-2)'!$B39,VLOOKUP(D39,VLLU,14,FALSE),"") ->  | F39: =IF('FEA___(MPG-2)'!$B39,VLOOKUP(D39,VLLU,15,FALSE),"") ->  | H39: =IF('FEA___(MPG-2)'!$B39,VLOOKUP(D39,VLLU,17,FALSE),"") ->  | I39: =IF('FEA___(MPG-2)'!$B39,VLOOKUP(D39,VLLU,18,FALSE),"") ->  | K39: =IF('FEA___(MPG-2)'!$B39,IFERROR(E39/H39,"N/A"),"") ->  | L39: =IF('FEA___(MPG-2)'!$B39,IFERROR(F39/I39,"N/A"),"") -> 
A40: ='FEA___(MPG-2)'!A40 ->  | B40: ='FEA___(MPG-2)'!D40 ->  | D40: ='FEA___(MPG-2)'!F40 ->  | E40: =IF('FEA___(MPG-2)'!$B40,VLOOKUP(D40,VLLU,14,FALSE),"") ->  | F40: =IF('FEA___(MPG-2)'!$B40,VLOOKUP(D40,VLLU,15,FALSE),"") ->  | H40: =IF('FEA___(MPG-2)'!$B40,VLOOKUP(D40,VLLU,17,FALSE),"") ->  | I40: =IF('FEA___(MPG-2)'!$B40,VLOOKUP(D40,VLLU,18,FALSE),"") ->  | K40: =IF('FEA___(MPG-2)'!$B40,IFERROR(E40/H40,"N/A"),"") ->  | L40: =IF('FEA___(MPG-2)'!$B40,IFERROR(F40/I40,"N/A"),"") -> 
A41: ='FEA___(MPG-2)'!A41 ->  | B41: ='FEA___(MPG-2)'!D41 ->  | D41: ='FEA___(MPG-2)'!F41 ->  | E41: =IF('FEA___(MPG-2)'!$B41,VLOOKUP(D41,VLLU,14,FALSE),"") ->  | F41: =IF('FEA___(MPG-2)'!$B41,VLOOKUP(D41,VLLU,15,FALSE),"") ->  | H41: =IF('FEA___(MPG-2)'!$B41,VLOOKUP(D41,VLLU,17,FALSE),"") ->  | I41: =IF('FEA___(MPG-2)'!$B41,VLOOKUP(D41,VLLU,18,FALSE),"") ->  | K41: =IF('FEA___(MPG-2)'!$B41,IFERROR(E41/H41,"N/A"),"") ->  | L41: =IF('FEA___(MPG-2)'!$B41,IFERROR(F41/I41,"N/A"),"") -> 
A42: ='FEA___(MPG-2)'!A42 ->  | B42: ='FEA___(MPG-2)'!D42 ->  | D42: ='FEA___(MPG-2)'!F42 ->  | E42: =IF('FEA___(MPG-2)'!$B42,VLOOKUP(D42,VLLU,14,FALSE),"") ->  | F42: =IF('FEA___(MPG-2)'!$B42,VLOOKUP(D42,VLLU,15,FALSE),"") ->  | H42: =IF('FEA___(MPG-2)'!$B42,VLOOKUP(D42,VLLU,17,FALSE),"") ->  | I42: =IF('FEA___(MPG-2)'!$B42,VLOOKUP(D42,VLLU,18,FALSE),"") ->  | K42: =IF('FEA___(MPG-2)'!$B42,IFERROR(E42/H42,"N/A"),"") ->  | L42: =IF('FEA___(MPG-2)'!$B42,IFERROR(F42/I42,"N/A"),"") -> 
A43: ='FEA___(MPG-2)'!A43 ->  | B43: ='FEA___(MPG-2)'!D43 ->  | D43: ='FEA___(MPG-2)'!F43 ->  | E43: =IF('FEA___(MPG-2)'!$B43,VLOOKUP(D43,VLLU,14,FALSE),"") ->  | F43: =IF('FEA___(MPG-2)'!$B43,VLOOKUP(D43,VLLU,15,FALSE),"") ->  | H43: =IF('FEA___(MPG-2)'!$B43,VLOOKUP(D43,VLLU,17,FALSE),"") ->  | I43: =IF('FEA___(MPG-2)'!$B43,VLOOKUP(D43,VLLU,18,FALSE),"") ->  | K43: =IF('FEA___(MPG-2)'!$B43,IFERROR(E43/H43,"N/A"),"") ->  | L43: =IF('FEA___(MPG-2)'!$B43,IFERROR(F43/I43,"N/A"),"") -> 
A44: ='FEA___(MPG-2)'!A44 ->  | B44: ='FEA___(MPG-2)'!D44 ->  | D44: ='FEA___(MPG-2)'!F44 ->  | E44: =IF('FEA___(MPG-2)'!$B44,VLOOKUP(D44,VLLU,14,FALSE),"") ->  | F44: =IF('FEA___(MPG-2)'!$B44,VLOOKUP(D44,VLLU,15,FALSE),"") ->  | H44: =IF('FEA___(MPG-2)'!$B44,VLOOKUP(D44,VLLU,17,FALSE),"") ->  | I44: =IF('FEA___(MPG-2)'!$B44,VLOOKUP(D44,VLLU,18,FALSE),"") ->  | K44: =IF('FEA___(MPG-2)'!$B44,IFERROR(E44/H44,"N/A"),"") ->  | L44: =IF('FEA___(MPG-2)'!$B44,IFERROR(F44/I44,"N/A"),"") -> 
A45: ='FEA___(MPG-2)'!A45 ->  | B45: ='FEA___(MPG-2)'!D45 ->  | D45: ='FEA___(MPG-2)'!F45 ->  | E45: =IF('FEA___(MPG-2)'!$B45,VLOOKUP(D45,VLLU,14,FALSE),"") ->  | F45: =IF('FEA___(MPG-2)'!$B45,VLOOKUP(D45,VLLU,15,FALSE),"") ->  | H45: =IF('FEA___(MPG-2)'!$B45,VLOOKUP(D45,VLLU,17,FALSE),"") ->  | I45: =IF('FEA___(MPG-2)'!$B45,VLOOKUP(D45,VLLU,18,FALSE),"") ->  | K45: =IF('FEA___(MPG-2)'!$B45,IFERROR(E45/H45,"N/A"),"") ->  | L45: =IF('FEA___(MPG-2)'!$B45,IFERROR(F45/I45,"N/A"),"") -> 
A46: ='FEA___(MPG-2)'!A46 ->  | B46: ='FEA___(MPG-2)'!D46 ->  | D46: ='FEA___(MPG-2)'!F46 ->  | E46: =IF('FEA___(MPG-2)'!$B46,VLOOKUP(D46,VLLU,14,FALSE),"") ->  | F46: =IF('FEA___(MPG-2)'!$B46,VLOOKUP(D46,VLLU,15,FALSE),"") ->  | H46: =IF('FEA___(MPG-2)'!$B46,VLOOKUP(D46,VLLU,17,FALSE),"") ->  | I46: =IF('FEA___(MPG-2)'!$B46,VLOOKUP(D46,VLLU,18,FALSE),"") ->  | K46: =IF('FEA___(MPG-2)'!$B46,IFERROR(E46/H46,"N/A"),"") ->  | L46: =IF('FEA___(MPG-2)'!$B46,IFERROR(F46/I46,"N/A"),"") -> 
A47: ='FEA___(MPG-2)'!A47 ->  | B47: ='FEA___(MPG-2)'!D47 ->  | D47: ='FEA___(MPG-2)'!F47 ->  | E47: =IF('FEA___(MPG-2)'!$B47,VLOOKUP(D47,VLLU,14,FALSE),"") ->  | F47: =IF('FEA___(MPG-2)'!$B47,VLOOKUP(D47,VLLU,15,FALSE),"") ->  | H47: =IF('FEA___(MPG-2)'!$B47,VLOOKUP(D47,VLLU,17,FALSE),"") ->  | I47: =IF('FEA___(MPG-2)'!$B47,VLOOKUP(D47,VLLU,18,FALSE),"") ->  | K47: =IF('FEA___(MPG-2)'!$B47,IFERROR(E47/H47,"N/A"),"") ->  | L47: =IF('FEA___(MPG-2)'!$B47,IFERROR(F47/I47,"N/A"),"") -> 
A48: ='FEA___(MPG-2)'!A48 ->  | B48: ='FEA___(MPG-2)'!D48 ->  | D48: ='FEA___(MPG-2)'!F48 ->  | E48: =IF('FEA___(MPG-2)'!$B48,VLOOKUP(D48,VLLU,14,FALSE),"") ->  | F48: =IF('FEA___(MPG-2)'!$B48,VLOOKUP(D48,VLLU,15,FALSE),"") ->  | H48: =IF('FEA___(MPG-2)'!$B48,VLOOKUP(D48,VLLU,17,FALSE),"") ->  | I48: =IF('FEA___(MPG-2)'!$B48,VLOOKUP(D48,VLLU,18,FALSE),"") ->  | K48: =IF('FEA___(MPG-2)'!$B48,IFERROR(E48/H48,"N/A"),"") ->  | L48: =IF('FEA___(MPG-2)'!$B48,IFERROR(F48/I48,"N/A"),"") -> 
A49: ='FEA___(MPG-2)'!A49 ->  | B49: ='FEA___(MPG-2)'!D49 ->  | D49: ='FEA___(MPG-2)'!F49 ->  | E49: =IF('FEA___(MPG-2)'!$B49,VLOOKUP(D49,VLLU,14,FALSE),"") ->  | F49: =IF('FEA___(MPG-2)'!$B49,VLOOKUP(D49,VLLU,15,FALSE),"") ->  | H49: =IF('FEA___(MPG-2)'!$B49,VLOOKUP(D49,VLLU,17,FALSE),"") ->  | I49: =IF('FEA___(MPG-2)'!$B49,VLOOKUP(D49,VLLU,18,FALSE),"") ->  | K49: =IF('FEA___(MPG-2)'!$B49,IFERROR(E49/H49,"N/A"),"") ->  | L49: =IF('FEA___(MPG-2)'!$B49,IFERROR(F49/I49,"N/A"),"") -> 
A50: ='FEA___(MPG-2)'!A50 ->  | B50: ='FEA___(MPG-2)'!D50 ->  | D50: ='FEA___(MPG-2)'!F50 ->  | E50: =IF('FEA___(MPG-2)'!$B50,VLOOKUP(D50,VLLU,14,FALSE),"") ->  | F50: =IF('FEA___(MPG-2)'!$B50,VLOOKUP(D50,VLLU,15,FALSE),"") ->  | H50: =IF('FEA___(MPG-2)'!$B50,VLOOKUP(D50,VLLU,17,FALSE),"") ->  | I50: =IF('FEA___(MPG-2)'!$B50,VLOOKUP(D50,VLLU,18,FALSE),"") ->  | K50: =IF('FEA___(MPG-2)'!$B50,IFERROR(E50/H50,"N/A"),"") ->  | L50: =IF('FEA___(MPG-2)'!$B50,IFERROR(F50/I50,"N/A"),"") -> 
A51: ='FEA___(MPG-2)'!A51 ->  | B51: ='FEA___(MPG-2)'!D51 ->  | D51: ='FEA___(MPG-2)'!F51 ->  | E51: =IF('FEA___(MPG-2)'!$B51,VLOOKUP(D51,VLLU,14,FALSE),"") ->  | F51: =IF('FEA___(MPG-2)'!$B51,VLOOKUP(D51,VLLU,15,FALSE),"") ->  | H51: =IF('FEA___(MPG-2)'!$B51,VLOOKUP(D51,VLLU,17,FALSE),"") ->  | I51: =IF('FEA___(MPG-2)'!$B51,VLOOKUP(D51,VLLU,18,FALSE),"") ->  | K51: =IF('FEA___(MPG-2)'!$B51,IFERROR(E51/H51,"N/A"),"") ->  | L51: =IF('FEA___(MPG-2)'!$B51,IFERROR(F51/I51,"N/A"),"") -> 
A52: ='FEA___(MPG-2)'!A52 ->  | B52: ='FEA___(MPG-2)'!D52 ->  | D52: ='FEA___(MPG-2)'!F52 ->  | E52: =IF('FEA___(MPG-2)'!$B52,VLOOKUP(D52,VLLU,14,FALSE),"") ->  | F52: =IF('FEA___(MPG-2)'!$B52,VLOOKUP(D52,VLLU,15,FALSE),"") ->  | H52: =IF('FEA___(MPG-2)'!$B52,VLOOKUP(D52,VLLU,17,FALSE),"") ->  | I52: =IF('FEA___(MPG-2)'!$B52,VLOOKUP(D52,VLLU,18,FALSE),"") ->  | K52: =IF('FEA___(MPG-2)'!$B52,IFERROR(E52/H52,"N/A"),"") ->  | L52: =IF('FEA___(MPG-2)'!$B52,IFERROR(F52/I52,"N/A"),"") -> 
A53: ='FEA___(MPG-2)'!A53 ->  | B53: ='FEA___(MPG-2)'!D53 ->  | D53: ='FEA___(MPG-2)'!F53 ->  | E53: =IF('FEA___(MPG-2)'!$B53,VLOOKUP(D53,VLLU,14,FALSE),"") ->  | F53: =IF('FEA___(MPG-2)'!$B53,VLOOKUP(D53,VLLU,15,FALSE),"") ->  | H53: =IF('FEA___(MPG-2)'!$B53,VLOOKUP(D53,VLLU,17,FALSE),"") ->  | I53: =IF('FEA___(MPG-2)'!$B53,VLOOKUP(D53,VLLU,18,FALSE),"") ->  | K53: =IF('FEA___(MPG-2)'!$B53,IFERROR(E53/H53,"N/A"),"") ->  | L53: =IF('FEA___(MPG-2)'!$B53,IFERROR(F53/I53,"N/A"),"") -> 
A54: ='FEA___(MPG-2)'!A54 ->  | B54: ='FEA___(MPG-2)'!D54 ->  | D54: ='FEA___(MPG-2)'!F54 ->  | E54: =IF('FEA___(MPG-2)'!$B54,VLOOKUP(D54,VLLU,14,FALSE),"") ->  | F54: =IF('FEA___(MPG-2)'!$B54,VLOOKUP(D54,VLLU,15,FALSE),"") ->  | H54: =IF('FEA___(MPG-2)'!$B54,VLOOKUP(D54,VLLU,17,FALSE),"") ->  | I54: =IF('FEA___(MPG-2)'!$B54,VLOOKUP(D54,VLLU,18,FALSE),"") ->  | K54: =IF('FEA___(MPG-2)'!$B54,IFERROR(E54/H54,"N/A"),"") ->  | L54: =IF('FEA___(MPG-2)'!$B54,IFERROR(F54/I54,"N/A"),"") -> 
A55: ='FEA___(MPG-2)'!A55 ->  | B55: ='FEA___(MPG-2)'!D55 ->  | D55: ='FEA___(MPG-2)'!F55 ->  | E55: =IF('FEA___(MPG-2)'!$B55,VLOOKUP(D55,VLLU,14,FALSE),"") ->  | F55: =IF('FEA___(MPG-2)'!$B55,VLOOKUP(D55,VLLU,15,FALSE),"") ->  | H55: =IF('FEA___(MPG-2)'!$B55,VLOOKUP(D55,VLLU,17,FALSE),"") ->  | I55: =IF('FEA___(MPG-2)'!$B55,VLOOKUP(D55,VLLU,18,FALSE),"") ->  | K55: =IF('FEA___(MPG-2)'!$B55,IFERROR(E55/H55,"N/A"),"") ->  | L55: =IF('FEA___(MPG-2)'!$B55,IFERROR(F55/I55,"N/A"),"") -> 
A56: ='FEA___(MPG-2)'!A56 ->  | B56: ='FEA___(MPG-2)'!D56 ->  | D56: ='FEA___(MPG-2)'!F56 ->  | E56: =IF('FEA___(MPG-2)'!$B56,VLOOKUP(D56,VLLU,14,FALSE),"") ->  | F56: =IF('FEA___(MPG-2)'!$B56,VLOOKUP(D56,VLLU,15,FALSE),"") ->  | H56: =IF('FEA___(MPG-2)'!$B56,VLOOKUP(D56,VLLU,17,FALSE),"") ->  | I56: =IF('FEA___(MPG-2)'!$B56,VLOOKUP(D56,VLLU,18,FALSE),"") ->  | K56: =IF('FEA___(MPG-2)'!$B56,IFERROR(E56/H56,"N/A"),"") ->  | L56: =IF('FEA___(MPG-2)'!$B56,IFERROR(F56/I56,"N/A"),"") -> 
A57: ='FEA___(MPG-2)'!A57 ->  | B57: ='FEA___(MPG-2)'!D57 ->  | D57: ='FEA___(MPG-2)'!F57 ->  | E57: =IF('FEA___(MPG-2)'!$B57,VLOOKUP(D57,VLLU,14,FALSE),"") ->  | F57: =IF('FEA___(MPG-2)'!$B57,VLOOKUP(D57,VLLU,15,FALSE),"") ->  | H57: =IF('FEA___(MPG-2)'!$B57,VLOOKUP(D57,VLLU,17,FALSE),"") ->  | I57: =IF('FEA___(MPG-2)'!$B57,VLOOKUP(D57,VLLU,18,FALSE),"") ->  | K57: =IF('FEA___(MPG-2)'!$B57,IFERROR(E57/H57,"N/A"),"") ->  | L57: =IF('FEA___(MPG-2)'!$B57,IFERROR(F57/I57,"N/A"),"") -> 
A58: ='FEA___(MPG-2)'!A58 ->  | B58: ='FEA___(MPG-2)'!D58 ->  | D58: ='FEA___(MPG-2)'!F58 ->  | E58: =IF('FEA___(MPG-2)'!$B58,VLOOKUP(D58,VLLU,14,FALSE),"") ->  | F58: =IF('FEA___(MPG-2)'!$B58,VLOOKUP(D58,VLLU,15,FALSE),"") ->  | H58: =IF('FEA___(MPG-2)'!$B58,VLOOKUP(D58,VLLU,17,FALSE),"") ->  | I58: =IF('FEA___(MPG-2)'!$B58,VLOOKUP(D58,VLLU,18,FALSE),"") ->  | K58: =IF('FEA___(MPG-2)'!$B58,IFERROR(E58/H58,"N/A"),"") ->  | L58: =IF('FEA___(MPG-2)'!$B58,IFERROR(F58/I58,"N/A"),"") -> 
A59: ='FEA___(MPG-2)'!A59 ->  | B59: ='FEA___(MPG-2)'!D59 ->  | D59: ='FEA___(MPG-2)'!F59 ->  | E59: =IF('FEA___(MPG-2)'!$B59,VLOOKUP(D59,VLLU,14,FALSE),"") ->  | F59: =IF('FEA___(MPG-2)'!$B59,VLOOKUP(D59,VLLU,15,FALSE),"") ->  | H59: =IF('FEA___(MPG-2)'!$B59,VLOOKUP(D59,VLLU,17,FALSE),"") ->  | I59: =IF('FEA___(MPG-2)'!$B59,VLOOKUP(D59,VLLU,18,FALSE),"") ->  | K59: =IF('FEA___(MPG-2)'!$B59,IFERROR(E59/H59,"N/A"),"") ->  | L59: =IF('FEA___(MPG-2)'!$B59,IFERROR(F59/I59,"N/A"),"") -> 
A60: ='FEA___(MPG-2)'!A60 ->  | B60: ='FEA___(MPG-2)'!D60 ->  | D60: ='FEA___(MPG-2)'!F60 ->  | E60: =IF('FEA___(MPG-2)'!$B60,VLOOKUP(D60,VLLU,14,FALSE),"") ->  | F60: =IF('FEA___(MPG-2)'!$B60,VLOOKUP(D60,VLLU,15,FALSE),"") ->  | H60: =IF('FEA___(MPG-2)'!$B60,VLOOKUP(D60,VLLU,17,FALSE),"") ->  | I60: =IF('FEA___(MPG-2)'!$B60,VLOOKUP(D60,VLLU,18,FALSE),"") ->  | K60: =IF('FEA___(MPG-2)'!$B60,IFERROR(E60/H60,"N/A"),"") ->  | L60: =IF('FEA___(MPG-2)'!$B60,IFERROR(F60/I60,"N/A"),"") -> 
A61: ='FEA___(MPG-2)'!A61 ->  | B61: ='FEA___(MPG-2)'!D61 ->  | D61: ='FEA___(MPG-2)'!F61 ->  | E61: =IF('FEA___(MPG-2)'!$B61,VLOOKUP(D61,VLLU,14,FALSE),"") ->  | F61: =IF('FEA___(MPG-2)'!$B61,VLOOKUP(D61,VLLU,15,FALSE),"") ->  | H61: =IF('FEA___(MPG-2)'!$B61,VLOOKUP(D61,VLLU,17,FALSE),"") ->  | I61: =IF('FEA___(MPG-2)'!$B61,VLOOKUP(D61,VLLU,18,FALSE),"") ->  | K61: =IF('FEA___(MPG-2)'!$B61,IFERROR(E61/H61,"N/A"),"") ->  | L61: =IF('FEA___(MPG-2)'!$B61,IFERROR(F61/I61,"N/A"),"") -> 
A63: =IF(B63=0,"N/A",MAX(A19:A62)+1) -> 14 | B63: ='FEA___(MPG-2)'!D63 -> Average | E63: =AVERAGE(E12:E61) -> 1.851538462 | F63: =AVERAGE(F12:F61) -> 2.320769231 | H63: =AVERAGE(H12:H61) -> 3.024615385 | I63: =AVERAGE(I12:I61) -> 3.776923077 | K63: =AVERAGE(K12:K61) -> 0.6202430103 | L63: =AVERAGE(L12:L61) -> 0.6147706994
B67: Source:
B68: The Value Line Investment Survey, January 31, February 21, and March 21, 2014.

Sheet FEA___(MPG-6ab)
A1: ='FEA___(MPG-2)'!A1 -> Rocky Mountain Power | P1: =A1 -> Rocky Mountain Power
A4: Sustainable Growth Rate | P4: =A4 -> Sustainable Growth Rate
AC5: Value Line Projection Years
AC6: 2016
E7: 3 to 5 Year Projections | O7: Sustainable | T7: 13-Week | U7: 2012 | V7: Market | W7: Common Shares | AC7: 2018
E8: Dividends | F8: Earnings | G8: Book Value | H8: Book Value | J8: Adjustment | K8: Adjusted | L8: Payout | M8: Retention | N8: Internal | O8: Growth | T8: Average | U8: Book Value | V8: to Book | W8: Outstanding (in Millions)2 | AC8: =AVERAGE(AC6:AC7) -> 2017
A9: Line | B9: Company | E9: Per Share | F9: Per Share | G9: Per Share | H9: Growth | I9: ROE | J9: Factor | K9: ROE | L9: Ratio | M9: Rate | N9: Growth Rate | O9: Rate | P9: Line | R9: Company | T9: Stock Price1 | U9: Per Share2 | V9: Ratio | W9: 2012 | X9: 3-5 Years | Y9: Growth | Z9: S Factor3 | AA9: V Factor4 | AB9: S * V
E10: (1) | F10: (2) | G10: (3) | H10: (4) | I10: (5) | J10: (6) | K10: (7) | L10: (8) | M10: (9) | N10: (10) | O10: (11) | T10: (1) | U10: (2) | V10: (3) | W10: (4) | X10: (5) | Y10: (6) | Z10: (7) | AA10: (8) | AB10: (9)
A12: ='FEA___(MPG-2)'!A12 -> 1 | B12: ='FEA___(MPG-2)'!D12 -> ALLETE, Inc. | D12: ='FEA___(MPG-2)'!F12 -> ALE | E12: ='FEA___(MPG-5)'!F12 -> 2.3 | F12: ='FEA___(MPG-5)'!I12 -> 3.75 | G12: =IF('FEA___(MPG-2)'!$B12,VLOOKUP(D12,VLLU,12,FALSE),"") -> 39.75 | H12: =IF('FEA___(MPG-2)'!$B12,IFERROR((G12/U12)^(1/5)-1,"N/A"),"") -> 0.04148077477 | I12: =IF('FEA___(MPG-2)'!$B12,IFERROR(F12/G12,"N/A"),"") -> 0.09433962264 | J12: =IF('FEA___(MPG-2)'!$B12,IFERROR((2*(1+H12))/(2+H12),"N/A"),"") -> 1.020318964 | K12: =IF('FEA___(MPG-2)'!$B12,IFERROR(I12*J12,"N/A"),"") -> 0.09625650606 | L12: ='FEA___(MPG-5)'!L12 -> 0.6133333333 | M12: =IF('FEA___(MPG-2)'!$B12,IFERROR(1-L12,"N/A"),"") -> 0.3866666667 | N12: =IF('FEA___(MPG-2)'!$B12,IFERROR(M12*K12,"N/A"),"") -> 0.03721918234 | O12: =IF('FEA___(MPG-2)'!$B12,IFERROR(IF(AB12<0,N12,N12+AB12),N12),"") -> 0.05235127346 | P12: =A12 -> 1 | R12: =B12 -> ALLETE, Inc. | T12: ='FEA___(MPG-4)'!F12 -> 50.05269231 | U12: =IF('FEA___(MPG-2)'!$B12,VLOOKUP(D12,VLLU,11,FALSE),"") -> 32.44 | V12: =IF('FEA___(MPG-2)'!$B12,IFERROR(T12/U12,"N/A"),"") -> 1.542931329 | W12: =IF('FEA___(MPG-2)'!$B12,VLOOKUP(D12,VLLU,8,FALSE),"") -> 41.4 | X12: =IF('FEA___(MPG-2)'!$B12,VLOOKUP(D12,VLLU,9,FALSE),"") -> 47.5 | Y12: =IF('FEA___(MPG-2)'!$B12,IFERROR((X12/W12)^(1/($AC$8-$W$9))-1,"N/A"),"") -> 0.02787109586 | Z12: =IF('FEA___(MPG-2)'!$B12,IFERROR(Y12*V12,"N/A"),"") -> 0.04300318698 | AA12: =IF('FEA___(MPG-2)'!$B12,IFERROR(1-1/V12,"N/A"),"") -> 0.3518830156 | AB12: =IF('FEA___(MPG-2)'!$B12,Z12*AA12,"") -> 0.01513209111
A13: ='FEA___(MPG-2)'!A13 -> 2 | B13: ='FEA___(MPG-2)'!D13 -> Alliant Energy Corporation | D13: ='FEA___(MPG-2)'!F13 -> LNT | E13: ='FEA___(MPG-5)'!F13 -> 2.4 | F13: ='FEA___(MPG-5)'!I13 -> 4 | G13: =IF('FEA___(MPG-2)'!$B13,VLOOKUP(D13,VLLU,12,FALSE),"") -> 34.8 | H13: =IF('FEA___(MPG-2)'!$B13,IFERROR((G13/U13)^(1/5)-1,"N/A"),"") -> 0.0339482178 | I13: =IF('FEA___(MPG-2)'!$B13,IFERROR(F13/G13,"N/A"),"") -> 0.1149425287 | J13: =IF('FEA___(MPG-2)'!$B13,IFERROR((2*(1+H13))/(2+H13),"N/A"),"") -> 1.016690797 | K13: =IF('FEA___(MPG-2)'!$B13,IFERROR(I13*J13,"N/A"),"") -> 0.1168610112 | L13: ='FEA___(MPG-5)'!L13 -> 0.6 | M13: =IF('FEA___(MPG-2)'!$B13,IFERROR(1-L13,"N/A"),"") -> 0.4 | N13: =IF('FEA___(MPG-2)'!$B13,IFERROR(M13*K13,"N/A"),"") -> 0.04674440448 | O13: =IF('FEA___(MPG-2)'!$B13,IFERROR(IF(AB13<0,N13,N13+AB13),N13),"") -> 0.05237996799 | P13: =A13 -> 2 | R13: =B13 -> Alliant Energy Corporation | T13: ='FEA___(MPG-4)'!F13 -> 52.68884615 | U13: =IF('FEA___(MPG-2)'!$B13,VLOOKUP(D13,VLLU,11,FALSE),"") -> 29.45 | V13: =IF('FEA___(MPG-2)'!$B13,IFERROR(T13/U13,"N/A"),"") -> 1.789094946 | W13: =IF('FEA___(MPG-2)'!$B13,VLOOKUP(D13,VLLU,8,FALSE),"") -> 110.98 | X13: =IF('FEA___(MPG-2)'!$B13,VLOOKUP(D13,VLLU,9,FALSE),"") -> 115 | Y13: =IF('FEA___(MPG-2)'!$B13,IFERROR((X13/W13)^(1/($AC$8-$W$9))-1,"N/A"),"") -> 0.007141806617 | Z13: =IF('FEA___(MPG-2)'!$B13,IFERROR(Y13*V13,"N/A"),"") -> 0.01277737012 | AA13: =IF('FEA___(MPG-2)'!$B13,IFERROR(1-1/V13,"N/A"),"") -> 0.4410581717 | AB13: =IF('FEA___(MPG-2)'!$B13,Z13*AA13,"") -> 0.005635563505
A14: ='FEA___(MPG-2)'!A14 -> 3 | B14: ='FEA___(MPG-2)'!D14 -> Avista Corporation | D14: ='FEA___(MPG-2)'!F14 -> AVA | E14: ='FEA___(MPG-5)'!F14 -> 1.4 | F14: ='FEA___(MPG-5)'!I14 -> 2.25 | G14: =IF('FEA___(MPG-2)'!$B14,VLOOKUP(D14,VLLU,12,FALSE),"") -> 24.5 | H14: =IF('FEA___(MPG-2)'!$B14,IFERROR((G14/U14)^(1/5)-1,"N/A"),"") -> 0.02504194389 | I14: =IF('FEA___(MPG-2)'!$B14,IFERROR(F14/G14,"N/A"),"") -> 0.09183673469 | J14: =IF('FEA___(MPG-2)'!$B14,IFERROR((2*(1+H14))/(2+H14),"N/A"),"") -> 1.012366136 | K14: =IF('FEA___(MPG-2)'!$B14,IFERROR(I14*J14,"N/A"),"") -> 0.09297240024 | L14: ='FEA___(MPG-5)'!L14 -> 0.6222222222 | M14: =IF('FEA___(MPG-2)'!$B14,IFERROR(1-L14,"N/A"),"") -> 0.3777777778 | N14: =IF('FEA___(MPG-2)'!$B14,IFERROR(M14*K14,"N/A"),"") -> 0.03512290676 | O14: =IF('FEA___(MPG-2)'!$B14,IFERROR(IF(AB14<0,N14,N14+AB14),N14),"") -> 0.03998241266 | P14: 3 | R14: Avista Corporation | T14: ='FEA___(MPG-4)'!F14 -> 29.04269231 | U14: =IF('FEA___(MPG-2)'!$B14,VLOOKUP(D14,VLLU,11,FALSE),"") -> 21.65 | V14: =IF('FEA___(MPG-2)'!$B14,IFERROR(T14/U14,"N/A"),"") -> 1.341463848 | W14: =IF('FEA___(MPG-2)'!$B14,VLOOKUP(D14,VLLU,8,FALSE),"") -> 60.1 | X14: =IF('FEA___(MPG-2)'!$B14,VLOOKUP(D14,VLLU,9,FALSE),"") -> 64.5 | Y14: =IF('FEA___(MPG-2)'!$B14,IFERROR((X14/W14)^(1/($AC$8-$W$9))-1,"N/A"),"") -> 0.01423139208 | Z14: =IF('FEA___(MPG-2)'!$B14,IFERROR(Y14*V14,"N/A"),"") -> 0.01909089798 | AA14: =IF('FEA___(MPG-2)'!$B14,IFERROR(1-1/V14,"N/A"),"") -> 0.2545456953 | AB14: =IF('FEA___(MPG-2)'!$B14,Z14*AA14,"") -> 0.004859505901
A15: ='FEA___(MPG-2)'!A15 -> 4 | B15: ='FEA___(MPG-2)'!D15 -> DTE Energy Company | D15: ='FEA___(MPG-2)'!F15 -> DTE | E15: ='FEA___(MPG-5)'!F15 -> 3.35 | F15: ='FEA___(MPG-5)'!I15 -> 5.25 | G15: =IF('FEA___(MPG-2)'!$B15,VLOOKUP(D15,VLLU,12,FALSE),"") -> 54.5 | H15: =IF('FEA___(MPG-2)'!$B15,IFERROR((G15/U15)^(1/5)-1,"N/A"),"") -> 0.0402092048 | I15: =IF('FEA___(MPG-2)'!$B15,IFERROR(F15/G15,"N/A"),"") -> 0.09633027523 | J15: =IF('FEA___(MPG-2)'!$B15,IFERROR((2*(1+H15))/(2+H15),"N/A"),"") -> 1.019708373 | K15: =IF('FEA___(MPG-2)'!$B15,IFERROR(I15*J15,"N/A"),"") -> 0.09822878826 | L15: ='FEA___(MPG-5)'!L15 -> 0.6380952381 | M15: =IF('FEA___(MPG-2)'!$B15,IFERROR(1-L15,"N/A"),"") -> 0.3619047619 | N15: =IF('FEA___(MPG-2)'!$B15,IFERROR(M15*K15,"N/A"),"") -> 0.03554946623 | O15: =IF('FEA___(MPG-2)'!$B15,IFERROR(IF(AB15<0,N15,N15+AB15),N15),"") -> 0.04323987248 | P15: 4 | R15: DTE Energy Company | T15: ='FEA___(MPG-4)'!F15 -> 69.03230769 | U15: =IF('FEA___(MPG-2)'!$B15,VLOOKUP(D15,VLLU,11,FALSE),"") -> 44.75 | V15: =IF('FEA___(MPG-2)'!$B15,IFERROR(T15/U15,"N/A"),"") -> 1.542621401 | W15: =IF('FEA___(MPG-2)'!$B15,VLOOKUP(D15,VLLU,8,FALSE),"") -> 177.09 | X15: =IF('FEA___(MPG-2)'!$B15,VLOOKUP(D15,VLLU,9,FALSE),"") -> 190 | Y15: =IF('FEA___(MPG-2)'!$B15,IFERROR((X15/W15)^(1/($AC$8-$W$9))-1,"N/A"),"") -> 0.01417269249 | Z15: =IF('FEA___(MPG-2)'!$B15,IFERROR(Y15*V15,"N/A"),"") -> 0.02186309875 | AA15: =IF('FEA___(MPG-2)'!$B15,IFERROR(1-1/V15,"N/A"),"") -> 0.3517528025 | AB15: =IF('FEA___(MPG-2)'!$B15,Z15*AA15,"") -> 0.007690406256
A16: ='FEA___(MPG-2)'!A16 -> 5 | B16: ='FEA___(MPG-2)'!D16 -> IDACORP, Inc. | D16: ='FEA___(MPG-2)'!F16 -> IDA | E16: ='FEA___(MPG-5)'!F16 -> 2.2 | F16: ='FEA___(MPG-5)'!I16 -> 3.6 | G16: =IF('FEA___(MPG-2)'!$B16,VLOOKUP(D16,VLLU,12,FALSE),"") -> 41.75 | H16: =IF('FEA___(MPG-2)'!$B16,IFERROR((G16/U16)^(1/5)-1,"N/A"),"") -> 0.02472753811 | I16: =IF('FEA___(MPG-2)'!$B16,IFERROR(F16/G16,"N/A"),"") -> 0.08622754491 | J16: =IF('FEA___(MPG-2)'!$B16,IFERROR((2*(1+H16))/(2+H16),"N/A"),"") -> 1.012212773 | K16: =IF('FEA___(MPG-2)'!$B16,IFERROR(I16*J16,"N/A"),"") -> 0.08728062236 | L16: ='FEA___(MPG-5)'!L16 -> 0.6111111111 | M16: =IF('FEA___(MPG-2)'!$B16,IFERROR(1-L16,"N/A"),"") -> 0.3888888889 | N16: =IF('FEA___(MPG-2)'!$B16,IFERROR(M16*K16,"N/A"),"") -> 0.03394246425 | O16: =IF('FEA___(MPG-2)'!$B16,IFERROR(IF(AB16<0,N16,N16+AB16),N16),"") -> 0.03553967932 | P16: 5 | R16: IDACORP, Inc. | T16: ='FEA___(MPG-4)'!F16 -> 53.55961538 | U16: =IF('FEA___(MPG-2)'!$B16,VLOOKUP(D16,VLLU,11,FALSE),"") -> 36.95 | V16: =IF('FEA___(MPG-2)'!$B16,IFERROR(T16/U16,"N/A"),"") -> 1.449515978 | W16: =IF('FEA___(MPG-2)'!$B16,VLOOKUP(D16,VLLU,8,FALSE),"") -> 50.3 | X16: =IF('FEA___(MPG-2)'!$B16,VLOOKUP(D16,VLLU,9,FALSE),"") -> 51.2 | Y16: =IF('FEA___(MPG-2)'!$B16,IFERROR((X16/W16)^(1/($AC$8-$W$9))-1,"N/A"),"") -> 0.003553188649 | Z16: =IF('FEA___(MPG-2)'!$B16,IFERROR(Y16*V16,"N/A"),"") -> 0.00515040372 | AA16: =IF('FEA___(MPG-2)'!$B16,IFERROR(1-1/V16,"N/A"),"") -> 0.3101145381 | AB16: =IF('FEA___(MPG-2)'!$B16,Z16*AA16,"") -> 0.00159721507
A17: ='FEA___(MPG-2)'!A17 -> 6 | B17: ='FEA___(MPG-2)'!D17 -> Integrys Energy Group, Inc. | D17: ='FEA___(MPG-2)'!F17 -> TEG | E17: ='FEA___(MPG-5)'!F17 -> 3 | F17: ='FEA___(MPG-5)'!I17 -> 4.5 | G17: =IF('FEA___(MPG-2)'!$B17,VLOOKUP(D17,VLLU,12,FALSE),"") -> 48 | H17: =IF('FEA___(MPG-2)'!$B17,IFERROR((G17/U17)^(1/5)-1,"N/A"),"") -> 0.03177645993 | I17: =IF('FEA___(MPG-2)'!$B17,IFERROR(F17/G17,"N/A"),"") -> 0.09375 | J17: =IF('FEA___(MPG-2)'!$B17,IFERROR((2*(1+H17))/(2+H17),"N/A"),"") -> 1.015639742 | K17: =IF('FEA___(MPG-2)'!$B17,IFERROR(I17*J17,"N/A"),"") -> 0.09521622583 | L17: ='FEA___(MPG-5)'!L17 -> 0.6666666667 | M17: =IF('FEA___(MPG-2)'!$B17,IFERROR(1-L17,"N/A"),"") -> 0.3333333333 | N17: =IF('FEA___(MPG-2)'!$B17,IFERROR(M17*K17,"N/A"),"") -> 0.03173874194 | O17: =IF('FEA___(MPG-2)'!$B17,IFERROR(IF(AB17<0,N17,N17+AB17),N17),"") -> 0.0352223232 | P17: 6 | R17: Integrys Energy Group, Inc. | T17: ='FEA___(MPG-4)'!F17 -> 55.35961538 | U17: =IF('FEA___(MPG-2)'!$B17,VLOOKUP(D17,VLLU,11,FALSE),"") -> 41.05 | V17: =IF('FEA___(MPG-2)'!$B17,IFERROR(T17/U17,"N/A"),"") -> 1.3485899 | W17: =IF('FEA___(MPG-2)'!$B17,VLOOKUP(D17,VLLU,8,FALSE),"") -> 79.45 | X17: =IF('FEA___(MPG-2)'!$B17,VLOOKUP(D17,VLLU,9,FALSE),"") -> 83.5 | Y17: =IF('FEA___(MPG-2)'!$B17,IFERROR((X17/W17)^(1/($AC$8-$W$9))-1,"N/A"),"") -> 0.009993351113 | Z17: =IF('FEA___(MPG-2)'!$B17,IFERROR(Y17*V17,"N/A"),"") -> 0.01347693238 | AA17: =IF('FEA___(MPG-2)'!$B17,IFERROR(1-1/V17,"N/A"),"") -> 0.2584847327 | AB17: =IF('FEA___(MPG-2)'!$B17,Z17*AA17,"") -> 0.003483581263
A18: ='FEA___(MPG-2)'!A18 -> 7 | B18: ='FEA___(MPG-2)'!D18 -> NextEra Energy, Inc. | D18: ='FEA___(MPG-2)'!F18 -> NEE | E18: ='FEA___(MPG-5)'!F18 -> 3.9 | F18: ='FEA___(MPG-5)'!I18 -> 6.5 | G18: =IF('FEA___(MPG-2)'!$B18,VLOOKUP(D18,VLLU,12,FALSE),"") -> 57.25 | H18: =IF('FEA___(MPG-2)'!$B18,IFERROR((G18/U18)^(1/5)-1,"N/A"),"") -> 0.06467242437 | I18: =IF('FEA___(MPG-2)'!$B18,IFERROR(F18/G18,"N/A"),"") -> 0.1135371179 | J18: =IF('FEA___(MPG-2)'!$B18,IFERROR((2*(1+H18))/(2+H18),"N/A"),"") -> 1.031323334 | K18: =IF('FEA___(MPG-2)'!$B18,IFERROR(I18*J18,"N/A"),"") -> 0.117093479 | L18: ='FEA___(MPG-5)'!L18 -> 0.6 | M18: =IF('FEA___(MPG-2)'!$B18,IFERROR(1-L18,"N/A"),"") -> 0.4 | N18: =IF('FEA___(MPG-2)'!$B18,IFERROR(M18*K18,"N/A"),"") -> 0.0468373916 | O18: =IF('FEA___(MPG-2)'!$B18,IFERROR(IF(AB18<0,N18,N18+AB18),N18),"") -> 0.06706770416 | P18: 7 | R18: NextEra Energy, Inc. | T18: ='FEA___(MPG-4)'!F18 -> 90.29615385 | U18: =IF('FEA___(MPG-2)'!$B18,VLOOKUP(D18,VLLU,11,FALSE),"") -> 41.85 | V18: =IF('FEA___(MPG-2)'!$B18,IFERROR(T18/U18,"N/A"),"") -> 2.15761419 | W18: =IF('FEA___(MPG-2)'!$B18,VLOOKUP(D18,VLLU,8,FALSE),"") -> 431 | X18: =IF('FEA___(MPG-2)'!$B18,VLOOKUP(D18,VLLU,9,FALSE),"") -> 470 | Y18: =IF('FEA___(MPG-2)'!$B18,IFERROR((X18/W18)^(1/($AC$8-$W$9))-1,"N/A"),"") -> 0.01747586782 | Z18: =IF('FEA___(MPG-2)'!$B18,IFERROR(Y18*V18,"N/A"),"") -> 0.03770618038 | AA18: =IF('FEA___(MPG-2)'!$B18,IFERROR(1-1/V18,"N/A"),"") -> 0.5365251097 | AB18: =IF('FEA___(MPG-2)'!$B18,Z18*AA18,"") -> 0.02023031257
A19: ='FEA___(MPG-2)'!A19 -> 8 | B19: ='FEA___(MPG-2)'!D19 -> Portland General Electric Company | D19: ='FEA___(MPG-2)'!F19 -> POR | E19: ='FEA___(MPG-5)'!F19 -> 1.25 | F19: ='FEA___(MPG-5)'!I19 -> 2.25 | G19: =IF('FEA___(MPG-2)'!$B19,VLOOKUP(D19,VLLU,12,FALSE),"") -> 27 | H19: =IF('FEA___(MPG-2)'!$B19,IFERROR((G19/U19)^(1/5)-1,"N/A"),"") -> 0.03124665713 | I19: =IF('FEA___(MPG-2)'!$B19,IFERROR(F19/G19,"N/A"),"") -> 0.08333333333 | J19: =IF('FEA___(MPG-2)'!$B19,IFERROR((2*(1+H19))/(2+H19),"N/A"),"") -> 1.015382995 | K19: =IF('FEA___(MPG-2)'!$B19,IFERROR(I19*J19,"N/A"),"") -> 0.08461524958 | L19: ='FEA___(MPG-5)'!L19 -> 0.5555555556 | M19: =IF('FEA___(MPG-2)'!$B19,IFERROR(1-L19,"N/A"),"") -> 0.4444444444 | N19: =IF('FEA___(MPG-2)'!$B19,IFERROR(M19*K19,"N/A"),"") -> 0.03760677759 | O19: =IF('FEA___(MPG-2)'!$B19,IFERROR(IF(AB19<0,N19,N19+AB19),N19),"") -> 0.04673259955 | P19: 8 | R19: Portland General Electric Company | T19: ='FEA___(MPG-4)'!F19 -> 30.79769231 | U19: =IF('FEA___(MPG-2)'!$B19,VLOOKUP(D19,VLLU,11,FALSE),"") -> 23.15 | V19: =IF('FEA___(MPG-2)'!$B19,IFERROR(T19/U19,"N/A"),"") -> 1.330353879 | W19: =IF('FEA___(MPG-2)'!$B19,VLOOKUP(D19,VLLU,8,FALSE),"") -> 78.1 | X19: =IF('FEA___(MPG-2)'!$B19,VLOOKUP(D19,VLLU,9,FALSE),"") -> 89.5 | Y19: =IF('FEA___(MPG-2)'!$B19,IFERROR((X19/W19)^(1/($AC$8-$W$9))-1,"N/A"),"") -> 0.0276243826 | Z19: =IF('FEA___(MPG-2)'!$B19,IFERROR(Y19*V19,"N/A"),"") -> 0.03675020456 | AA19: =IF('FEA___(MPG-2)'!$B19,IFERROR(1-1/V19,"N/A"),"") -> 0.2483203037 | AB19: =IF('FEA___(MPG-2)'!$B19,Z19*AA19,"") -> 0.009125821957
A20: ='FEA___(MPG-2)'!A20 -> 9 | B20: ='FEA___(MPG-2)'!D20 -> Sempra Energy | D20: ='FEA___(MPG-2)'!F20 -> SRE | E20: ='FEA___(MPG-5)'!F20 -> 3 | F20: ='FEA___(MPG-5)'!I20 -> 5.5 | G20: =IF('FEA___(MPG-2)'!$B20,VLOOKUP(D20,VLLU,12,FALSE),"") -> 52.25 | H20: =IF('FEA___(MPG-2)'!$B20,IFERROR((G20/U20)^(1/5)-1,"N/A"),"") -> 0.03685961925 | I20: =IF('FEA___(MPG-2)'!$B20,IFERROR(F20/G20,"N/A"),"") -> 0.1052631579 | J20: =IF('FEA___(MPG-2)'!$B20,IFERROR((2*(1+H20))/(2+H20),"N/A"),"") -> 1.018096298 | K20: =IF('FEA___(MPG-2)'!$B20,IFERROR(I20*J20,"N/A"),"") -> 0.1071680314 | L20: ='FEA___(MPG-5)'!L20 -> 0.5454545455 | M20: =IF('FEA___(MPG-2)'!$B20,IFERROR(1-L20,"N/A"),"") -> 0.4545454545 | N20: =IF('FEA___(MPG-2)'!$B20,IFERROR(M20*K20,"N/A"),"") -> 0.04871274155 | O20: =IF('FEA___(MPG-2)'!$B20,IFERROR(IF(AB20<0,N20,N20+AB20),N20),"") -> 0.05374799614 | P20: 9 | R20: Sempra Energy | T20: ='FEA___(MPG-4)'!F20 -> 92.83423077 | U20: =IF('FEA___(MPG-2)'!$B20,VLOOKUP(D20,VLLU,11,FALSE),"") -> 43.6 | V20: =IF('FEA___(MPG-2)'!$B20,IFERROR(T20/U20,"N/A"),"") -> 2.129225476 | W20: =IF('FEA___(MPG-2)'!$B20,VLOOKUP(D20,VLLU,8,FALSE),"") -> 244.5 | X20: =IF('FEA___(MPG-2)'!$B20,VLOOKUP(D20,VLLU,9,FALSE),"") -> 250 | Y20: =IF('FEA___(MPG-2)'!$B20,IFERROR((X20/W20)^(1/($AC$8-$W$9))-1,"N/A"),"") -> 0.004459033826 | Z20: =IF('FEA___(MPG-2)'!$B20,IFERROR(Y20*V20,"N/A"),"") -> 0.009494288423 | AA20: =IF('FEA___(MPG-2)'!$B20,IFERROR(1-1/V20,"N/A"),"") -> 0.5303456533 | AB20: =IF('FEA___(MPG-2)'!$B20,Z20*AA20,"") -> 0.005035254597
A21: ='FEA___(MPG-2)'!A21 -> 10 | B21: ='FEA___(MPG-2)'!D21 -> Southern Company | D21: ='FEA___(MPG-2)'!F21 -> SO | E21: ='FEA___(MPG-5)'!F21 -> 2.36 | F21: ='FEA___(MPG-5)'!I21 -> 3.25 | G21: =IF('FEA___(MPG-2)'!$B21,VLOOKUP(D21,VLLU,12,FALSE),"") -> 26.5 | H21: =IF('FEA___(MPG-2)'!$B21,IFERROR((G21/U21)^(1/5)-1,"N/A"),"") -> 0.04319072113 | I21: =IF('FEA___(MPG-2)'!$B21,IFERROR(F21/G21,"N/A"),"") -> 0.1226415094 | J21: =IF('FEA___(MPG-2)'!$B21,IFERROR((2*(1+H21))/(2+H21),"N/A"),"") -> 1.021138859 | K21: =IF('FEA___(MPG-2)'!$B21,IFERROR(I21*J21,"N/A"),"") -> 0.125234011 | L21: ='FEA___(MPG-5)'!L21 -> 0.7261538462 | M21: =IF('FEA___(MPG-2)'!$B21,IFERROR(1-L21,"N/A"),"") -> 0.2738461538 | N21: =IF('FEA___(MPG-2)'!$B21,IFERROR(M21*K21,"N/A"),"") -> 0.03429485225 | O21: =IF('FEA___(MPG-2)'!$B21,IFERROR(IF(AB21<0,N21,N21+AB21),N21),"") -> 0.04518568608 | P21: 10 | R21: Southern Company | T21: ='FEA___(MPG-4)'!F21 -> 41.85846154 | U21: =IF('FEA___(MPG-2)'!$B21,VLOOKUP(D21,VLLU,11,FALSE),"") -> 21.45 | V21: =IF('FEA___(MPG-2)'!$B21,IFERROR(T21/U21,"N/A"),"") -> 1.951443428 | W21: =IF('FEA___(MPG-2)'!$B21,VLOOKUP(D21,VLLU,8,FALSE),"") -> 888 | X21: =IF('FEA___(MPG-2)'!$B21,VLOOKUP(D21,VLLU,9,FALSE),"") -> 940 | Y21: =IF('FEA___(MPG-2)'!$B21,IFERROR((X21/W21)^(1/($AC$8-$W$9))-1,"N/A"),"") -> 0.0114466436 | Z21: =IF('FEA___(MPG-2)'!$B21,IFERROR(Y21*V21,"N/A"),"") -> 0.02233747743 | AA21: =IF('FEA___(MPG-2)'!$B21,IFERROR(1-1/V21,"N/A"),"") -> 0.4875588062 | AB21: =IF('FEA___(MPG-2)'!$B21,Z21*AA21,"") -> 0.01089083383
A22: ='FEA___(MPG-2)'!A22 -> 11 | B22: ='FEA___(MPG-2)'!D22 -> Westar Energy, Inc. | D22: ='FEA___(MPG-2)'!F22 -> WR | E22: ='FEA___(MPG-5)'!F22 -> 1.56 | F22: ='FEA___(MPG-5)'!I22 -> 2.75 | G22: =IF('FEA___(MPG-2)'!$B22,VLOOKUP(D22,VLLU,12,FALSE),"") -> 29.65 | H22: =IF('FEA___(MPG-2)'!$B22,IFERROR((G22/U22)^(1/5)-1,"N/A"),"") -> 0.04920229123 | I22: =IF('FEA___(MPG-2)'!$B22,IFERROR(F22/G22,"N/A"),"") -> 0.09274873524 | J22: =IF('FEA___(MPG-2)'!$B22,IFERROR((2*(1+H22))/(2+H22),"N/A"),"") -> 1.024010461 | K22: =IF('FEA___(MPG-2)'!$B22,IFERROR(I22*J22,"N/A"),"") -> 0.09497567511 | L22: ='FEA___(MPG-5)'!L22 -> 0.5672727273 | M22: =IF('FEA___(MPG-2)'!$B22,IFERROR(1-L22,"N/A"),"") -> 0.4327272727 | N22: =IF('FEA___(MPG-2)'!$B22,IFERROR(M22*K22,"N/A"),"") -> 0.04109856487 | O22: =IF('FEA___(MPG-2)'!$B22,IFERROR(IF(AB22<0,N22,N22+AB22),N22),"") -> 0.04617136179 | P22: 11 | R22: Westar Energy, Inc. | T22: ='FEA___(MPG-4)'!F22 -> 33.55269231 | U22: =IF('FEA___(MPG-2)'!$B22,VLOOKUP(D22,VLLU,11,FALSE),"") -> 23.32 | V22: =IF('FEA___(MPG-2)'!$B22,IFERROR(T22/U22,"N/A"),"") -> 1.438794696 | W22: =IF('FEA___(MPG-2)'!$B22,VLOOKUP(D22,VLLU,8,FALSE),"") -> 127.46 | X22: =IF('FEA___(MPG-2)'!$B22,VLOOKUP(D22,VLLU,9,FALSE),"") -> 135 | Y22: =IF('FEA___(MPG-2)'!$B22,IFERROR((X22/W22)^(1/($AC$8-$W$9))-1,"N/A"),"") -> 0.0115607526 | Z22: =IF('FEA___(MPG-2)'!$B22,IFERROR(Y22*V22,"N/A"),"") -> 0.01663354952 | AA22: =IF('FEA___(MPG-2)'!$B22,IFERROR(1-1/V22,"N/A"),"") -> 0.304973807 | AB22: =IF('FEA___(MPG-2)'!$B22,Z22*AA22,"") -> 0.005072796921
A23: ='FEA___(MPG-2)'!A23 -> 12 | B23: ='FEA___(MPG-2)'!D23 -> Wisconsin Energy Corporation | D23: ='FEA___(MPG-2)'!F23 -> WEC | E23: ='FEA___(MPG-5)'!F23 -> 2.1 | F23: ='FEA___(MPG-5)'!I23 -> 3.25 | G23: =IF('FEA___(MPG-2)'!$B23,VLOOKUP(D23,VLLU,12,FALSE),"") -> 20.75 | H23: =IF('FEA___(MPG-2)'!$B23,IFERROR((G23/U23)^(1/5)-1,"N/A"),"") -> 0.02047734065 | I23: =IF('FEA___(MPG-2)'!$B23,IFERROR(F23/G23,"N/A"),"") -> 0.156626506 | J23: =IF('FEA___(MPG-2)'!$B23,IFERROR((2*(1+H23))/(2+H23),"N/A"),"") -> 1.010134902 | K23: =IF('FEA___(MPG-2)'!$B23,IFERROR(I23*J23,"N/A"),"") -> 0.1582139004 | L23: ='FEA___(MPG-5)'!L23 -> 0.6461538462 | M23: =IF('FEA___(MPG-2)'!$B23,IFERROR(1-L23,"N/A"),"") -> 0.3538461538 | N23: =IF('FEA___(MPG-2)'!$B23,IFERROR(M23*K23,"N/A"),"") -> 0.05598338013 | O23: =IF('FEA___(MPG-2)'!$B23,IFERROR(IF(AB23<0,N23,N23+AB23),N23),"") -> 0.05598338013 | P23: 12 | R23: Wisconsin Energy Corporation | T23: ='FEA___(MPG-4)'!F23 -> 42.94692308 | U23: =IF('FEA___(MPG-2)'!$B23,VLOOKUP(D23,VLLU,11,FALSE),"") -> 18.75 | V23: =IF('FEA___(MPG-2)'!$B23,IFERROR(T23/U23,"N/A"),"") -> 2.290502564 | W23: =IF('FEA___(MPG-2)'!$B23,VLOOKUP(D23,VLLU,8,FALSE),"") -> 225.5 | X23: =IF('FEA___(MPG-2)'!$B23,VLOOKUP(D23,VLLU,9,FALSE),"") -> 217 | Y23: =IF('FEA___(MPG-2)'!$B23,IFERROR((X23/W23)^(1/($AC$8-$W$9))-1,"N/A"),"") -> -0.007655110328 | Z23: =IF('FEA___(MPG-2)'!$B23,IFERROR(Y23*V23,"N/A"),"") -> -0.01753404983 | AA23: =IF('FEA___(MPG-2)'!$B23,IFERROR(1-1/V23,"N/A"),"") -> 0.5634145905 | AB23: =IF('FEA___(MPG-2)'!$B23,Z23*AA23,"") -> -0.009878939507
A24: ='FEA___(MPG-2)'!A24 -> 13 | B24: ='FEA___(MPG-2)'!D24 -> Xcel Energy Inc. | D24: ='FEA___(MPG-2)'!F24 -> XEL | E24: ='FEA___(MPG-5)'!F24 -> 1.35 | F24: ='FEA___(MPG-5)'!I24 -> 2.25 | G24: =IF('FEA___(MPG-2)'!$B24,VLOOKUP(D24,VLLU,12,FALSE),"") -> 23 | H24: =IF('FEA___(MPG-2)'!$B24,IFERROR((G24/U24)^(1/5)-1,"N/A"),"") -> 0.03570030801 | I24: =IF('FEA___(MPG-2)'!$B24,IFERROR(F24/G24,"N/A"),"") -> 0.09782608696 | J24: =IF('FEA___(MPG-2)'!$B24,IFERROR((2*(1+H24))/(2+H24),"N/A"),"") -> 1.017537114 | K24: =IF('FEA___(MPG-2)'!$B24,IFERROR(I24*J24,"N/A"),"") -> 0.09954167418 | L24: ='FEA___(MPG-5)'!L24 -> 0.6 | M24: =IF('FEA___(MPG-2)'!$B24,IFERROR(1-L24,"N/A"),"") -> 0.4 | N24: =IF('FEA___(MPG-2)'!$B24,IFERROR(M24*K24,"N/A"),"") -> 0.03981666967 | O24: =IF('FEA___(MPG-2)'!$B24,IFERROR(IF(AB24<0,N24,N24+AB24),N24),"") -> 0.04241708222 | P24: 13 | R24: Xcel Energy Inc. | T24: ='FEA___(MPG-4)'!F24 -> 29.09 | U24: =IF('FEA___(MPG-2)'!$B24,VLOOKUP(D24,VLLU,11,FALSE),"") -> 19.3 | V24: =IF('FEA___(MPG-2)'!$B24,IFERROR(T24/U24,"N/A"),"") -> 1.507253886 | W24: =IF('FEA___(MPG-2)'!$B24,VLOOKUP(D24,VLLU,8,FALSE),"") -> 502 | X24: =IF('FEA___(MPG-2)'!$B24,VLOOKUP(D24,VLLU,9,FALSE),"") -> 515 | Y24: =IF('FEA___(MPG-2)'!$B24,IFERROR((X24/W24)^(1/($AC$8-$W$9))-1,"N/A"),"") -> 0.005126451711 | Z24: =IF('FEA___(MPG-2)'!$B24,IFERROR(Y24*V24,"N/A"),"") -> 0.007726864263 | AA24: =IF('FEA___(MPG-2)'!$B24,IFERROR(1-1/V24,"N/A"),"") -> 0.3365417669 | AB24: =IF('FEA___(MPG-2)'!$B24,Z24*AA24,"") -> 0.002600412552
A25: ='FEA___(MPG-2)'!A25 ->  | B25: ='FEA___(MPG-2)'!D25 ->  | D25: ='FEA___(MPG-2)'!F25 ->  | E25: ='FEA___(MPG-5)'!F25 ->  | F25: ='FEA___(MPG-5)'!I25 ->  | G25: =IF('FEA___(MPG-2)'!$B25,VLOOKUP(D25,VLLU,12,FALSE),"") ->  | H25: =IF('FEA___(MPG-2)'!$B25,IFERROR((G25/U25)^(1/5)-1,"N/A"),"") ->  | I25: =IF('FEA___(MPG-2)'!$B25,IFERROR(F25/G25,"N/A"),"") ->  | J25: =IF('FEA___(MPG-2)'!$B25,IFERROR((2*(1+H25))/(2+H25),"N/A"),"") ->  | K25: =IF('FEA___(MPG-2)'!$B25,IFERROR(I25*J25,"N/A"),"") ->  | L25: ='FEA___(MPG-5)'!L25 ->  | M25: =IF('FEA___(MPG-2)'!$B25,IFERROR(1-L25,"N/A"),"") ->  | N25: =IF('FEA___(MPG-2)'!$B25,IFERROR(M25*K25,"N/A"),"") ->  | O25: =IF('FEA___(MPG-2)'!$B25,IFERROR(IF(AB25<0,N25,N25+AB25),N25),"") ->  | T25: ='FEA___(MPG-4)'!F25 ->  | U25: =IF('FEA___(MPG-2)'!$B25,VLOOKUP(D25,VLLU,11,FALSE),"") ->  | V25: =IF('FEA___(MPG-2)'!$B25,IFERROR(T25/U25,"N/A"),"") ->  | W25: =IF('FEA___(MPG-2)'!$B25,VLOOKUP(D25,VLLU,8,FALSE),"") ->  | X25: =IF('FEA___(MPG-2)'!$B25,VLOOKUP(D25,VLLU,9,FALSE),"") ->  | Y25: =IF('FEA___(MPG-2)'!$B25,IFERROR((X25/W25)^(1/($AC$8-$W$9))-1,"N/A"),"") ->  | Z25: =IF('FEA___(MPG-2)'!$B25,IFERROR(Y25*V25,"N/A"),"") ->  | AA25: =IF('FEA___(MPG-2)'!$B25,IFERROR(1-1/V25,"N/A"),"") ->  | AB25: =IF('FEA___(MPG-2)'!$B25,Z25*AA25,"") -> 
A26: ='FEA___(MPG-2)'!A26 ->  | B26: ='FEA___(MPG-2)'!D26 ->  | D26: ='FEA___(MPG-2)'!F26 ->  | E26: ='FEA___(MPG-5)'!F26 ->  | F26: ='FEA___(MPG-5)'!I26 ->  | G26: =IF('FEA___(MPG-2)'!$B26,VLOOKUP(D26,VLLU,12,FALSE),"") ->  | H26: =IF('FEA___(MPG-2)'!$B26,IFERROR((G26/U26)^(1/5)-1,"N/A"),"") ->  | I26: =IF('FEA___(MPG-2)'!$B26,IFERROR(F26/G26,"N/A"),"") ->  | J26: =IF('FEA___(MPG-2)'!$B26,IFERROR((2*(1+H26))/(2+H26),"N/A"),"") ->  | K26: =IF('FEA___(MPG-2)'!$B26,IFERROR(I26*J26,"N/A"),"") ->  | L26: ='FEA___(MPG-5)'!L26 ->  | M26: =IF('FEA___(MPG-2)'!$B26,IFERROR(1-L26,"N/A"),"") ->  | N26: =IF('FEA___(MPG-2)'!$B26,IFERROR(M26*K26,"N/A"),"") ->  | O26: =IF('FEA___(MPG-2)'!$B26,IFERROR(IF(AB26<0,N26,N26+AB26),N26),"") ->  | T26: ='FEA___(MPG-4)'!F26 ->  | U26: =IF('FEA___(MPG-2)'!$B26,VLOOKUP(D26,VLLU,11,FALSE),"") ->  | V26: =IF('FEA___(MPG-2)'!$B26,IFERROR(T26/U26,"N/A"),"") ->  | W26: =IF('FEA___(MPG-2)'!$B26,VLOOKUP(D26,VLLU,8,FALSE),"") ->  | X26: =IF('FEA___(MPG-2)'!$B26,VLOOKUP(D26,VLLU,9,FALSE),"") ->  | Y26: =IF('FEA___(MPG-2)'!$B26,IFERROR((X26/W26)^(1/($AC$8-$W$9))-1,"N/A"),"") ->  | Z26: =IF('FEA___(MPG-2)'!$B26,IFERROR(Y26*V26,"N/A"),"") ->  | AA26: =IF('FEA___(MPG-2)'!$B26,IFERROR(1-1/V26,"N/A"),"") ->  | AB26: =IF('FEA___(MPG-2)'!$B26,Z26*AA26,"") -> 
A27: ='FEA___(MPG-2)'!A27 ->  | B27: ='FEA___(MPG-2)'!D27 ->  | D27: ='FEA___(MPG-2)'!F27 ->  | E27: ='FEA___(MPG-5)'!F27 ->  | F27: ='FEA___(MPG-5)'!I27 ->  | G27: =IF('FEA___(MPG-2)'!$B27,VLOOKUP(D27,VLLU,12,FALSE),"") ->  | H27: =IF('FEA___(MPG-2)'!$B27,IFERROR((G27/U27)^(1/5)-1,"N/A"),"") ->  | I27: =IF('FEA___(MPG-2)'!$B27,IFERROR(F27/G27,"N/A"),"") ->  | J27: =IF('FEA___(MPG-2)'!$B27,IFERROR((2*(1+H27))/(2+H27),"N/A"),"") ->  | K27: =IF('FEA___(MPG-2)'!$B27,IFERROR(I27*J27,"N/A"),"") ->  | L27: ='FEA___(MPG-5)'!L27 ->  | M27: =IF('FEA___(MPG-2)'!$B27,IFERROR(1-L27,"N/A"),"") ->  | N27: =IF('FEA___(MPG-2)'!$B27,IFERROR(M27*K27,"N/A"),"") ->  | O27: =IF('FEA___(MPG-2)'!$B27,IFERROR(IF(AB27<0,N27,N27+AB27),N27),"") ->  | T27: ='FEA___(MPG-4)'!F27 ->  | U27: =IF('FEA___(MPG-2)'!$B27,VLOOKUP(D27,VLLU,11,FALSE),"") ->  | V27: =IF('FEA___(MPG-2)'!$B27,IFERROR(T27/U27,"N/A"),"") ->  | W27: =IF('FEA___(MPG-2)'!$B27,VLOOKUP(D27,VLLU,8,FALSE),"") ->  | X27: =IF('FEA___(MPG-2)'!$B27,VLOOKUP(D27,VLLU,9,FALSE),"") ->  | Y27: =IF('FEA___(MPG-2)'!$B27,IFERROR((X27/W27)^(1/($AC$8-$W$9))-1,"N/A"),"") ->  | Z27: =IF('FEA___(MPG-2)'!$B27,IFERROR(Y27*V27,"N/A"),"") ->  | AA27: =IF('FEA___(MPG-2)'!$B27,IFERROR(1-1/V27,"N/A"),"") ->  | AB27: =IF('FEA___(MPG-2)'!$B27,Z27*AA27,"") -> 
A28: ='FEA___(MPG-2)'!A28 ->  | B28: ='FEA___(MPG-2)'!D28 ->  | D28: ='FEA___(MPG-2)'!F28 ->  | E28: ='FEA___(MPG-5)'!F28 ->  | F28: ='FEA___(MPG-5)'!I28 ->  | G28: =IF('FEA___(MPG-2)'!$B28,VLOOKUP(D28,VLLU,12,FALSE),"") ->  | H28: =IF('FEA___(MPG-2)'!$B28,IFERROR((G28/U28)^(1/5)-1,"N/A"),"") ->  | I28: =IF('FEA___(MPG-2)'!$B28,IFERROR(F28/G28,"N/A"),"") ->  | J28: =IF('FEA___(MPG-2)'!$B28,IFERROR((2*(1+H28))/(2+H28),"N/A"),"") ->  | K28: =IF('FEA___(MPG-2)'!$B28,IFERROR(I28*J28,"N/A"),"") ->  | L28: ='FEA___(MPG-5)'!L28 ->  | M28: =IF('FEA___(MPG-2)'!$B28,IFERROR(1-L28,"N/A"),"") ->  | N28: =IF('FEA___(MPG-2)'!$B28,IFERROR(M28*K28,"N/A"),"") ->  | O28: =IF('FEA___(MPG-2)'!$B28,IFERROR(IF(AB28<0,N28,N28+AB28),N28),"") ->  | T28: ='FEA___(MPG-4)'!F28 ->  | U28: =IF('FEA___(MPG-2)'!$B28,VLOOKUP(D28,VLLU,11,FALSE),"") ->  | V28: =IF('FEA___(MPG-2)'!$B28,IFERROR(T28/U28,"N/A"),"") ->  | W28: =IF('FEA___(MPG-2)'!$B28,VLOOKUP(D28,VLLU,8,FALSE),"") ->  | X28: =IF('FEA___(MPG-2)'!$B28,VLOOKUP(D28,VLLU,9,FALSE),"") ->  | Y28: =IF('FEA___(MPG-2)'!$B28,IFERROR((X28/W28)^(1/($AC$8-$W$9))-1,"N/A"),"") ->  | Z28: =IF('FEA___(MPG-2)'!$B28,IFERROR(Y28*V28,"N/A"),"") ->  | AA28: =IF('FEA___(MPG-2)'!$B28,IFERROR(1-1/V28,"N/A"),"") ->  | AB28: =IF('FEA___(MPG-2)'!$B28,Z28*AA28,"") -> 
A29: ='FEA___(MPG-2)'!A29 ->  | B29: ='FEA___(MPG-2)'!D29 ->  | D29: ='FEA___(MPG-2)'!F29 ->  | E29: ='FEA___(MPG-5)'!F29 ->  | F29: ='FEA___(MPG-5)'!I29 ->  | G29: =IF('FEA___(MPG-2)'!$B29,VLOOKUP(D29,VLLU,12,FALSE),"") ->  | H29: =IF('FEA___(MPG-2)'!$B29,IFERROR((G29/U29)^(1/5)-1,"N/A"),"") ->  | I29: =IF('FEA___(MPG-2)'!$B29,IFERROR(F29/G29,"N/A"),"") ->  | J29: =IF('FEA___(MPG-2)'!$B29,IFERROR((2*(1+H29))/(2+H29),"N/A"),"") ->  | K29: =IF('FEA___(MPG-2)'!$B29,IFERROR(I29*J29,"N/A"),"") ->  | L29: ='FEA___(MPG-5)'!L29 ->  | M29: =IF('FEA___(MPG-2)'!$B29,IFERROR(1-L29,"N/A"),"") ->  | N29: =IF('FEA___(MPG-2)'!$B29,IFERROR(M29*K29,"N/A"),"") ->  | O29: =IF('FEA___(MPG-2)'!$B29,IFERROR(IF(AB29<0,N29,N29+AB29),N29),"") ->  | T29: ='FEA___(MPG-4)'!F29 ->  | U29: =IF('FEA___(MPG-2)'!$B29,VLOOKUP(D29,VLLU,11,FALSE),"") ->  | V29: =IF('FEA___(MPG-2)'!$B29,IFERROR(T29/U29,"N/A"),"") ->  | W29: =IF('FEA___(MPG-2)'!$B29,VLOOKUP(D29,VLLU,8,FALSE),"") ->  | X29: =IF('FEA___(MPG-2)'!$B29,VLOOKUP(D29,VLLU,9,FALSE),"") ->  | Y29: =IF('FEA___(MPG-2)'!$B29,IFERROR((X29/W29)^(1/($AC$8-$W$9))-1,"N/A"),"") ->  | Z29: =IF('FEA___(MPG-2)'!$B29,IFERROR(Y29*V29,"N/A"),"") ->  | AA29: =IF('FEA___(MPG-2)'!$B29,IFERROR(1-1/V29,"N/A"),"") ->  | AB29: =IF('FEA___(MPG-2)'!$B29,Z29*AA29,"") -> 
A30: ='FEA___(MPG-2)'!A30 ->  | B30: ='FEA___(MPG-2)'!D30 ->  | D30: ='FEA___(MPG-2)'!F30 ->  | E30: ='FEA___(MPG-5)'!F30 ->  | F30: ='FEA___(MPG-5)'!I30 ->  | G30: =IF('FEA___(MPG-2)'!$B30,VLOOKUP(D30,VLLU,12,FALSE),"") ->  | H30: =IF('FEA___(MPG-2)'!$B30,IFERROR((G30/U30)^(1/5)-1,"N/A"),"") ->  | I30: =IF('FEA___(MPG-2)'!$B30,IFERROR(F30/G30,"N/A"),"") ->  | J30: =IF('FEA___(MPG-2)'!$B30,IFERROR((2*(1+H30))/(2+H30),"N/A"),"") ->  | K30: =IF('FEA___(MPG-2)'!$B30,IFERROR(I30*J30,"N/A"),"") ->  | L30: ='FEA___(MPG-5)'!L30 ->  | M30: =IF('FEA___(MPG-2)'!$B30,IFERROR(1-L30,"N/A"),"") ->  | N30: =IF('FEA___(MPG-2)'!$B30,IFERROR(M30*K30,"N/A"),"") ->  | O30: =IF('FEA___(MPG-2)'!$B30,IFERROR(IF(AB30<0,N30,N30+AB30),N30),"") ->  | T30: ='FEA___(MPG-4)'!F30 ->  | U30: =IF('FEA___(MPG-2)'!$B30,VLOOKUP(D30,VLLU,11,FALSE),"") ->  | V30: =IF('FEA___(MPG-2)'!$B30,IFERROR(T30/U30,"N/A"),"") ->  | W30: =IF('FEA___(MPG-2)'!$B30,VLOOKUP(D30,VLLU,8,FALSE),"") ->  | X30: =IF('FEA___(MPG-2)'!$B30,VLOOKUP(D30,VLLU,9,FALSE),"") ->  | Y30: =IF('FEA___(MPG-2)'!$B30,IFERROR((X30/W30)^(1/($AC$8-$W$9))-1,"N/A"),"") ->  | Z30: =IF('FEA___(MPG-2)'!$B30,IFERROR(Y30*V30,"N/A"),"") ->  | AA30: =IF('FEA___(MPG-2)'!$B30,IFERROR(1-1/V30,"N/A"),"") ->  | AB30: =IF('FEA___(MPG-2)'!$B30,Z30*AA30,"") -> 
A31: ='FEA___(MPG-2)'!A31 ->  | B31: ='FEA___(MPG-2)'!D31 ->  | D31: ='FEA___(MPG-2)'!F31 ->  | E31: ='FEA___(MPG-5)'!F31 ->  | F31: ='FEA___(MPG-5)'!I31 ->  | G31: =IF('FEA___(MPG-2)'!$B31,VLOOKUP(D31,VLLU,12,FALSE),"") ->  | H31: =IF('FEA___(MPG-2)'!$B31,IFERROR((G31/U31)^(1/5)-1,"N/A"),"") ->  | I31: =IF('FEA___(MPG-2)'!$B31,IFERROR(F31/G31,"N/A"),"") ->  | J31: =IF('FEA___(MPG-2)'!$B31,IFERROR((2*(1+H31))/(2+H31),"N/A"),"") ->  | K31: =IF('FEA___(MPG-2)'!$B31,IFERROR(I31*J31,"N/A"),"") ->  | L31: ='FEA___(MPG-5)'!L31 ->  | M31: =IF('FEA___(MPG-2)'!$B31,IFERROR(1-L31,"N/A"),"") ->  | N31: =IF('FEA___(MPG-2)'!$B31,IFERROR(M31*K31,"N/A"),"") ->  | O31: =IF('FEA___(MPG-2)'!$B31,IFERROR(IF(AB31<0,N31,N31+AB31),N31),"") ->  | T31: ='FEA___(MPG-4)'!F31 ->  | U31: =IF('FEA___(MPG-2)'!$B31,VLOOKUP(D31,VLLU,11,FALSE),"") ->  | V31: =IF('FEA___(MPG-2)'!$B31,IFERROR(T31/U31,"N/A"),"") ->  | W31: =IF('FEA___(MPG-2)'!$B31,VLOOKUP(D31,VLLU,8,FALSE),"") ->  | X31: =IF('FEA___(MPG-2)'!$B31,VLOOKUP(D31,VLLU,9,FALSE),"") ->  | Y31: =IF('FEA___(MPG-2)'!$B31,IFERROR((X31/W31)^(1/($AC$8-$W$9))-1,"N/A"),"") ->  | Z31: =IF('FEA___(MPG-2)'!$B31,IFERROR(Y31*V31,"N/A"),"") ->  | AA31: =IF('FEA___(MPG-2)'!$B31,IFERROR(1-1/V31,"N/A"),"") ->  | AB31: =IF('FEA___(MPG-2)'!$B31,Z31*AA31,"") -> 
A32: ='FEA___(MPG-2)'!A32 ->  | B32: ='FEA___(MPG-2)'!D32 ->  | D32: ='FEA___(MPG-2)'!F32 ->  | E32: ='FEA___(MPG-5)'!F32 ->  | F32: ='FEA___(MPG-5)'!I32 ->  | G32: =IF('FEA___(MPG-2)'!$B32,VLOOKUP(D32,VLLU,12,FALSE),"") ->  | H32: =IF('FEA___(MPG-2)'!$B32,IFERROR((G32/U32)^(1/5)-1,"N/A"),"") ->  | I32: =IF('FEA___(MPG-2)'!$B32,IFERROR(F32/G32,"N/A"),"") ->  | J32: =IF('FEA___(MPG-2)'!$B32,IFERROR((2*(1+H32))/(2+H32),"N/A"),"") ->  | K32: =IF('FEA___(MPG-2)'!$B32,IFERROR(I32*J32,"N/A"),"") ->  | L32: ='FEA___(MPG-5)'!L32 ->  | M32: =IF('FEA___(MPG-2)'!$B32,IFERROR(1-L32,"N/A"),"") ->  | N32: =IF('FEA___(MPG-2)'!$B32,IFERROR(M32*K32,"N/A"),"") ->  | O32: =IF('FEA___(MPG-2)'!$B32,IFERROR(IF(AB32<0,N32,N32+AB32),N32),"") ->  | T32: ='FEA___(MPG-4)'!F32 ->  | U32: =IF('FEA___(MPG-2)'!$B32,VLOOKUP(D32,VLLU,11,FALSE),"") ->  | V32: =IF('FEA___(MPG-2)'!$B32,IFERROR(T32/U32,"N/A"),"") ->  | W32: =IF('FEA___(MPG-2)'!$B32,VLOOKUP(D32,VLLU,8,FALSE),"") ->  | X32: =IF('FEA___(MPG-2)'!$B32,VLOOKUP(D32,VLLU,9,FALSE),"") ->  | Y32: =IF('FEA___(MPG-2)'!$B32,IFERROR((X32/W32)^(1/($AC$8-$W$9))-1,"N/A"),"") ->  | Z32: =IF('FEA___(MPG-2)'!$B32,IFERROR(Y32*V32,"N/A"),"") ->  | AA32: =IF('FEA___(MPG-2)'!$B32,IFERROR(1-1/V32,"N/A"),"") ->  | AB32: =IF('FEA___(MPG-2)'!$B32,Z32*AA32,"") -> 
A33: ='FEA___(MPG-2)'!A33 ->  | B33: ='FEA___(MPG-2)'!D33 ->  | D33: ='FEA___(MPG-2)'!F33 ->  | E33: ='FEA___(MPG-5)'!F33 ->  | F33: ='FEA___(MPG-5)'!I33 ->  | G33: =IF('FEA___(MPG-2)'!$B33,VLOOKUP(D33,VLLU,12,FALSE),"") ->  | H33: =IF('FEA___(MPG-2)'!$B33,IFERROR((G33/U33)^(1/5)-1,"N/A"),"") ->  | I33: =IF('FEA___(MPG-2)'!$B33,IFERROR(F33/G33,"N/A"),"") ->  | J33: =IF('FEA___(MPG-2)'!$B33,IFERROR((2*(1+H33))/(2+H33),"N/A"),"") ->  | K33: =IF('FEA___(MPG-2)'!$B33,IFERROR(I33*J33,"N/A"),"") ->  | L33: ='FEA___(MPG-5)'!L33 ->  | M33: =IF('FEA___(MPG-2)'!$B33,IFERROR(1-L33,"N/A"),"") ->  | N33: =IF('FEA___(MPG-2)'!$B33,IFERROR(M33*K33,"N/A"),"") ->  | O33: =IF('FEA___(MPG-2)'!$B33,IFERROR(IF(AB33<0,N33,N33+AB33),N33),"") ->  | T33: ='FEA___(MPG-4)'!F33 ->  | U33: =IF('FEA___(MPG-2)'!$B33,VLOOKUP(D33,VLLU,11,FALSE),"") ->  | V33: =IF('FEA___(MPG-2)'!$B33,IFERROR(T33/U33,"N/A"),"") ->  | W33: =IF('FEA___(MPG-2)'!$B33,VLOOKUP(D33,VLLU,8,FALSE),"") ->  | X33: =IF('FEA___(MPG-2)'!$B33,VLOOKUP(D33,VLLU,9,FALSE),"") ->  | Y33: =IF('FEA___(MPG-2)'!$B33,IFERROR((X33/W33)^(1/($AC$8-$W$9))-1,"N/A"),"") ->  | Z33: =IF('FEA___(MPG-2)'!$B33,IFERROR(Y33*V33,"N/A"),"") ->  | AA33: =IF('FEA___(MPG-2)'!$B33,IFERROR(1-1/V33,"N/A"),"") ->  | AB33: =IF('FEA___(MPG-2)'!$B33,Z33*AA33,"") -> 
A34: ='FEA___(MPG-2)'!A34 ->  | B34: ='FEA___(MPG-2)'!D34 ->  | D34: ='FEA___(MPG-2)'!F34 ->  | E34: ='FEA___(MPG-5)'!F34 ->  | F34: ='FEA___(MPG-5)'!I34 ->  | G34: =IF('FEA___(MPG-2)'!$B34,VLOOKUP(D34,VLLU,12,FALSE),"") ->  | H34: =IF('FEA___(MPG-2)'!$B34,IFERROR((G34/U34)^(1/5)-1,"N/A"),"") ->  | I34: =IF('FEA___(MPG-2)'!$B34,IFERROR(F34/G34,"N/A"),"") ->  | J34: =IF('FEA___(MPG-2)'!$B34,IFERROR((2*(1+H34))/(2+H34),"N/A"),"") ->  | K34: =IF('FEA___(MPG-2)'!$B34,IFERROR(I34*J34,"N/A"),"") ->  | L34: ='FEA___(MPG-5)'!L34 ->  | M34: =IF('FEA___(MPG-2)'!$B34,IFERROR(1-L34,"N/A"),"") ->  | N34: =IF('FEA___(MPG-2)'!$B34,IFERROR(M34*K34,"N/A"),"") ->  | O34: =IF('FEA___(MPG-2)'!$B34,IFERROR(IF(AB34<0,N34,N34+AB34),N34),"") ->  | T34: ='FEA___(MPG-4)'!F34 ->  | U34: =IF('FEA___(MPG-2)'!$B34,VLOOKUP(D34,VLLU,11,FALSE),"") ->  | V34: =IF('FEA___(MPG-2)'!$B34,IFERROR(T34/U34,"N/A"),"") ->  | W34: =IF('FEA___(MPG-2)'!$B34,VLOOKUP(D34,VLLU,8,FALSE),"") ->  | X34: =IF('FEA___(MPG-2)'!$B34,VLOOKUP(D34,VLLU,9,FALSE),"") ->  | Y34: =IF('FEA___(MPG-2)'!$B34,IFERROR((X34/W34)^(1/($AC$8-$W$9))-1,"N/A"),"") ->  | Z34: =IF('FEA___(MPG-2)'!$B34,IFERROR(Y34*V34,"N/A"),"") ->  | AA34: =IF('FEA___(MPG-2)'!$B34,IFERROR(1-1/V34,"N/A"),"") ->  | AB34: =IF('FEA___(MPG-2)'!$B34,Z34*AA34,"") -> 
A35: ='FEA___(MPG-2)'!A35 ->  | B35: ='FEA___(MPG-2)'!D35 ->  | D35: ='FEA___(MPG-2)'!F35 ->  | E35: ='FEA___(MPG-5)'!F35 ->  | F35: ='FEA___(MPG-5)'!I35 ->  | G35: =IF('FEA___(MPG-2)'!$B35,VLOOKUP(D35,VLLU,12,FALSE),"") ->  | H35: =IF('FEA___(MPG-2)'!$B35,IFERROR((G35/U35)^(1/5)-1,"N/A"),"") ->  | I35: =IF('FEA___(MPG-2)'!$B35,IFERROR(F35/G35,"N/A"),"") ->  | J35: =IF('FEA___(MPG-2)'!$B35,IFERROR((2*(1+H35))/(2+H35),"N/A"),"") ->  | K35: =IF('FEA___(MPG-2)'!$B35,IFERROR(I35*J35,"N/A"),"") ->  | L35: ='FEA___(MPG-5)'!L35 ->  | M35: =IF('FEA___(MPG-2)'!$B35,IFERROR(1-L35,"N/A"),"") ->  | N35: =IF('FEA___(MPG-2)'!$B35,IFERROR(M35*K35,"N/A"),"") ->  | O35: =IF('FEA___(MPG-2)'!$B35,IFERROR(IF(AB35<0,N35,N35+AB35),N35),"") ->  | T35: ='FEA___(MPG-4)'!F35 ->  | U35: =IF('FEA___(MPG-2)'!$B35,VLOOKUP(D35,VLLU,11,FALSE),"") ->  | V35: =IF('FEA___(MPG-2)'!$B35,IFERROR(T35/U35,"N/A"),"") ->  | W35: =IF('FEA___(MPG-2)'!$B35,VLOOKUP(D35,VLLU,8,FALSE),"") ->  | X35: =IF('FEA___(MPG-2)'!$B35,VLOOKUP(D35,VLLU,9,FALSE),"") ->  | Y35: =IF('FEA___(MPG-2)'!$B35,IFERROR((X35/W35)^(1/($AC$8-$W$9))-1,"N/A"),"") ->  | Z35: =IF('FEA___(MPG-2)'!$B35,IFERROR(Y35*V35,"N/A"),"") ->  | AA35: =IF('FEA___(MPG-2)'!$B35,IFERROR(1-1/V35,"N/A"),"") ->  | AB35: =IF('FEA___(MPG-2)'!$B35,Z35*AA35,"") -> 
A36: ='FEA___(MPG-2)'!A36 ->  | B36: ='FEA___(MPG-2)'!D36 ->  | D36: ='FEA___(MPG-2)'!F36 ->  | E36: ='FEA___(MPG-5)'!F36 ->  | F36: ='FEA___(MPG-5)'!I36 ->  | G36: =IF('FEA___(MPG-2)'!$B36,VLOOKUP(D36,VLLU,12,FALSE),"") ->  | H36: =IF('FEA___(MPG-2)'!$B36,IFERROR((G36/U36)^(1/5)-1,"N/A"),"") ->  | I36: =IF('FEA___(MPG-2)'!$B36,IFERROR(F36/G36,"N/A"),"") ->  | J36: =IF('FEA___(MPG-2)'!$B36,IFERROR((2*(1+H36))/(2+H36),"N/A"),"") ->  | K36: =IF('FEA___(MPG-2)'!$B36,IFERROR(I36*J36,"N/A"),"") ->  | L36: ='FEA___(MPG-5)'!L36 ->  | M36: =IF('FEA___(MPG-2)'!$B36,IFERROR(1-L36,"N/A"),"") ->  | N36: =IF('FEA___(MPG-2)'!$B36,IFERROR(M36*K36,"N/A"),"") ->  | O36: =IF('FEA___(MPG-2)'!$B36,IFERROR(IF(AB36<0,N36,N36+AB36),N36),"") ->  | T36: ='FEA___(MPG-4)'!F36 ->  | U36: =IF('FEA___(MPG-2)'!$B36,VLOOKUP(D36,VLLU,11,FALSE),"") ->  | V36: =IF('FEA___(MPG-2)'!$B36,IFERROR(T36/U36,"N/A"),"") ->  | W36: =IF('FEA___(MPG-2)'!$B36,VLOOKUP(D36,VLLU,8,FALSE),"") ->  | X36: =IF('FEA___(MPG-2)'!$B36,VLOOKUP(D36,VLLU,9,FALSE),"") ->  | Y36: =IF('FEA___(MPG-2)'!$B36,IFERROR((X36/W36)^(1/($AC$8-$W$9))-1,"N/A"),"") ->  | Z36: =IF('FEA___(MPG-2)'!$B36,IFERROR(Y36*V36,"N/A"),"") ->  | AA36: =IF('FEA___(MPG-2)'!$B36,IFERROR(1-1/V36,"N/A"),"") ->  | AB36: =IF('FEA___(MPG-2)'!$B36,Z36*AA36,"") -> 
A37: ='FEA___(MPG-2)'!A37 ->  | B37: ='FEA___(MPG-2)'!D37 ->  | D37: ='FEA___(MPG-2)'!F37 ->  | E37: ='FEA___(MPG-5)'!F37 ->  | F37: ='FEA___(MPG-5)'!I37 ->  | G37: =IF('FEA___(MPG-2)'!$B37,VLOOKUP(D37,VLLU,12,FALSE),"") ->  | H37: =IF('FEA___(MPG-2)'!$B37,IFERROR((G37/U37)^(1/5)-1,"N/A"),"") ->  | I37: =IF('FEA___(MPG-2)'!$B37,IFERROR(F37/G37,"N/A"),"") ->  | J37: =IF('FEA___(MPG-2)'!$B37,IFERROR((2*(1+H37))/(2+H37),"N/A"),"") ->  | K37: =IF('FEA___(MPG-2)'!$B37,IFERROR(I37*J37,"N/A"),"") ->  | L37: ='FEA___(MPG-5)'!L37 ->  | M37: =IF('FEA___(MPG-2)'!$B37,IFERROR(1-L37,"N/A"),"") ->  | N37: =IF('FEA___(MPG-2)'!$B37,IFERROR(M37*K37,"N/A"),"") ->  | O37: =IF('FEA___(MPG-2)'!$B37,IFERROR(IF(AB37<0,N37,N37+AB37),N37),"") ->  | T37: ='FEA___(MPG-4)'!F37 ->  | U37: =IF('FEA___(MPG-2)'!$B37,VLOOKUP(D37,VLLU,11,FALSE),"") ->  | V37: =IF('FEA___(MPG-2)'!$B37,IFERROR(T37/U37,"N/A"),"") ->  | W37: =IF('FEA___(MPG-2)'!$B37,VLOOKUP(D37,VLLU,8,FALSE),"") ->  | X37: =IF('FEA___(MPG-2)'!$B37,VLOOKUP(D37,VLLU,9,FALSE),"") ->  | Y37: =IF('FEA___(MPG-2)'!$B37,IFERROR((X37/W37)^(1/($AC$8-$W$9))-1,"N/A"),"") ->  | Z37: =IF('FEA___(MPG-2)'!$B37,IFERROR(Y37*V37,"N/A"),"") ->  | AA37: =IF('FEA___(MPG-2)'!$B37,IFERROR(1-1/V37,"N/A"),"") ->  | AB37: =IF('FEA___(MPG-2)'!$B37,Z37*AA37,"") -> 
A38: ='FEA___(MPG-2)'!A38 ->  | B38: ='FEA___(MPG-2)'!D38 ->  | D38: ='FEA___(MPG-2)'!F38 ->  | E38: ='FEA___(MPG-5)'!F38 ->  | F38: ='FEA___(MPG-5)'!I38 ->  | G38: =IF('FEA___(MPG-2)'!$B38,VLOOKUP(D38,VLLU,12,FALSE),"") ->  | H38: =IF('FEA___(MPG-2)'!$B38,IFERROR((G38/U38)^(1/5)-1,"N/A"),"") ->  | I38: =IF('FEA___(MPG-2)'!$B38,IFERROR(F38/G38,"N/A"),"") ->  | J38: =IF('FEA___(MPG-2)'!$B38,IFERROR((2*(1+H38))/(2+H38),"N/A"),"") ->  | K38: =IF('FEA___(MPG-2)'!$B38,IFERROR(I38*J38,"N/A"),"") ->  | L38: ='FEA___(MPG-5)'!L38 ->  | M38: =IF('FEA___(MPG-2)'!$B38,IFERROR(1-L38,"N/A"),"") ->  | N38: =IF('FEA___(MPG-2)'!$B38,IFERROR(M38*K38,"N/A"),"") ->  | O38: =IF('FEA___(MPG-2)'!$B38,IFERROR(IF(AB38<0,N38,N38+AB38),N38),"") ->  | T38: ='FEA___(MPG-4)'!F38 ->  | U38: =IF('FEA___(MPG-2)'!$B38,VLOOKUP(D38,VLLU,11,FALSE),"") ->  | V38: =IF('FEA___(MPG-2)'!$B38,IFERROR(T38/U38,"N/A"),"") ->  | W38: =IF('FEA___(MPG-2)'!$B38,VLOOKUP(D38,VLLU,8,FALSE),"") ->  | X38: =IF('FEA___(MPG-2)'!$B38,VLOOKUP(D38,VLLU,9,FALSE),"") ->  | Y38: =IF('FEA___(MPG-2)'!$B38,IFERROR((X38/W38)^(1/($AC$8-$W$9))-1,"N/A"),"") ->  | Z38: =IF('FEA___(MPG-2)'!$B38,IFERROR(Y38*V38,"N/A"),"") ->  | AA38: =IF('FEA___(MPG-2)'!$B38,IFERROR(1-1/V38,"N/A"),"") ->  | AB38: =IF('FEA___(MPG-2)'!$B38,Z38*AA38,"") -> 
A39: ='FEA___(MPG-2)'!A39 ->  | B39: ='FEA___(MPG-2)'!D39 ->  | D39: ='FEA___(MPG-2)'!F39 ->  | E39: ='FEA___(MPG-5)'!F39 ->  | F39: ='FEA___(MPG-5)'!I39 ->  | G39: =IF('FEA___(MPG-2)'!$B39,VLOOKUP(D39,VLLU,12,FALSE),"") ->  | H39: =IF('FEA___(MPG-2)'!$B39,IFERROR((G39/U39)^(1/5)-1,"N/A"),"") ->  | I39: =IF('FEA___(MPG-2)'!$B39,IFERROR(F39/G39,"N/A"),"") ->  | J39: =IF('FEA___(MPG-2)'!$B39,IFERROR((2*(1+H39))/(2+H39),"N/A"),"") ->  | K39: =IF('FEA___(MPG-2)'!$B39,IFERROR(I39*J39,"N/A"),"") ->  | L39: ='FEA___(MPG-5)'!L39 ->  | M39: =IF('FEA___(MPG-2)'!$B39,IFERROR(1-L39,"N/A"),"") ->  | N39: =IF('FEA___(MPG-2)'!$B39,IFERROR(M39*K39,"N/A"),"") ->  | O39: =IF('FEA___(MPG-2)'!$B39,IFERROR(IF(AB39<0,N39,N39+AB39),N39),"") ->  | T39: ='FEA___(MPG-4)'!F39 ->  | U39: =IF('FEA___(MPG-2)'!$B39,VLOOKUP(D39,VLLU,11,FALSE),"") ->  | V39: =IF('FEA___(MPG-2)'!$B39,IFERROR(T39/U39,"N/A"),"") ->  | W39: =IF('FEA___(MPG-2)'!$B39,VLOOKUP(D39,VLLU,8,FALSE),"") ->  | X39: =IF('FEA___(MPG-2)'!$B39,VLOOKUP(D39,VLLU,9,FALSE),"") ->  | Y39: =IF('FEA___(MPG-2)'!$B39,IFERROR((X39/W39)^(1/($AC$8-$W$9))-1,"N/A"),"") ->  | Z39: =IF('FEA___(MPG-2)'!$B39,IFERROR(Y39*V39,"N/A"),"") ->  | AA39: =IF('FEA___(MPG-2)'!$B39,IFERROR(1-1/V39,"N/A"),"") ->  | AB39: =IF('FEA___(MPG-2)'!$B39,Z39*AA39,"") -> 
A40: ='FEA___(MPG-2)'!A40 ->  | B40: ='FEA___(MPG-2)'!D40 ->  | D40: ='FEA___(MPG-2)'!F40 ->  | E40: ='FEA___(MPG-5)'!F40 ->  | F40: ='FEA___(MPG-5)'!I40 ->  | G40: =IF('FEA___(MPG-2)'!$B40,VLOOKUP(D40,VLLU,12,FALSE),"") ->  | H40: =IF('FEA___(MPG-2)'!$B40,IFERROR((G40/U40)^(1/5)-1,"N/A"),"") ->  | I40: =IF('FEA___(MPG-2)'!$B40,IFERROR(F40/G40,"N/A"),"") ->  | J40: =IF('FEA___(MPG-2)'!$B40,IFERROR((2*(1+H40))/(2+H40),"N/A"),"") ->  | K40: =IF('FEA___(MPG-2)'!$B40,IFERROR(I40*J40,"N/A"),"") ->  | L40: ='FEA___(MPG-5)'!L40 ->  | M40: =IF('FEA___(MPG-2)'!$B40,IFERROR(1-L40,"N/A"),"") ->  | N40: =IF('FEA___(MPG-2)'!$B40,IFERROR(M40*K40,"N/A"),"") ->  | O40: =IF('FEA___(MPG-2)'!$B40,IFERROR(IF(AB40<0,N40,N40+AB40),N40),"") ->  | T40: ='FEA___(MPG-4)'!F40 ->  | U40: =IF('FEA___(MPG-2)'!$B40,VLOOKUP(D40,VLLU,11,FALSE),"") ->  | V40: =IF('FEA___(MPG-2)'!$B40,IFERROR(T40/U40,"N/A"),"") ->  | W40: =IF('FEA___(MPG-2)'!$B40,VLOOKUP(D40,VLLU,8,FALSE),"") ->  | X40: =IF('FEA___(MPG-2)'!$B40,VLOOKUP(D40,VLLU,9,FALSE),"") ->  | Y40: =IF('FEA___(MPG-2)'!$B40,IFERROR((X40/W40)^(1/($AC$8-$W$9))-1,"N/A"),"") ->  | Z40: =IF('FEA___(MPG-2)'!$B40,IFERROR(Y40*V40,"N/A"),"") ->  | AA40: =IF('FEA___(MPG-2)'!$B40,IFERROR(1-1/V40,"N/A"),"") ->  | AB40: =IF('FEA___(MPG-2)'!$B40,Z40*AA40,"") -> 
A41: ='FEA___(MPG-2)'!A41 ->  | B41: ='FEA___(MPG-2)'!D41 ->  | D41: ='FEA___(MPG-2)'!F41 ->  | E41: ='FEA___(MPG-5)'!F41 ->  | F41: ='FEA___(MPG-5)'!I41 ->  | G41: =IF('FEA___(MPG-2)'!$B41,VLOOKUP(D41,VLLU,12,FALSE),"") ->  | H41: =IF('FEA___(MPG-2)'!$B41,IFERROR((G41/U41)^(1/5)-1,"N/A"),"") ->  | I41: =IF('FEA___(MPG-2)'!$B41,IFERROR(F41/G41,"N/A"),"") ->  | J41: =IF('FEA___(MPG-2)'!$B41,IFERROR((2*(1+H41))/(2+H41),"N/A"),"") ->  | K41: =IF('FEA___(MPG-2)'!$B41,IFERROR(I41*J41,"N/A"),"") ->  | L41: ='FEA___(MPG-5)'!L41 ->  | M41: =IF('FEA___(MPG-2)'!$B41,IFERROR(1-L41,"N/A"),"") ->  | N41: =IF('FEA___(MPG-2)'!$B41,IFERROR(M41*K41,"N/A"),"") ->  | O41: =IF('FEA___(MPG-2)'!$B41,IFERROR(IF(AB41<0,N41,N41+AB41),N41),"") ->  | T41: ='FEA___(MPG-4)'!F41 ->  | U41: =IF('FEA___(MPG-2)'!$B41,VLOOKUP(D41,VLLU,11,FALSE),"") ->  | V41: =IF('FEA___(MPG-2)'!$B41,IFERROR(T41/U41,"N/A"),"") ->  | W41: =IF('FEA___(MPG-2)'!$B41,VLOOKUP(D41,VLLU,8,FALSE),"") ->  | X41: =IF('FEA___(MPG-2)'!$B41,VLOOKUP(D41,VLLU,9,FALSE),"") ->  | Y41: =IF('FEA___(MPG-2)'!$B41,IFERROR((X41/W41)^(1/($AC$8-$W$9))-1,"N/A"),"") ->  | Z41: =IF('FEA___(MPG-2)'!$B41,IFERROR(Y41*V41,"N/A"),"") ->  | AA41: =IF('FEA___(MPG-2)'!$B41,IFERROR(1-1/V41,"N/A"),"") ->  | AB41: =IF('FEA___(MPG-2)'!$B41,Z41*AA41,"") -> 
A42: ='FEA___(MPG-2)'!A42 ->  | B42: ='FEA___(MPG-2)'!D42 ->  | D42: ='FEA___(MPG-2)'!F42 ->  | E42: ='FEA___(MPG-5)'!F42 ->  | F42: ='FEA___(MPG-5)'!I42 ->  | G42: =IF('FEA___(MPG-2)'!$B42,VLOOKUP(D42,VLLU,12,FALSE),"") ->  | H42: =IF('FEA___(MPG-2)'!$B42,IFERROR((G42/U42)^(1/5)-1,"N/A"),"") ->  | I42: =IF('FEA___(MPG-2)'!$B42,IFERROR(F42/G42,"N/A"),"") ->  | J42: =IF('FEA___(MPG-2)'!$B42,IFERROR((2*(1+H42))/(2+H42),"N/A"),"") ->  | K42: =IF('FEA___(MPG-2)'!$B42,IFERROR(I42*J42,"N/A"),"") ->  | L42: ='FEA___(MPG-5)'!L42 ->  | M42: =IF('FEA___(MPG-2)'!$B42,IFERROR(1-L42,"N/A"),"") ->  | N42: =IF('FEA___(MPG-2)'!$B42,IFERROR(M42*K42,"N/A"),"") ->  | O42: =IF('FEA___(MPG-2)'!$B42,IFERROR(IF(AB42<0,N42,N42+AB42),N42),"") ->  | T42: ='FEA___(MPG-4)'!F42 ->  | U42: =IF('FEA___(MPG-2)'!$B42,VLOOKUP(D42,VLLU,11,FALSE),"") ->  | V42: =IF('FEA___(MPG-2)'!$B42,IFERROR(T42/U42,"N/A"),"") ->  | W42: =IF('FEA___(MPG-2)'!$B42,VLOOKUP(D42,VLLU,8,FALSE),"") ->  | X42: =IF('FEA___(MPG-2)'!$B42,VLOOKUP(D42,VLLU,9,FALSE),"") ->  | Y42: =IF('FEA___(MPG-2)'!$B42,IFERROR((X42/W42)^(1/($AC$8-$W$9))-1,"N/A"),"") ->  | Z42: =IF('FEA___(MPG-2)'!$B42,IFERROR(Y42*V42,"N/A"),"") ->  | AA42: =IF('FEA___(MPG-2)'!$B42,IFERROR(1-1/V42,"N/A"),"") ->  | AB42: =IF('FEA___(MPG-2)'!$B42,Z42*AA42,"") -> 
A43: ='FEA___(MPG-2)'!A43 ->  | B43: ='FEA___(MPG-2)'!D43 ->  | D43: ='FEA___(MPG-2)'!F43 ->  | E43: ='FEA___(MPG-5)'!F43 ->  | F43: ='FEA___(MPG-5)'!I43 ->  | G43: =IF('FEA___(MPG-2)'!$B43,VLOOKUP(D43,VLLU,12,FALSE),"") ->  | H43: =IF('FEA___(MPG-2)'!$B43,IFERROR((G43/U43)^(1/5)-1,"N/A"),"") ->  | I43: =IF('FEA___(MPG-2)'!$B43,IFERROR(F43/G43,"N/A"),"") ->  | J43: =IF('FEA___(MPG-2)'!$B43,IFERROR((2*(1+H43))/(2+H43),"N/A"),"") ->  | K43: =IF('FEA___(MPG-2)'!$B43,IFERROR(I43*J43,"N/A"),"") ->  | L43: ='FEA___(MPG-5)'!L43 ->  | M43: =IF('FEA___(MPG-2)'!$B43,IFERROR(1-L43,"N/A"),"") ->  | N43: =IF('FEA___(MPG-2)'!$B43,IFERROR(M43*K43,"N/A"),"") ->  | O43: =IF('FEA___(MPG-2)'!$B43,IFERROR(IF(AB43<0,N43,N43+AB43),N43),"") ->  | T43: ='FEA___(MPG-4)'!F43 ->  | U43: =IF('FEA___(MPG-2)'!$B43,VLOOKUP(D43,VLLU,11,FALSE),"") ->  | V43: =IF('FEA___(MPG-2)'!$B43,IFERROR(T43/U43,"N/A"),"") ->  | W43: =IF('FEA___(MPG-2)'!$B43,VLOOKUP(D43,VLLU,8,FALSE),"") ->  | X43: =IF('FEA___(MPG-2)'!$B43,VLOOKUP(D43,VLLU,9,FALSE),"") ->  | Y43: =IF('FEA___(MPG-2)'!$B43,IFERROR((X43/W43)^(1/($AC$8-$W$9))-1,"N/A"),"") ->  | Z43: =IF('FEA___(MPG-2)'!$B43,IFERROR(Y43*V43,"N/A"),"") ->  | AA43: =IF('FEA___(MPG-2)'!$B43,IFERROR(1-1/V43,"N/A"),"") ->  | AB43: =IF('FEA___(MPG-2)'!$B43,Z43*AA43,"") -> 
A44: ='FEA___(MPG-2)'!A44 ->  | B44: ='FEA___(MPG-2)'!D44 ->  | D44: ='FEA___(MPG-2)'!F44 ->  | E44: ='FEA___(MPG-5)'!F44 ->  | F44: ='FEA___(MPG-5)'!I44 ->  | G44: =IF('FEA___(MPG-2)'!$B44,VLOOKUP(D44,VLLU,12,FALSE),"") ->  | H44: =IF('FEA___(MPG-2)'!$B44,IFERROR((G44/U44)^(1/5)-1,"N/A"),"") ->  | I44: =IF('FEA___(MPG-2)'!$B44,IFERROR(F44/G44,"N/A"),"") ->  | J44: =IF('FEA___(MPG-2)'!$B44,IFERROR((2*(1+H44))/(2+H44),"N/A"),"") ->  | K44: =IF('FEA___(MPG-2)'!$B44,IFERROR(I44*J44,"N/A"),"") ->  | L44: ='FEA___(MPG-5)'!L44 ->  | M44: =IF('FEA___(MPG-2)'!$B44,IFERROR(1-L44,"N/A"),"") ->  | N44: =IF('FEA___(MPG-2)'!$B44,IFERROR(M44*K44,"N/A"),"") ->  | O44: =IF('FEA___(MPG-2)'!$B44,IFERROR(IF(AB44<0,N44,N44+AB44),N44),"") ->  | T44: ='FEA___(MPG-4)'!F44 ->  | U44: =IF('FEA___(MPG-2)'!$B44,VLOOKUP(D44,VLLU,11,FALSE),"") ->  | V44: =IF('FEA___(MPG-2)'!$B44,IFERROR(T44/U44,"N/A"),"") ->  | W44: =IF('FEA___(MPG-2)'!$B44,VLOOKUP(D44,VLLU,8,FALSE),"") ->  | X44: =IF('FEA___(MPG-2)'!$B44,VLOOKUP(D44,VLLU,9,FALSE),"") ->  | Y44: =IF('FEA___(MPG-2)'!$B44,IFERROR((X44/W44)^(1/($AC$8-$W$9))-1,"N/A"),"") ->  | Z44: =IF('FEA___(MPG-2)'!$B44,IFERROR(Y44*V44,"N/A"),"") ->  | AA44: =IF('FEA___(MPG-2)'!$B44,IFERROR(1-1/V44,"N/A"),"") ->  | AB44: =IF('FEA___(MPG-2)'!$B44,Z44*AA44,"") -> 
A45: ='FEA___(MPG-2)'!A45 ->  | B45: ='FEA___(MPG-2)'!D45 ->  | D45: ='FEA___(MPG-2)'!F45 ->  | E45: ='FEA___(MPG-5)'!F45 ->  | F45: ='FEA___(MPG-5)'!I45 ->  | G45: =IF('FEA___(MPG-2)'!$B45,VLOOKUP(D45,VLLU,12,FALSE),"") ->  | H45: =IF('FEA___(MPG-2)'!$B45,IFERROR((G45/U45)^(1/5)-1,"N/A"),"") ->  | I45: =IF('FEA___(MPG-2)'!$B45,IFERROR(F45/G45,"N/A"),"") ->  | J45: =IF('FEA___(MPG-2)'!$B45,IFERROR((2*(1+H45))/(2+H45),"N/A"),"") ->  | K45: =IF('FEA___(MPG-2)'!$B45,IFERROR(I45*J45,"N/A"),"") ->  | L45: ='FEA___(MPG-5)'!L45 ->  | M45: =IF('FEA___(MPG-2)'!$B45,IFERROR(1-L45,"N/A"),"") ->  | N45: =IF('FEA___(MPG-2)'!$B45,IFERROR(M45*K45,"N/A"),"") ->  | O45: =IF('FEA___(MPG-2)'!$B45,IFERROR(IF(AB45<0,N45,N45+AB45),N45),"") ->  | T45: ='FEA___(MPG-4)'!F45 ->  | U45: =IF('FEA___(MPG-2)'!$B45,VLOOKUP(D45,VLLU,11,FALSE),"") ->  | V45: =IF('FEA___(MPG-2)'!$B45,IFERROR(T45/U45,"N/A"),"") ->  | W45: =IF('FEA___(MPG-2)'!$B45,VLOOKUP(D45,VLLU,8,FALSE),"") ->  | X45: =IF('FEA___(MPG-2)'!$B45,VLOOKUP(D45,VLLU,9,FALSE),"") ->  | Y45: =IF('FEA___(MPG-2)'!$B45,IFERROR((X45/W45)^(1/($AC$8-$W$9))-1,"N/A"),"") ->  | Z45: =IF('FEA___(MPG-2)'!$B45,IFERROR(Y45*V45,"N/A"),"") ->  | AA45: =IF('FEA___(MPG-2)'!$B45,IFERROR(1-1/V45,"N/A"),"") ->  | AB45: =IF('FEA___(MPG-2)'!$B45,Z45*AA45,"") -> 
A46: ='FEA___(MPG-2)'!A46 ->  | B46: ='FEA___(MPG-2)'!D46 ->  | D46: ='FEA___(MPG-2)'!F46 ->  | E46: ='FEA___(MPG-5)'!F46 ->  | F46: ='FEA___(MPG-5)'!I46 ->  | G46: =IF('FEA___(MPG-2)'!$B46,VLOOKUP(D46,VLLU,12,FALSE),"") ->  | H46: =IF('FEA___(MPG-2)'!$B46,IFERROR((G46/U46)^(1/5)-1,"N/A"),"") ->  | I46: =IF('FEA___(MPG-2)'!$B46,IFERROR(F46/G46,"N/A"),"") ->  | J46: =IF('FEA___(MPG-2)'!$B46,IFERROR((2*(1+H46))/(2+H46),"N/A"),"") ->  | K46: =IF('FEA___(MPG-2)'!$B46,IFERROR(I46*J46,"N/A"),"") ->  | L46: ='FEA___(MPG-5)'!L46 ->  | M46: =IF('FEA___(MPG-2)'!$B46,IFERROR(1-L46,"N/A"),"") ->  | N46: =IF('FEA___(MPG-2)'!$B46,IFERROR(M46*K46,"N/A"),"") ->  | O46: =IF('FEA___(MPG-2)'!$B46,IFERROR(IF(AB46<0,N46,N46+AB46),N46),"") ->  | T46: ='FEA___(MPG-4)'!F46 ->  | U46: =IF('FEA___(MPG-2)'!$B46,VLOOKUP(D46,VLLU,11,FALSE),"") ->  | V46: =IF('FEA___(MPG-2)'!$B46,IFERROR(T46/U46,"N/A"),"") ->  | W46: =IF('FEA___(MPG-2)'!$B46,VLOOKUP(D46,VLLU,8,FALSE),"") ->  | X46: =IF('FEA___(MPG-2)'!$B46,VLOOKUP(D46,VLLU,9,FALSE),"") ->  | Y46: =IF('FEA___(MPG-2)'!$B46,IFERROR((X46/W46)^(1/($AC$8-$W$9))-1,"N/A"),"") ->  | Z46: =IF('FEA___(MPG-2)'!$B46,IFERROR(Y46*V46,"N/A"),"") ->  | AA46: =IF('FEA___(MPG-2)'!$B46,IFERROR(1-1/V46,"N/A"),"") ->  | AB46: =IF('FEA___(MPG-2)'!$B46,Z46*AA46,"") -> 
A47: ='FEA___(MPG-2)'!A47 ->  | B47: ='FEA___(MPG-2)'!D47 ->  | D47: ='FEA___(MPG-2)'!F47 ->  | E47: ='FEA___(MPG-5)'!F47 ->  | F47: ='FEA___(MPG-5)'!I47 ->  | G47: =IF('FEA___(MPG-2)'!$B47,VLOOKUP(D47,VLLU,12,FALSE),"") ->  | H47: =IF('FEA___(MPG-2)'!$B47,IFERROR((G47/U47)^(1/5)-1,"N/A"),"") ->  | I47: =IF('FEA___(MPG-2)'!$B47,IFERROR(F47/G47,"N/A"),"") ->  | J47: =IF('FEA___(MPG-2)'!$B47,IFERROR((2*(1+H47))/(2+H47),"N/A"),"") ->  | K47: =IF('FEA___(MPG-2)'!$B47,IFERROR(I47*J47,"N/A"),"") ->  | L47: ='FEA___(MPG-5)'!L47 ->  | M47: =IF('FEA___(MPG-2)'!$B47,IFERROR(1-L47,"N/A"),"") ->  | N47: =IF('FEA___(MPG-2)'!$B47,IFERROR(M47*K47,"N/A"),"") ->  | O47: =IF('FEA___(MPG-2)'!$B47,IFERROR(IF(AB47<0,N47,N47+AB47),N47),"") ->  | T47: ='FEA___(MPG-4)'!F47 ->  | U47: =IF('FEA___(MPG-2)'!$B47,VLOOKUP(D47,VLLU,11,FALSE),"") ->  | V47: =IF('FEA___(MPG-2)'!$B47,IFERROR(T47/U47,"N/A"),"") ->  | W47: =IF('FEA___(MPG-2)'!$B47,VLOOKUP(D47,VLLU,8,FALSE),"") ->  | X47: =IF('FEA___(MPG-2)'!$B47,VLOOKUP(D47,VLLU,9,FALSE),"") ->  | Y47: =IF('FEA___(MPG-2)'!$B47,IFERROR((X47/W47)^(1/($AC$8-$W$9))-1,"N/A"),"") ->  | Z47: =IF('FEA___(MPG-2)'!$B47,IFERROR(Y47*V47,"N/A"),"") ->  | AA47: =IF('FEA___(MPG-2)'!$B47,IFERROR(1-1/V47,"N/A"),"") ->  | AB47: =IF('FEA___(MPG-2)'!$B47,Z47*AA47,"") -> 
A48: ='FEA___(MPG-2)'!A48 ->  | B48: ='FEA___(MPG-2)'!D48 ->  | D48: ='FEA___(MPG-2)'!F48 ->  | E48: ='FEA___(MPG-5)'!F48 ->  | F48: ='FEA___(MPG-5)'!I48 ->  | G48: =IF('FEA___(MPG-2)'!$B48,VLOOKUP(D48,VLLU,12,FALSE),"") ->  | H48: =IF('FEA___(MPG-2)'!$B48,IFERROR((G48/U48)^(1/5)-1,"N/A"),"") ->  | I48: =IF('FEA___(MPG-2)'!$B48,IFERROR(F48/G48,"N/A"),"") ->  | J48: =IF('FEA___(MPG-2)'!$B48,IFERROR((2*(1+H48))/(2+H48),"N/A"),"") ->  | K48: =IF('FEA___(MPG-2)'!$B48,IFERROR(I48*J48,"N/A"),"") ->  | L48: ='FEA___(MPG-5)'!L48 ->  | M48: =IF('FEA___(MPG-2)'!$B48,IFERROR(1-L48,"N/A"),"") ->  | N48: =IF('FEA___(MPG-2)'!$B48,IFERROR(M48*K48,"N/A"),"") ->  | O48: =IF('FEA___(MPG-2)'!$B48,IFERROR(IF(AB48<0,N48,N48+AB48),N48),"") ->  | T48: ='FEA___(MPG-4)'!F48 ->  | U48: =IF('FEA___(MPG-2)'!$B48,VLOOKUP(D48,VLLU,11,FALSE),"") ->  | V48: =IF('FEA___(MPG-2)'!$B48,IFERROR(T48/U48,"N/A"),"") ->  | W48: =IF('FEA___(MPG-2)'!$B48,VLOOKUP(D48,VLLU,8,FALSE),"") ->  | X48: =IF('FEA___(MPG-2)'!$B48,VLOOKUP(D48,VLLU,9,FALSE),"") ->  | Y48: =IF('FEA___(MPG-2)'!$B48,IFERROR((X48/W48)^(1/($AC$8-$W$9))-1,"N/A"),"") ->  | Z48: =IF('FEA___(MPG-2)'!$B48,IFERROR(Y48*V48,"N/A"),"") ->  | AA48: =IF('FEA___(MPG-2)'!$B48,IFERROR(1-1/V48,"N/A"),"") ->  | AB48: =IF('FEA___(MPG-2)'!$B48,Z48*AA48,"") -> 
A49: ='FEA___(MPG-2)'!A49 ->  | B49: ='FEA___(MPG-2)'!D49 ->  | D49: ='FEA___(MPG-2)'!F49 ->  | E49: ='FEA___(MPG-5)'!F49 ->  | F49: ='FEA___(MPG-5)'!I49 ->  | G49: =IF('FEA___(MPG-2)'!$B49,VLOOKUP(D49,VLLU,12,FALSE),"") ->  | H49: =IF('FEA___(MPG-2)'!$B49,IFERROR((G49/U49)^(1/5)-1,"N/A"),"") ->  | I49: =IF('FEA___(MPG-2)'!$B49,IFERROR(F49/G49,"N/A"),"") ->  | J49: =IF('FEA___(MPG-2)'!$B49,IFERROR((2*(1+H49))/(2+H49),"N/A"),"") ->  | K49: =IF('FEA___(MPG-2)'!$B49,IFERROR(I49*J49,"N/A"),"") ->  | L49: ='FEA___(MPG-5)'!L49 ->  | M49: =IF('FEA___(MPG-2)'!$B49,IFERROR(1-L49,"N/A"),"") ->  | N49: =IF('FEA___(MPG-2)'!$B49,IFERROR(M49*K49,"N/A"),"") ->  | O49: =IF('FEA___(MPG-2)'!$B49,IFERROR(IF(AB49<0,N49,N49+AB49),N49),"") ->  | T49: ='FEA___(MPG-4)'!F49 ->  | U49: =IF('FEA___(MPG-2)'!$B49,VLOOKUP(D49,VLLU,11,FALSE),"") ->  | V49: =IF('FEA___(MPG-2)'!$B49,IFERROR(T49/U49,"N/A"),"") ->  | W49: =IF('FEA___(MPG-2)'!$B49,VLOOKUP(D49,VLLU,8,FALSE),"") ->  | X49: =IF('FEA___(MPG-2)'!$B49,VLOOKUP(D49,VLLU,9,FALSE),"") ->  | Y49: =IF('FEA___(MPG-2)'!$B49,IFERROR((X49/W49)^(1/($AC$8-$W$9))-1,"N/A"),"") ->  | Z49: =IF('FEA___(MPG-2)'!$B49,IFERROR(Y49*V49,"N/A"),"") ->  | AA49: =IF('FEA___(MPG-2)'!$B49,IFERROR(1-1/V49,"N/A"),"") ->  | AB49: =IF('FEA___(MPG-2)'!$B49,Z49*AA49,"") -> 
A50: ='FEA___(MPG-2)'!A50 ->  | B50: ='FEA___(MPG-2)'!D50 ->  | D50: ='FEA___(MPG-2)'!F50 ->  | E50: ='FEA___(MPG-5)'!F50 ->  | F50: ='FEA___(MPG-5)'!I50 ->  | G50: =IF('FEA___(MPG-2)'!$B50,VLOOKUP(D50,VLLU,12,FALSE),"") ->  | H50: =IF('FEA___(MPG-2)'!$B50,IFERROR((G50/U50)^(1/5)-1,"N/A"),"") ->  | I50: =IF('FEA___(MPG-2)'!$B50,IFERROR(F50/G50,"N/A"),"") ->  | J50: =IF('FEA___(MPG-2)'!$B50,IFERROR((2*(1+H50))/(2+H50),"N/A"),"") ->  | K50: =IF('FEA___(MPG-2)'!$B50,IFERROR(I50*J50,"N/A"),"") ->  | L50: ='FEA___(MPG-5)'!L50 ->  | M50: =IF('FEA___(MPG-2)'!$B50,IFERROR(1-L50,"N/A"),"") ->  | N50: =IF('FEA___(MPG-2)'!$B50,IFERROR(M50*K50,"N/A"),"") ->  | O50: =IF('FEA___(MPG-2)'!$B50,IFERROR(IF(AB50<0,N50,N50+AB50),N50),"") ->  | T50: ='FEA___(MPG-4)'!F50 ->  | U50: =IF('FEA___(MPG-2)'!$B50,VLOOKUP(D50,VLLU,11,FALSE),"") ->  | V50: =IF('FEA___(MPG-2)'!$B50,IFERROR(T50/U50,"N/A"),"") ->  | W50: =IF('FEA___(MPG-2)'!$B50,VLOOKUP(D50,VLLU,8,FALSE),"") ->  | X50: =IF('FEA___(MPG-2)'!$B50,VLOOKUP(D50,VLLU,9,FALSE),"") ->  | Y50: =IF('FEA___(MPG-2)'!$B50,IFERROR((X50/W50)^(1/($AC$8-$W$9))-1,"N/A"),"") ->  | Z50: =IF('FEA___(MPG-2)'!$B50,IFERROR(Y50*V50,"N/A"),"") ->  | AA50: =IF('FEA___(MPG-2)'!$B50,IFERROR(1-1/V50,"N/A"),"") ->  | AB50: =IF('FEA___(MPG-2)'!$B50,Z50*AA50,"") -> 
A51: ='FEA___(MPG-2)'!A51 ->  | B51: ='FEA___(MPG-2)'!D51 ->  | D51: ='FEA___(MPG-2)'!F51 ->  | E51: ='FEA___(MPG-5)'!F51 ->  | F51: ='FEA___(MPG-5)'!I51 ->  | G51: =IF('FEA___(MPG-2)'!$B51,VLOOKUP(D51,VLLU,12,FALSE),"") ->  | H51: =IF('FEA___(MPG-2)'!$B51,IFERROR((G51/U51)^(1/5)-1,"N/A"),"") ->  | I51: =IF('FEA___(MPG-2)'!$B51,IFERROR(F51/G51,"N/A"),"") ->  | J51: =IF('FEA___(MPG-2)'!$B51,IFERROR((2*(1+H51))/(2+H51),"N/A"),"") ->  | K51: =IF('FEA___(MPG-2)'!$B51,IFERROR(I51*J51,"N/A"),"") ->  | L51: ='FEA___(MPG-5)'!L51 ->  | M51: =IF('FEA___(MPG-2)'!$B51,IFERROR(1-L51,"N/A"),"") ->  | N51: =IF('FEA___(MPG-2)'!$B51,IFERROR(M51*K51,"N/A"),"") ->  | O51: =IF('FEA___(MPG-2)'!$B51,IFERROR(IF(AB51<0,N51,N51+AB51),N51),"") ->  | T51: ='FEA___(MPG-4)'!F51 ->  | U51: =IF('FEA___(MPG-2)'!$B51,VLOOKUP(D51,VLLU,11,FALSE),"") ->  | V51: =IF('FEA___(MPG-2)'!$B51,IFERROR(T51/U51,"N/A"),"") ->  | W51: =IF('FEA___(MPG-2)'!$B51,VLOOKUP(D51,VLLU,8,FALSE),"") ->  | X51: =IF('FEA___(MPG-2)'!$B51,VLOOKUP(D51,VLLU,9,FALSE),"") ->  | Y51: =IF('FEA___(MPG-2)'!$B51,IFERROR((X51/W51)^(1/($AC$8-$W$9))-1,"N/A"),"") ->  | Z51: =IF('FEA___(MPG-2)'!$B51,IFERROR(Y51*V51,"N/A"),"") ->  | AA51: =IF('FEA___(MPG-2)'!$B51,IFERROR(1-1/V51,"N/A"),"") ->  | AB51: =IF('FEA___(MPG-2)'!$B51,Z51*AA51,"") -> 
A52: ='FEA___(MPG-2)'!A52 ->  | B52: ='FEA___(MPG-2)'!D52 ->  | D52: ='FEA___(MPG-2)'!F52 ->  | E52: ='FEA___(MPG-5)'!F52 ->  | F52: ='FEA___(MPG-5)'!I52 ->  | G52: =IF('FEA___(MPG-2)'!$B52,VLOOKUP(D52,VLLU,12,FALSE),"") ->  | H52: =IF('FEA___(MPG-2)'!$B52,IFERROR((G52/U52)^(1/5)-1,"N/A"),"") ->  | I52: =IF('FEA___(MPG-2)'!$B52,IFERROR(F52/G52,"N/A"),"") ->  | J52: =IF('FEA___(MPG-2)'!$B52,IFERROR((2*(1+H52))/(2+H52),"N/A"),"") ->  | K52: =IF('FEA___(MPG-2)'!$B52,IFERROR(I52*J52,"N/A"),"") ->  | L52: ='FEA___(MPG-5)'!L52 ->  | M52: =IF('FEA___(MPG-2)'!$B52,IFERROR(1-L52,"N/A"),"") ->  | N52: =IF('FEA___(MPG-2)'!$B52,IFERROR(M52*K52,"N/A"),"") ->  | O52: =IF('FEA___(MPG-2)'!$B52,IFERROR(IF(AB52<0,N52,N52+AB52),N52),"") ->  | T52: ='FEA___(MPG-4)'!F52 ->  | U52: =IF('FEA___(MPG-2)'!$B52,VLOOKUP(D52,VLLU,11,FALSE),"") ->  | V52: =IF('FEA___(MPG-2)'!$B52,IFERROR(T52/U52,"N/A"),"") ->  | W52: =IF('FEA___(MPG-2)'!$B52,VLOOKUP(D52,VLLU,8,FALSE),"") ->  | X52: =IF('FEA___(MPG-2)'!$B52,VLOOKUP(D52,VLLU,9,FALSE),"") ->  | Y52: =IF('FEA___(MPG-2)'!$B52,IFERROR((X52/W52)^(1/($AC$8-$W$9))-1,"N/A"),"") ->  | Z52: =IF('FEA___(MPG-2)'!$B52,IFERROR(Y52*V52,"N/A"),"") ->  | AA52: =IF('FEA___(MPG-2)'!$B52,IFERROR(1-1/V52,"N/A"),"") ->  | AB52: =IF('FEA___(MPG-2)'!$B52,Z52*AA52,"") -> 
A53: ='FEA___(MPG-2)'!A53 ->  | B53: ='FEA___(MPG-2)'!D53 ->  | D53: ='FEA___(MPG-2)'!F53 ->  | E53: ='FEA___(MPG-5)'!F53 ->  | F53: ='FEA___(MPG-5)'!I53 ->  | G53: =IF('FEA___(MPG-2)'!$B53,VLOOKUP(D53,VLLU,12,FALSE),"") ->  | H53: =IF('FEA___(MPG-2)'!$B53,IFERROR((G53/U53)^(1/5)-1,"N/A"),"") ->  | I53: =IF('FEA___(MPG-2)'!$B53,IFERROR(F53/G53,"N/A"),"") ->  | J53: =IF('FEA___(MPG-2)'!$B53,IFERROR((2*(1+H53))/(2+H53),"N/A"),"") ->  | K53: =IF('FEA___(MPG-2)'!$B53,IFERROR(I53*J53,"N/A"),"") ->  | L53: ='FEA___(MPG-5)'!L53 ->  | M53: =IF('FEA___(MPG-2)'!$B53,IFERROR(1-L53,"N/A"),"") ->  | N53: =IF('FEA___(MPG-2)'!$B53,IFERROR(M53*K53,"N/A"),"") ->  | O53: =IF('FEA___(MPG-2)'!$B53,IFERROR(IF(AB53<0,N53,N53+AB53),N53),"") ->  | T53: ='FEA___(MPG-4)'!F53 ->  | U53: =IF('FEA___(MPG-2)'!$B53,VLOOKUP(D53,VLLU,11,FALSE),"") ->  | V53: =IF('FEA___(MPG-2)'!$B53,IFERROR(T53/U53,"N/A"),"") ->  | W53: =IF('FEA___(MPG-2)'!$B53,VLOOKUP(D53,VLLU,8,FALSE),"") ->  | X53: =IF('FEA___(MPG-2)'!$B53,VLOOKUP(D53,VLLU,9,FALSE),"") ->  | Y53: =IF('FEA___(MPG-2)'!$B53,IFERROR((X53/W53)^(1/($AC$8-$W$9))-1,"N/A"),"") ->  | Z53: =IF('FEA___(MPG-2)'!$B53,IFERROR(Y53*V53,"N/A"),"") ->  | AA53: =IF('FEA___(MPG-2)'!$B53,IFERROR(1-1/V53,"N/A"),"") ->  | AB53: =IF('FEA___(MPG-2)'!$B53,Z53*AA53,"") -> 
A54: ='FEA___(MPG-2)'!A54 ->  | B54: ='FEA___(MPG-2)'!D54 ->  | D54: ='FEA___(MPG-2)'!F54 ->  | E54: ='FEA___(MPG-5)'!F54 ->  | F54: ='FEA___(MPG-5)'!I54 ->  | G54: =IF('FEA___(MPG-2)'!$B54,VLOOKUP(D54,VLLU,12,FALSE),"") ->  | H54: =IF('FEA___(MPG-2)'!$B54,IFERROR((G54/U54)^(1/5)-1,"N/A"),"") ->  | I54: =IF('FEA___(MPG-2)'!$B54,IFERROR(F54/G54,"N/A"),"") ->  | J54: =IF('FEA___(MPG-2)'!$B54,IFERROR((2*(1+H54))/(2+H54),"N/A"),"") ->  | K54: =IF('FEA___(MPG-2)'!$B54,IFERROR(I54*J54,"N/A"),"") ->  | L54: ='FEA___(MPG-5)'!L54 ->  | M54: =IF('FEA___(MPG-2)'!$B54,IFERROR(1-L54,"N/A"),"") ->  | N54: =IF('FEA___(MPG-2)'!$B54,IFERROR(M54*K54,"N/A"),"") ->  | O54: =IF('FEA___(MPG-2)'!$B54,IFERROR(IF(AB54<0,N54,N54+AB54),N54),"") ->  | T54: ='FEA___(MPG-4)'!F54 ->  | U54: =IF('FEA___(MPG-2)'!$B54,VLOOKUP(D54,VLLU,11,FALSE),"") ->  | V54: =IF('FEA___(MPG-2)'!$B54,IFERROR(T54/U54,"N/A"),"") ->  | W54: =IF('FEA___(MPG-2)'!$B54,VLOOKUP(D54,VLLU,8,FALSE),"") ->  | X54: =IF('FEA___(MPG-2)'!$B54,VLOOKUP(D54,VLLU,9,FALSE),"") ->  | Y54: =IF('FEA___(MPG-2)'!$B54,IFERROR((X54/W54)^(1/($AC$8-$W$9))-1,"N/A"),"") ->  | Z54: =IF('FEA___(MPG-2)'!$B54,IFERROR(Y54*V54,"N/A"),"") ->  | AA54: =IF('FEA___(MPG-2)'!$B54,IFERROR(1-1/V54,"N/A"),"") ->  | AB54: =IF('FEA___(MPG-2)'!$B54,Z54*AA54,"") -> 
A55: ='FEA___(MPG-2)'!A55 ->  | B55: ='FEA___(MPG-2)'!D55 ->  | D55: ='FEA___(MPG-2)'!F55 ->  | E55: ='FEA___(MPG-5)'!F55 ->  | F55: ='FEA___(MPG-5)'!I55 ->  | G55: =IF('FEA___(MPG-2)'!$B55,VLOOKUP(D55,VLLU,12,FALSE),"") ->  | H55: =IF('FEA___(MPG-2)'!$B55,IFERROR((G55/U55)^(1/5)-1,"N/A"),"") ->  | I55: =IF('FEA___(MPG-2)'!$B55,IFERROR(F55/G55,"N/A"),"") ->  | J55: =IF('FEA___(MPG-2)'!$B55,IFERROR((2*(1+H55))/(2+H55),"N/A"),"") ->  | K55: =IF('FEA___(MPG-2)'!$B55,IFERROR(I55*J55,"N/A"),"") ->  | L55: ='FEA___(MPG-5)'!L55 ->  | M55: =IF('FEA___(MPG-2)'!$B55,IFERROR(1-L55,"N/A"),"") ->  | N55: =IF('FEA___(MPG-2)'!$B55,IFERROR(M55*K55,"N/A"),"") ->  | O55: =IF('FEA___(MPG-2)'!$B55,IFERROR(IF(AB55<0,N55,N55+AB55),N55),"") ->  | T55: ='FEA___(MPG-4)'!F55 ->  | U55: =IF('FEA___(MPG-2)'!$B55,VLOOKUP(D55,VLLU,11,FALSE),"") ->  | V55: =IF('FEA___(MPG-2)'!$B55,IFERROR(T55/U55,"N/A"),"") ->  | W55: =IF('FEA___(MPG-2)'!$B55,VLOOKUP(D55,VLLU,8,FALSE),"") ->  | X55: =IF('FEA___(MPG-2)'!$B55,VLOOKUP(D55,VLLU,9,FALSE),"") ->  | Y55: =IF('FEA___(MPG-2)'!$B55,IFERROR((X55/W55)^(1/($AC$8-$W$9))-1,"N/A"),"") ->  | Z55: =IF('FEA___(MPG-2)'!$B55,IFERROR(Y55*V55,"N/A"),"") ->  | AA55: =IF('FEA___(MPG-2)'!$B55,IFERROR(1-1/V55,"N/A"),"") ->  | AB55: =IF('FEA___(MPG-2)'!$B55,Z55*AA55,"") -> 
A56: ='FEA___(MPG-2)'!A56 ->  | B56: ='FEA___(MPG-2)'!D56 ->  | D56: ='FEA___(MPG-2)'!F56 ->  | E56: ='FEA___(MPG-5)'!F56 ->  | F56: ='FEA___(MPG-5)'!I56 ->  | G56: =IF('FEA___(MPG-2)'!$B56,VLOOKUP(D56,VLLU,12,FALSE),"") ->  | H56: =IF('FEA___(MPG-2)'!$B56,IFERROR((G56/U56)^(1/5)-1,"N/A"),"") ->  | I56: =IF('FEA___(MPG-2)'!$B56,IFERROR(F56/G56,"N/A"),"") ->  | J56: =IF('FEA___(MPG-2)'!$B56,IFERROR((2*(1+H56))/(2+H56),"N/A"),"") ->  | K56: =IF('FEA___(MPG-2)'!$B56,IFERROR(I56*J56,"N/A"),"") ->  | L56: ='FEA___(MPG-5)'!L56 ->  | M56: =IF('FEA___(MPG-2)'!$B56,IFERROR(1-L56,"N/A"),"") ->  | N56: =IF('FEA___(MPG-2)'!$B56,IFERROR(M56*K56,"N/A"),"") ->  | O56: =IF('FEA___(MPG-2)'!$B56,IFERROR(IF(AB56<0,N56,N56+AB56),N56),"") ->  | T56: ='FEA___(MPG-4)'!F56 ->  | U56: =IF('FEA___(MPG-2)'!$B56,VLOOKUP(D56,VLLU,11,FALSE),"") ->  | V56: =IF('FEA___(MPG-2)'!$B56,IFERROR(T56/U56,"N/A"),"") ->  | W56: =IF('FEA___(MPG-2)'!$B56,VLOOKUP(D56,VLLU,8,FALSE),"") ->  | X56: =IF('FEA___(MPG-2)'!$B56,VLOOKUP(D56,VLLU,9,FALSE),"") ->  | Y56: =IF('FEA___(MPG-2)'!$B56,IFERROR((X56/W56)^(1/($AC$8-$W$9))-1,"N/A"),"") ->  | Z56: =IF('FEA___(MPG-2)'!$B56,IFERROR(Y56*V56,"N/A"),"") ->  | AA56: =IF('FEA___(MPG-2)'!$B56,IFERROR(1-1/V56,"N/A"),"") ->  | AB56: =IF('FEA___(MPG-2)'!$B56,Z56*AA56,"") -> 
A57: ='FEA___(MPG-2)'!A57 ->  | B57: ='FEA___(MPG-2)'!D57 ->  | D57: ='FEA___(MPG-2)'!F57 ->  | E57: ='FEA___(MPG-5)'!F57 ->  | F57: ='FEA___(MPG-5)'!I57 ->  | G57: =IF('FEA___(MPG-2)'!$B57,VLOOKUP(D57,VLLU,12,FALSE),"") ->  | H57: =IF('FEA___(MPG-2)'!$B57,IFERROR((G57/U57)^(1/5)-1,"N/A"),"") ->  | I57: =IF('FEA___(MPG-2)'!$B57,IFERROR(F57/G57,"N/A"),"") ->  | J57: =IF('FEA___(MPG-2)'!$B57,IFERROR((2*(1+H57))/(2+H57),"N/A"),"") ->  | K57: =IF('FEA___(MPG-2)'!$B57,IFERROR(I57*J57,"N/A"),"") ->  | L57: ='FEA___(MPG-5)'!L57 ->  | M57: =IF('FEA___(MPG-2)'!$B57,IFERROR(1-L57,"N/A"),"") ->  | N57: =IF('FEA___(MPG-2)'!$B57,IFERROR(M57*K57,"N/A"),"") ->  | O57: =IF('FEA___(MPG-2)'!$B57,IFERROR(IF(AB57<0,N57,N57+AB57),N57),"") ->  | T57: ='FEA___(MPG-4)'!F57 ->  | U57: =IF('FEA___(MPG-2)'!$B57,VLOOKUP(D57,VLLU,11,FALSE),"") ->  | V57: =IF('FEA___(MPG-2)'!$B57,IFERROR(T57/U57,"N/A"),"") ->  | W57: =IF('FEA___(MPG-2)'!$B57,VLOOKUP(D57,VLLU,8,FALSE),"") ->  | X57: =IF('FEA___(MPG-2)'!$B57,VLOOKUP(D57,VLLU,9,FALSE),"") ->  | Y57: =IF('FEA___(MPG-2)'!$B57,IFERROR((X57/W57)^(1/($AC$8-$W$9))-1,"N/A"),"") ->  | Z57: =IF('FEA___(MPG-2)'!$B57,IFERROR(Y57*V57,"N/A"),"") ->  | AA57: =IF('FEA___(MPG-2)'!$B57,IFERROR(1-1/V57,"N/A"),"") ->  | AB57: =IF('FEA___(MPG-2)'!$B57,Z57*AA57,"") -> 
A58: ='FEA___(MPG-2)'!A58 ->  | B58: ='FEA___(MPG-2)'!D58 ->  | D58: ='FEA___(MPG-2)'!F58 ->  | E58: ='FEA___(MPG-5)'!F58 ->  | F58: ='FEA___(MPG-5)'!I58 ->  | G58: =IF('FEA___(MPG-2)'!$B58,VLOOKUP(D58,VLLU,12,FALSE),"") ->  | H58: =IF('FEA___(MPG-2)'!$B58,IFERROR((G58/U58)^(1/5)-1,"N/A"),"") ->  | I58: =IF('FEA___(MPG-2)'!$B58,IFERROR(F58/G58,"N/A"),"") ->  | J58: =IF('FEA___(MPG-2)'!$B58,IFERROR((2*(1+H58))/(2+H58),"N/A"),"") ->  | K58: =IF('FEA___(MPG-2)'!$B58,IFERROR(I58*J58,"N/A"),"") ->  | L58: ='FEA___(MPG-5)'!L58 ->  | M58: =IF('FEA___(MPG-2)'!$B58,IFERROR(1-L58,"N/A"),"") ->  | N58: =IF('FEA___(MPG-2)'!$B58,IFERROR(M58*K58,"N/A"),"") ->  | O58: =IF('FEA___(MPG-2)'!$B58,IFERROR(IF(AB58<0,N58,N58+AB58),N58),"") ->  | T58: ='FEA___(MPG-4)'!F58 ->  | U58: =IF('FEA___(MPG-2)'!$B58,VLOOKUP(D58,VLLU,11,FALSE),"") ->  | V58: =IF('FEA___(MPG-2)'!$B58,IFERROR(T58/U58,"N/A"),"") ->  | W58: =IF('FEA___(MPG-2)'!$B58,VLOOKUP(D58,VLLU,8,FALSE),"") ->  | X58: =IF('FEA___(MPG-2)'!$B58,VLOOKUP(D58,VLLU,9,FALSE),"") ->  | Y58: =IF('FEA___(MPG-2)'!$B58,IFERROR((X58/W58)^(1/($AC$8-$W$9))-1,"N/A"),"") ->  | Z58: =IF('FEA___(MPG-2)'!$B58,IFERROR(Y58*V58,"N/A"),"") ->  | AA58: =IF('FEA___(MPG-2)'!$B58,IFERROR(1-1/V58,"N/A"),"") ->  | AB58: =IF('FEA___(MPG-2)'!$B58,Z58*AA58,"") -> 
A59: ='FEA___(MPG-2)'!A59 ->  | B59: ='FEA___(MPG-2)'!D59 ->  | D59: ='FEA___(MPG-2)'!F59 ->  | E59: ='FEA___(MPG-5)'!F59 ->  | F59: ='FEA___(MPG-5)'!I59 ->  | G59: =IF('FEA___(MPG-2)'!$B59,VLOOKUP(D59,VLLU,12,FALSE),"") ->  | H59: =IF('FEA___(MPG-2)'!$B59,IFERROR((G59/U59)^(1/5)-1,"N/A"),"") ->  | I59: =IF('FEA___(MPG-2)'!$B59,IFERROR(F59/G59,"N/A"),"") ->  | J59: =IF('FEA___(MPG-2)'!$B59,IFERROR((2*(1+H59))/(2+H59),"N/A"),"") ->  | K59: =IF('FEA___(MPG-2)'!$B59,IFERROR(I59*J59,"N/A"),"") ->  | L59: ='FEA___(MPG-5)'!L59 ->  | M59: =IF('FEA___(MPG-2)'!$B59,IFERROR(1-L59,"N/A"),"") ->  | N59: =IF('FEA___(MPG-2)'!$B59,IFERROR(M59*K59,"N/A"),"") ->  | O59: =IF('FEA___(MPG-2)'!$B59,IFERROR(IF(AB59<0,N59,N59+AB59),N59),"") ->  | T59: ='FEA___(MPG-4)'!F59 ->  | U59: =IF('FEA___(MPG-2)'!$B59,VLOOKUP(D59,VLLU,11,FALSE),"") ->  | V59: =IF('FEA___(MPG-2)'!$B59,IFERROR(T59/U59,"N/A"),"") ->  | W59: =IF('FEA___(MPG-2)'!$B59,VLOOKUP(D59,VLLU,8,FALSE),"") ->  | X59: =IF('FEA___(MPG-2)'!$B59,VLOOKUP(D59,VLLU,9,FALSE),"") ->  | Y59: =IF('FEA___(MPG-2)'!$B59,IFERROR((X59/W59)^(1/($AC$8-$W$9))-1,"N/A"),"") ->  | Z59: =IF('FEA___(MPG-2)'!$B59,IFERROR(Y59*V59,"N/A"),"") ->  | AA59: =IF('FEA___(MPG-2)'!$B59,IFERROR(1-1/V59,"N/A"),"") ->  | AB59: =IF('FEA___(MPG-2)'!$B59,Z59*AA59,"") -> 
A60: ='FEA___(MPG-2)'!A60 ->  | B60: ='FEA___(MPG-2)'!D60 ->  | D60: ='FEA___(MPG-2)'!F60 ->  | E60: ='FEA___(MPG-5)'!F60 ->  | F60: ='FEA___(MPG-5)'!I60 ->  | G60: =IF('FEA___(MPG-2)'!$B60,VLOOKUP(D60,VLLU,12,FALSE),"") ->  | H60: =IF('FEA___(MPG-2)'!$B60,IFERROR((G60/U60)^(1/5)-1,"N/A"),"") ->  | I60: =IF('FEA___(MPG-2)'!$B60,IFERROR(F60/G60,"N/A"),"") ->  | J60: =IF('FEA___(MPG-2)'!$B60,IFERROR((2*(1+H60))/(2+H60),"N/A"),"") ->  | K60: =IF('FEA___(MPG-2)'!$B60,IFERROR(I60*J60,"N/A"),"") ->  | L60: ='FEA___(MPG-5)'!L60 ->  | M60: =IF('FEA___(MPG-2)'!$B60,IFERROR(1-L60,"N/A"),"") ->  | N60: =IF('FEA___(MPG-2)'!$B60,IFERROR(M60*K60,"N/A"),"") ->  | O60: =IF('FEA___(MPG-2)'!$B60,IFERROR(IF(AB60<0,N60,N60+AB60),N60),"") ->  | T60: ='FEA___(MPG-4)'!F60 ->  | U60: =IF('FEA___(MPG-2)'!$B60,VLOOKUP(D60,VLLU,11,FALSE),"") ->  | V60: =IF('FEA___(MPG-2)'!$B60,IFERROR(T60/U60,"N/A"),"") ->  | W60: =IF('FEA___(MPG-2)'!$B60,VLOOKUP(D60,VLLU,8,FALSE),"") ->  | X60: =IF('FEA___(MPG-2)'!$B60,VLOOKUP(D60,VLLU,9,FALSE),"") ->  | Y60: =IF('FEA___(MPG-2)'!$B60,IFERROR((X60/W60)^(1/($AC$8-$W$9))-1,"N/A"),"") ->  | Z60: =IF('FEA___(MPG-2)'!$B60,IFERROR(Y60*V60,"N/A"),"") ->  | AA60: =IF('FEA___(MPG-2)'!$B60,IFERROR(1-1/V60,"N/A"),"") ->  | AB60: =IF('FEA___(MPG-2)'!$B60,Z60*AA60,"") -> 
A61: ='FEA___(MPG-2)'!A61 ->  | B61: ='FEA___(MPG-2)'!D61 ->  | D61: ='FEA___(MPG-2)'!F61 ->  | E61: ='FEA___(MPG-5)'!F61 ->  | F61: ='FEA___(MPG-5)'!I61 ->  | G61: =IF('FEA___(MPG-2)'!$B61,VLOOKUP(D61,VLLU,12,FALSE),"") ->  | H61: =IF('FEA___(MPG-2)'!$B61,IFERROR((G61/U61)^(1/5)-1,"N/A"),"") ->  | I61: =IF('FEA___(MPG-2)'!$B61,IFERROR(F61/G61,"N/A"),"") ->  | J61: =IF('FEA___(MPG-2)'!$B61,IFERROR((2*(1+H61))/(2+H61),"N/A"),"") ->  | K61: =IF('FEA___(MPG-2)'!$B61,IFERROR(I61*J61,"N/A"),"") ->  | L61: ='FEA___(MPG-5)'!L61 ->  | M61: =IF('FEA___(MPG-2)'!$B61,IFERROR(1-L61,"N/A"),"") ->  | N61: =IF('FEA___(MPG-2)'!$B61,IFERROR(M61*K61,"N/A"),"") ->  | O61: =IF('FEA___(MPG-2)'!$B61,IFERROR(IF(AB61<0,N61,N61+AB61),N61),"") ->  | T61: ='FEA___(MPG-4)'!F61 ->  | U61: =IF('FEA___(MPG-2)'!$B61,VLOOKUP(D61,VLLU,11,FALSE),"") ->  | V61: =IF('FEA___(MPG-2)'!$B61,IFERROR(T61/U61,"N/A"),"") ->  | W61: =IF('FEA___(MPG-2)'!$B61,VLOOKUP(D61,VLLU,8,FALSE),"") ->  | X61: =IF('FEA___(MPG-2)'!$B61,VLOOKUP(D61,VLLU,9,FALSE),"") ->  | Y61: =IF('FEA___(MPG-2)'!$B61,IFERROR((X61/W61)^(1/($AC$8-$W$9))-1,"N/A"),"") ->  | Z61: =IF('FEA___(MPG-2)'!$B61,IFERROR(Y61*V61,"N/A"),"") ->  | AA61: =IF('FEA___(MPG-2)'!$B61,IFERROR(1-1/V61,"N/A"),"") ->  | AB61: =IF('FEA___(MPG-2)'!$B61,Z61*AA61,"") -> 
A63: =IF(B63=0,"N/A",MAX(A12:A62)+1) -> 14 | B63: Average | E63: =AVERAGE(E12:E61) -> 2.320769231 | F63: 3.776923077 | G63: 36.9 | H63: 0.03681026931 | I63: 0.1038002425 | J63: 1.018043135 | K63: 0.1056659673 | L63: 0.6147706994 | M63: 0.3852293006 | N63: 0.04035904182 | O63: 0.04738625686 | P63: =A63 -> 14 | R63: =B63 -> Average | T63: =AVERAGE(T12:T61) -> 51.62399408 | U63: =AVERAGE(U12:U61) -> 30.59307692 | V63: =AVERAGE(V12:V61) -> 1.678415809 | W63: =AVERAGE(W12:W61) -> 231.9907692 | X63: =AVERAGE(X12:X61) -> 243.7076923 | Y63: =AVERAGEIF(Y12:Y61,">=0") -> 0.01288805491 | Z63: =AVERAGEIF(Z12:Z61,">=0") -> 0.02050087121 | AA63: =AVERAGEIF(AA12:AA61,">=0") -> 0.3827322302 | AB63: =AVERAGEIF(AB12:AB61,">=0") -> 0.007612816294
B66: Sources and Notes: | Q66: Sources and Notes:
B67: Cols. (1), (2) and (3): | C67: The Value Line Investment Survey, January 31, February 21, and March 21, 2014. | Q67: =+P67+1 -> 1 | R67: =+'FEA___(MPG-4)'!C68 -> SNL Financial, Downloaded on March 31, 2014.
B68: Col. (4): [ Col. (3) / Page 2 Col. (2) ] ^ (1/5) - 1. | Q68: =+Q67+1 -> 2 | R68: The Value Line Investment Survey, January 31, February 21, and March 21, 2014.
B69: Col. (5): Col. (2) / Col. (3). | Q69: =+Q68+1 -> 3 | R69: Expected Growth in the Number of Shares, Column (3) * Column (6).
B70: Col. (6): [ 2 * (1 + Col. (4)) ] / (2 + Col. (4)). | Q70: 4 | R70: Expected Profit of Stock Investment, [ 1 - 1 / Column (3) ].
B71: Col. (7): Col. (6) * Col. (5).
B72: Col. (8): Col. (1) / Col. (2).
B73: Col. (9): 1 - Col. (8).
B74: Col. (10): Col. (9) * Col. (7).
B75: Col. (11): Col. (10) + Page 2 Col. (9).

Sheet FEA___(MPG-7)
A1: ='FEA___(MPG-6ab)'!A1:O1 -> Rocky Mountain Power
A4: ='FEA___(MPG-4)'!A4:J4 -> Constant Growth DCF Model
A5: (Sustainable Growth Rate)
E8: 13-Week AVG | F8: Sustainable | G8: Annualized | H8: Adjusted | I8: Constant
A9: Line | C9: Company | E9: Stock Price1 | F9: Growth2 | G9: Dividend3 | H9: Yield | I9: Growth DCF
E10: (1) | F10: (2) | G10: (3) | H10: (4) | I10: (5)
A12: ='FEA___(MPG-2)'!A12 -> 1 | C12: ='FEA___(MPG-2)'!D12 -> ALLETE, Inc. | E12: ='FEA___(MPG-4)'!F12 -> 50.05269231 | F12: ='FEA___(MPG-6ab)'!O12 -> 0.05235127346 | G12: ='FEA___(MPG-4)'!H12 -> 1.96 | H12: =IF('FEA___(MPG-2)'!$B12,IFERROR(G12*(1+F12)/E12,"N/A"),"") -> 0.04120874224 | I12: =IF('FEA___(MPG-2)'!$B12,IFERROR(F12+H12,"N/A"),"") -> 0.0935600157
A13: =IF('FEA___(MPG-2)'!$B13,'FEA___(MPG-2)'!A13,"") -> 2 | C13: =IF('FEA___(MPG-2)'!$B13,'FEA___(MPG-2)'!D13,"") -> Alliant Energy Corporation | E13: ='FEA___(MPG-4)'!F13 -> 52.68884615 | F13: ='FEA___(MPG-6ab)'!O13 -> 0.05237996799 | G13: ='FEA___(MPG-4)'!H13 -> 2.04 | H13: =IF('FEA___(MPG-2)'!$B13,IFERROR(G13*(1+F13)/E13,"N/A"),"") -> 0.04074591287 | I13: =IF('FEA___(MPG-2)'!$B13,IFERROR(F13+H13,"N/A"),"") -> 0.09312588086
A14: =IF('FEA___(MPG-2)'!$B14,'FEA___(MPG-2)'!A14,"") -> 3 | C14: =IF('FEA___(MPG-2)'!$B14,'FEA___(MPG-2)'!D14,"") -> Avista Corporation | E14: ='FEA___(MPG-4)'!F14 -> 29.04269231 | F14: ='FEA___(MPG-6ab)'!O14 -> 0.03998241266 | G14: ='FEA___(MPG-4)'!H14 -> 1.22 | H14: =IF('FEA___(MPG-2)'!$B14,IFERROR(G14*(1+F14)/E14,"N/A"),"") -> 0.04368667099 | I14: =IF('FEA___(MPG-2)'!$B14,IFERROR(F14+H14,"N/A"),"") -> 0.08366908364
A15: =IF('FEA___(MPG-2)'!$B15,'FEA___(MPG-2)'!A15,"") -> 4 | C15: =IF('FEA___(MPG-2)'!$B15,'FEA___(MPG-2)'!D15,"") -> DTE Energy Company | E15: ='FEA___(MPG-4)'!F15 -> 69.03230769 | F15: ='FEA___(MPG-6ab)'!O15 -> 0.04323987248 | G15: ='FEA___(MPG-4)'!H15 -> 2.62 | H15: =IF('FEA___(MPG-2)'!$B15,IFERROR(G15*(1+F15)/E15,"N/A"),"") -> 0.03959433716 | I15: =IF('FEA___(MPG-2)'!$B15,IFERROR(F15+H15,"N/A"),"") -> 0.08283420965
A16: =IF('FEA___(MPG-2)'!$B16,'FEA___(MPG-2)'!A16,"") -> 5 | C16: =IF('FEA___(MPG-2)'!$B16,'FEA___(MPG-2)'!D16,"") -> IDACORP, Inc. | E16: ='FEA___(MPG-4)'!F16 -> 53.55961538 | F16: ='FEA___(MPG-6ab)'!O16 -> 0.03553967932 | G16: ='FEA___(MPG-4)'!H16 -> 1.72 | H16: =IF('FEA___(MPG-2)'!$B16,IFERROR(G16*(1+F16)/E16,"N/A"),"") -> 0.03325506047 | I16: =IF('FEA___(MPG-2)'!$B16,IFERROR(F16+H16,"N/A"),"") -> 0.06879473979
A17: =IF('FEA___(MPG-2)'!$B17,'FEA___(MPG-2)'!A17,"") -> 6 | C17: =IF('FEA___(MPG-2)'!$B17,'FEA___(MPG-2)'!D17,"") -> Integrys Energy Group, Inc. | E17: ='FEA___(MPG-4)'!F17 -> 55.35961538 | F17: ='FEA___(MPG-6ab)'!O17 -> 0.0352223232 | G17: ='FEA___(MPG-4)'!H17 -> 2.72 | H17: =IF('FEA___(MPG-2)'!$B17,IFERROR(G17*(1+F17)/E17,"N/A"),"") -> 0.05086387793 | I17: =IF('FEA___(MPG-2)'!$B17,IFERROR(F17+H17,"N/A"),"") -> 0.08608620113
A18: =IF('FEA___(MPG-2)'!$B18,'FEA___(MPG-2)'!A18,"") -> 7 | C18: =IF('FEA___(MPG-2)'!$B18,'FEA___(MPG-2)'!D18,"") -> NextEra Energy, Inc. | E18: ='FEA___(MPG-4)'!F18 -> 90.29615385 | F18: ='FEA___(MPG-6ab)'!O18 -> 0.06706770416 | G18: ='FEA___(MPG-4)'!H18 -> 2.64 | H18: =IF('FEA___(MPG-2)'!$B18,IFERROR(G18*(1+F18)/E18,"N/A"),"") -> 0.03119799259 | I18: =IF('FEA___(MPG-2)'!$B18,IFERROR(F18+H18,"N/A"),"") -> 0.09826569676
A19: =IF('FEA___(MPG-2)'!$B19,'FEA___(MPG-2)'!A19,"") -> 8 | C19: =IF('FEA___(MPG-2)'!$B19,'FEA___(MPG-2)'!D19,"") -> Portland General Electric Company | E19: ='FEA___(MPG-4)'!F19 -> 30.79769231 | F19: ='FEA___(MPG-6ab)'!O19 -> 0.04673259955 | G19: ='FEA___(MPG-4)'!H19 -> 1.1 | H19: =IF('FEA___(MPG-2)'!$B19,IFERROR(G19*(1+F19)/E19,"N/A"),"") -> 0.03738610828 | I19: =IF('FEA___(MPG-2)'!$B19,IFERROR(F19+H19,"N/A"),"") -> 0.08411870783
A20: =IF('FEA___(MPG-2)'!$B20,'FEA___(MPG-2)'!A20,"") -> 9 | C20: =IF('FEA___(MPG-2)'!$B20,'FEA___(MPG-2)'!D20,"") -> Sempra Energy | E20: ='FEA___(MPG-4)'!F20 -> 92.83423077 | F20: ='FEA___(MPG-6ab)'!O20 -> 0.05374799614 | G20: ='FEA___(MPG-4)'!H20 -> 2.52 | H20: =IF('FEA___(MPG-2)'!$B20,IFERROR(G20*(1+F20)/E20,"N/A"),"") -> 0.02860415741 | I20: =IF('FEA___(MPG-2)'!$B20,IFERROR(F20+H20,"N/A"),"") -> 0.08235215356
A21: =IF('FEA___(MPG-2)'!$B21,'FEA___(MPG-2)'!A21,"") -> 10 | C21: =IF('FEA___(MPG-2)'!$B21,'FEA___(MPG-2)'!D21,"") -> Southern Company | E21: ='FEA___(MPG-4)'!F21 -> 41.85846154 | F21: ='FEA___(MPG-6ab)'!O21 -> 0.04518568608 | G21: ='FEA___(MPG-4)'!H21 -> 2.03 | H21: =IF('FEA___(MPG-2)'!$B21,IFERROR(G21*(1+F21)/E21,"N/A"),"") -> 0.05068812529 | I21: =IF('FEA___(MPG-2)'!$B21,IFERROR(F21+H21,"N/A"),"") -> 0.09587381137
A22: =IF('FEA___(MPG-2)'!$B22,'FEA___(MPG-2)'!A22,"") -> 11 | C22: =IF('FEA___(MPG-2)'!$B22,'FEA___(MPG-2)'!D22,"") -> Westar Energy, Inc. | E22: ='FEA___(MPG-4)'!F22 -> 33.55269231 | F22: ='FEA___(MPG-6ab)'!O22 -> 0.04617136179 | G22: ='FEA___(MPG-4)'!H22 -> 1.4 | H22: =IF('FEA___(MPG-2)'!$B22,IFERROR(G22*(1+F22)/E22,"N/A"),"") -> 0.04365193389 | I22: =IF('FEA___(MPG-2)'!$B22,IFERROR(F22+H22,"N/A"),"") -> 0.08982329568
A23: =IF('FEA___(MPG-2)'!$B23,'FEA___(MPG-2)'!A23,"") -> 12 | C23: =IF('FEA___(MPG-2)'!$B23,'FEA___(MPG-2)'!D23,"") -> Wisconsin Energy Corporation | E23: ='FEA___(MPG-4)'!F23 -> 42.94692308 | F23: ='FEA___(MPG-6ab)'!O23 -> 0.05598338013 | G23: ='FEA___(MPG-4)'!H23 -> 1.56 | H23: =IF('FEA___(MPG-2)'!$B23,IFERROR(G23*(1+F23)/E23,"N/A"),"") -> 0.03835744112 | I23: =IF('FEA___(MPG-2)'!$B23,IFERROR(F23+H23,"N/A"),"") -> 0.09434082125
A24: =IF('FEA___(MPG-2)'!$B24,'FEA___(MPG-2)'!A24,"") -> 13 | C24: =IF('FEA___(MPG-2)'!$B24,'FEA___(MPG-2)'!D24,"") -> Xcel Energy Inc. | E24: ='FEA___(MPG-4)'!F24 -> 29.09 | F24: ='FEA___(MPG-6ab)'!O24 -> 0.04241708222 | G24: ='FEA___(MPG-4)'!H24 -> 1.12 | H24: =IF('FEA___(MPG-2)'!$B24,IFERROR(G24*(1+F24)/E24,"N/A"),"") -> 0.04013431186 | I24: =IF('FEA___(MPG-2)'!$B24,IFERROR(F24+H24,"N/A"),"") -> 0.08255139409
A25: =IF('FEA___(MPG-2)'!$B25,'FEA___(MPG-2)'!A25,"") ->  | C25: =IF('FEA___(MPG-2)'!$B25,'FEA___(MPG-2)'!D25,"") ->  | E25: ='FEA___(MPG-4)'!F25 ->  | F25: ='FEA___(MPG-6ab)'!O25 ->  | G25: ='FEA___(MPG-4)'!H25 ->  | H25: =IF('FEA___(MPG-2)'!$B25,IFERROR(G25*(1+F25)/E25,"N/A"),"") ->  | I25: =IF('FEA___(MPG-2)'!$B25,IFERROR(F25+H25,"N/A"),"") -> 
A26: =IF('FEA___(MPG-2)'!$B26,'FEA___(MPG-2)'!A26,"") ->  | C26: =IF('FEA___(MPG-2)'!$B26,'FEA___(MPG-2)'!D26,"") ->  | E26: ='FEA___(MPG-4)'!F26 ->  | F26: ='FEA___(MPG-6ab)'!O26 ->  | G26: ='FEA___(MPG-4)'!H26 ->  | H26: =IF('FEA___(MPG-2)'!$B26,IFERROR(G26*(1+F26)/E26,"N/A"),"") ->  | I26: =IF('FEA___(MPG-2)'!$B26,IFERROR(F26+H26,"N/A"),"") -> 
A27: =IF('FEA___(MPG-2)'!$B27,'FEA___(MPG-2)'!A27,"") ->  | C27: =IF('FEA___(MPG-2)'!$B27,'FEA___(MPG-2)'!D27,"") ->  | E27: ='FEA___(MPG-4)'!F27 ->  | F27: ='FEA___(MPG-6ab)'!O27 ->  | G27: ='FEA___(MPG-4)'!H27 ->  | H27: =IF('FEA___(MPG-2)'!$B27,IFERROR(G27*(1+F27)/E27,"N/A"),"") ->  | I27: =IF('FEA___(MPG-2)'!$B27,IFERROR(F27+H27,"N/A"),"") -> 
A28: =IF('FEA___(MPG-2)'!$B28,'FEA___(MPG-2)'!A28,"") ->  | C28: =IF('FEA___(MPG-2)'!$B28,'FEA___(MPG-2)'!D28,"") ->  | E28: ='FEA___(MPG-4)'!F28 ->  | F28: ='FEA___(MPG-6ab)'!O28 ->  | G28: ='FEA___(MPG-4)'!H28 ->  | H28: =IF('FEA___(MPG-2)'!$B28,IFERROR(G28*(1+F28)/E28,"N/A"),"") ->  | I28: =IF('FEA___(MPG-2)'!$B28,IFERROR(F28+H28,"N/A"),"") -> 
A29: =IF('FEA___(MPG-2)'!$B29,'FEA___(MPG-2)'!A29,"") ->  | C29: =IF('FEA___(MPG-2)'!$B29,'FEA___(MPG-2)'!D29,"") ->  | E29: ='FEA___(MPG-4)'!F29 ->  | F29: ='FEA___(MPG-6ab)'!O29 ->  | G29: ='FEA___(MPG-4)'!H29 ->  | H29: =IF('FEA___(MPG-2)'!$B29,IFERROR(G29*(1+F29)/E29,"N/A"),"") ->  | I29: =IF('FEA___(MPG-2)'!$B29,IFERROR(F29+H29,"N/A"),"") -> 
A30: =IF('FEA___(MPG-2)'!$B30,'FEA___(MPG-2)'!A30,"") ->  | C30: =IF('FEA___(MPG-2)'!$B30,'FEA___(MPG-2)'!D30,"") ->  | E30: ='FEA___(MPG-4)'!F30 ->  | F30: ='FEA___(MPG-6ab)'!O30 ->  | G30: ='FEA___(MPG-4)'!H30 ->  | H30: =IF('FEA___(MPG-2)'!$B30,IFERROR(G30*(1+F30)/E30,"N/A"),"") ->  | I30: =IF('FEA___(MPG-2)'!$B30,IFERROR(F30+H30,"N/A"),"") -> 
A31: =IF('FEA___(MPG-2)'!$B31,'FEA___(MPG-2)'!A31,"") ->  | C31: =IF('FEA___(MPG-2)'!$B31,'FEA___(MPG-2)'!D31,"") ->  | E31: ='FEA___(MPG-4)'!F31 ->  | F31: ='FEA___(MPG-6ab)'!O31 ->  | G31: ='FEA___(MPG-4)'!H31 ->  | H31: =IF('FEA___(MPG-2)'!$B31,IFERROR(G31*(1+F31)/E31,"N/A"),"") ->  | I31: =IF('FEA___(MPG-2)'!$B31,IFERROR(F31+H31,"N/A"),"") -> 
A32: =IF('FEA___(MPG-2)'!$B32,'FEA___(MPG-2)'!A32,"") ->  | C32: =IF('FEA___(MPG-2)'!$B32,'FEA___(MPG-2)'!D32,"") ->  | E32: ='FEA___(MPG-4)'!F32 ->  | F32: ='FEA___(MPG-6ab)'!O32 ->  | G32: ='FEA___(MPG-4)'!H32 ->  | H32: =IF('FEA___(MPG-2)'!$B32,IFERROR(G32*(1+F32)/E32,"N/A"),"") ->  | I32: =IF('FEA___(MPG-2)'!$B32,IFERROR(F32+H32,"N/A"),"") -> 
A33: =IF('FEA___(MPG-2)'!$B33,'FEA___(MPG-2)'!A33,"") ->  | C33: =IF('FEA___(MPG-2)'!$B33,'FEA___(MPG-2)'!D33,"") ->  | E33: ='FEA___(MPG-4)'!F33 ->  | F33: ='FEA___(MPG-6ab)'!O33 ->  | G33: ='FEA___(MPG-4)'!H33 ->  | H33: =IF('FEA___(MPG-2)'!$B33,IFERROR(G33*(1+F33)/E33,"N/A"),"") ->  | I33: =IF('FEA___(MPG-2)'!$B33,IFERROR(F33+H33,"N/A"),"") -> 
A34: =IF('FEA___(MPG-2)'!$B34,'FEA___(MPG-2)'!A34,"") ->  | C34: =IF('FEA___(MPG-2)'!$B34,'FEA___(MPG-2)'!D34,"") ->  | E34: ='FEA___(MPG-4)'!F34 ->  | F34: ='FEA___(MPG-6ab)'!O34 ->  | G34: ='FEA___(MPG-4)'!H34 ->  | H34: =IF('FEA___(MPG-2)'!$B34,IFERROR(G34*(1+F34)/E34,"N/A"),"") ->  | I34: =IF('FEA___(MPG-2)'!$B34,IFERROR(F34+H34,"N/A"),"") -> 
A35: =IF('FEA___(MPG-2)'!$B35,'FEA___(MPG-2)'!A35,"") ->  | C35: =IF('FEA___(MPG-2)'!$B35,'FEA___(MPG-2)'!D35,"") ->  | E35: ='FEA___(MPG-4)'!F35 ->  | F35: ='FEA___(MPG-6ab)'!O35 ->  | G35: ='FEA___(MPG-4)'!H35 ->  | H35: =IF('FEA___(MPG-2)'!$B35,IFERROR(G35*(1+F35)/E35,"N/A"),"") ->  | I35: =IF('FEA___(MPG-2)'!$B35,IFERROR(F35+H35,"N/A"),"") -> 
A36: =IF('FEA___(MPG-2)'!$B36,'FEA___(MPG-2)'!A36,"") ->  | C36: =IF('FEA___(MPG-2)'!$B36,'FEA___(MPG-2)'!D36,"") ->  | E36: ='FEA___(MPG-4)'!F36 ->  | F36: ='FEA___(MPG-6ab)'!O36 ->  | G36: ='FEA___(MPG-4)'!H36 ->  | H36: =IF('FEA___(MPG-2)'!$B36,IFERROR(G36*(1+F36)/E36,"N/A"),"") ->  | I36: =IF('FEA___(MPG-2)'!$B36,IFERROR(F36+H36,"N/A"),"") -> 
A37: =IF('FEA___(MPG-2)'!$B37,'FEA___(MPG-2)'!A37,"") ->  | C37: =IF('FEA___(MPG-2)'!$B37,'FEA___(MPG-2)'!D37,"") ->  | E37: ='FEA___(MPG-4)'!F37 ->  | F37: ='FEA___(MPG-6ab)'!O37 ->  | G37: ='FEA___(MPG-4)'!H37 ->  | H37: =IF('FEA___(MPG-2)'!$B37,IFERROR(G37*(1+F37)/E37,"N/A"),"") ->  | I37: =IF('FEA___(MPG-2)'!$B37,IFERROR(F37+H37,"N/A"),"") -> 
A38: =IF('FEA___(MPG-2)'!$B38,'FEA___(MPG-2)'!A38,"") ->  | C38: =IF('FEA___(MPG-2)'!$B38,'FEA___(MPG-2)'!D38,"") ->  | E38: ='FEA___(MPG-4)'!F38 ->  | F38: ='FEA___(MPG-6ab)'!O38 ->  | G38: ='FEA___(MPG-4)'!H38 ->  | H38: =IF('FEA___(MPG-2)'!$B38,IFERROR(G38*(1+F38)/E38,"N/A"),"") ->  | I38: =IF('FEA___(MPG-2)'!$B38,IFERROR(F38+H38,"N/A"),"") -> 
A39: =IF('FEA___(MPG-2)'!$B39,'FEA___(MPG-2)'!A39,"") ->  | C39: =IF('FEA___(MPG-2)'!$B39,'FEA___(MPG-2)'!D39,"") ->  | E39: ='FEA___(MPG-4)'!F39 ->  | F39: ='FEA___(MPG-6ab)'!O39 ->  | G39: ='FEA___(MPG-4)'!H39 ->  | H39: =IF('FEA___(MPG-2)'!$B39,IFERROR(G39*(1+F39)/E39,"N/A"),"") ->  | I39: =IF('FEA___(MPG-2)'!$B39,IFERROR(F39+H39,"N/A"),"") -> 
A40: =IF('FEA___(MPG-2)'!$B40,'FEA___(MPG-2)'!A40,"") ->  | C40: =IF('FEA___(MPG-2)'!$B40,'FEA___(MPG-2)'!D40,"") ->  | E40: ='FEA___(MPG-4)'!F40 ->  | F40: ='FEA___(MPG-6ab)'!O40 ->  | G40: ='FEA___(MPG-4)'!H40 ->  | H40: =IF('FEA___(MPG-2)'!$B40,IFERROR(G40*(1+F40)/E40,"N/A"),"") ->  | I40: =IF('FEA___(MPG-2)'!$B40,IFERROR(F40+H40,"N/A"),"") -> 
A41: =IF('FEA___(MPG-2)'!$B41,'FEA___(MPG-2)'!A41,"") ->  | C41: =IF('FEA___(MPG-2)'!$B41,'FEA___(MPG-2)'!D41,"") ->  | E41: ='FEA___(MPG-4)'!F41 ->  | F41: ='FEA___(MPG-6ab)'!O41 ->  | G41: ='FEA___(MPG-4)'!H41 ->  | H41: =IF('FEA___(MPG-2)'!$B41,IFERROR(G41*(1+F41)/E41,"N/A"),"") ->  | I41: =IF('FEA___(MPG-2)'!$B41,IFERROR(F41+H41,"N/A"),"") -> 
A42: =IF('FEA___(MPG-2)'!$B42,'FEA___(MPG-2)'!A42,"") ->  | C42: =IF('FEA___(MPG-2)'!$B42,'FEA___(MPG-2)'!D42,"") ->  | E42: ='FEA___(MPG-4)'!F42 ->  | F42: ='FEA___(MPG-6ab)'!O42 ->  | G42: ='FEA___(MPG-4)'!H42 ->  | H42: =IF('FEA___(MPG-2)'!$B42,IFERROR(G42*(1+F42)/E42,"N/A"),"") ->  | I42: =IF('FEA___(MPG-2)'!$B42,IFERROR(F42+H42,"N/A"),"") -> 
A43: =IF('FEA___(MPG-2)'!$B43,'FEA___(MPG-2)'!A43,"") ->  | C43: =IF('FEA___(MPG-2)'!$B43,'FEA___(MPG-2)'!D43,"") ->  | E43: ='FEA___(MPG-4)'!F43 ->  | F43: ='FEA___(MPG-6ab)'!O43 ->  | G43: ='FEA___(MPG-4)'!H43 ->  | H43: =IF('FEA___(MPG-2)'!$B43,IFERROR(G43*(1+F43)/E43,"N/A"),"") ->  | I43: =IF('FEA___(MPG-2)'!$B43,IFERROR(F43+H43,"N/A"),"") -> 
A44: =IF('FEA___(MPG-2)'!$B44,'FEA___(MPG-2)'!A44,"") ->  | C44: =IF('FEA___(MPG-2)'!$B44,'FEA___(MPG-2)'!D44,"") ->  | E44: ='FEA___(MPG-4)'!F44 ->  | F44: ='FEA___(MPG-6ab)'!O44 ->  | G44: ='FEA___(MPG-4)'!H44 ->  | H44: =IF('FEA___(MPG-2)'!$B44,IFERROR(G44*(1+F44)/E44,"N/A"),"") ->  | I44: =IF('FEA___(MPG-2)'!$B44,IFERROR(F44+H44,"N/A"),"") -> 
A45: =IF('FEA___(MPG-2)'!$B45,'FEA___(MPG-2)'!A45,"") ->  | C45: =IF('FEA___(MPG-2)'!$B45,'FEA___(MPG-2)'!D45,"") ->  | E45: ='FEA___(MPG-4)'!F45 ->  | F45: ='FEA___(MPG-6ab)'!O45 ->  | G45: ='FEA___(MPG-4)'!H45 ->  | H45: =IF('FEA___(MPG-2)'!$B45,IFERROR(G45*(1+F45)/E45,"N/A"),"") ->  | I45: =IF('FEA___(MPG-2)'!$B45,IFERROR(F45+H45,"N/A"),"") -> 
A46: =IF('FEA___(MPG-2)'!$B46,'FEA___(MPG-2)'!A46,"") ->  | C46: =IF('FEA___(MPG-2)'!$B46,'FEA___(MPG-2)'!D46,"") ->  | E46: ='FEA___(MPG-4)'!F46 ->  | F46: ='FEA___(MPG-6ab)'!O46 ->  | G46: ='FEA___(MPG-4)'!H46 ->  | H46: =IF('FEA___(MPG-2)'!$B46,IFERROR(G46*(1+F46)/E46,"N/A"),"") ->  | I46: =IF('FEA___(MPG-2)'!$B46,IFERROR(F46+H46,"N/A"),"") -> 
A47: =IF('FEA___(MPG-2)'!$B47,'FEA___(MPG-2)'!A47,"") ->  | C47: =IF('FEA___(MPG-2)'!$B47,'FEA___(MPG-2)'!D47,"") ->  | E47: ='FEA___(MPG-4)'!F47 ->  | F47: ='FEA___(MPG-6ab)'!O47 ->  | G47: ='FEA___(MPG-4)'!H47 ->  | H47: =IF('FEA___(MPG-2)'!$B47,IFERROR(G47*(1+F47)/E47,"N/A"),"") ->  | I47: =IF('FEA___(MPG-2)'!$B47,IFERROR(F47+H47,"N/A"),"") -> 
A48: =IF('FEA___(MPG-2)'!$B48,'FEA___(MPG-2)'!A48,"") ->  | C48: =IF('FEA___(MPG-2)'!$B48,'FEA___(MPG-2)'!D48,"") ->  | E48: ='FEA___(MPG-4)'!F48 ->  | F48: ='FEA___(MPG-6ab)'!O48 ->  | G48: ='FEA___(MPG-4)'!H48 ->  | H48: =IF('FEA___(MPG-2)'!$B48,IFERROR(G48*(1+F48)/E48,"N/A"),"") ->  | I48: =IF('FEA___(MPG-2)'!$B48,IFERROR(F48+H48,"N/A"),"") -> 
A49: =IF('FEA___(MPG-2)'!$B49,'FEA___(MPG-2)'!A49,"") ->  | C49: =IF('FEA___(MPG-2)'!$B49,'FEA___(MPG-2)'!D49,"") ->  | E49: ='FEA___(MPG-4)'!F49 ->  | F49: ='FEA___(MPG-6ab)'!O49 ->  | G49: ='FEA___(MPG-4)'!H49 ->  | H49: =IF('FEA___(MPG-2)'!$B49,IFERROR(G49*(1+F49)/E49,"N/A"),"") ->  | I49: =IF('FEA___(MPG-2)'!$B49,IFERROR(F49+H49,"N/A"),"") -> 
A50: =IF('FEA___(MPG-2)'!$B50,'FEA___(MPG-2)'!A50,"") ->  | C50: =IF('FEA___(MPG-2)'!$B50,'FEA___(MPG-2)'!D50,"") ->  | E50: ='FEA___(MPG-4)'!F50 ->  | F50: ='FEA___(MPG-6ab)'!O50 ->  | G50: ='FEA___(MPG-4)'!H50 ->  | H50: =IF('FEA___(MPG-2)'!$B50,IFERROR(G50*(1+F50)/E50,"N/A"),"") ->  | I50: =IF('FEA___(MPG-2)'!$B50,IFERROR(F50+H50,"N/A"),"") -> 
A51: =IF('FEA___(MPG-2)'!$B51,'FEA___(MPG-2)'!A51,"") ->  | C51: =IF('FEA___(MPG-2)'!$B51,'FEA___(MPG-2)'!D51,"") ->  | E51: ='FEA___(MPG-4)'!F51 ->  | F51: ='FEA___(MPG-6ab)'!O51 ->  | G51: ='FEA___(MPG-4)'!H51 ->  | H51: =IF('FEA___(MPG-2)'!$B51,IFERROR(G51*(1+F51)/E51,"N/A"),"") ->  | I51: =IF('FEA___(MPG-2)'!$B51,IFERROR(F51+H51,"N/A"),"") -> 
A52: =IF('FEA___(MPG-2)'!$B52,'FEA___(MPG-2)'!A52,"") ->  | C52: =IF('FEA___(MPG-2)'!$B52,'FEA___(MPG-2)'!D52,"") ->  | E52: ='FEA___(MPG-4)'!F52 ->  | F52: ='FEA___(MPG-6ab)'!O52 ->  | G52: ='FEA___(MPG-4)'!H52 ->  | H52: =IF('FEA___(MPG-2)'!$B52,IFERROR(G52*(1+F52)/E52,"N/A"),"") ->  | I52: =IF('FEA___(MPG-2)'!$B52,IFERROR(F52+H52,"N/A"),"") -> 
A53: =IF('FEA___(MPG-2)'!$B53,'FEA___(MPG-2)'!A53,"") ->  | C53: =IF('FEA___(MPG-2)'!$B53,'FEA___(MPG-2)'!D53,"") ->  | E53: ='FEA___(MPG-4)'!F53 ->  | F53: ='FEA___(MPG-6ab)'!O53 ->  | G53: ='FEA___(MPG-4)'!H53 ->  | H53: =IF('FEA___(MPG-2)'!$B53,IFERROR(G53*(1+F53)/E53,"N/A"),"") ->  | I53: =IF('FEA___(MPG-2)'!$B53,IFERROR(F53+H53,"N/A"),"") -> 
A54: =IF('FEA___(MPG-2)'!$B54,'FEA___(MPG-2)'!A54,"") ->  | C54: =IF('FEA___(MPG-2)'!$B54,'FEA___(MPG-2)'!D54,"") ->  | E54: ='FEA___(MPG-4)'!F54 ->  | F54: ='FEA___(MPG-6ab)'!O54 ->  | G54: ='FEA___(MPG-4)'!H54 ->  | H54: =IF('FEA___(MPG-2)'!$B54,IFERROR(G54*(1+F54)/E54,"N/A"),"") ->  | I54: =IF('FEA___(MPG-2)'!$B54,IFERROR(F54+H54,"N/A"),"") -> 
A55: =IF('FEA___(MPG-2)'!$B55,'FEA___(MPG-2)'!A55,"") ->  | C55: =IF('FEA___(MPG-2)'!$B55,'FEA___(MPG-2)'!D55,"") ->  | E55: ='FEA___(MPG-4)'!F55 ->  | F55: ='FEA___(MPG-6ab)'!O55 ->  | G55: ='FEA___(MPG-4)'!H55 ->  | H55: =IF('FEA___(MPG-2)'!$B55,IFERROR(G55*(1+F55)/E55,"N/A"),"") ->  | I55: =IF('FEA___(MPG-2)'!$B55,IFERROR(F55+H55,"N/A"),"") -> 
A56: =IF('FEA___(MPG-2)'!$B56,'FEA___(MPG-2)'!A56,"") ->  | C56: =IF('FEA___(MPG-2)'!$B56,'FEA___(MPG-2)'!D56,"") ->  | E56: ='FEA___(MPG-4)'!F56 ->  | F56: ='FEA___(MPG-6ab)'!O56 ->  | G56: ='FEA___(MPG-4)'!H56 ->  | H56: =IF('FEA___(MPG-2)'!$B56,IFERROR(G56*(1+F56)/E56,"N/A"),"") ->  | I56: =IF('FEA___(MPG-2)'!$B56,IFERROR(F56+H56,"N/A"),"") -> 
A57: =IF('FEA___(MPG-2)'!$B57,'FEA___(MPG-2)'!A57,"") ->  | C57: =IF('FEA___(MPG-2)'!$B57,'FEA___(MPG-2)'!D57,"") ->  | E57: ='FEA___(MPG-4)'!F57 ->  | F57: ='FEA___(MPG-6ab)'!O57 ->  | G57: ='FEA___(MPG-4)'!H57 ->  | H57: =IF('FEA___(MPG-2)'!$B57,IFERROR(G57*(1+F57)/E57,"N/A"),"") ->  | I57: =IF('FEA___(MPG-2)'!$B57,IFERROR(F57+H57,"N/A"),"") -> 
A58: =IF('FEA___(MPG-2)'!$B58,'FEA___(MPG-2)'!A58,"") ->  | C58: =IF('FEA___(MPG-2)'!$B58,'FEA___(MPG-2)'!D58,"") ->  | E58: ='FEA___(MPG-4)'!F58 ->  | F58: ='FEA___(MPG-6ab)'!O58 ->  | G58: ='FEA___(MPG-4)'!H58 ->  | H58: =IF('FEA___(MPG-2)'!$B58,IFERROR(G58*(1+F58)/E58,"N/A"),"") ->  | I58: =IF('FEA___(MPG-2)'!$B58,IFERROR(F58+H58,"N/A"),"") -> 
A59: =IF('FEA___(MPG-2)'!$B59,'FEA___(MPG-2)'!A59,"") ->  | C59: =IF('FEA___(MPG-2)'!$B59,'FEA___(MPG-2)'!D59,"") ->  | E59: ='FEA___(MPG-4)'!F59 ->  | F59: ='FEA___(MPG-6ab)'!O59 ->  | G59: ='FEA___(MPG-4)'!H59 ->  | H59: =IF('FEA___(MPG-2)'!$B59,IFERROR(G59*(1+F59)/E59,"N/A"),"") ->  | I59: =IF('FEA___(MPG-2)'!$B59,IFERROR(F59+H59,"N/A"),"") -> 
A60: =IF('FEA___(MPG-2)'!$B60,'FEA___(MPG-2)'!A60,"") ->  | C60: =IF('FEA___(MPG-2)'!$B60,'FEA___(MPG-2)'!D60,"") ->  | E60: ='FEA___(MPG-4)'!F60 ->  | F60: ='FEA___(MPG-6ab)'!O60 ->  | G60: ='FEA___(MPG-4)'!H60 ->  | H60: =IF('FEA___(MPG-2)'!$B60,IFERROR(G60*(1+F60)/E60,"N/A"),"") ->  | I60: =IF('FEA___(MPG-2)'!$B60,IFERROR(F60+H60,"N/A"),"") -> 
A61: =IF('FEA___(MPG-2)'!$B61,'FEA___(MPG-2)'!A61,"") ->  | C61: =IF('FEA___(MPG-2)'!$B61,'FEA___(MPG-2)'!D61,"") ->  | E61: ='FEA___(MPG-4)'!F61 ->  | F61: ='FEA___(MPG-6ab)'!O61 ->  | G61: ='FEA___(MPG-4)'!H61 ->  | H61: =IF('FEA___(MPG-2)'!$B61,IFERROR(G61*(1+F61)/E61,"N/A"),"") ->  | I61: =IF('FEA___(MPG-2)'!$B61,IFERROR(F61+H61,"N/A"),"") -> 
A63: =IF(C63=0,"N/A",MAX(A14:A62)+1) -> 14 | C63: Average | E63: =AVERAGE(E12:E61) -> 51.62399408 | F63: =AVERAGE(F12:F61) -> 0.04738625686 | G63: =AVERAGE(G12:G61) -> 1.896153846 | H63: =AVERAGE(H12:H61) -> 0.03995189785 | I63: =AVERAGE(I12:I61) -> 0.08733815472
A64: =IF(C64=0,"N/A",MAX(A62:A63)+1) -> 15 | C64: Median | I64: =MEDIAN(I12:I61) -> 0.08608620113
B67: Sources:
B68: =+A68+1 -> 1 | C68: =+'FEA___(MPG-6ab)'!R67 -> SNL Financial, Downloaded on March 31, 2014.
B69: =+B68+1 -> 2 | C69: Exhibit MPG-6, page 1.
B70: =+B69+1 -> 3 | C70: The Value Line Investment Survey, January 31, February 21, and March 21, 2014.

Sheet FEA___(MPG-8)
A2: ='FEA___(MPG-4)'!A1:J1 -> Rocky Mountain Power
B30: Note:
B31: 1988 represents the base year. Graph depicts increases or decreases from the base year.
B33: Sources:
B34: U.S. Department of Energy, Energy Information Administration.
B35: Edison Electric Institute, http://www.eei.org.

Sheet FEA___(MPG-9)
A1: ='FEA___(MPG-7)'!A1:I1 -> Rocky Mountain Power
A4: Multi-Stage Growth DCF Model
E8: 13-Week AVG | F8: Annualized | G8: First Stage | H8: Second Stage Growth | M8: Third Stage | N8: Multi-Stage | Q8: First Stage | V8: Second Stage | AA8: Third Stage
A9: Line | C9: Company | E9: Stock Price1 | F9: Dividend2 | G9: Growth3 | H9: Year 6 | I9: Year 7 | J9: Year 8 | K9: Year 9 | L9: Year 10 | M9: Growth4 | N9: Growth DCF | P9: Price | Q9: Year1 | R9: Year2 | S9: Year3 | T9: Year4 | U9: Year5 | V9: Year6 | W9: Year7 | X9: Year8 | Y9: Year9 | Z9: Year10 | AA9: Year11 | AB9: Year12 | AC9: Year13 | AD9: Year14 | AE9: Year15 | AF9: Year16 | AG9: Year17 | AH9: Year18 | AI9: Year19 | AJ9: Year20 | AK9: Year21 | AL9: Year22 | AM9: Year23 | AN9: Year24 | AO9: Year25 | AP9: Year26 | AQ9: Year27 | AR9: Year28 | AS9: Year29 | AT9: Year30 | AU9: Year31 | AV9: Year32 | AW9: Year33 | AX9: Year34 | AY9: Year35 | AZ9: Year36 | BA9: Year37 | BB9: Year38 | BC9: Year39 | BD9: Year40 | BE9: Year41 | BF9: Year42 | BG9: Year43 | BH9: Year44 | BI9: Year45 | BJ9: Year46 | BK9: Year47 | BL9: Year48 | BM9: Year49 | BN9: Year50 | BO9: Year51 | BP9: Year52 | BQ9: Year53 | BR9: Year54 | BS9: Year55 | BT9: Year56 | BU9: Year57 | BV9: Year58 | BW9: Year59 | BX9: Year60 | BY9: Year61 | BZ9: Year62 | CA9: Year63 | CB9: Year64 | CC9: Year65 | CD9: Year66 | CE9: Year67 | CF9: Year68 | CG9: Year69 | CH9: Year70 | CI9: Year71 | CJ9: Year72 | CK9: Year73 | CL9: Year74 | CM9: Year75 | CN9: Year76 | CO9: Year77 | CP9: Year78 | CQ9: Year79 | CR9: Year80 | CS9: Year81 | CT9: Year82 | CU9: Year83 | CV9: Year84 | CW9: Year85 | CX9: Year86 | CY9: Year87 | CZ9: Year88 | DA9: Year89 | DB9: Year90 | DC9: Year91 | DD9: Year92 | DE9: Year93 | DF9: Year94 | DG9: Year95 | DH9: Year96 | DI9: Year97 | DJ9: Year98 | DK9: Year99 | DL9: Year100 | DM9: Year101 | DN9: Year102 | DO9: Year103 | DP9: Year104 | DQ9: Year105 | DR9: Year106 | DS9: Year107 | DT9: Year108 | DU9: Year109 | DV9: Year110 | DW9: Year111 | DX9: Year112 | DY9: Year113 | DZ9: Year114 | EA9: Year115 | EB9: Year116 | EC9: Year117 | ED9: Year118 | EE9: Year119 | EF9: Year120 | EG9: Year121 | EH9: Year122 | EI9: Year123 | EJ9: Year124 | EK9: Year125 | EL9: Year126 | EM9: Year127 | EN9: Year128 | EO9: Year129 | EP9: Year130 | EQ9: Year131 | ER9: Year132 | ES9: Year133 | ET9: Year134 | EU9: Year135 | EV9: Year136 | EW9: Year137 | EX9: Year138 | EY9: Year139 | EZ9: Year140 | FA9: Year141 | FB9: Year142 | FC9: Year143 | FD9: Year144 | FE9: Year145 | FF9: Year146 | FG9: Year147 | FH9: Year148 | FI9: Year149 | FJ9: Year150 | FK9: Year151 | FL9: Year152 | FM9: Year153 | FN9: Year154 | FO9: Year155 | FP9: Year156 | FQ9: Year157 | FR9: Year158 | FS9: Year159 | FT9: Year160 | FU9: Year161 | FV9: Year162 | FW9: Year163 | FX9: Year164 | FY9: Year165 | FZ9: Year166 | GA9: Year167 | GB9: Year168 | GC9: Year169 | GD9: Year170 | GE9: Year171 | GF9: Year172 | GG9: Year173 | GH9: Year174 | GI9: Year175 | GJ9: Year176 | GK9: Year177 | GL9: Year178 | GM9: Year179 | GN9: Year180 | GO9: Year181 | GP9: Year182 | GQ9: Year183 | GR9: Year184 | GS9: Year185 | GT9: Year186 | GU9: Year187 | GV9: Year188 | GW9: Year189 | GX9: Year190 | GY9: Year191 | GZ9: Year192 | HA9: Year193 | HB9: Year194 | HC9: Year195 | HD9: Year196 | HE9: Year197 | HF9: Year198 | HG9: Year199 | HH9: Year200
E10: (1) | F10: (2) | G10: (3) | H10: (4) | I10: (5) | J10: (6) | K10: (7) | L10: (8) | M10: (9) | N10: (10)
A12: ='FEA___(MPG-2)'!A12 -> 1 | C12: ='FEA___(MPG-2)'!D12 -> ALLETE, Inc. | E12: ='FEA___(MPG-4)'!F12 -> 50.05269231 | F12: ='FEA___(MPG-4)'!H12 -> 1.96 | G12: ='FEA___(MPG-4)'!G12 -> 0.06 | H12: =IF('FEA___(MPG-2)'!$B12,IFERROR(G12-($G12-$M12)/6,"N/A"),"") -> 0.05783333333 | I12: =IF('FEA___(MPG-2)'!$B12,IFERROR(H12-($G12-$M12)/6,"N/A"),"") -> 0.05566666667 | J12: =IF('FEA___(MPG-2)'!$B12,IFERROR(I12-($G12-$M12)/6,"N/A"),"") -> 0.0535 | K12: =IF('FEA___(MPG-2)'!$B12,IFERROR(J12-($G12-$M12)/6,"N/A"),"") -> 0.05133333333 | L12: =IF('FEA___(MPG-2)'!$B12,IFERROR(K12-($G12-$M12)/6,"N/A"),"") -> 0.04916666667 | M12: =ROUND((((1+0.026)*(1+0.021)-1)+((1+0.024)*(1+0.021)-1))/2,3) -> 0.047 | N12: =IF('FEA___(MPG-2)'!$B12,IFERROR(IRR(P12:HH12),"N/A"),"") -> 0.0914444414 | P12: =-E12 -> -50.05269231 | Q12: =F12*(1+$G12) -> 2.0776 | R12: =Q12*(1+$G12) -> 2.202256 | S12: =R12*(1+$G12) -> 2.33439136 | T12: =S12*(1+$G12) -> 2.474454842 | U12: =T12*(1+$G12) -> 2.622922132 | V12: =U12*(1+H12) -> 2.774614462 | W12: =V12*(1+I12) -> 2.929068 | X12: =W12*(1+J12) -> 3.085773138 | Y12: =X12*(1+K12) -> 3.24417616 | Z12: =Y12*(1+L12) -> 3.403681487 | AA12: =Z12*(1+$M12) -> 3.563654517 | AB12: 3.73114628 | AC12: 3.906510155 | AD12: 4.090116132 | AE12: 4.28235159 | AF12: 4.483622115 | AG12: 4.694352354 | AH12: 4.914986915 | AI12: 5.1459913 | AJ12: 5.387852891 | AK12: 5.641081977 | AL12: 5.90621283 | AM12: 6.183804833 | AN12: 6.47444366 | AO12: 6.778742512 | AP12: 7.09734341 | AQ12: =AP12*(1+$M12) -> 7.430918551 | AR12: 7.780171722 | AS12: 8.145839793 | AT12: 8.528694264 | AU12: 8.929542894 | AV12: 9.34923141 | AW12: 9.788645286 | AX12: 10.24871161 | AY12: 10.73040106 | AZ12: 11.23472991 | BA12: 11.76276222 | BB12: 12.31561204 | BC12: 12.89444581 | BD12: 13.50048476 | BE12: 14.13500754 | BF12: 14.7993529 | BG12: =BF12*(1+$M12) -> 15.49492248 | BH12: 16.22318384 | BI12: 16.98567348 | BJ12: 17.78400013 | BK12: 18.61984814 | BL12: 19.494981 | BM12: 20.41124511 | BN12: 21.37057363 | BO12: 22.37499059 | BP12: 23.42661515 | BQ12: 24.52766606 | BR12: 25.68046637 | BS12: 26.88744829 | BT12: 28.15115835 | BU12: 29.4742628 | BV12: 30.85955315 | BW12: =BV12*(1+$M12) -> 32.30995215 | BX12: 33.8285199 | BY12: 35.41846033 | BZ12: 37.08312797 | CA12: 38.82603498 | CB12: 40.65085863 | CC12: 42.56144898 | CD12: 44.56183709 | CE12: 46.65624343 | CF12: 48.84908687 | CG12: 51.14499395 | CH12: 53.54880867 | CI12: 56.06560268 | CJ12: 58.700686 | CK12: 61.45961824 | CL12: 64.3482203 | CM12: =CL12*(1+$M12) -> 67.37258666 | CN12: 70.53909823 | CO12: 73.85443584 | CP12: 77.32559433 | CQ12: 80.95989726 | CR12: 84.76501243 | CS12: 88.74896802 | CT12: 92.92016952 | CU12: 97.28741748 | CV12: 101.8599261 | CW12: 106.6473426 | CX12: 111.6597677 | CY12: 116.9077768 | CZ12: 122.4024423 | DA12: 128.1553571 | DB12: 134.1786589 | DC12: =DB12*(1+$M12) -> 140.4850559 | DD12: 147.0878535 | DE12: 154.0009826 | DF12: 161.2390288 | DG12: 168.8172631 | DH12: 176.7516745 | DI12: 185.0590032 | DJ12: 193.7567764 | DK12: 202.8633449 | DL12: 212.3979221 | DM12: 222.3806244 | DN12: 232.8325138 | DO12: 243.7756419 | DP12: 255.2330971 | DQ12: 267.2290526 | DR12: 279.7888181 | DS12: =DR12*(1+$M12) -> 292.9388926 | DT12: 306.7070205 | DU12: 321.1222505 | DV12: 336.2149962 | DW12: 352.0171011 | DX12: 368.5619048 | DY12: 385.8843143 | DZ12: 404.0208771 | EA12: 423.0098583 | EB12: 442.8913217 | EC12: 463.7072138 | ED12: 485.5014528 | EE12: 508.3200211 | EF12: 532.2110621 | EG12: 557.224982 | EH12: 583.4145562 | EI12: =EH12*(1+$M12) -> 610.8350403 | EJ12: 639.5442872 | EK12: 669.6028687 | EL12: 701.0742036 | EM12: 734.0246911 | EN12: 768.5238516 | EO12: 804.6444726 | EP12: 842.4627629 | EQ12: 882.0585127 | ER12: 923.5152628 | ES12: 966.9204802 | ET12: 1012.365743 | EU12: 1059.946933 | EV12: 1109.764438 | EW12: 1161.923367 | EX12: 1216.533765 | EY12: =EX12*(1+$M12) -> 1273.710852 | EZ12: 1333.575262 | FA12: 1396.2533 | FB12: 1461.877205 | FC12: 1530.585433 | FD12: 1602.522949 | FE12: 1677.841527 | FF12: 1756.700079 | FG12: 1839.264983 | FH12: 1925.710437 | FI12: 2016.218828 | FJ12: 2110.981112 | FK12: 2210.197225 | FL12: 2314.076494 | FM12: 2422.83809 | FN12: 2536.71148 | FO12: =FN12*(1+$M12) -> 2655.936919 | FP12: 2780.765955 | FQ12: 2911.461954 | FR12: 3048.300666 | FS12: 3191.570798 | FT12: 3341.574625 | FU12: 3498.628632 | FV12: 3663.064178 | FW12: 3835.228195 | FX12: 4015.48392 | FY12: 4204.211664 | FZ12: 4401.809612 | GA12: 4608.694664 | GB12: 4825.303313 | GC12: 5052.092569 | GD12: 5289.54092 | GE12: =GD12*(1+$M12) -> 5538.149343 | GF12: 5798.442362 | GG12: 6070.969153 | GH12: 6356.304703 | GI12: 6655.051024 | GJ12: 6967.838422 | GK12: 7295.326828 | GL12: 7638.207189 | GM12: 7997.202927 | GN12: 8373.071464 | GO12: 8766.605823 | GP12: 9178.636297 | GQ12: 9610.032203 | GR12: 10061.70372 | GS12: 10534.60379 | GT12: 11029.73017 | GU12: =GT12*(1+$M12) -> 11548.12749 | GV12: 12090.88948 | GW12: 12659.16128 | GX12: 13254.14187 | GY12: 13877.08653 | GZ12: 14529.3096 | HA12: 15212.18715 | HB12: 15927.15995 | HC12: 16675.73646 | HD12: 17459.49608 | HE12: 18280.09239 | HF12: 19139.25674 | HG12: 20038.8018 | HH12: 20980.62549
A13: ='FEA___(MPG-2)'!A13 -> 2 | C13: ='FEA___(MPG-2)'!D13 -> Alliant Energy Corporation | E13: ='FEA___(MPG-4)'!F13 -> 52.68884615 | F13: ='FEA___(MPG-4)'!H13 -> 2.04 | G13: ='FEA___(MPG-4)'!G13 -> 0.055 | H13: =IF('FEA___(MPG-2)'!$B13,IFERROR(G13-($G13-$M13)/6,"N/A"),"") -> 0.05366666667 | I13: =IF('FEA___(MPG-2)'!$B13,IFERROR(H13-($G13-$M13)/6,"N/A"),"") -> 0.05233333333 | J13: =IF('FEA___(MPG-2)'!$B13,IFERROR(I13-($G13-$M13)/6,"N/A"),"") -> 0.051 | K13: =IF('FEA___(MPG-2)'!$B13,IFERROR(J13-($G13-$M13)/6,"N/A"),"") -> 0.04966666667 | L13: =IF('FEA___(MPG-2)'!$B13,IFERROR(K13-($G13-$M13)/6,"N/A"),"") -> 0.04833333333 | M13: =IF('FEA___(MPG-2)'!$B13,$M$12,"") -> 0.047 | N13: =IF('FEA___(MPG-2)'!$B13,IFERROR(IRR(P13:HH13),"N/A"),"") -> 0.08960623506 | P13: =-E13 -> -52.68884615 | Q13: =F13*(1+$G13) -> 2.1522 | R13: =Q13*(1+$G13) -> 2.270571 | S13: 2.395452405 | T13: 2.527202287 | U13: 2.666198413 | V13: =U13*(1+H13) -> 2.809284395 | W13: 2.956303611 | X13: 3.107075095 | Y13: 3.261393158 | Z13: 3.419027161 | AA13: =Z13*(1+$M13) -> 3.579721438 | AB13: =AA13*(1+$M13) -> 3.747968345 | AC13: =AB13*(1+$M13) -> 3.924122858 | AD13: =AC13*(1+$M13) -> 4.108556632 | AE13: =AD13*(1+$M13) -> 4.301658794 | AF13: =AE13*(1+$M13) -> 4.503836757 | AG13: =AF13*(1+$M13) -> 4.715517084 | AH13: =AG13*(1+$M13) -> 4.937146387 | AI13: =AH13*(1+$M13) -> 5.169192268 | AJ13: =AI13*(1+$M13) -> 5.412144304 | AK13: =AJ13*(1+$M13) -> 5.666515086 | AL13: =AK13*(1+$M13) -> 5.932841295 | AM13: =AL13*(1+$M13) -> 6.211684836 | AN13: =AM13*(1+$M13) -> 6.503634024 | AO13: =AN13*(1+$M13) -> 6.809304823 | AP13: =AO13*(1+$M13) -> 7.129342149 | AQ13: =AP13*(1+$M13) -> 7.46442123 | AR13: =AQ13*(1+$M13) -> 7.815249028 | AS13: =AR13*(1+$M13) -> 8.182565733 | AT13: =AS13*(1+$M13) -> 8.567146322 | AU13: =AT13*(1+$M13) -> 8.969802199 | AV13: =AU13*(1+$M13) -> 9.391382903 | AW13: =AV13*(1+$M13) -> 9.832777899 | AX13: =AW13*(1+$M13) -> 10.29491846 | AY13: =AX13*(1+$M13) -> 10.77877963 | AZ13: =AY13*(1+$M13) -> 11.28538227 | BA13: =AZ13*(1+$M13) -> 11.81579524 | BB13: =BA13*(1+$M13) -> 12.37113761 | BC13: =BB13*(1+$M13) -> 12.95258108 | BD13: =BC13*(1+$M13) -> 13.56135239 | BE13: =BD13*(1+$M13) -> 14.19873595 | BF13: =BE13*(1+$M13) -> 14.86607654 | BG13: =BF13*(1+$M13) -> 15.56478214 | BH13: =BG13*(1+$M13) -> 16.2963269 | BI13: =BH13*(1+$M13) -> 17.06225427 | BJ13: =BI13*(1+$M13) -> 17.86418022 | BK13: =BJ13*(1+$M13) -> 18.70379669 | BL13: =BK13*(1+$M13) -> 19.58287513 | BM13: =BL13*(1+$M13) -> 20.50327026 | BN13: =BM13*(1+$M13) -> 21.46692397 | BO13: =BN13*(1+$M13) -> 22.47586939 | BP13: =BO13*(1+$M13) -> 23.53223525 | BQ13: =BP13*(1+$M13) -> 24.63825031 | BR13: =BQ13*(1+$M13) -> 25.79624807 | BS13: =BR13*(1+$M13) -> 27.00867173 | BT13: =BS13*(1+$M13) -> 28.27807931 | BU13: =BT13*(1+$M13) -> 29.60714903 | BV13: =BU13*(1+$M13) -> 30.99868504 | BW13: =BV13*(1+$M13) -> 32.45562323 | BX13: =BW13*(1+$M13) -> 33.98103753 | BY13: =BX13*(1+$M13) -> 35.57814629 | BZ13: =BY13*(1+$M13) -> 37.25031917 | CA13: =BZ13*(1+$M13) -> 39.00108417 | CB13: =CA13*(1+$M13) -> 40.83413512 | CC13: =CB13*(1+$M13) -> 42.75333947 | CD13: =CC13*(1+$M13) -> 44.76274643 | CE13: =CD13*(1+$M13) -> 46.86659551 | CF13: =CE13*(1+$M13) -> 49.0693255 | CG13: =CF13*(1+$M13) -> 51.3755838 | CH13: =CG13*(1+$M13) -> 53.79023624 | CI13: =CH13*(1+$M13) -> 56.31837734 | CJ13: =CI13*(1+$M13) -> 58.96534107 | CK13: =CJ13*(1+$M13) -> 61.7367121 | CL13: =CK13*(1+$M13) -> 64.63833757 | CM13: =CL13*(1+$M13) -> 67.67633944 | CN13: =CM13*(1+$M13) -> 70.85712739 | CO13: =CN13*(1+$M13) -> 74.18741238 | CP13: =CO13*(1+$M13) -> 77.67422076 | CQ13: =CP13*(1+$M13) -> 81.32490914 | CR13: =CQ13*(1+$M13) -> 85.14717987 | CS13: =CR13*(1+$M13) -> 89.14909732 | CT13: =CS13*(1+$M13) -> 93.3391049 | CU13: =CT13*(1+$M13) -> 97.72604283 | CV13: =CU13*(1+$M13) -> 102.3191668 | CW13: =CV13*(1+$M13) -> 107.1281677 | CX13: =CW13*(1+$M13) -> 112.1631916 | CY13: =CX13*(1+$M13) -> 117.4348616 | CZ13: =CY13*(1+$M13) -> 122.9543001 | DA13: =CZ13*(1+$M13) -> 128.7331522 | DB13: =DA13*(1+$M13) -> 134.7836103 | DC13: =DB13*(1+$M13) -> 141.11844 | DD13: =DC13*(1+$M13) -> 147.7510067 | DE13: =DD13*(1+$M13) -> 154.695304 | DF13: =DE13*(1+$M13) -> 161.9659833 | DG13: =DF13*(1+$M13) -> 169.5783845 | DH13: =DG13*(1+$M13) -> 177.5485686 | DI13: =DH13*(1+$M13) -> 185.8933513 | DJ13: =DI13*(1+$M13) -> 194.6303388 | DK13: =DJ13*(1+$M13) -> 203.7779647 | DL13: =DK13*(1+$M13) -> 213.3555291 | DM13: =DL13*(1+$M13) -> 223.3832389 | DN13: =DM13*(1+$M13) -> 233.8822512 | DO13: =DN13*(1+$M13) -> 244.874717 | DP13: =DO13*(1+$M13) -> 256.3838287 | DQ13: =DP13*(1+$M13) -> 268.4338686 | DR13: =DQ13*(1+$M13) -> 281.0502604 | DS13: =DR13*(1+$M13) -> 294.2596227 | DT13: =DS13*(1+$M13) -> 308.0898249 | DU13: =DT13*(1+$M13) -> 322.5700467 | DV13: =DU13*(1+$M13) -> 337.7308389 | DW13: =DV13*(1+$M13) -> 353.6041883 | DX13: =DW13*(1+$M13) -> 370.2235852 | DY13: =DX13*(1+$M13) -> 387.6240937 | DZ13: =DY13*(1+$M13) -> 405.8424261 | EA13: =DZ13*(1+$M13) -> 424.9170201 | EB13: =EA13*(1+$M13) -> 444.8881201 | EC13: =EB13*(1+$M13) -> 465.7978617 | ED13: =EC13*(1+$M13) -> 487.6903612 | EE13: =ED13*(1+$M13) -> 510.6118082 | EF13: =EE13*(1+$M13) -> 534.6105632 | EG13: =EF13*(1+$M13) -> 559.7372596 | EH13: =EG13*(1+$M13) -> 586.0449108 | EI13: =EH13*(1+$M13) -> 613.5890217 | EJ13: =EI13*(1+$M13) -> 642.4277057 | EK13: =EJ13*(1+$M13) -> 672.6218078 | EL13: =EK13*(1+$M13) -> 704.2350328 | EM13: =EL13*(1+$M13) -> 737.3340793 | EN13: =EM13*(1+$M13) -> 771.9887811 | EO13: =EN13*(1+$M13) -> 808.2722538 | EP13: =EO13*(1+$M13) -> 846.2610497 | EQ13: =EP13*(1+$M13) -> 886.035319 | ER13: =EQ13*(1+$M13) -> 927.678979 | ES13: =ER13*(1+$M13) -> 971.2798911 | ET13: =ES13*(1+$M13) -> 1016.930046 | EU13: =ET13*(1+$M13) -> 1064.725758 | EV13: =EU13*(1+$M13) -> 1114.767869 | EW13: =EV13*(1+$M13) -> 1167.161959 | EX13: =EW13*(1+$M13) -> 1222.018571 | EY13: =EX13*(1+$M13) -> 1279.453443 | EZ13: =EY13*(1+$M13) -> 1339.587755 | FA13: =EZ13*(1+$M13) -> 1402.54838 | FB13: =FA13*(1+$M13) -> 1468.468154 | FC13: =FB13*(1+$M13) -> 1537.486157 | FD13: =FC13*(1+$M13) -> 1609.748006 | FE13: =FD13*(1+$M13) -> 1685.406162 | FF13: =FE13*(1+$M13) -> 1764.620252 | FG13: =FF13*(1+$M13) -> 1847.557404 | FH13: =FG13*(1+$M13) -> 1934.392602 | FI13: =FH13*(1+$M13) -> 2025.309054 | FJ13: =FI13*(1+$M13) -> 2120.49858 | FK13: =FJ13*(1+$M13) -> 2220.162013 | FL13: =FK13*(1+$M13) -> 2324.509628 | FM13: =FL13*(1+$M13) -> 2433.76158 | FN13: =FM13*(1+$M13) -> 2548.148374 | FO13: =FN13*(1+$M13) -> 2667.911348 | FP13: =FO13*(1+$M13) -> 2793.303181 | FQ13: =FP13*(1+$M13) -> 2924.588431 | FR13: =FQ13*(1+$M13) -> 3062.044087 | FS13: =FR13*(1+$M13) -> 3205.960159 | FT13: =FS13*(1+$M13) -> 3356.640287 | FU13: =FT13*(1+$M13) -> 3514.40238 | FV13: =FU13*(1+$M13) -> 3679.579292 | FW13: =FV13*(1+$M13) -> 3852.519519 | FX13: =FW13*(1+$M13) -> 4033.587936 | FY13: =FX13*(1+$M13) -> 4223.166569 | FZ13: =FY13*(1+$M13) -> 4421.655398 | GA13: =FZ13*(1+$M13) -> 4629.473202 | GB13: =GA13*(1+$M13) -> 4847.058442 | GC13: =GB13*(1+$M13) -> 5074.870189 | GD13: =GC13*(1+$M13) -> 5313.389088 | GE13: =GD13*(1+$M13) -> 5563.118375 | GF13: =GE13*(1+$M13) -> 5824.584939 | GG13: =GF13*(1+$M13) -> 6098.340431 | GH13: =GG13*(1+$M13) -> 6384.962431 | GI13: =GH13*(1+$M13) -> 6685.055665 | GJ13: =GI13*(1+$M13) -> 6999.253281 | GK13: =GJ13*(1+$M13) -> 7328.218186 | GL13: =GK13*(1+$M13) -> 7672.64444 | GM13: =GL13*(1+$M13) -> 8033.258729 | GN13: =GM13*(1+$M13) -> 8410.821889 | GO13: =GN13*(1+$M13) -> 8806.130518 | GP13: =GO13*(1+$M13) -> 9220.018653 | GQ13: =GP13*(1+$M13) -> 9653.359529 | GR13: =GQ13*(1+$M13) -> 10107.06743 | GS13: =GR13*(1+$M13) -> 10582.0996 | GT13: =GS13*(1+$M13) -> 11079.45828 | GU13: =GT13*(1+$M13) -> 11600.19282 | GV13: =GU13*(1+$M13) -> 12145.40188 | GW13: =GV13*(1+$M13) -> 12716.23577 | GX13: =GW13*(1+$M13) -> 13313.89885 | GY13: =GX13*(1+$M13) -> 13939.65209 | GZ13: =GY13*(1+$M13) -> 14594.81574 | HA13: =GZ13*(1+$M13) -> 15280.77208 | HB13: =HA13*(1+$M13) -> 15998.96837 | HC13: =HB13*(1+$M13) -> 16750.91988 | HD13: =HC13*(1+$M13) -> 17538.21312 | HE13: =HD13*(1+$M13) -> 18362.50913 | HF13: =HE13*(1+$M13) -> 19225.54706 | HG13: =HF13*(1+$M13) -> 20129.14778 | HH13: =HG13*(1+$M13) -> 21075.21772
A14: ='FEA___(MPG-2)'!A14 -> 3 | C14: ='FEA___(MPG-2)'!D14 -> Avista Corporation | E14: ='FEA___(MPG-4)'!F14 -> 29.04269231 | F14: ='FEA___(MPG-4)'!H14 -> 1.22 | G14: ='FEA___(MPG-4)'!G14 -> 0.05 | H14: =IF('FEA___(MPG-2)'!$B14,IFERROR(G14-($G14-$M14)/6,"N/A"),"") -> 0.0495 | I14: =IF('FEA___(MPG-2)'!$B14,IFERROR(H14-($G14-$M14)/6,"N/A"),"") -> 0.049 | J14: =IF('FEA___(MPG-2)'!$B14,IFERROR(I14-($G14-$M14)/6,"N/A"),"") -> 0.0485 | K14: =IF('FEA___(MPG-2)'!$B14,IFERROR(J14-($G14-$M14)/6,"N/A"),"") -> 0.048 | L14: =IF('FEA___(MPG-2)'!$B14,IFERROR(K14-($G14-$M14)/6,"N/A"),"") -> 0.0475 | M14: =IF('FEA___(MPG-2)'!$B14,$M$12,"") -> 0.047 | N14: =IF('FEA___(MPG-2)'!$B14,IFERROR(IRR(P14:HH14),"N/A"),"") -> 0.09180089254 | P14: =-E14 -> -29.04269231 | Q14: =F14*(1+$G14) -> 1.281 | R14: =Q14*(1+$G14) -> 1.34505 | S14: 1.4123025 | T14: 1.482917625 | U14: 1.557063506 | V14: =U14*(1+H14) -> 1.63413815 | W14: =V14*(1+I14) -> 1.714210919 | X14: =W14*(1+J14) -> 1.797350149 | Y14: =X14*(1+K14) -> 1.883622956 | Z14: =Y14*(1+L14) -> 1.973095046 | AA14: =Z14*(1+$M14) -> 2.065830513 | AB14: =AA14*(1+$M14) -> 2.162924548 | AC14: =AB14*(1+$M14) -> 2.264582001 | AD14: =AC14*(1+$M14) -> 2.371017355 | AE14: =AD14*(1+$M14) -> 2.482455171 | AF14: =AE14*(1+$M14) -> 2.599130564 | AG14: =AF14*(1+$M14) -> 2.721289701 | AH14: =AG14*(1+$M14) -> 2.849190317 | AI14: =AH14*(1+$M14) -> 2.983102261 | AJ14: =AI14*(1+$M14) -> 3.123308068 | AK14: =AJ14*(1+$M14) -> 3.270103547 | AL14: =AK14*(1+$M14) -> 3.423798414 | AM14: =AL14*(1+$M14) -> 3.584716939 | AN14: =AM14*(1+$M14) -> 3.753198635 | AO14: =AN14*(1+$M14) -> 3.929598971 | AP14: =AO14*(1+$M14) -> 4.114290123 | AQ14: =AP14*(1+$M14) -> 4.307661758 | AR14: =AQ14*(1+$M14) -> 4.510121861 | AS14: =AR14*(1+$M14) -> 4.722097589 | AT14: =AS14*(1+$M14) -> 4.944036175 | AU14: =AT14*(1+$M14) -> 5.176405875 | AV14: =AU14*(1+$M14) -> 5.419696952 | AW14: =AV14*(1+$M14) -> 5.674422708 | AX14: =AW14*(1+$M14) -> 5.941120576 | AY14: =AX14*(1+$M14) -> 6.220353243 | AZ14: =AY14*(1+$M14) -> 6.512709845 | BA14: =AZ14*(1+$M14) -> 6.818807208 | BB14: =BA14*(1+$M14) -> 7.139291147 | BC14: =BB14*(1+$M14) -> 7.47483783 | BD14: =BC14*(1+$M14) -> 7.826155209 | BE14: =BD14*(1+$M14) -> 8.193984503 | BF14: =BE14*(1+$M14) -> 8.579101775 | BG14: =BF14*(1+$M14) -> 8.982319558 | BH14: =BG14*(1+$M14) -> 9.404488578 | BI14: =BH14*(1+$M14) -> 9.846499541 | BJ14: =BI14*(1+$M14) -> 10.30928502 | BK14: =BJ14*(1+$M14) -> 10.79382142 | BL14: =BK14*(1+$M14) -> 11.30113102 | BM14: =BL14*(1+$M14) -> 11.83228418 | BN14: =BM14*(1+$M14) -> 12.38840154 | BO14: =BN14*(1+$M14) -> 12.97065641 | BP14: =BO14*(1+$M14) -> 13.58027726 | BQ14: =BP14*(1+$M14) -> 14.21855029 | BR14: =BQ14*(1+$M14) -> 14.88682215 | BS14: =BR14*(1+$M14) -> 15.5865028 | BT14: =BS14*(1+$M14) -> 16.31906843 | BU14: =BT14*(1+$M14) -> 17.08606464 | BV14: =BU14*(1+$M14) -> 17.88910968 | BW14: =BV14*(1+$M14) -> 18.72989784 | BX14: =BW14*(1+$M14) -> 19.61020303 | BY14: =BX14*(1+$M14) -> 20.53188258 | BZ14: =BY14*(1+$M14) -> 21.49688106 | CA14: =BZ14*(1+$M14) -> 22.50723447 | CB14: =CA14*(1+$M14) -> 23.56507449 | CC14: =CB14*(1+$M14) -> 24.67263299 | CD14: =CC14*(1+$M14) -> 25.83224674 | CE14: =CD14*(1+$M14) -> 27.04636234 | CF14: =CE14*(1+$M14) -> 28.31754137 | CG14: =CF14*(1+$M14) -> 29.64846581 | CH14: =CG14*(1+$M14) -> 31.0419437 | CI14: =CH14*(1+$M14) -> 32.50091506 | CJ14: =CI14*(1+$M14) -> 34.02845807 | CK14: =CJ14*(1+$M14) -> 35.62779559 | CL14: =CK14*(1+$M14) -> 37.30230199 | CM14: =CL14*(1+$M14) -> 39.05551018 | CN14: =CM14*(1+$M14) -> 40.89111916 | CO14: =CN14*(1+$M14) -> 42.81300176 | CP14: =CO14*(1+$M14) -> 44.82521284 | CQ14: =CP14*(1+$M14) -> 46.93199785 | CR14: =CQ14*(1+$M14) -> 49.13780174 | CS14: =CR14*(1+$M14) -> 51.44727843 | CT14: =CS14*(1+$M14) -> 53.86530051 | CU14: =CT14*(1+$M14) -> 56.39696964 | CV14: =CU14*(1+$M14) -> 59.04762721 | CW14: =CV14*(1+$M14) -> 61.82286569 | CX14: =CW14*(1+$M14) -> 64.72854038 | CY14: =CX14*(1+$M14) -> 67.77078177 | CZ14: =CY14*(1+$M14) -> 70.95600852 | DA14: =CZ14*(1+$M14) -> 74.29094092 | DB14: =DA14*(1+$M14) -> 77.78261514 | DC14: =DB14*(1+$M14) -> 81.43839805 | DD14: =DC14*(1+$M14) -> 85.26600276 | DE14: =DD14*(1+$M14) -> 89.27350489 | DF14: =DE14*(1+$M14) -> 93.46935962 | DG14: =DF14*(1+$M14) -> 97.86241952 | DH14: =DG14*(1+$M14) -> 102.4619532 | DI14: =DH14*(1+$M14) -> 107.277665 | DJ14: =DI14*(1+$M14) -> 112.3197153 | DK14: =DJ14*(1+$M14) -> 117.5987419 | DL14: =DK14*(1+$M14) -> 123.1258828 | DM14: =DL14*(1+$M14) -> 128.9127993 | DN14: =DM14*(1+$M14) -> 134.9717008 | DO14: =DN14*(1+$M14) -> 141.3153708 | DP14: =DO14*(1+$M14) -> 147.9571932 | DQ14: =DP14*(1+$M14) -> 154.9111813 | DR14: =DQ14*(1+$M14) -> 162.1920068 | DS14: =DR14*(1+$M14) -> 169.8150311 | DT14: =DS14*(1+$M14) -> 177.7963376 | DU14: =DT14*(1+$M14) -> 186.1527655 | DV14: =DU14*(1+$M14) -> 194.9019454 | DW14: =DV14*(1+$M14) -> 204.0623369 | DX14: =DW14*(1+$M14) -> 213.6532667 | DY14: =DX14*(1+$M14) -> 223.6949702 | DZ14: =DY14*(1+$M14) -> 234.2086338 | EA14: =DZ14*(1+$M14) -> 245.2164396 | EB14: =EA14*(1+$M14) -> 256.7416123 | EC14: =EB14*(1+$M14) -> 268.8084681 | ED14: =EC14*(1+$M14) -> 281.4424661 | EE14: =ED14*(1+$M14) -> 294.670262 | EF14: =EE14*(1+$M14) -> 308.5197643 | EG14: =EF14*(1+$M14) -> 323.0201932 | EH14: =EG14*(1+$M14) -> 338.2021423 | EI14: =EH14*(1+$M14) -> 354.097643 | EJ14: =EI14*(1+$M14) -> 370.7402322 | EK14: =EJ14*(1+$M14) -> 388.1650231 | EL14: =EK14*(1+$M14) -> 406.4087792 | EM14: =EL14*(1+$M14) -> 425.5099918 | EN14: =EM14*(1+$M14) -> 445.5089614 | EO14: =EN14*(1+$M14) -> 466.4478826 | EP14: =EO14*(1+$M14) -> 488.3709331 | EQ14: =EP14*(1+$M14) -> 511.324367 | ER14: =EQ14*(1+$M14) -> 535.3566122 | ES14: =ER14*(1+$M14) -> 560.518373 | ET14: =ES14*(1+$M14) -> 586.8627365 | EU14: =ET14*(1+$M14) -> 614.4452851 | EV14: =EU14*(1+$M14) -> 643.3242135 | EW14: =EV14*(1+$M14) -> 673.5604516 | EX14: =EW14*(1+$M14) -> 705.2177928 | EY14: =EX14*(1+$M14) -> 738.3630291 | EZ14: =EY14*(1+$M14) -> 773.0660914 | FA14: =EZ14*(1+$M14) -> 809.4001977 | FB14: =FA14*(1+$M14) -> 847.442007 | FC14: =FB14*(1+$M14) -> 887.2717814 | FD14: =FC14*(1+$M14) -> 928.9735551 | FE14: =FD14*(1+$M14) -> 972.6353122 | FF14: =FE14*(1+$M14) -> 1018.349172 | FG14: =FF14*(1+$M14) -> 1066.211583 | FH14: =FG14*(1+$M14) -> 1116.323527 | FI14: =FH14*(1+$M14) -> 1168.790733 | FJ14: =FI14*(1+$M14) -> 1223.723898 | FK14: =FJ14*(1+$M14) -> 1281.238921 | FL14: =FK14*(1+$M14) -> 1341.45715 | FM14: =FL14*(1+$M14) -> 1404.505636 | FN14: =FM14*(1+$M14) -> 1470.517401 | FO14: =FN14*(1+$M14) -> 1539.631719 | FP14: =FO14*(1+$M14) -> 1611.99441 | FQ14: =FP14*(1+$M14) -> 1687.758147 | FR14: =FQ14*(1+$M14) -> 1767.08278 | FS14: =FR14*(1+$M14) -> 1850.13567 | FT14: =FS14*(1+$M14) -> 1937.092047 | FU14: =FT14*(1+$M14) -> 2028.135373 | FV14: =FU14*(1+$M14) -> 2123.457736 | FW14: =FV14*(1+$M14) -> 2223.260249 | FX14: =FW14*(1+$M14) -> 2327.753481 | FY14: =FX14*(1+$M14) -> 2437.157895 | FZ14: =FY14*(1+$M14) -> 2551.704316 | GA14: =FZ14*(1+$M14) -> 2671.634418 | GB14: =GA14*(1+$M14) -> 2797.201236 | GC14: =GB14*(1+$M14) -> 2928.669694 | GD14: =GC14*(1+$M14) -> 3066.31717 | GE14: =GD14*(1+$M14) -> 3210.434077 | GF14: =GE14*(1+$M14) -> 3361.324478 | GG14: =GF14*(1+$M14) -> 3519.306729 | GH14: =GG14*(1+$M14) -> 3684.714145 | GI14: =GH14*(1+$M14) -> 3857.89571 | GJ14: =GI14*(1+$M14) -> 4039.216808 | GK14: =GJ14*(1+$M14) -> 4229.059998 | GL14: =GK14*(1+$M14) -> 4427.825818 | GM14: =GL14*(1+$M14) -> 4635.933632 | GN14: =GM14*(1+$M14) -> 4853.822512 | GO14: =GN14*(1+$M14) -> 5081.95217 | GP14: =GO14*(1+$M14) -> 5320.803922 | GQ14: =GP14*(1+$M14) -> 5570.881707 | GR14: =GQ14*(1+$M14) -> 5832.713147 | GS14: =GR14*(1+$M14) -> 6106.850665 | GT14: =GS14*(1+$M14) -> 6393.872646 | GU14: =GT14*(1+$M14) -> 6694.384661 | GV14: =GU14*(1+$M14) -> 7009.02074 | GW14: =GV14*(1+$M14) -> 7338.444714 | GX14: =GW14*(1+$M14) -> 7683.351616 | GY14: =GX14*(1+$M14) -> 8044.469142 | GZ14: =GY14*(1+$M14) -> 8422.559192 | HA14: =GZ14*(1+$M14) -> 8818.419474 | HB14: =HA14*(1+$M14) -> 9232.885189 | HC14: =HB14*(1+$M14) -> 9666.830793 | HD14: =HC14*(1+$M14) -> 10121.17184 | HE14: =HD14*(1+$M14) -> 10596.86692 | HF14: =HE14*(1+$M14) -> 11094.91966 | HG14: =HF14*(1+$M14) -> 11616.38089 | HH14: =HG14*(1+$M14) -> 12162.35079
A15: ='FEA___(MPG-2)'!A15 -> 4 | C15: ='FEA___(MPG-2)'!D15 -> DTE Energy Company | E15: ='FEA___(MPG-4)'!F15 -> 69.03230769 | F15: ='FEA___(MPG-4)'!H15 -> 2.62 | G15: ='FEA___(MPG-4)'!G15 -> 0.05736666667 | H15: =IF('FEA___(MPG-2)'!$B15,IFERROR(G15-($G15-$M15)/6,"N/A"),"") -> 0.05563888889 | I15: =IF('FEA___(MPG-2)'!$B15,IFERROR(H15-($G15-$M15)/6,"N/A"),"") -> 0.05391111111 | J15: =IF('FEA___(MPG-2)'!$B15,IFERROR(I15-($G15-$M15)/6,"N/A"),"") -> 0.05218333333 | K15: =IF('FEA___(MPG-2)'!$B15,IFERROR(J15-($G15-$M15)/6,"N/A"),"") -> 0.05045555556 | L15: =IF('FEA___(MPG-2)'!$B15,IFERROR(K15-($G15-$M15)/6,"N/A"),"") -> 0.04872777778 | M15: =IF('FEA___(MPG-2)'!$B15,$M$12,"") -> 0.047 | N15: =IF('FEA___(MPG-2)'!$B15,IFERROR(IRR(P15:HH15),"N/A"),"") -> 0.08938856927 | P15: -69.03230769 | Q15: 2.770300667 | R15: =Q15*(1+$G15) -> 2.929223582 | S15: 3.097263374 | T15: 3.27494305 | U15: 3.462815616 | V15: 3.65548283 | W15: 3.852553971 | X15: 4.053593079 | Y15: 4.258119369 | Z15: 4.465608064 | AA15: 4.675491643 | AB15: 4.89523975 | AC15: 5.125316018 | AD15: 5.366205871 | AE15: 5.618417547 | AF15: 5.882483172 | AG15: 6.158959881 | AH15: 6.448430995 | AI15: 6.751507252 | AJ15: 7.068828093 | AK15: 7.401063013 | AL15: 7.748912975 | AM15: 8.113111885 | AN15: 8.494428143 | AO15: 8.893666266 | AP15: 9.31166858 | AQ15: 9.749317004 | AR15: 10.2075349 | AS15: 10.68728904 | AT15: 11.18959163 | AU15: 11.71550243 | AV15: 12.26613105 | AW15: 12.84263921 | AX15: 13.44624325 | AY15: 14.07821668 | AZ15: 14.73989287 | BA15: 15.43266783 | BB15: 16.15800322 | BC15: 16.91742937 | BD15: 17.71254855 | BE15: 18.54503834 | BF15: 19.41665514 | BG15: 20.32923793 | BH15: 21.28471211 | BI15: 22.28509358 | BJ15: 23.33249298 | BK15: 24.42912015 | BL15: 25.5772888 | BM15: 26.77942137 | BN15: 28.03805417 | BO15: 29.35584272 | BP15: 30.73556733 | BQ15: 32.18013899 | BR15: 33.69260552 | BS15: 35.27615798 | BT15: 36.93413741 | BU15: 38.67004187 | BV15: 40.48753384 | BW15: 42.39044793 | BX15: 44.38279898 | BY15: 46.46879053 | BZ15: 48.65282368 | CA15: 50.9395064 | CB15: 53.3336632 | CC15: 55.84034537 | CD15: 58.4648416 | CE15: 61.21268916 | CF15: 64.08968555 | CG15: 67.10190077 | CH15: 70.2556901 | CI15: 73.55770754 | CJ15: 77.01491979 | CK15: 80.63462102 | CL15: 84.42444821 | CM15: 88.39239728 | CN15: 92.54683995 | CO15: 96.89654143 | CP15: 101.4506789 | CQ15: 106.2188608 | CR15: 111.2111472 | CS15: 116.4380712 | CT15: 121.9106605 | CU15: 127.6404615 | CV15: 133.6395632 | CW15: 139.9206227 | CX15: 146.496892 | CY15: 153.3822459 | CZ15: 160.5912115 | DA15: 168.1389984 | DB15: 176.0415313 | DC15: 184.3154833 | DD15: 192.978311 | DE15: 202.0482916 | DF15: 211.5445613 | DG15: 221.4871557 | DH15: 231.897052 | DI15: 242.7962135 | DJ15: 254.2076355 | DK15: 266.1553944 | DL15: 278.6646979 | DM15: 291.7619387 | DN15: 305.4747498 | DO15: 319.8320631 | DP15: 334.86417 | DQ15: 350.602786 | DR15: 367.081117 | DS15: 384.3339295 | DT15: 402.3976242 | DU15: 421.3103125 | DV15: 441.1118972 | DW15: 461.8441564 | DX15: 483.5508317 | DY15: 506.2777208 | DZ15: 530.0727737 | EA15: 554.986194 | EB15: 581.0705452 | EC15: 608.3808608 | ED15: 636.9747612 | EE15: 666.912575 | EF15: 698.257466 | EG15: 731.0755669 | EH15: 765.4361186 | EI15: 801.4116162 | EJ15: 839.0779621 | EK15: 878.5146263 | EL15: 919.8048138 | EM15: 963.03564 | EN15: 1008.298315 | EO15: 1055.688336 | EP15: 1105.305688 | EQ15: 1157.255055 | ER15: 1211.646043 | ES15: 1268.593407 | ET15: 1328.217297 | EU15: 1390.64351 | EV15: 1456.003755 | EW15: 1524.435931 | EX15: 1596.08442 | EY15: 1671.100388 | EZ15: 1749.642106 | FA15: 1831.875285 | FB15: 1917.973423 | FC15: 2008.118174 | FD15: 2102.499728 | FE15: 2201.317215 | FF15: 2304.779125 | FG15: 2413.103743 | FH15: 2526.519619 | FI15: 2645.266042 | FJ15: 2769.593545 | FK15: 2899.764442 | FL15: 3036.053371 | FM15: 3178.747879 | FN15: 3328.14903 | FO15: 3484.572034 | FP15: 3648.34692 | FQ15: 3819.819225 | FR15: 3999.350728 | FS15: 4187.320213 | FT15: 4384.124263 | FU15: 4590.178103 | FV15: 4805.916474 | FW15: 5031.794548 | FX15: 5268.288892 | FY15: 5515.89847 | FZ15: 5775.145698 | GA15: 6046.577546 | GB15: 6330.76669 | GC15: 6628.312725 | GD15: 6939.843423 | GE15: 7266.016064 | GF15: 7607.518819 | GG15: 7965.072203 | GH15: 8339.430597 | GI15: 8731.383835 | GJ15: 9141.758875 | GK15: 9571.421542 | GL15: 10021.27835 | GM15: 10492.27844 | GN15: 10985.41552 | GO15: 11501.73005 | GP15: 12042.31137 | GQ15: 12608.3 | GR15: 13200.8901 | GS15: 13821.33193 | GT15: 14470.93454 | GU15: 15151.06846 | GV15: 15863.16868 | GW15: 16608.7376 | GX15: 17389.34827 | GY15: 18206.64764 | GZ15: 19062.36008 | HA15: 19958.291 | HB15: 20896.33068 | HC15: 21878.45822 | HD15: 22906.74576 | HE15: 23983.36281 | HF15: 25110.58086 | HG15: 26290.77816 | HH15: 27526.44474
A16: ='FEA___(MPG-2)'!A16 -> 5 | C16: ='FEA___(MPG-2)'!D16 -> IDACORP, Inc. | E16: ='FEA___(MPG-4)'!F16 -> 53.55961538 | F16: ='FEA___(MPG-4)'!H16 -> 1.72 | G16: ='FEA___(MPG-4)'!G16 -> 0.04 | H16: =IF('FEA___(MPG-2)'!$B16,IFERROR(G16-($G16-$M16)/6,"N/A"),"") -> 0.04116666667 | I16: =IF('FEA___(MPG-2)'!$B16,IFERROR(H16-($G16-$M16)/6,"N/A"),"") -> 0.04233333333 | J16: =IF('FEA___(MPG-2)'!$B16,IFERROR(I16-($G16-$M16)/6,"N/A"),"") -> 0.0435 | K16: =IF('FEA___(MPG-2)'!$B16,IFERROR(J16-($G16-$M16)/6,"N/A"),"") -> 0.04466666667 | L16: =IF('FEA___(MPG-2)'!$B16,IFERROR(K16-($G16-$M16)/6,"N/A"),"") -> 0.04583333333 | M16: =IF('FEA___(MPG-2)'!$B16,$M$12,"") -> 0.047 | N16: =IF('FEA___(MPG-2)'!$B16,IFERROR(IRR(P16:HH16),"N/A"),"") -> 0.07905421606 | P16: -53.55961538 | Q16: 1.7888 | R16: =Q16*(1+$G16) -> 1.860352 | S16: 1.93476608 | T16: 2.012156723 | U16: 2.092642992 | V16: 2.178790129 | W16: 2.271025577 | X16: 2.36981519 | Y16: 2.475666935 | Z16: 2.589135003 | AA16: 2.710824348 | AB16: 2.838233093 | AC16: 2.971630048 | AD16: 3.11129666 | AE16: 3.257527603 | AF16: 3.410631401 | AG16: 3.570931076 | AH16: 3.738764837 | AI16: 3.914486784 | AJ16: 4.098467663 | AK16: 4.291095643 | AL16: 4.492777139 | AM16: 4.703937664 | AN16: 4.925022734 | AO16: 5.156498803 | AP16: 5.398854247 | AQ16: 5.652600396 | AR16: 5.918272615 | AS16: 6.196431428 | AT16: 6.487663705 | AU16: 6.792583899 | AV16: 7.111835342 | AW16: 7.446091603 | AX16: 7.796057909 | AY16: 8.16247263 | AZ16: 8.546108844 | BA16: 8.947775959 | BB16: 9.36832143 | BC16: 9.808632537 | BD16: 10.26963827 | BE16: 10.75231126 | BF16: 11.25766989 | BG16: 11.78678038 | BH16: 12.34075906 | BI16: 12.92077473 | BJ16: 13.52805114 | BK16: 14.16386955 | BL16: 14.82957142 | BM16: 15.52656127 | BN16: 16.25630965 | BO16: 17.02035621 | BP16: 17.82031295 | BQ16: 18.65786766 | BR16: 19.53478744 | BS16: 20.45292245 | BT16: 21.4142098 | BU16: 22.42067766 | BV16: 23.47444951 | BW16: 24.57774864 | BX16: 25.73290283 | BY16: 26.94234926 | BZ16: 28.20863967 | CA16: 29.53444574 | CB16: 30.92256469 | CC16: 32.37592523 | CD16: 33.89759372 | CE16: 35.49078062 | CF16: 37.15884731 | CG16: 38.90531313 | CH16: 40.73386285 | CI16: 42.6483544 | CJ16: 44.65282706 | CK16: 46.75150993 | CL16: 48.9488309 | CM16: 51.24942595 | CN16: 53.65814897 | CO16: 56.18008197 | CP16: 58.82054583 | CQ16: 61.58511148 | CR16: 64.47961172 | CS16: 67.51015347 | CT16: 70.68313068 | CU16: 74.00523783 | CV16: 77.483484 | CW16: 81.12520775 | CX16: 84.93809252 | CY16: 88.93018286 | CZ16: 93.10990146 | DA16: 97.48606683 | DB16: 102.067912 | DC16: 106.8651038 | DD16: 111.8877637 | DE16: 117.1464886 | DF16: 122.6523736 | DG16: 128.4170351 | DH16: 134.4526358 | DI16: 140.7719097 | DJ16: 147.3881894 | DK16: 154.3154343 | DL16: 161.5682597 | DM16: 169.1619679 | DN16: 177.1125804 | DO16: 185.4368717 | DP16: 194.1524047 | DQ16: 203.2775677 | DR16: 212.8316134 | DS16: 222.8346992 | DT16: 233.3079301 | DU16: 244.2734028 | DV16: 255.7542527 | DW16: 267.7747026 | DX16: 280.3601136 | DY16: 293.537039 | DZ16: 307.3332798 | EA16: 321.7779439 | EB16: 336.9015073 | EC16: 352.7358781 | ED16: 369.3144644 | EE16: 386.6722442 | EF16: 404.8458397 | EG16: 423.8735942 | EH16: 443.7956531 | EI16: 464.6540488 | EJ16: 486.4927891 | EK16: 509.3579502 | EL16: 533.2977739 | EM16: 558.3627692 | EN16: 584.6058194 | EO16: 612.0822929 | EP16: 640.8501607 | EQ16: 670.9701182 | ER16: 702.5057138 | ES16: 735.5234823 | ET16: 770.093086 | EU16: 806.287461 | EV16: 844.1829717 | EW16: 883.8595714 | EX16: 925.4009712 | EY16: 968.8948169 | EZ16: 1014.432873 | FA16: 1062.111218 | FB16: 1112.030446 | FC16: 1164.295877 | FD16: 1219.017783 | FE16: 1276.311618 | FF16: 1336.298265 | FG16: 1399.104283 | FH16: 1464.862184 | FI16: 1533.710707 | FJ16: 1605.79511 | FK16: 1681.26748 | FL16: 1760.287052 | FM16: 1843.020543 | FN16: 1929.642509 | FO16: 2020.335707 | FP16: 2115.291485 | FQ16: 2214.710185 | FR16: 2318.801564 | FS16: 2427.785237 | FT16: 2541.891143 | FU16: 2661.360027 | FV16: 2786.443948 | FW16: 2917.406814 | FX16: 3054.524934 | FY16: 3198.087606 | FZ16: 3348.397723 | GA16: 3505.772416 | GB16: 3670.54372 | GC16: 3843.059275 | GD16: 4023.683061 | GE16: 4212.796165 | GF16: 4410.797584 | GG16: 4618.105071 | GH16: 4835.156009 | GI16: 5062.408341 | GJ16: 5300.341534 | GK16: 5549.457586 | GL16: 5810.282092 | GM16: 6083.36535 | GN16: 6369.283522 | GO16: 6668.639847 | GP16: 6982.06592 | GQ16: 7310.223019 | GR16: 7653.8035 | GS16: 8013.532265 | GT16: 8390.168281 | GU16: 8784.506191 | GV16: 9197.377982 | GW16: 9629.654747 | GX16: 10082.24852 | GY16: 10556.1142 | GZ16: 11052.25157 | HA16: 11571.70739 | HB16: 12115.57764 | HC16: 12685.00979 | HD16: 13281.20525 | HE16: 13905.42189 | HF16: 14558.97672 | HG16: 15243.24863 | HH16: 15959.68131
A17: ='FEA___(MPG-2)'!A17 -> 6 | C17: ='FEA___(MPG-2)'!D17 -> Integrys Energy Group, Inc. | E17: ='FEA___(MPG-4)'!F17 -> 55.35961538 | F17: ='FEA___(MPG-4)'!H17 -> 2.72 | G17: ='FEA___(MPG-4)'!G17 -> 0.0495 | H17: =IF('FEA___(MPG-2)'!$B17,IFERROR(G17-($G17-$M17)/6,"N/A"),"") -> 0.04908333333 | I17: =IF('FEA___(MPG-2)'!$B17,IFERROR(H17-($G17-$M17)/6,"N/A"),"") -> 0.04866666667 | J17: =IF('FEA___(MPG-2)'!$B17,IFERROR(I17-($G17-$M17)/6,"N/A"),"") -> 0.04825 | K17: =IF('FEA___(MPG-2)'!$B17,IFERROR(J17-($G17-$M17)/6,"N/A"),"") -> 0.04783333333 | L17: =IF('FEA___(MPG-2)'!$B17,IFERROR(K17-($G17-$M17)/6,"N/A"),"") -> 0.04741666667 | M17: =IF('FEA___(MPG-2)'!$B17,$M$12,"") -> 0.047 | N17: =IF('FEA___(MPG-2)'!$B17,IFERROR(IRR(P17:HH17),"N/A"),"") -> 0.09922973457 | P17: -55.35961538 | Q17: 2.85464 | R17: =Q17*(1+$G17) -> 2.99594468 | S17: 3.144243942 | T17: 3.299884017 | U17: 3.463228276 | V17: 3.633215063 | W17: 3.81003153 | X17: 3.993865551 | Y17: 4.184905453 | Z17: 4.38333972 | AA17: 4.589356687 | AB17: 4.805056451 | AC17: 5.030894105 | AD17: 5.267346128 | AE17: 5.514911396 | AF17: 5.774112231 | AG17: 6.045495506 | AH17: 6.329633795 | AI17: 6.627126583 | AJ17: 6.938601533 | AK17: 7.264715805 | AL17: 7.606157447 | AM17: 7.963646848 | AN17: 8.337938249 | AO17: 8.729821347 | AP17: 9.14012295 | AQ17: 9.569708729 | AR17: 10.01948504 | AS17: 10.49040084 | AT17: 10.98344968 | AU17: 11.49967181 | AV17: 12.04015639 | AW17: 12.60604374 | AX17: 13.19852779 | AY17: 13.8188586 | AZ17: 14.46834495 | BA17: 15.14835716 | BB17: 15.86032995 | BC17: 16.60576546 | BD17: 17.38623643 | BE17: 18.20338955 | BF17: 19.05894886 | BG17: 19.95471945 | BH17: 20.89259127 | BI17: 21.87454306 | BJ17: 22.90264658 | BK17: 23.97907097 | BL17: 25.1060873 | BM17: 26.28607341 | BN17: 27.52151886 | BO17: 28.81503024 | BP17: 30.16933667 | BQ17: 31.58729549 | BR17: 33.07189838 | BS17: 34.6262776 | BT17: 36.25371265 | BU17: 37.95763714 | BV17: 39.74164609 | BW17: 41.60950345 | BX17: 43.56515012 | BY17: 45.61271217 | BZ17: 47.75650964 | CA17: 50.0010656 | CB17: 52.35111568 | CC17: 54.81161812 | CD17: 57.38776417 | CE17: 60.08498908 | CF17: 62.90898357 | CG17: 65.8657058 | CH17: 68.96139397 | CI17: 72.20257949 | CJ17: 75.59610072 | CK17: 79.14911746 | CL17: 82.86912598 | CM17: 86.7639749 | CN17: 90.84188172 | CO17: 95.11145016 | CP17: 99.58168832 | CQ17: 104.2620277 | CR17: 109.162343 | CS17: 114.2929731 | CT17: 119.6647428 | CU17: 125.2889857 | CV17: 131.1775681 | CW17: 137.3429138 | CX17: 143.7980307 | CY17: 150.5565382 | CZ17: 157.6326955 | DA17: 165.0414321 | DB17: 172.7983794 | DC17: 180.9199033 | DD17: 189.4231387 | DE17: 198.3260263 | DF17: 207.6473495 | DG17: 217.4067749 | DH17: 227.6248933 | DI17: 238.3232633 | DJ17: 249.5244567 | DK17: 261.2521062 | DL17: 273.5309552 | DM17: 286.38691 | DN17: 299.8470948 | DO17: 313.9399083 | DP17: 328.695084 | DQ17: 344.1437529 | DR17: 360.3185093 | DS17: 377.2534792 | DT17: 394.9843928 | DU17: 413.5486592 | DV17: 432.9854462 | DW17: 453.3357622 | DX17: 474.642543 | DY17: 496.9507425 | DZ17: 520.3074274 | EA17: 544.7618765 | EB17: 570.3656847 | EC17: 597.1728719 | ED17: 625.2399969 | EE17: 654.6262767 | EF17: 685.3937117 | EG17: 717.6072162 | EH17: 751.3347553 | EI17: 786.6474888 | EJ17: 823.6199208 | EK17: 862.3300571 | EL17: 902.8595698 | EM17: 945.2939695 | EN17: 989.7227861 | EO17: 1036.239757 | EP17: 1084.943026 | EQ17: 1135.935348 | ER17: 1189.324309 | ES17: 1245.222552 | ET17: 1303.748012 | EU17: 1365.024168 | EV17: 1429.180304 | EW17: 1496.351778 | EX17: 1566.680312 | EY17: 1640.314287 | EZ17: 1717.409058 | FA17: 1798.127284 | FB17: 1882.639266 | FC17: 1971.123312 | FD17: 2063.766107 | FE17: 2160.763114 | FF17: 2262.318981 | FG17: 2368.647973 | FH17: 2479.974428 | FI17: 2596.533226 | FJ17: 2718.570287 | FK17: 2846.343091 | FL17: 2980.121216 | FM17: 3120.186913 | FN17: 3266.835698 | FO17: 3420.376976 | FP17: 3581.134694 | FQ17: 3749.448024 | FR17: 3925.672082 | FS17: 4110.178669 | FT17: 4303.357067 | FU17: 4505.614849 | FV17: 4717.378747 | FW17: 4939.095548 | FX17: 5171.233039 | FY17: 5414.280992 | FZ17: 5668.752198 | GA17: 5935.183552 | GB17: 6214.137179 | GC17: 6506.201626 | GD17: 6811.993102 | GE17: 7132.156778 | GF17: 7467.368147 | GG17: 7818.33445 | GH17: 8185.796169 | GI17: 8570.528589 | GJ17: 8973.343432 | GK17: 9395.090574 | GL17: 9836.659831 | GM17: 10298.98284 | GN17: 10783.03504 | GO17: 11289.83768 | GP17: 11820.46005 | GQ17: 12376.02168 | GR17: 12957.6947 | GS17: 13566.70635 | GT17: 14204.34154 | GU17: 14871.9456 | GV17: 15570.92704 | GW17: 16302.76061 | GX17: 17068.99036 | GY17: 17871.23291 | GZ17: 18711.18085 | HA17: 19590.60635 | HB17: 20511.36485 | HC17: 21475.399 | HD17: 22484.74275 | HE17: 23541.52566 | HF17: 24647.97737 | HG17: 25806.4323 | HH17: 27019.33462
A18: ='FEA___(MPG-2)'!A18 -> 7 | C18: ='FEA___(MPG-2)'!D18 -> NextEra Energy, Inc. | E18: ='FEA___(MPG-4)'!F18 -> 90.29615385 | F18: ='FEA___(MPG-4)'!H18 -> 2.64 | G18: ='FEA___(MPG-4)'!G18 -> 0.06226666667 | H18: =IF('FEA___(MPG-2)'!$B18,IFERROR(G18-($G18-$M18)/6,"N/A"),"") -> 0.05972222222 | I18: =IF('FEA___(MPG-2)'!$B18,IFERROR(H18-($G18-$M18)/6,"N/A"),"") -> 0.05717777778 | J18: =IF('FEA___(MPG-2)'!$B18,IFERROR(I18-($G18-$M18)/6,"N/A"),"") -> 0.05463333333 | K18: =IF('FEA___(MPG-2)'!$B18,IFERROR(J18-($G18-$M18)/6,"N/A"),"") -> 0.05208888889 | L18: =IF('FEA___(MPG-2)'!$B18,IFERROR(K18-($G18-$M18)/6,"N/A"),"") -> 0.04954444444 | M18: =IF('FEA___(MPG-2)'!$B18,$M$12,"") -> 0.047 | N18: =IF('FEA___(MPG-2)'!$B18,IFERROR(IRR(P18:HH18),"N/A"),"") -> 0.08070323469 | P18: -90.29615385 | Q18: 2.804384 | R18: =Q18*(1+$G18) -> 2.979003644 | S18: 3.164496271 | T18: 3.361538905 | U18: 3.570850728 | V18: 3.784109868 | W18: 4.000476861 | X18: 4.219036247 | Y18: 4.438801158 | Z18: 4.658719095 | AA18: 4.877678892 | AB18: 5.1069298 | AC18: 5.346955501 | AD18: 5.598262409 | AE18: 5.861380743 | AF18: 6.136865638 | AG18: 6.425298323 | AH18: 6.727287344 | AI18: 7.043469849 | AJ18: 7.374512932 | AK18: 7.72111504 | AL18: 8.084007446 | AM18: 8.463955796 | AN18: 8.861761719 | AO18: 9.27826452 | AP18: 9.714342952 | AQ18: 10.17091707 | AR18: 10.64895017 | AS18: 11.14945083 | AT18: 11.67347502 | AU18: 12.22212835 | AV18: 12.79656838 | AW18: 13.39800709 | AX18: 14.02771343 | AY18: 14.68701596 | AZ18: 15.37730571 | BA18: 16.10003907 | BB18: 16.85674091 | BC18: 17.64900773 | BD18: 18.4785111 | BE18: 19.34700112 | BF18: 20.25631017 | BG18: 21.20835675 | BH18: 22.20514952 | BI18: 23.24879154 | BJ18: 24.34148475 | BK18: 25.48553453 | BL18: 26.68335465 | BM18: 27.93747232 | BN18: 29.25053352 | BO18: 30.6253086 | BP18: 32.0646981 | BQ18: 33.57173891 | BR18: 35.14961064 | BS18: 36.80164234 | BT18: 38.53131953 | BU18: 40.34229155 | BV18: 42.23837925 | BW18: 44.22358308 | BX18: 46.30209148 | BY18: 48.47828978 | BZ18: 50.7567694 | CA18: 53.14233756 | CB18: 55.64002743 | CC18: 58.25510872 | CD18: 60.99309883 | CE18: 63.85977447 | CF18: 66.86118387 | CG18: 70.00365951 | CH18: 73.29383151 | CI18: 76.73864159 | CJ18: 80.34535774 | CK18: 84.12158956 | CL18: 88.07530427 | CM18: 92.21484357 | CN18: 96.54894122 | CO18: 101.0867415 | CP18: 105.8378183 | CQ18: 110.8121958 | CR18: 116.020369 | CS18: 121.4733263 | CT18: 127.1825726 | CU18: 133.1601536 | CV18: 139.4186808 | CW18: 145.9713588 | CX18: 152.8320126 | CY18: 160.0151172 | CZ18: 167.5358277 | DA18: 175.4100116 | DB18: 183.6542822 | DC18: 192.2860334 | DD18: 201.323477 | DE18: 210.7856804 | DF18: 220.6926074 | DG18: 231.06516 | DH18: 241.9252225 | DI18: 253.2957079 | DJ18: 265.2006062 | DK18: 277.6650347 | DL18: 290.7152913 | DM18: 304.37891 | DN18: 318.6847188 | DO18: 333.6629006 | DP18: 349.3450569 | DQ18: 365.7642746 | DR18: 382.9551955 | DS18: 400.9540897 | DT18: 419.7989319 | DU18: 439.5294817 | DV18: 460.1873673 | DW18: 481.8161736 | DX18: 504.4615338 | DY18: 528.1712258 | DZ18: 552.9952735 | EA18: 578.9860513 | EB18: 606.1983957 | EC18: 634.6897203 | ED18: 664.5201372 | EE18: 695.7525836 | EF18: 728.4529551 | EG18: 762.6902439 | EH18: 798.5366854 | EI18: 836.0679096 | EJ18: 875.3631014 | EK18: 916.5051671 | EL18: 959.58091 | EM18: 1004.681213 | EN18: 1051.90123 | EO18: 1101.340588 | EP18: 1153.103595 | EQ18: 1207.299464 | ER18: 1264.042539 | ES18: 1323.452538 | ET18: 1385.654808 | EU18: 1450.780584 | EV18: 1518.967271 | EW18: 1590.358733 | EX18: 1665.105593 | EY18: 1743.365556 | EZ18: 1825.303737 | FA18: 1911.093013 | FB18: 2000.914384 | FC18: 2094.95736 | FD18: 2193.420356 | FE18: 2296.511113 | FF18: 2404.447136 | FG18: 2517.456151 | FH18: 2635.77659 | FI18: 2759.65809 | FJ18: 2889.36202 | FK18: 3025.162035 | FL18: 3167.34465 | FM18: 3316.209849 | FN18: 3472.071712 | FO18: 3635.259082 | FP18: 3806.116259 | FQ18: 3985.003723 | FR18: 4172.298899 | FS18: 4368.396947 | FT18: 4573.711603 | FU18: 4788.676049 | FV18: 5013.743823 | FW18: 5249.389783 | FX18: 5496.111102 | FY18: 5754.428324 | FZ18: 6024.886455 | GA18: 6308.056119 | GB18: 6604.534756 | GC18: 6914.94789 | GD18: 7239.950441 | GE18: 7580.228111 | GF18: 7936.498833 | GG18: 8309.514278 | GH18: 8700.061449 | GI18: 9108.964337 | GJ18: 9537.085661 | GK18: 9985.328687 | GL18: 10454.63914 | GM18: 10946.00717 | GN18: 11460.46951 | GO18: 11999.11158 | GP18: 12563.06982 | GQ18: 13153.5341 | GR18: 13771.75021 | GS18: 14419.02247 | GT18: 15096.71652 | GU18: 15806.2622 | GV18: 16549.15652 | GW18: 17326.96688 | GX18: 18141.33432 | GY18: 18993.97704 | GZ18: 19886.69396 | HA18: 20821.36857 | HB18: 21799.9729 | HC18: 22824.57162 | HD18: 23897.32649 | HE18: 25020.50083 | HF18: 26196.46437 | HG18: 27427.6982 | HH18: 28716.80001
A19: ='FEA___(MPG-2)'!A19 -> 8 | C19: ='FEA___(MPG-2)'!D19 -> Portland General Electric Company | E19: ='FEA___(MPG-4)'!F19 -> 30.79769231 | F19: ='FEA___(MPG-4)'!H19 -> 1.1 | G19: ='FEA___(MPG-4)'!G19 -> 0.0769 | H19: =IF('FEA___(MPG-2)'!$B19,IFERROR(G19-($G19-$M19)/6,"N/A"),"") -> 0.07191666667 | I19: =IF('FEA___(MPG-2)'!$B19,IFERROR(H19-($G19-$M19)/6,"N/A"),"") -> 0.06693333333 | J19: =IF('FEA___(MPG-2)'!$B19,IFERROR(I19-($G19-$M19)/6,"N/A"),"") -> 0.06195 | K19: =IF('FEA___(MPG-2)'!$B19,IFERROR(J19-($G19-$M19)/6,"N/A"),"") -> 0.05696666667 | L19: =IF('FEA___(MPG-2)'!$B19,IFERROR(K19-($G19-$M19)/6,"N/A"),"") -> 0.05198333333 | M19: =IF('FEA___(MPG-2)'!$B19,$M$12,"") -> 0.047 | N19: =IF('FEA___(MPG-2)'!$B19,IFERROR(IRR(P19:HH19),"N/A"),"") -> 0.09199870278 | P19: -30.79769231 | Q19: 1.18459 | R19: =Q19*(1+$G19) -> 1.275684971 | S19: 1.373785145 | T19: 1.479429223 | U19: 1.59319733 | V19: 1.707774772 | W19: 1.82208183 | X19: 1.934959799 | Y19: 2.045188009 | Z19: 2.151503699 | AA19: 2.252624373 | AB19: 2.358497718 | AC19: 2.469347111 | AD19: 2.585406425 | AE19: 2.706920527 | AF19: 2.834145792 | AG19: 2.967350644 | AH19: 3.106816124 | AI19: 3.252836482 | AJ19: 3.405719797 | AK19: 3.565788627 | AL19: 3.733380693 | AM19: 3.908849585 | AN19: 4.092565516 | AO19: 4.284916095 | AP19: 4.486307152 | AQ19: 4.697163588 | AR19: 4.917930276 | AS19: 5.149072999 | AT19: 5.39107943 | AU19: 5.644460163 | AV19: 5.909749791 | AW19: 6.187508031 | AX19: 6.478320909 | AY19: 6.782801991 | AZ19: 7.101593685 | BA19: 7.435368588 | BB19: 7.784830912 | BC19: 8.150717965 | BD19: 8.533801709 | BE19: 8.934890389 | BF19: 9.354830238 | BG19: 9.794507259 | BH19: 10.2548491 | BI19: 10.73682701 | BJ19: 11.24145788 | BK19: 11.7698064 | BL19: 12.3229873 | BM19: 12.9021677 | BN19: 13.50856958 | BO19: 14.14347235 | BP19: 14.80821555 | BQ19: 15.50420169 | BR19: 16.23289916 | BS19: 16.99584543 | BT19: 17.79465016 | BU19: 18.63099872 | BV19: 19.50665566 | BW19: 20.42346847 | BX19: 21.38337149 | BY19: 22.38838995 | BZ19: 23.44064428 | CA19: 24.54235456 | CB19: 25.69584522 | CC19: 26.90354995 | CD19: 28.1680168 | CE19: 29.49191359 | CF19: 30.87803353 | CG19: 32.3293011 | CH19: 33.84877825 | CI19: 35.43967083 | CJ19: 37.10533536 | CK19: 38.84928612 | CL19: 40.67520257 | CM19: 42.58693709 | CN19: 44.58852313 | CO19: 46.68418372 | CP19: 48.87834036 | CQ19: 51.17562235 | CR19: 53.5808766 | CS19: 56.0991778 | CT19: 58.73583916 | CU19: 61.4964236 | CV19: 64.38675551 | CW19: 67.41293302 | CX19: 70.58134087 | CY19: 73.89866389 | CZ19: 77.3719011 | DA19: 81.00838045 | DB19: 84.81577433 | DC19: 88.80211572 | DD19: 92.97581516 | DE19: 97.34567847 | DF19: 101.9209254 | DG19: 106.7112089 | DH19: 111.7266357 | DI19: 116.9777875 | DJ19: 122.4757436 | DK19: 128.2321035 | DL19: 134.2590124 | DM19: 140.569186 | DN19: 147.1759377 | DO19: 154.0932068 | DP19: 161.3355875 | DQ19: 168.9183601 | DR19: 176.857523 | DS19: 185.1698266 | DT19: 193.8728085 | DU19: 202.9848304 | DV19: 212.5251175 | DW19: 222.513798 | DX19: 232.9719465 | DY19: 243.921628 | DZ19: 255.3859445 | EA19: 267.3890839 | EB19: 279.9563708 | EC19: 293.1143203 | ED19: 306.8906933 | EE19: 321.3145559 | EF19: 336.41634 | EG19: 352.227908 | EH19: 368.7826197 | EI19: 386.1154028 | EJ19: 404.2628268 | EK19: 423.2631796 | EL19: 443.1565491 | EM19: 463.9849069 | EN19: 485.7921975 | EO19: 508.6244308 | EP19: 532.529779 | EQ19: 557.5586786 | ER19: 583.7639365 | ES19: 611.2008415 | ET19: 639.9272811 | EU19: 670.0038633 | EV19: 701.4940449 | EW19: 734.464265 | EX19: 768.9840854 | EY19: 805.1263375 | EZ19: 842.9672753 | FA19: 882.5867373 | FB19: 924.0683139 | FC19: 967.4995247 | FD19: 1012.972002 | FE19: 1060.581686 | FF19: 1110.429026 | FG19: 1162.61919 | FH19: 1217.262292 | FI19: 1274.47362 | FJ19: 1334.37388 | FK19: 1397.089452 | FL19: 1462.752656 | FM19: 1531.502031 | FN19: 1603.482627 | FO19: 1678.84631 | FP19: 1757.752087 | FQ19: 1840.366435 | FR19: 1926.863657 | FS19: 2017.426249 | FT19: 2112.245283 | FU19: 2211.520811 | FV19: 2315.462289 | FW19: 2424.289017 | FX19: 2538.2306 | FY19: 2657.527439 | FZ19: 2782.431228 | GA19: 2913.205496 | GB19: 3050.126154 | GC19: 3193.482084 | GD19: 3343.575741 | GE19: 3500.723801 | GF19: 3665.25782 | GG19: 3837.524938 | GH19: 4017.88861 | GI19: 4206.729374 | GJ19: 4404.445655 | GK19: 4611.454601 | GL19: 4828.192967 | GM19: 5055.118036 | GN19: 5292.708584 | GO19: 5541.465887 | GP19: 5801.914784 | GQ19: 6074.604779 | GR19: 6360.111204 | GS19: 6659.03643 | GT19: 6972.011142 | GU19: 7299.695666 | GV19: 7642.781362 | GW19: 8001.992086 | GX19: 8378.085715 | GY19: 8771.855743 | GZ19: 9184.132963 | HA19: 9615.787212 | HB19: 10067.72921 | HC19: 10540.91248 | HD19: 11036.33537 | HE19: 11555.04313 | HF19: 12098.13016 | HG19: 12666.74228 | HH19: 13262.07917
A20: ='FEA___(MPG-2)'!A20 -> 9 | C20: ='FEA___(MPG-2)'!D20 -> Sempra Energy | E20: ='FEA___(MPG-4)'!F20 -> 92.83423077 | F20: ='FEA___(MPG-4)'!H20 -> 2.52 | G20: ='FEA___(MPG-4)'!G20 -> 0.06293333333 | H20: =IF('FEA___(MPG-2)'!$B20,IFERROR(G20-($G20-$M20)/6,"N/A"),"") -> 0.06027777778 | I20: =IF('FEA___(MPG-2)'!$B20,IFERROR(H20-($G20-$M20)/6,"N/A"),"") -> 0.05762222222 | J20: =IF('FEA___(MPG-2)'!$B20,IFERROR(I20-($G20-$M20)/6,"N/A"),"") -> 0.05496666667 | K20: =IF('FEA___(MPG-2)'!$B20,IFERROR(J20-($G20-$M20)/6,"N/A"),"") -> 0.05231111111 | L20: =IF('FEA___(MPG-2)'!$B20,IFERROR(K20-($G20-$M20)/6,"N/A"),"") -> 0.04965555556 | M20: =IF('FEA___(MPG-2)'!$B20,$M$12,"") -> 0.047 | N20: =IF('FEA___(MPG-2)'!$B20,IFERROR(IRR(P20:HH20),"N/A"),"") -> 0.07841746035 | P20: -92.83423077 | Q20: 2.678592 | R20: =Q20*(1+$G20) -> 2.847164723 | S20: 3.02634629 | T20: 3.21680435 | U20: 3.41924857 | V20: 3.625353275 | W20: 3.834254188 | X20: 4.045010359 | Y20: 4.256609346 | Z20: 4.467973648 | AA20: 4.677968409 | AB20: 4.897832924 | AC20: 5.128031072 | AD20: 5.369048532 | AE20: 5.621393813 | AF20: 5.885599322 | AG20: 6.16222249 | AH20: 6.451846948 | AI20: 6.755083754 | AJ20: 7.07257269 | AK20: 7.404983607 | AL20: 7.753017836 | AM20: 8.117409675 | AN20: 8.498927929 | AO20: 8.898377542 | AP20: 9.316601287 | AQ20: 9.754481547 | AR20: 10.21294218 | AS20: 10.69295046 | AT20: 11.19551913 | AU20: 11.72170853 | AV20: 12.27262883 | AW20: 12.84944239 | AX20: 13.45336618 | AY20: 14.08567439 | AZ20: 14.74770109 | BA20: 15.44084304 | BB20: 16.16656266 | BC20: 16.92639111 | BD20: 17.72193149 | BE20: 18.55486227 | BF20: 19.4269408 | BG20: 20.34000701 | BH20: 21.29598734 | BI20: 22.29689875 | BJ20: 23.34485299 | BK20: 24.44206108 | BL20: 25.59083795 | BM20: 26.79360734 | BN20: 28.05290688 | BO20: 29.3713935 | BP20: 30.751849 | BQ20: 32.1971859 | BR20: 33.71045364 | BS20: 35.29484496 | BT20: 36.95370267 | BU20: 38.6905267 | BV20: 40.50898145 | BW20: 42.41290358 | BX20: 44.40631005 | BY20: 46.49340662 | BZ20: 48.67859673 | CA20: 50.96649078 | CB20: 53.36191585 | CC20: 55.86992589 | CD20: 58.49581241 | CE20: 61.24511559 | CF20: 64.12363602 | CG20: 67.13744692 | CH20: 70.29290692 | CI20: 73.59667355 | CJ20: 77.0557172 | CK20: 80.67733591 | CL20: 84.4691707 | CM20: 88.43922172 | CN20: 92.59586515 | CO20: 96.94787081 | CP20: 101.5044207 | CQ20: 106.2751285 | CR20: 111.2700595 | CS20: 116.4997523 | CT20: 121.9752407 | CU20: 127.708077 | CV20: 133.7103566 | CW20: 139.9947434 | CX20: 146.5744963 | CY20: 153.4634977 | CZ20: 160.6762821 | DA20: 168.2280673 | DB20: 176.1347865 | DC20: 184.4131214 | DD20: 193.0805382 | DE20: 202.1553235 | DF20: 211.6566237 | DG20: 221.604485 | DH20: 232.0198958 | DI20: 242.9248309 | DJ20: 254.3422979 | DK20: 266.2963859 | DL20: 278.812316 | DM20: 291.9164949 | DN20: 305.6365702 | DO20: 320.001489 | DP20: 335.0415589 | DQ20: 350.7885122 | DR20: 367.2755723 | DS20: 384.5375242 | DT20: 402.6107878 | DU20: 421.5334948 | DV20: 441.3455691 | DW20: 462.0888109 | DX20: 483.806985 | DY20: 506.5459133 | DZ20: 530.3535712 | EA20: 555.280189 | EB20: 581.3783579 | EC20: 608.7031407 | ED20: 637.3121883 | EE20: 667.2658612 | EF20: 698.6273567 | EG20: 731.4628424 | EH20: 765.841596 | EI20: 801.836151 | EJ20: 839.5224501 | EK20: 878.9800053 | EL20: 920.2920655 | EM20: 963.5457926 | EN20: 1008.832445 | EO20: 1056.24757 | EP20: 1105.891206 | EQ20: 1157.868092 | ER20: 1212.287893 | ES20: 1269.265424 | ET20: 1328.920898 | EU20: 1391.380181 | EV20: 1456.775049 | EW20: 1525.243476 | EX20: 1596.92992 | EY20: 1671.985626 | EZ20: 1750.568951 | FA20: 1832.845691 | FB20: 1918.989439 | FC20: 2009.181942 | FD20: 2103.613494 | FE20: 2202.483328 | FF20: 2306.000044 | FG20: 2414.382046 | FH20: 2527.858002 | FI20: 2646.667329 | FJ20: 2771.060693 | FK20: 2901.300546 | FL20: 3037.661671 | FM20: 3180.43177 | FN20: 3329.912063 | FO20: 3486.41793 | FP20: 3650.279573 | FQ20: 3821.842712 | FR20: 4001.46932 | FS20: 4189.538378 | FT20: 4386.446682 | FU20: 4592.609676 | FV20: 4808.462331 | FW20: 5034.46006 | FX20: 5271.079683 | FY20: 5518.820428 | FZ20: 5778.204988 | GA20: 6049.780623 | GB20: 6334.120312 | GC20: 6631.823967 | GD20: 6943.519693 | GE20: 7269.865119 | GF20: 7611.548779 | GG20: 7969.291572 | GH20: 8343.848276 | GI20: 8736.009145 | GJ20: 9146.601574 | GK20: 9576.491848 | GL20: 10026.58697 | GM20: 10497.83655 | GN20: 10991.23487 | GO20: 11507.82291 | GP20: 12048.69059 | GQ20: 12614.97904 | GR20: 13207.88306 | GS20: 13828.65356 | GT20: 14478.60028 | GU20: 15159.09449 | GV20: 15871.57193 | GW20: 16617.53582 | GX20: 17398.56 | GY20: 18216.29232 | GZ20: 19072.45806 | HA20: 19968.86359 | HB20: 20907.40017 | HC20: 21890.04798 | HD20: 22918.88024 | HE20: 23996.06761 | HF20: 25123.88279 | HG20: 26304.70528 | HH20: 27541.02643
A21: ='FEA___(MPG-2)'!A21 -> 10 | C21: ='FEA___(MPG-2)'!D21 -> Southern Company | E21: ='FEA___(MPG-4)'!F21 -> 41.85846154 | F21: ='FEA___(MPG-4)'!H21 -> 2.03 | G21: ='FEA___(MPG-4)'!G21 -> 0.03756666667 | H21: =IF('FEA___(MPG-2)'!$B21,IFERROR(G21-($G21-$M21)/6,"N/A"),"") -> 0.03913888889 | I21: =IF('FEA___(MPG-2)'!$B21,IFERROR(H21-($G21-$M21)/6,"N/A"),"") -> 0.04071111111 | J21: =IF('FEA___(MPG-2)'!$B21,IFERROR(I21-($G21-$M21)/6,"N/A"),"") -> 0.04228333333 | K21: =IF('FEA___(MPG-2)'!$B21,IFERROR(J21-($G21-$M21)/6,"N/A"),"") -> 0.04385555556 | L21: =IF('FEA___(MPG-2)'!$B21,IFERROR(K21-($G21-$M21)/6,"N/A"),"") -> 0.04542777778 | M21: =IF('FEA___(MPG-2)'!$B21,$M$12,"") -> 0.047 | N21: =IF('FEA___(MPG-2)'!$B21,IFERROR(IRR(P21:HH21),"N/A"),"") -> 0.09489174823 | P21: -41.85846154 | Q21: 2.106260333 | R21: =Q21*(1+$G21) -> 2.185385513 | S21: 2.267483162 | T21: 2.352664946 | U21: 2.441046726 | V21: 2.536586583 | W21: 2.639853841 | X21: 2.751475661 | Y21: 2.872143155 | Z21: 3.002618236 | AA21: 3.143741293 | AB21: 3.291497133 | AC21: 3.446197499 | AD21: 3.608168781 | AE21: 3.777752714 | AF21: 3.955307091 | AG21: 4.141206525 | AH21: 4.335843231 | AI21: 4.539627863 | AJ21: 4.752990373 | AK21: 4.97638092 | AL21: 5.210270824 | AM21: 5.455153552 | AN21: 5.711545769 | AO21: 5.979988421 | AP21: 6.261047876 | AQ21: 6.555317126 | AR21: 6.863417031 | AS21: 7.185997632 | AT21: 7.523739521 | AU21: 7.877355278 | AV21: 8.247590976 | AW21: 8.635227752 | AX21: 9.041083456 | AY21: 9.466014379 | AZ21: 9.910917055 | BA21: 10.37673016 | BB21: 10.86443647 | BC21: 11.37506499 | BD21: 11.90969304 | BE21: 12.46944862 | BF21: 13.0555127 | BG21: 13.6691218 | BH21: 14.31157052 | BI21: 14.98421434 | BJ21: 15.68847241 | BK21: 16.42583061 | BL21: 17.19784465 | BM21: 18.00614335 | BN21: 18.85243209 | BO21: 19.7384964 | BP21: 20.66620573 | BQ21: 21.6375174 | BR21: 22.65448071 | BS21: 23.71924131 | BT21: 24.83404565 | BU21: 26.00124579 | BV21: 27.22330435 | BW21: 28.50279965 | BX21: 29.84243123 | BY21: 31.2450255 | BZ21: 32.7135417 | CA21: 34.25107816 | CB21: 35.86087883 | CC21: 37.54634014 | CD21: 39.31101813 | CE21: 41.15863598 | CF21: 43.09309187 | CG21: 45.11846719 | CH21: 47.23903514 | CI21: 49.4592698 | CJ21: 51.78385548 | CK21: 54.21769668 | CL21: 56.76592843 | CM21: 59.43392706 | CN21: 62.22732164 | CO21: 65.15200575 | CP21: 68.21415002 | CQ21: 71.42021507 | CR21: 74.77696518 | CS21: 78.29148255 | CT21: 81.97118223 | CU21: 85.82382779 | CV21: 89.8575477 | CW21: 94.08085244 | CX21: 98.5026525 | CY21: 103.1322772 | CZ21: 107.9794942 | DA21: 113.0545304 | DB21: 118.3680934 | DC21: 123.9313937 | DD21: 129.7561692 | DE21: 135.8547092 | DF21: 142.2398805 | DG21: 148.9251549 | DH21: 155.9246372 | DI21: 163.2530952 | DJ21: 170.9259906 | DK21: 178.9595122 | DL21: 187.3706093 | DM21: 196.1770279 | DN21: 205.3973482 | DO21: 215.0510236 | DP21: 225.1584217 | DQ21: 235.7408675 | DR21: 246.8206883 | DS21: 258.4212606 | DT21: 270.5670599 | DU21: 283.2837117 | DV21: 296.5980461 | DW21: 310.5381543 | DX21: 325.1334475 | DY21: 340.4147196 | DZ21: 356.4142114 | EA21: 373.1656793 | EB21: 390.7044663 | EC21: 409.0675762 | ED21: 428.2937523 | EE21: 448.4235586 | EF21: 469.4994659 | EG21: 491.5659408 | EH21: 514.66954 | EI21: 538.8590084 | EJ21: 564.1853818 | EK21: 590.7020947 | EL21: 618.4650931 | EM21: 647.5329525 | EN21: 677.9670013 | EO21: 709.8314504 | EP21: 743.1935285 | EQ21: 778.1236244 | ER21: 814.6954347 | ES21: 852.9861201 | ET21: 893.0764678 | EU21: 935.0510618 | EV21: 978.9984617 | EW21: 1025.011389 | EX21: 1073.186925 | EY21: 1123.62671 | EZ21: 1176.437166 | FA21: 1231.729712 | FB21: 1289.621009 | FC21: 1350.233196 | FD21: 1413.694156 | FE21: 1480.137782 | FF21: 1549.704257 | FG21: 1622.540358 | FH21: 1698.799754 | FI21: 1778.643343 | FJ21: 1862.23958 | FK21: 1949.76484 | FL21: 2041.403788 | FM21: 2137.349766 | FN21: 2237.805205 | FO21: 2342.982049 | FP21: 2453.102206 | FQ21: 2568.398009 | FR21: 2689.112716 | FS21: 2815.501013 | FT21: 2947.829561 | FU21: 3086.37755 | FV21: 3231.437295 | FW21: 3383.314848 | FX21: 3542.330646 | FY21: 3708.820186 | FZ21: 3883.134735 | GA21: 4065.642068 | GB21: 4256.727245 | GC21: 4456.793425 | GD21: 4666.262716 | GE21: 4885.577064 | GF21: 5115.199186 | GG21: 5355.613548 | GH21: 5607.327385 | GI21: 5870.871772 | GJ21: 6146.802745 | GK21: 6435.702474 | GL21: 6738.18049 | GM21: 7054.874973 | GN21: 7386.454097 | GO21: 7733.61744 | GP21: 8097.097459 | GQ21: 8477.66104 | GR21: 8876.111109 | GS21: 9293.288331 | GT21: 9730.072882 | GU21: 10187.38631 | GV21: 10666.19346 | GW21: 11167.50456 | GX21: 11692.37727 | GY21: 12241.919 | GZ21: 12817.2892 | HA21: 13419.70179 | HB21: 14050.42777 | HC21: 14710.79788 | HD21: 15402.20538 | HE21: 16126.10903 | HF21: 16884.03616 | HG21: 17677.58585 | HH21: 18508.43239
A22: ='FEA___(MPG-2)'!A22 -> 11 | C22: ='FEA___(MPG-2)'!D22 -> Westar Energy, Inc. | E22: ='FEA___(MPG-4)'!F22 -> 33.55269231 | F22: ='FEA___(MPG-4)'!H22 -> 1.4 | G22: ='FEA___(MPG-4)'!G22 -> 0.03433333333 | H22: =IF('FEA___(MPG-2)'!$B22,IFERROR(G22-($G22-$M22)/6,"N/A"),"") -> 0.03644444444 | I22: =IF('FEA___(MPG-2)'!$B22,IFERROR(H22-($G22-$M22)/6,"N/A"),"") -> 0.03855555556 | J22: =IF('FEA___(MPG-2)'!$B22,IFERROR(I22-($G22-$M22)/6,"N/A"),"") -> 0.04066666667 | K22: =IF('FEA___(MPG-2)'!$B22,IFERROR(J22-($G22-$M22)/6,"N/A"),"") -> 0.04277777778 | L22: =IF('FEA___(MPG-2)'!$B22,IFERROR(K22-($G22-$M22)/6,"N/A"),"") -> 0.04488888889 | M22: =IF('FEA___(MPG-2)'!$B22,$M$12,"") -> 0.047 | N22: =IF('FEA___(MPG-2)'!$B22,IFERROR(IRR(P22:HH22),"N/A"),"") -> 0.08729904852 | P22: -33.55269231 | Q22: 1.448066667 | R22: =Q22*(1+$G22) -> 1.497783622 | S22: 1.549207527 | T22: 1.602396985 | U22: 1.657412615 | V22: 1.717816097 | W22: 1.784047451 | X22: 1.856598714 | Y22: 1.936019881 | Z22: 2.022925662 | AA22: 2.118003168 | AB22: 2.217549317 | AC22: 2.321774135 | AD22: 2.43089752 | AE22: 2.545149703 | AF22: 2.664771739 | AG22: 2.790016011 | AH22: 2.921146763 | AI22: 3.058440661 | AJ22: 3.202187372 | AK22: 3.352690179 | AL22: 3.510266617 | AM22: 3.675249148 | AN22: 3.847985858 | AO22: 4.028841193 | AP22: 4.218196729 | AQ22: 4.416451976 | AR22: 4.624025219 | AS22: 4.841354404 | AT22: 5.068898061 | AU22: 5.30713627 | AV22: 5.556571674 | AW22: 5.817730543 | AX22: 6.091163879 | AY22: 6.377448581 | AZ22: 6.677188664 | BA22: 6.991016531 | BB22: 7.319594308 | BC22: 7.663615241 | BD22: 8.023805157 | BE22: 8.400924 | BF22: 8.795767428 | BG22: 9.209168497 | BH22: 9.641999416 | BI22: 10.09517339 | BJ22: 10.56964654 | BK22: 11.06641993 | BL22: 11.58654166 | BM22: 12.13110912 | BN22: 12.70127125 | BO22: 13.298231 | BP22: 13.92324785 | BQ22: 14.5776405 | BR22: 15.26278961 | BS22: 15.98014072 | BT22: 16.73120733 | BU22: 17.51757408 | BV22: 18.34090006 | BW22: 19.20292236 | BX22: 20.10545971 | BY22: 21.05041632 | BZ22: 22.03978589 | CA22: 23.07565582 | CB22: 24.16021165 | CC22: 25.29574159 | CD22: 26.48464145 | CE22: 27.7294196 | CF22: 29.03270232 | CG22: 30.39723933 | CH22: 31.82590957 | CI22: 33.32172732 | CJ22: 34.88784851 | CK22: 36.52757739 | CL22: 38.24437353 | CM22: 40.04185908 | CN22: 41.92382646 | CO22: 43.8942463 | CP22: 45.95727588 | CQ22: 48.11726784 | CR22: 50.37877943 | CS22: 52.74658207 | CT22: 55.22567142 | CU22: 57.82127798 | CV22: 60.53887804 | CW22: 63.38420531 | CX22: 66.36326296 | CY22: 69.48233632 | CZ22: 72.74800613 | DA22: 76.16716242 | DB22: 79.74701905 | DC22: 83.49512895 | DD22: 87.41940001 | DE22: 91.52811181 | DF22: 95.82993306 | DG22: 100.3339399 | DH22: 105.0496351 | DI22: 109.9869679 | DJ22: 115.1563554 | DK22: 120.5687041 | DL22: 126.2354332 | DM22: 132.1684986 | DN22: 138.380418 | DO22: 144.8842977 | DP22: 151.6938597 | DQ22: 158.8234711 | DR22: 166.2881742 | DS22: 174.1037184 | DT22: 182.2865932 | DU22: 190.854063 | DV22: 199.824204 | DW22: 209.2159416 | DX22: 219.0490909 | DY22: 229.3443981 | DZ22: 240.1235848 | EA22: 251.4093933 | EB22: 263.2256348 | EC22: 275.5972396 | ED22: 288.5503099 | EE22: 302.1121745 | EF22: 316.3114467 | EG22: 331.1780847 | EH22: 346.7434546 | EI22: 363.040397 | EJ22: 380.1032957 | EK22: 397.9681506 | EL22: 416.6726536 | EM22: 436.2562684 | EN22: 456.760313 | EO22: 478.2280477 | EP22: 500.7047659 | EQ22: 524.2378899 | ER22: 548.8770708 | ES22: 574.6742931 | ET22: 601.6839849 | EU22: 629.9631321 | EV22: 659.5713994 | EW22: 690.5712551 | EX22: 723.0281041 | EY22: 757.010425 | EZ22: 792.589915 | FA22: 829.841641 | FB22: 868.8441981 | FC22: 909.6798754 | FD22: 952.4348296 | FE22: 997.1992666 | FF22: 1044.067632 | FG22: 1093.138811 | FH22: 1144.516335 | FI22: 1198.308603 | FJ22: 1254.629107 | FK22: 1313.596675 | FL22: 1375.335719 | FM22: 1439.976498 | FN22: 1507.655393 | FO22: 1578.515196 | FP22: 1652.705411 | FQ22: 1730.382565 | FR22: 1811.710545 | FS22: 1896.860941 | FT22: 1986.013405 | FU22: 2079.356035 | FV22: 2177.085769 | FW22: 2279.4088 | FX22: 2386.541014 | FY22: 2498.708441 | FZ22: 2616.147738 | GA22: 2739.106682 | GB22: 2867.844696 | GC22: 3002.633397 | GD22: 3143.757166 | GE22: 3291.513753 | GF22: 3446.214899 | GG22: 3608.187 | GH22: 3777.771789 | GI22: 3955.327063 | GJ22: 4141.227435 | GK22: 4335.865124 | GL22: 4539.650785 | GM22: 4753.014372 | GN22: 4976.406047 | GO22: 5210.297132 | GP22: 5455.181097 | GQ22: 5711.574608 | GR22: 5980.018615 | GS22: 6261.07949 | GT22: 6555.350226 | GU22: 6863.451686 | GV22: 7186.033916 | GW22: 7523.77751 | GX22: 7877.395053 | GY22: 8247.63262 | GZ22: 8635.271353 | HA22: 9041.129107 | HB22: 9466.062175 | HC22: 9910.967097 | HD22: 10376.78255 | HE22: 10864.49133 | HF22: 11375.12242 | HG22: 11909.75318 | HH22: 12469.51158
A23: ='FEA___(MPG-2)'!A23 -> 12 | C23: ='FEA___(MPG-2)'!D23 -> Wisconsin Energy Corporation | E23: ='FEA___(MPG-4)'!F23 -> 42.94692308 | F23: ='FEA___(MPG-4)'!H23 -> 1.56 | G23: ='FEA___(MPG-4)'!G23 -> 0.05086666667 | H23: =IF('FEA___(MPG-2)'!$B23,IFERROR(G23-($G23-$M23)/6,"N/A"),"") -> 0.05022222222 | I23: =IF('FEA___(MPG-2)'!$B23,IFERROR(H23-($G23-$M23)/6,"N/A"),"") -> 0.04957777778 | J23: =IF('FEA___(MPG-2)'!$B23,IFERROR(I23-($G23-$M23)/6,"N/A"),"") -> 0.04893333333 | K23: =IF('FEA___(MPG-2)'!$B23,IFERROR(J23-($G23-$M23)/6,"N/A"),"") -> 0.04828888889 | L23: =IF('FEA___(MPG-2)'!$B23,IFERROR(K23-($G23-$M23)/6,"N/A"),"") -> 0.04764444444 | M23: =IF('FEA___(MPG-2)'!$B23,$M$12,"") -> 0.047 | N23: =IF('FEA___(MPG-2)'!$B23,IFERROR(IRR(P23:HH23),"N/A"),"") -> 0.08594822541 | P23: -42.94692308 | Q23: 1.639352 | R23: =Q23*(1+$G23) -> 1.722740372 | S23: 1.810370432 | T23: 1.902457941 | U23: 1.999229635 | V23: 2.09963539 | W23: 2.203730647 | X23: 2.311566533 | Y23: 2.423189513 | Z23: 2.538641031 | AA23: 2.657957159 | AB23: 2.782881146 | AC23: 2.91367656 | AD23: 3.050619358 | AE23: 3.193998468 | AF23: 3.344116396 | AG23: 3.501289867 | AH23: 3.66585049 | AI23: 3.838145463 | AJ23: 4.0185383 | AK23: 4.2074096 | AL23: 4.405157851 | AM23: 4.61220027 | AN23: 4.828973683 | AO23: 5.055935446 | AP23: 5.293564412 | AQ23: 5.54236194 | AR23: 5.802852951 | AS23: 6.075587039 | AT23: 6.36113963 | AU23: 6.660113193 | AV23: 6.973138513 | AW23: 7.300876023 | AX23: 7.644017196 | AY23: 8.003286004 | AZ23: 8.379440447 | BA23: 8.773274148 | BB23: 9.185618032 | BC23: 9.61734208 | BD23: 10.06935716 | BE23: 10.54261694 | BF23: 11.03811994 | BG23: 11.55691158 | BH23: 12.10008642 | BI23: 12.66879048 | BJ23: 13.26422364 | BK23: 13.88764215 | BL23: 14.54036133 | BM23: 15.22375831 | BN23: 15.93927495 | BO23: 16.68842087 | BP23: 17.47277666 | BQ23: 18.29399716 | BR23: 19.15381502 | BS23: 20.05404433 | BT23: 20.99658441 | BU23: 21.98342388 | BV23: 23.0166448 | BW23: 24.09842711 | BX23: 25.23105318 | BY23: 26.41691268 | BZ23: 27.65850758 | CA23: 28.95845744 | CB23: 30.31950494 | CC23: 31.74452167 | CD23: 33.23651419 | CE23: 34.79863035 | CF23: 36.43416598 | CG23: 38.14657178 | CH23: 39.93946065 | CI23: 41.8166153 | CJ23: 43.78199622 | CK23: 45.83975005 | CL23: 47.9942183 | CM23: 50.24994656 | CN23: 52.61169405 | CO23: 55.08444367 | CP23: 57.67341252 | CQ23: 60.38406291 | CR23: 63.22211386 | CS23: 66.19355322 | CT23: 69.30465022 | CU23: 72.56196878 | CV23: 75.97238131 | CW23: 79.54308323 | CX23: 83.28160814 | CY23: 87.19584373 | CZ23: 91.29404838 | DA23: 95.58486865 | DB23: 100.0773575 | DC23: 104.7809933 | DD23: 109.7057 | DE23: 114.8618679 | DF23: 120.2603757 | DG23: 125.9126133 | DH23: 131.8305061 | DI23: 138.0265399 | DJ23: 144.5137873 | DK23: 151.3059353 | DL23: 158.4173143 | DM23: 165.862928 | DN23: 173.6584857 | DO23: 181.8204345 | DP23: 190.3659949 | DQ23: 199.3131967 | DR23: 208.6809169 | DS23: 218.48892 | DT23: 228.7578992 | DU23: 239.5095205 | DV23: 250.766468 | DW23: 262.552492 | DX23: 274.8924591 | DY23: 287.8124047 | DZ23: 301.3395877 | EA23: 315.5025483 | EB23: 330.3311681 | EC23: 345.856733 | ED23: 362.1119994 | EE23: 379.1312634 | EF23: 396.9504328 | EG23: 415.6071031 | EH23: 435.140637 | EI23: 455.5922469 | EJ23: 477.0050825 | EK23: 499.4243214 | EL23: 522.8972645 | EM23: 547.4734359 | EN23: 573.2046874 | EO23: 600.1453077 | EP23: 628.3521372 | EQ23: 657.8846876 | ER23: 688.8052679 | ES23: 721.1791155 | ET23: 755.0745339 | EU23: 790.563037 | EV23: 827.7194998 | EW23: 866.6223163 | EX23: 907.3535651 | EY23: 949.9991827 | EZ23: 994.6491443 | FA23: 1041.397654 | FB23: 1090.343344 | FC23: 1141.589481 | FD23: 1195.244187 | FE23: 1251.420663 | FF23: 1310.237435 | FG23: 1371.818594 | FH23: 1436.294068 | FI23: 1503.799889 | FJ23: 1574.478484 | FK23: 1648.478973 | FL23: 1725.957484 | FM23: 1807.077486 | FN23: 1892.010128 | FO23: 1980.934604 | FP23: 2074.03853 | FQ23: 2171.518341 | FR23: 2273.579703 | FS23: 2380.437949 | FT23: 2492.318533 | FU23: 2609.457504 | FV23: 2732.102007 | FW23: 2860.510801 | FX23: 2994.954809 | FY23: 3135.717685 | FZ23: 3283.096416 | GA23: 3437.401947 | GB23: 3598.959839 | GC23: 3768.110951 | GD23: 3945.212166 | GE23: 4130.637138 | GF23: 4324.777083 | GG23: 4528.041606 | GH23: 4740.859562 | GI23: 4963.679961 | GJ23: 5196.972919 | GK23: 5441.230646 | GL23: 5696.968487 | GM23: 5964.726006 | GN23: 6245.068128 | GO23: 6538.58633 | GP23: 6845.899888 | GQ23: 7167.657182 | GR23: 7504.53707 | GS23: 7857.250312 | GT23: 8226.541077 | GU23: 8613.188507 | GV23: 9018.008367 | GW23: 9441.85476 | GX23: 9885.621934 | GY23: 10350.24617 | GZ23: 10836.70773 | HA23: 11346.033 | HB23: 11879.29655 | HC23: 12437.62349 | HD23: 13022.19179 | HE23: 13634.23481 | HF23: 14275.04384 | HG23: 14945.9709 | HH23: 15648.43153
A24: ='FEA___(MPG-2)'!A24 -> 13 | C24: ='FEA___(MPG-2)'!D24 -> Xcel Energy Inc. | E24: ='FEA___(MPG-4)'!F24 -> 29.09 | F24: ='FEA___(MPG-4)'!H24 -> 1.12 | G24: ='FEA___(MPG-4)'!G24 -> 0.04796666667 | H24: =IF('FEA___(MPG-2)'!$B24,IFERROR(G24-($G24-$M24)/6,"N/A"),"") -> 0.04780555556 | I24: =IF('FEA___(MPG-2)'!$B24,IFERROR(H24-($G24-$M24)/6,"N/A"),"") -> 0.04764444444 | J24: =IF('FEA___(MPG-2)'!$B24,IFERROR(I24-($G24-$M24)/6,"N/A"),"") -> 0.04748333333 | K24: =IF('FEA___(MPG-2)'!$B24,IFERROR(J24-($G24-$M24)/6,"N/A"),"") -> 0.04732222222 | L24: =IF('FEA___(MPG-2)'!$B24,IFERROR(K24-($G24-$M24)/6,"N/A"),"") -> 0.04716111111 | M24: =IF('FEA___(MPG-2)'!$B24,$M$12,"") -> 0.047 | N24: =IF('FEA___(MPG-2)'!$B24,IFERROR(IRR(P24:HH24),"N/A"),"") -> 0.08753705333 | P24: -29.09 | Q24: 1.173722667 | R24: =Q24*(1+$G24) -> 1.230022231 | S24: 1.289022297 | T24: 1.3508524 | U24: 1.415648287 | V24: 1.483324139 | W24: 1.553996294 | X24: 1.627785218 | Y24: 1.704815632 | Z24: 1.785216631 | AA24: 1.869121813 | AB24: 1.956970538 | AC24: 2.048948153 | AD24: 2.145248716 | AE24: 2.246075406 | AF24: 2.35164095 | AG24: 2.462168075 | AH24: 2.577889974 | AI24: 2.699050803 | AJ24: 2.825906191 | AK24: 2.958723782 | AL24: 3.0977838 | AM24: 3.243379638 | AN24: 3.395818481 | AO24: 3.55542195 | AP24: 3.722526782 | AQ24: 3.89748554 | AR24: 4.080667361 | AS24: 4.272458727 | AT24: 4.473264287 | AU24: 4.683507708 | AV24: 4.903632571 | AW24: 5.134103301 | AX24: 5.375406157 | AY24: 5.628050246 | AZ24: 5.892568607 | BA24: 6.169519332 | BB24: 6.459486741 | BC24: 6.763082617 | BD24: 7.0809475 | BE24: 7.413752033 | BF24: 7.762198379 | BG24: 8.127021702 | BH24: 8.508991722 | BI24: 8.908914333 | BJ24: 9.327633307 | BK24: 9.766032072 | BL24: 10.22503558 | BM24: 10.70561225 | BN24: 11.20877603 | BO24: 11.7355885 | BP24: 12.28716116 | BQ24: 12.86465774 | BR24: 13.46929665 | BS24: 14.10235359 | BT24: 14.76516421 | BU24: 15.45912693 | BV24: 16.18570589 | BW24: 16.94643407 | BX24: 17.74291647 | BY24: 18.57683355 | BZ24: 19.44994472 | CA24: 20.36409212 | CB24: 21.32120445 | CC24: 22.32330106 | CD24: 23.37249621 | CE24: 24.47100354 | CF24: 25.6211407 | CG24: 26.82533432 | CH24: 28.08612503 | CI24: 29.4061729 | CJ24: 30.78826303 | CK24: 32.23531139 | CL24: 33.75037103 | CM24: 35.33663847 | CN24: 36.99746048 | CO24: 38.73634112 | CP24: 40.55694915 | CQ24: 42.46312576 | CR24: 44.45889267 | CS24: 46.54846063 | CT24: 48.73623828 | CU24: 51.02684147 | CV24: 53.42510302 | CW24: 55.93608287 | CX24: 58.56507876 | CY24: 61.31763746 | CZ24: 64.19956642 | DA24: 67.21694605 | DB24: 70.37614251 | DC24: 73.68382121 | DD24: 77.1469608 | DE24: 80.77286796 | DF24: 84.56919276 | DG24: 88.54394482 | DH24: 92.70551022 | DI24: 97.0626692 | DJ24: 101.6246147 | DK24: 106.4009715 | DL24: 111.4018172 | DM24: 116.6377026 | DN24: 122.1196746 | DO24: 127.8592993 | DP24: 133.8686864 | DQ24: 140.1605147 | DR24: 146.7480589 | DS24: 153.6452176 | DT24: 160.8665429 | DU24: 168.4272704 | DV24: 176.3433521 | DW24: 184.6314896 | DX24: 193.3091696 | DY24: 202.3947006 | DZ24: 211.9072515 | EA24: 221.8668924 | EB24: 232.2946363 | EC24: 243.2124842 | ED24: 254.643471 | EE24: 266.6117141 | EF24: 279.1424647 | EG24: 292.2621605 | EH24: 305.9984821 | EI24: 320.3804107 | EJ24: 335.43829 | EK24: 351.2038897 | EL24: 367.7104725 | EM24: 384.9928647 | EN24: 403.0875293 | EO24: 422.0326432 | EP24: 441.8681774 | EQ24: 462.6359818 | ER24: 484.3798729 | ES24: 507.1457269 | ET24: 530.9815761 | EU24: 555.9377102 | EV24: 582.0667825 | EW24: 609.4239213 | EX24: 638.0668456 | EY24: 668.0559874 | EZ24: 699.4546188 | FA24: 732.3289859 | FB24: 766.7484482 | FC24: 802.7856253 | FD24: 840.5165496 | FE24: 880.0208275 | FF24: 921.3818064 | FG24: 964.6867513 | FH24: 1010.027029 | FI24: 1057.498299 | FJ24: 1107.200719 | FK24: 1159.239153 | FL24: 1213.723393 | FM24: 1270.768392 | FN24: 1330.494507 | FO24: 1393.027749 | FP24: 1458.500053 | FQ24: 1527.049555 | FR24: 1598.820884 | FS24: 1673.965466 | FT24: 1752.641843 | FU24: 1835.01601 | FV24: 1921.261762 | FW24: 2011.561065 | FX24: 2106.104435 | FY24: 2205.091343 | FZ24: 2308.730636 | GA24: 2417.240976 | GB24: 2530.851302 | GC24: 2649.801313 | GD24: 2774.341975 | GE24: 2904.736048 | GF24: 3041.258642 | GG24: 3184.197798 | GH24: 3333.855095 | GI24: 3490.546284 | GJ24: 3654.60196 | GK24: 3826.368252 | GL24: 4006.20756 | GM24: 4194.499315 | GN24: 4391.640783 | GO24: 4598.0479 | GP24: 4814.156151 | GQ24: 5040.42149 | GR24: 5277.3213 | GS24: 5525.355401 | GT24: 5785.047105 | GU24: 6056.944319 | GV24: 6341.620702 | GW24: 6639.676875 | GX24: 6951.741688 | GY24: 7278.473547 | GZ24: 7620.561804 | HA24: 7978.728209 | HB24: 8353.728435 | HC24: 8746.353671 | HD24: 9157.432294 | HE24: 9587.831612 | HF24: 10038.4597 | HG24: 10510.2673 | HH24: 11004.24987
A25: ='FEA___(MPG-2)'!A25 ->  | C25: ='FEA___(MPG-2)'!D25 ->  | E25: ='FEA___(MPG-4)'!F25 ->  | F25: ='FEA___(MPG-4)'!H25 ->  | G25: ='FEA___(MPG-4)'!G25 ->  | H25: =IF('FEA___(MPG-2)'!$B25,IFERROR(G25-($G25-$M25)/6,"N/A"),"") ->  | I25: =IF('FEA___(MPG-2)'!$B25,IFERROR(H25-($G25-$M25)/6,"N/A"),"") ->  | J25: =IF('FEA___(MPG-2)'!$B25,IFERROR(I25-($G25-$M25)/6,"N/A"),"") ->  | K25: =IF('FEA___(MPG-2)'!$B25,IFERROR(J25-($G25-$M25)/6,"N/A"),"") ->  | L25: =IF('FEA___(MPG-2)'!$B25,IFERROR(K25-($G25-$M25)/6,"N/A"),"") ->  | M25: =IF('FEA___(MPG-2)'!$B25,$M$12,"") ->  | N25: =IF('FEA___(MPG-2)'!$B25,IFERROR(IRR(P25:HH25),"N/A"),"") ->  | R25: =Q25*(1+$G25) -> 
A26: ='FEA___(MPG-2)'!A26 ->  | C26: ='FEA___(MPG-2)'!D26 ->  | E26: ='FEA___(MPG-4)'!F26 ->  | F26: ='FEA___(MPG-4)'!H26 ->  | G26: ='FEA___(MPG-4)'!G26 ->  | H26: =IF('FEA___(MPG-2)'!$B26,IFERROR(G26-($G26-$M26)/6,"N/A"),"") ->  | I26: =IF('FEA___(MPG-2)'!$B26,IFERROR(H26-($G26-$M26)/6,"N/A"),"") ->  | J26: =IF('FEA___(MPG-2)'!$B26,IFERROR(I26-($G26-$M26)/6,"N/A"),"") ->  | K26: =IF('FEA___(MPG-2)'!$B26,IFERROR(J26-($G26-$M26)/6,"N/A"),"") ->  | L26: =IF('FEA___(MPG-2)'!$B26,IFERROR(K26-($G26-$M26)/6,"N/A"),"") ->  | M26: =IF('FEA___(MPG-2)'!$B26,$M$12,"") ->  | N26: =IF('FEA___(MPG-2)'!$B26,IFERROR(IRR(P26:HH26),"N/A"),"") ->  | R26: =Q26*(1+$G26) -> 
A27: ='FEA___(MPG-2)'!A27 ->  | C27: ='FEA___(MPG-2)'!D27 ->  | E27: ='FEA___(MPG-4)'!F27 ->  | F27: ='FEA___(MPG-4)'!H27 ->  | G27: ='FEA___(MPG-4)'!G27 ->  | H27: =IF('FEA___(MPG-2)'!$B27,IFERROR(G27-($G27-$M27)/6,"N/A"),"") ->  | I27: =IF('FEA___(MPG-2)'!$B27,IFERROR(H27-($G27-$M27)/6,"N/A"),"") ->  | J27: =IF('FEA___(MPG-2)'!$B27,IFERROR(I27-($G27-$M27)/6,"N/A"),"") ->  | K27: =IF('FEA___(MPG-2)'!$B27,IFERROR(J27-($G27-$M27)/6,"N/A"),"") ->  | L27: =IF('FEA___(MPG-2)'!$B27,IFERROR(K27-($G27-$M27)/6,"N/A"),"") ->  | M27: =IF('FEA___(MPG-2)'!$B27,$M$12,"") ->  | N27: =IF('FEA___(MPG-2)'!$B27,IFERROR(IRR(P27:HH27),"N/A"),"") ->  | R27: =Q27*(1+$G27) -> 
A28: ='FEA___(MPG-2)'!A28 ->  | C28: ='FEA___(MPG-2)'!D28 ->  | E28: ='FEA___(MPG-4)'!F28 ->  | F28: ='FEA___(MPG-4)'!H28 ->  | G28: ='FEA___(MPG-4)'!G28 ->  | H28: =IF('FEA___(MPG-2)'!$B28,IFERROR(G28-($G28-$M28)/6,"N/A"),"") ->  | I28: =IF('FEA___(MPG-2)'!$B28,IFERROR(H28-($G28-$M28)/6,"N/A"),"") ->  | J28: =IF('FEA___(MPG-2)'!$B28,IFERROR(I28-($G28-$M28)/6,"N/A"),"") ->  | K28: =IF('FEA___(MPG-2)'!$B28,IFERROR(J28-($G28-$M28)/6,"N/A"),"") ->  | L28: =IF('FEA___(MPG-2)'!$B28,IFERROR(K28-($G28-$M28)/6,"N/A"),"") ->  | M28: =IF('FEA___(MPG-2)'!$B28,$M$12,"") ->  | N28: =IF('FEA___(MPG-2)'!$B28,IFERROR(IRR(P28:HH28),"N/A"),"") ->  | R28: =Q28*(1+$G28) -> 
A29: ='FEA___(MPG-2)'!A29 ->  | C29: ='FEA___(MPG-2)'!D29 ->  | E29: ='FEA___(MPG-4)'!F29 ->  | F29: ='FEA___(MPG-4)'!H29 ->  | G29: ='FEA___(MPG-4)'!G29 ->  | H29: =IF('FEA___(MPG-2)'!$B29,IFERROR(G29-($G29-$M29)/6,"N/A"),"") ->  | I29: =IF('FEA___(MPG-2)'!$B29,IFERROR(H29-($G29-$M29)/6,"N/A"),"") ->  | J29: =IF('FEA___(MPG-2)'!$B29,IFERROR(I29-($G29-$M29)/6,"N/A"),"") ->  | K29: =IF('FEA___(MPG-2)'!$B29,IFERROR(J29-($G29-$M29)/6,"N/A"),"") ->  | L29: =IF('FEA___(MPG-2)'!$B29,IFERROR(K29-($G29-$M29)/6,"N/A"),"") ->  | M29: =IF('FEA___(MPG-2)'!$B29,$M$12,"") ->  | N29: =IF('FEA___(MPG-2)'!$B29,IFERROR(IRR(P29:HH29),"N/A"),"") ->  | R29: =Q29*(1+$G29) -> 
A30: ='FEA___(MPG-2)'!A30 ->  | C30: ='FEA___(MPG-2)'!D30 ->  | E30: ='FEA___(MPG-4)'!F30 ->  | F30: ='FEA___(MPG-4)'!H30 ->  | G30: ='FEA___(MPG-4)'!G30 ->  | H30: =IF('FEA___(MPG-2)'!$B30,IFERROR(G30-($G30-$M30)/6,"N/A"),"") ->  | I30: =IF('FEA___(MPG-2)'!$B30,IFERROR(H30-($G30-$M30)/6,"N/A"),"") ->  | J30: =IF('FEA___(MPG-2)'!$B30,IFERROR(I30-($G30-$M30)/6,"N/A"),"") ->  | K30: =IF('FEA___(MPG-2)'!$B30,IFERROR(J30-($G30-$M30)/6,"N/A"),"") ->  | L30: =IF('FEA___(MPG-2)'!$B30,IFERROR(K30-($G30-$M30)/6,"N/A"),"") ->  | M30: =IF('FEA___(MPG-2)'!$B30,$M$12,"") ->  | N30: =IF('FEA___(MPG-2)'!$B30,IFERROR(IRR(P30:HH30),"N/A"),"") ->  | R30: =Q30*(1+$G30) -> 
A31: ='FEA___(MPG-2)'!A31 ->  | C31: ='FEA___(MPG-2)'!D31 ->  | E31: ='FEA___(MPG-4)'!F31 ->  | F31: ='FEA___(MPG-4)'!H31 ->  | G31: ='FEA___(MPG-4)'!G31 ->  | H31: =IF('FEA___(MPG-2)'!$B31,IFERROR(G31-($G31-$M31)/6,"N/A"),"") ->  | I31: =IF('FEA___(MPG-2)'!$B31,IFERROR(H31-($G31-$M31)/6,"N/A"),"") ->  | J31: =IF('FEA___(MPG-2)'!$B31,IFERROR(I31-($G31-$M31)/6,"N/A"),"") ->  | K31: =IF('FEA___(MPG-2)'!$B31,IFERROR(J31-($G31-$M31)/6,"N/A"),"") ->  | L31: =IF('FEA___(MPG-2)'!$B31,IFERROR(K31-($G31-$M31)/6,"N/A"),"") ->  | M31: =IF('FEA___(MPG-2)'!$B31,$M$12,"") ->  | N31: =IF('FEA___(MPG-2)'!$B31,IFERROR(IRR(P31:HH31),"N/A"),"") ->  | R31: =Q31*(1+$G31) -> 
A32: ='FEA___(MPG-2)'!A32 ->  | C32: ='FEA___(MPG-2)'!D32 ->  | E32: ='FEA___(MPG-4)'!F32 ->  | F32: ='FEA___(MPG-4)'!H32 ->  | G32: ='FEA___(MPG-4)'!G32 ->  | H32: =IF('FEA___(MPG-2)'!$B32,IFERROR(G32-($G32-$M32)/6,"N/A"),"") ->  | I32: =IF('FEA___(MPG-2)'!$B32,IFERROR(H32-($G32-$M32)/6,"N/A"),"") ->  | J32: =IF('FEA___(MPG-2)'!$B32,IFERROR(I32-($G32-$M32)/6,"N/A"),"") ->  | K32: =IF('FEA___(MPG-2)'!$B32,IFERROR(J32-($G32-$M32)/6,"N/A"),"") ->  | L32: =IF('FEA___(MPG-2)'!$B32,IFERROR(K32-($G32-$M32)/6,"N/A"),"") ->  | M32: =IF('FEA___(MPG-2)'!$B32,$M$12,"") ->  | N32: =IF('FEA___(MPG-2)'!$B32,IFERROR(IRR(P32:HH32),"N/A"),"") ->  | R32: =Q32*(1+$G32) -> 
A33: ='FEA___(MPG-2)'!A33 ->  | C33: ='FEA___(MPG-2)'!D33 ->  | E33: ='FEA___(MPG-4)'!F33 ->  | F33: ='FEA___(MPG-4)'!H33 ->  | G33: ='FEA___(MPG-4)'!G33 ->  | H33: =IF('FEA___(MPG-2)'!$B33,IFERROR(G33-($G33-$M33)/6,"N/A"),"") ->  | I33: =IF('FEA___(MPG-2)'!$B33,IFERROR(H33-($G33-$M33)/6,"N/A"),"") ->  | J33: =IF('FEA___(MPG-2)'!$B33,IFERROR(I33-($G33-$M33)/6,"N/A"),"") ->  | K33: =IF('FEA___(MPG-2)'!$B33,IFERROR(J33-($G33-$M33)/6,"N/A"),"") ->  | L33: =IF('FEA___(MPG-2)'!$B33,IFERROR(K33-($G33-$M33)/6,"N/A"),"") ->  | M33: =IF('FEA___(MPG-2)'!$B33,$M$12,"") ->  | N33: =IF('FEA___(MPG-2)'!$B33,IFERROR(IRR(P33:HH33),"N/A"),"") ->  | R33: =Q33*(1+$G33) -> 
A34: ='FEA___(MPG-2)'!A34 ->  | C34: ='FEA___(MPG-2)'!D34 ->  | E34: ='FEA___(MPG-4)'!F34 ->  | F34: ='FEA___(MPG-4)'!H34 ->  | G34: ='FEA___(MPG-4)'!G34 ->  | H34: =IF('FEA___(MPG-2)'!$B34,IFERROR(G34-($G34-$M34)/6,"N/A"),"") ->  | I34: =IF('FEA___(MPG-2)'!$B34,IFERROR(H34-($G34-$M34)/6,"N/A"),"") ->  | J34: =IF('FEA___(MPG-2)'!$B34,IFERROR(I34-($G34-$M34)/6,"N/A"),"") ->  | K34: =IF('FEA___(MPG-2)'!$B34,IFERROR(J34-($G34-$M34)/6,"N/A"),"") ->  | L34: =IF('FEA___(MPG-2)'!$B34,IFERROR(K34-($G34-$M34)/6,"N/A"),"") ->  | M34: =IF('FEA___(MPG-2)'!$B34,$M$12,"") ->  | N34: =IF('FEA___(MPG-2)'!$B34,IFERROR(IRR(P34:HH34),"N/A"),"") ->  | R34: =Q34*(1+$G34) -> 
A35: ='FEA___(MPG-2)'!A35 ->  | C35: ='FEA___(MPG-2)'!D35 ->  | E35: ='FEA___(MPG-4)'!F35 ->  | F35: ='FEA___(MPG-4)'!H35 ->  | G35: ='FEA___(MPG-4)'!G35 ->  | H35: =IF('FEA___(MPG-2)'!$B35,IFERROR(G35-($G35-$M35)/6,"N/A"),"") ->  | I35: =IF('FEA___(MPG-2)'!$B35,IFERROR(H35-($G35-$M35)/6,"N/A"),"") ->  | J35: =IF('FEA___(MPG-2)'!$B35,IFERROR(I35-($G35-$M35)/6,"N/A"),"") ->  | K35: =IF('FEA___(MPG-2)'!$B35,IFERROR(J35-($G35-$M35)/6,"N/A"),"") ->  | L35: =IF('FEA___(MPG-2)'!$B35,IFERROR(K35-($G35-$M35)/6,"N/A"),"") ->  | M35: =IF('FEA___(MPG-2)'!$B35,$M$12,"") ->  | N35: =IF('FEA___(MPG-2)'!$B35,IFERROR(IRR(P35:HH35),"N/A"),"") ->  | R35: =Q35*(1+$G35) -> 
A36: ='FEA___(MPG-2)'!A36 ->  | C36: ='FEA___(MPG-2)'!D36 ->  | E36: ='FEA___(MPG-4)'!F36 ->  | F36: ='FEA___(MPG-4)'!H36 ->  | G36: ='FEA___(MPG-4)'!G36 ->  | H36: =IF('FEA___(MPG-2)'!$B36,IFERROR(G36-($G36-$M36)/6,"N/A"),"") ->  | I36: =IF('FEA___(MPG-2)'!$B36,IFERROR(H36-($G36-$M36)/6,"N/A"),"") ->  | J36: =IF('FEA___(MPG-2)'!$B36,IFERROR(I36-($G36-$M36)/6,"N/A"),"") ->  | K36: =IF('FEA___(MPG-2)'!$B36,IFERROR(J36-($G36-$M36)/6,"N/A"),"") ->  | L36: =IF('FEA___(MPG-2)'!$B36,IFERROR(K36-($G36-$M36)/6,"N/A"),"") ->  | M36: =IF('FEA___(MPG-2)'!$B36,$M$12,"") ->  | N36: =IF('FEA___(MPG-2)'!$B36,IFERROR(IRR(P36:HH36),"N/A"),"") ->  | R36: =Q36*(1+$G36) -> 
A37: ='FEA___(MPG-2)'!A37 ->  | C37: ='FEA___(MPG-2)'!D37 ->  | E37: ='FEA___(MPG-4)'!F37 ->  | F37: ='FEA___(MPG-4)'!H37 ->  | G37: ='FEA___(MPG-4)'!G37 ->  | H37: =IF('FEA___(MPG-2)'!$B37,IFERROR(G37-($G37-$M37)/6,"N/A"),"") ->  | I37: =IF('FEA___(MPG-2)'!$B37,IFERROR(H37-($G37-$M37)/6,"N/A"),"") ->  | J37: =IF('FEA___(MPG-2)'!$B37,IFERROR(I37-($G37-$M37)/6,"N/A"),"") ->  | K37: =IF('FEA___(MPG-2)'!$B37,IFERROR(J37-($G37-$M37)/6,"N/A"),"") ->  | L37: =IF('FEA___(MPG-2)'!$B37,IFERROR(K37-($G37-$M37)/6,"N/A"),"") ->  | M37: =IF('FEA___(MPG-2)'!$B37,$M$12,"") ->  | N37: =IF('FEA___(MPG-2)'!$B37,IFERROR(IRR(P37:HH37),"N/A"),"") ->  | R37: =Q37*(1+$G37) -> 
A38: ='FEA___(MPG-2)'!A38 ->  | C38: ='FEA___(MPG-2)'!D38 ->  | E38: ='FEA___(MPG-4)'!F38 ->  | F38: ='FEA___(MPG-4)'!H38 ->  | G38: ='FEA___(MPG-4)'!G38 ->  | H38: =IF('FEA___(MPG-2)'!$B38,IFERROR(G38-($G38-$M38)/6,"N/A"),"") ->  | I38: =IF('FEA___(MPG-2)'!$B38,IFERROR(H38-($G38-$M38)/6,"N/A"),"") ->  | J38: =IF('FEA___(MPG-2)'!$B38,IFERROR(I38-($G38-$M38)/6,"N/A"),"") ->  | K38: =IF('FEA___(MPG-2)'!$B38,IFERROR(J38-($G38-$M38)/6,"N/A"),"") ->  | L38: =IF('FEA___(MPG-2)'!$B38,IFERROR(K38-($G38-$M38)/6,"N/A"),"") ->  | M38: =IF('FEA___(MPG-2)'!$B38,$M$12,"") ->  | N38: =IF('FEA___(MPG-2)'!$B38,IFERROR(IRR(P38:HH38),"N/A"),"") ->  | R38: =Q38*(1+$G38) -> 
A39: ='FEA___(MPG-2)'!A39 ->  | C39: ='FEA___(MPG-2)'!D39 ->  | E39: ='FEA___(MPG-4)'!F39 ->  | F39: ='FEA___(MPG-4)'!H39 ->  | G39: ='FEA___(MPG-4)'!G39 ->  | H39: =IF('FEA___(MPG-2)'!$B39,IFERROR(G39-($G39-$M39)/6,"N/A"),"") ->  | I39: =IF('FEA___(MPG-2)'!$B39,IFERROR(H39-($G39-$M39)/6,"N/A"),"") ->  | J39: =IF('FEA___(MPG-2)'!$B39,IFERROR(I39-($G39-$M39)/6,"N/A"),"") ->  | K39: =IF('FEA___(MPG-2)'!$B39,IFERROR(J39-($G39-$M39)/6,"N/A"),"") ->  | L39: =IF('FEA___(MPG-2)'!$B39,IFERROR(K39-($G39-$M39)/6,"N/A"),"") ->  | M39: =IF('FEA___(MPG-2)'!$B39,$M$12,"") ->  | N39: =IF('FEA___(MPG-2)'!$B39,IFERROR(IRR(P39:HH39),"N/A"),"") ->  | R39: =Q39*(1+$G39) -> 
A40: ='FEA___(MPG-2)'!A40 ->  | C40: ='FEA___(MPG-2)'!D40 ->  | E40: ='FEA___(MPG-4)'!F40 ->  | F40: ='FEA___(MPG-4)'!H40 ->  | G40: ='FEA___(MPG-4)'!G40 ->  | H40: =IF('FEA___(MPG-2)'!$B40,IFERROR(G40-($G40-$M40)/6,"N/A"),"") ->  | I40: =IF('FEA___(MPG-2)'!$B40,IFERROR(H40-($G40-$M40)/6,"N/A"),"") ->  | J40: =IF('FEA___(MPG-2)'!$B40,IFERROR(I40-($G40-$M40)/6,"N/A"),"") ->  | K40: =IF('FEA___(MPG-2)'!$B40,IFERROR(J40-($G40-$M40)/6,"N/A"),"") ->  | L40: =IF('FEA___(MPG-2)'!$B40,IFERROR(K40-($G40-$M40)/6,"N/A"),"") ->  | M40: =IF('FEA___(MPG-2)'!$B40,$M$12,"") ->  | N40: =IF('FEA___(MPG-2)'!$B40,IFERROR(IRR(P40:HH40),"N/A"),"") ->  | R40: =Q40*(1+$G40) -> 
A41: ='FEA___(MPG-2)'!A41 ->  | C41: ='FEA___(MPG-2)'!D41 ->  | E41: ='FEA___(MPG-4)'!F41 ->  | F41: ='FEA___(MPG-4)'!H41 ->  | G41: ='FEA___(MPG-4)'!G41 ->  | H41: =IF('FEA___(MPG-2)'!$B41,IFERROR(G41-($G41-$M41)/6,"N/A"),"") ->  | I41: =IF('FEA___(MPG-2)'!$B41,IFERROR(H41-($G41-$M41)/6,"N/A"),"") ->  | J41: =IF('FEA___(MPG-2)'!$B41,IFERROR(I41-($G41-$M41)/6,"N/A"),"") ->  | K41: =IF('FEA___(MPG-2)'!$B41,IFERROR(J41-($G41-$M41)/6,"N/A"),"") ->  | L41: =IF('FEA___(MPG-2)'!$B41,IFERROR(K41-($G41-$M41)/6,"N/A"),"") ->  | M41: =IF('FEA___(MPG-2)'!$B41,$M$12,"") ->  | N41: =IF('FEA___(MPG-2)'!$B41,IFERROR(IRR(P41:HH41),"N/A"),"") ->  | R41: =Q41*(1+$G41) -> 
A42: ='FEA___(MPG-2)'!A42 ->  | C42: ='FEA___(MPG-2)'!D42 ->  | E42: ='FEA___(MPG-4)'!F42 ->  | F42: ='FEA___(MPG-4)'!H42 ->  | G42: ='FEA___(MPG-4)'!G42 ->  | H42: =IF('FEA___(MPG-2)'!$B42,IFERROR(G42-($G42-$M42)/6,"N/A"),"") ->  | I42: =IF('FEA___(MPG-2)'!$B42,IFERROR(H42-($G42-$M42)/6,"N/A"),"") ->  | J42: =IF('FEA___(MPG-2)'!$B42,IFERROR(I42-($G42-$M42)/6,"N/A"),"") ->  | K42: =IF('FEA___(MPG-2)'!$B42,IFERROR(J42-($G42-$M42)/6,"N/A"),"") ->  | L42: =IF('FEA___(MPG-2)'!$B42,IFERROR(K42-($G42-$M42)/6,"N/A"),"") ->  | M42: =IF('FEA___(MPG-2)'!$B42,$M$12,"") ->  | N42: =IF('FEA___(MPG-2)'!$B42,IFERROR(IRR(P42:HH42),"N/A"),"") ->  | R42: =Q42*(1+$G42) -> 
A43: ='FEA___(MPG-2)'!A43 ->  | C43: ='FEA___(MPG-2)'!D43 ->  | E43: ='FEA___(MPG-4)'!F43 ->  | F43: ='FEA___(MPG-4)'!H43 ->  | G43: ='FEA___(MPG-4)'!G43 ->  | H43: =IF('FEA___(MPG-2)'!$B43,IFERROR(G43-($G43-$M43)/6,"N/A"),"") ->  | I43: =IF('FEA___(MPG-2)'!$B43,IFERROR(H43-($G43-$M43)/6,"N/A"),"") ->  | J43: =IF('FEA___(MPG-2)'!$B43,IFERROR(I43-($G43-$M43)/6,"N/A"),"") ->  | K43: =IF('FEA___(MPG-2)'!$B43,IFERROR(J43-($G43-$M43)/6,"N/A"),"") ->  | L43: =IF('FEA___(MPG-2)'!$B43,IFERROR(K43-($G43-$M43)/6,"N/A"),"") ->  | M43: =IF('FEA___(MPG-2)'!$B43,$M$12,"") ->  | N43: =IF('FEA___(MPG-2)'!$B43,IFERROR(IRR(P43:HH43),"N/A"),"") ->  | R43: =Q43*(1+$G43) -> 
A44: ='FEA___(MPG-2)'!A44 ->  | C44: ='FEA___(MPG-2)'!D44 ->  | E44: ='FEA___(MPG-4)'!F44 ->  | F44: ='FEA___(MPG-4)'!H44 ->  | G44: ='FEA___(MPG-4)'!G44 ->  | H44: =IF('FEA___(MPG-2)'!$B44,IFERROR(G44-($G44-$M44)/6,"N/A"),"") ->  | I44: =IF('FEA___(MPG-2)'!$B44,IFERROR(H44-($G44-$M44)/6,"N/A"),"") ->  | J44: =IF('FEA___(MPG-2)'!$B44,IFERROR(I44-($G44-$M44)/6,"N/A"),"") ->  | K44: =IF('FEA___(MPG-2)'!$B44,IFERROR(J44-($G44-$M44)/6,"N/A"),"") ->  | L44: =IF('FEA___(MPG-2)'!$B44,IFERROR(K44-($G44-$M44)/6,"N/A"),"") ->  | M44: =IF('FEA___(MPG-2)'!$B44,$M$12,"") ->  | N44: =IF('FEA___(MPG-2)'!$B44,IFERROR(IRR(P44:HH44),"N/A"),"") ->  | R44: =Q44*(1+$G44) -> 
A45: ='FEA___(MPG-2)'!A45 ->  | C45: ='FEA___(MPG-2)'!D45 ->  | E45: ='FEA___(MPG-4)'!F45 ->  | F45: ='FEA___(MPG-4)'!H45 ->  | G45: ='FEA___(MPG-4)'!G45 ->  | H45: =IF('FEA___(MPG-2)'!$B45,IFERROR(G45-($G45-$M45)/6,"N/A"),"") ->  | I45: =IF('FEA___(MPG-2)'!$B45,IFERROR(H45-($G45-$M45)/6,"N/A"),"") ->  | J45: =IF('FEA___(MPG-2)'!$B45,IFERROR(I45-($G45-$M45)/6,"N/A"),"") ->  | K45: =IF('FEA___(MPG-2)'!$B45,IFERROR(J45-($G45-$M45)/6,"N/A"),"") ->  | L45: =IF('FEA___(MPG-2)'!$B45,IFERROR(K45-($G45-$M45)/6,"N/A"),"") ->  | M45: =IF('FEA___(MPG-2)'!$B45,$M$12,"") ->  | N45: =IF('FEA___(MPG-2)'!$B45,IFERROR(IRR(P45:HH45),"N/A"),"") ->  | R45: =Q45*(1+$G45) -> 
A46: ='FEA___(MPG-2)'!A46 ->  | C46: ='FEA___(MPG-2)'!D46 ->  | E46: ='FEA___(MPG-4)'!F46 ->  | F46: ='FEA___(MPG-4)'!H46 ->  | G46: ='FEA___(MPG-4)'!G46 ->  | H46: =IF('FEA___(MPG-2)'!$B46,IFERROR(G46-($G46-$M46)/6,"N/A"),"") ->  | I46: =IF('FEA___(MPG-2)'!$B46,IFERROR(H46-($G46-$M46)/6,"N/A"),"") ->  | J46: =IF('FEA___(MPG-2)'!$B46,IFERROR(I46-($G46-$M46)/6,"N/A"),"") ->  | K46: =IF('FEA___(MPG-2)'!$B46,IFERROR(J46-($G46-$M46)/6,"N/A"),"") ->  | L46: =IF('FEA___(MPG-2)'!$B46,IFERROR(K46-($G46-$M46)/6,"N/A"),"") ->  | M46: =IF('FEA___(MPG-2)'!$B46,$M$12,"") ->  | N46: =IF('FEA___(MPG-2)'!$B46,IFERROR(IRR(P46:HH46),"N/A"),"") ->  | R46: =Q46*(1+$G46) -> 
A47: ='FEA___(MPG-2)'!A47 ->  | C47: ='FEA___(MPG-2)'!D47 ->  | E47: ='FEA___(MPG-4)'!F47 ->  | F47: ='FEA___(MPG-4)'!H47 ->  | G47: ='FEA___(MPG-4)'!G47 ->  | H47: =IF('FEA___(MPG-2)'!$B47,IFERROR(G47-($G47-$M47)/6,"N/A"),"") ->  | I47: =IF('FEA___(MPG-2)'!$B47,IFERROR(H47-($G47-$M47)/6,"N/A"),"") ->  | J47: =IF('FEA___(MPG-2)'!$B47,IFERROR(I47-($G47-$M47)/6,"N/A"),"") ->  | K47: =IF('FEA___(MPG-2)'!$B47,IFERROR(J47-($G47-$M47)/6,"N/A"),"") ->  | L47: =IF('FEA___(MPG-2)'!$B47,IFERROR(K47-($G47-$M47)/6,"N/A"),"") ->  | M47: =IF('FEA___(MPG-2)'!$B47,$M$12,"") ->  | N47: =IF('FEA___(MPG-2)'!$B47,IFERROR(IRR(P47:HH47),"N/A"),"") ->  | R47: =Q47*(1+$G47) -> 
A48: ='FEA___(MPG-2)'!A48 ->  | C48: ='FEA___(MPG-2)'!D48 ->  | E48: ='FEA___(MPG-4)'!F48 ->  | F48: ='FEA___(MPG-4)'!H48 ->  | G48: ='FEA___(MPG-4)'!G48 ->  | H48: =IF('FEA___(MPG-2)'!$B48,IFERROR(G48-($G48-$M48)/6,"N/A"),"") ->  | I48: =IF('FEA___(MPG-2)'!$B48,IFERROR(H48-($G48-$M48)/6,"N/A"),"") ->  | J48: =IF('FEA___(MPG-2)'!$B48,IFERROR(I48-($G48-$M48)/6,"N/A"),"") ->  | K48: =IF('FEA___(MPG-2)'!$B48,IFERROR(J48-($G48-$M48)/6,"N/A"),"") ->  | L48: =IF('FEA___(MPG-2)'!$B48,IFERROR(K48-($G48-$M48)/6,"N/A"),"") ->  | M48: =IF('FEA___(MPG-2)'!$B48,$M$12,"") ->  | N48: =IF('FEA___(MPG-2)'!$B48,IFERROR(IRR(P48:HH48),"N/A"),"") ->  | R48: =Q48*(1+$G48) -> 
A49: ='FEA___(MPG-2)'!A49 ->  | C49: ='FEA___(MPG-2)'!D49 ->  | E49: ='FEA___(MPG-4)'!F49 ->  | F49: ='FEA___(MPG-4)'!H49 ->  | G49: ='FEA___(MPG-4)'!G49 ->  | H49: =IF('FEA___(MPG-2)'!$B49,IFERROR(G49-($G49-$M49)/6,"N/A"),"") ->  | I49: =IF('FEA___(MPG-2)'!$B49,IFERROR(H49-($G49-$M49)/6,"N/A"),"") ->  | J49: =IF('FEA___(MPG-2)'!$B49,IFERROR(I49-($G49-$M49)/6,"N/A"),"") ->  | K49: =IF('FEA___(MPG-2)'!$B49,IFERROR(J49-($G49-$M49)/6,"N/A"),"") ->  | L49: =IF('FEA___(MPG-2)'!$B49,IFERROR(K49-($G49-$M49)/6,"N/A"),"") ->  | M49: =IF('FEA___(MPG-2)'!$B49,$M$12,"") ->  | N49: =IF('FEA___(MPG-2)'!$B49,IFERROR(IRR(P49:HH49),"N/A"),"") ->  | R49: =Q49*(1+$G49) -> 
A50: ='FEA___(MPG-2)'!A50 ->  | C50: ='FEA___(MPG-2)'!D50 ->  | E50: ='FEA___(MPG-4)'!F50 ->  | F50: ='FEA___(MPG-4)'!H50 ->  | G50: ='FEA___(MPG-4)'!G50 ->  | H50: =IF('FEA___(MPG-2)'!$B50,IFERROR(G50-($G50-$M50)/6,"N/A"),"") ->  | I50: =IF('FEA___(MPG-2)'!$B50,IFERROR(H50-($G50-$M50)/6,"N/A"),"") ->  | J50: =IF('FEA___(MPG-2)'!$B50,IFERROR(I50-($G50-$M50)/6,"N/A"),"") ->  | K50: =IF('FEA___(MPG-2)'!$B50,IFERROR(J50-($G50-$M50)/6,"N/A"),"") ->  | L50: =IF('FEA___(MPG-2)'!$B50,IFERROR(K50-($G50-$M50)/6,"N/A"),"") ->  | M50: =IF('FEA___(MPG-2)'!$B50,$M$12,"") ->  | N50: =IF('FEA___(MPG-2)'!$B50,IFERROR(IRR(P50:HH50),"N/A"),"") ->  | R50: =Q50*(1+$G50) -> 
A51: ='FEA___(MPG-2)'!A51 ->  | C51: ='FEA___(MPG-2)'!D51 ->  | E51: ='FEA___(MPG-4)'!F51 ->  | F51: ='FEA___(MPG-4)'!H51 ->  | G51: ='FEA___(MPG-4)'!G51 ->  | H51: =IF('FEA___(MPG-2)'!$B51,IFERROR(G51-($G51-$M51)/6,"N/A"),"") ->  | I51: =IF('FEA___(MPG-2)'!$B51,IFERROR(H51-($G51-$M51)/6,"N/A"),"") ->  | J51: =IF('FEA___(MPG-2)'!$B51,IFERROR(I51-($G51-$M51)/6,"N/A"),"") ->  | K51: =IF('FEA___(MPG-2)'!$B51,IFERROR(J51-($G51-$M51)/6,"N/A"),"") ->  | L51: =IF('FEA___(MPG-2)'!$B51,IFERROR(K51-($G51-$M51)/6,"N/A"),"") ->  | M51: =IF('FEA___(MPG-2)'!$B51,$M$12,"") ->  | N51: =IF('FEA___(MPG-2)'!$B51,IFERROR(IRR(P51:HH51),"N/A"),"") ->  | R51: =Q51*(1+$G51) -> 
A52: ='FEA___(MPG-2)'!A52 ->  | C52: ='FEA___(MPG-2)'!D52 ->  | E52: ='FEA___(MPG-4)'!F52 ->  | F52: ='FEA___(MPG-4)'!H52 ->  | G52: ='FEA___(MPG-4)'!G52 ->  | H52: =IF('FEA___(MPG-2)'!$B52,IFERROR(G52-($G52-$M52)/6,"N/A"),"") ->  | I52: =IF('FEA___(MPG-2)'!$B52,IFERROR(H52-($G52-$M52)/6,"N/A"),"") ->  | J52: =IF('FEA___(MPG-2)'!$B52,IFERROR(I52-($G52-$M52)/6,"N/A"),"") ->  | K52: =IF('FEA___(MPG-2)'!$B52,IFERROR(J52-($G52-$M52)/6,"N/A"),"") ->  | L52: =IF('FEA___(MPG-2)'!$B52,IFERROR(K52-($G52-$M52)/6,"N/A"),"") ->  | M52: =IF('FEA___(MPG-2)'!$B52,$M$12,"") ->  | N52: =IF('FEA___(MPG-2)'!$B52,IFERROR(IRR(P52:HH52),"N/A"),"") ->  | R52: =Q52*(1+$G52) -> 
A53: ='FEA___(MPG-2)'!A53 ->  | C53: ='FEA___(MPG-2)'!D53 ->  | E53: ='FEA___(MPG-4)'!F53 ->  | F53: ='FEA___(MPG-4)'!H53 ->  | G53: ='FEA___(MPG-4)'!G53 ->  | H53: =IF('FEA___(MPG-2)'!$B53,IFERROR(G53-($G53-$M53)/6,"N/A"),"") ->  | I53: =IF('FEA___(MPG-2)'!$B53,IFERROR(H53-($G53-$M53)/6,"N/A"),"") ->  | J53: =IF('FEA___(MPG-2)'!$B53,IFERROR(I53-($G53-$M53)/6,"N/A"),"") ->  | K53: =IF('FEA___(MPG-2)'!$B53,IFERROR(J53-($G53-$M53)/6,"N/A"),"") ->  | L53: =IF('FEA___(MPG-2)'!$B53,IFERROR(K53-($G53-$M53)/6,"N/A"),"") ->  | M53: =IF('FEA___(MPG-2)'!$B53,$M$12,"") ->  | N53: =IF('FEA___(MPG-2)'!$B53,IFERROR(IRR(P53:HH53),"N/A"),"") ->  | R53: =Q53*(1+$G53) -> 
A54: ='FEA___(MPG-2)'!A54 ->  | C54: ='FEA___(MPG-2)'!D54 ->  | E54: ='FEA___(MPG-4)'!F54 ->  | F54: ='FEA___(MPG-4)'!H54 ->  | G54: ='FEA___(MPG-4)'!G54 ->  | H54: =IF('FEA___(MPG-2)'!$B54,IFERROR(G54-($G54-$M54)/6,"N/A"),"") ->  | I54: =IF('FEA___(MPG-2)'!$B54,IFERROR(H54-($G54-$M54)/6,"N/A"),"") ->  | J54: =IF('FEA___(MPG-2)'!$B54,IFERROR(I54-($G54-$M54)/6,"N/A"),"") ->  | K54: =IF('FEA___(MPG-2)'!$B54,IFERROR(J54-($G54-$M54)/6,"N/A"),"") ->  | L54: =IF('FEA___(MPG-2)'!$B54,IFERROR(K54-($G54-$M54)/6,"N/A"),"") ->  | M54: =IF('FEA___(MPG-2)'!$B54,$M$12,"") ->  | N54: =IF('FEA___(MPG-2)'!$B54,IFERROR(IRR(P54:HH54),"N/A"),"") ->  | R54: =Q54*(1+$G54) -> 
A55: ='FEA___(MPG-2)'!A55 ->  | C55: ='FEA___(MPG-2)'!D55 ->  | E55: ='FEA___(MPG-4)'!F55 ->  | F55: ='FEA___(MPG-4)'!H55 ->  | G55: ='FEA___(MPG-4)'!G55 ->  | H55: =IF('FEA___(MPG-2)'!$B55,IFERROR(G55-($G55-$M55)/6,"N/A"),"") ->  | I55: =IF('FEA___(MPG-2)'!$B55,IFERROR(H55-($G55-$M55)/6,"N/A"),"") ->  | J55: =IF('FEA___(MPG-2)'!$B55,IFERROR(I55-($G55-$M55)/6,"N/A"),"") ->  | K55: =IF('FEA___(MPG-2)'!$B55,IFERROR(J55-($G55-$M55)/6,"N/A"),"") ->  | L55: =IF('FEA___(MPG-2)'!$B55,IFERROR(K55-($G55-$M55)/6,"N/A"),"") ->  | M55: =IF('FEA___(MPG-2)'!$B55,$M$12,"") ->  | N55: =IF('FEA___(MPG-2)'!$B55,IFERROR(IRR(P55:HH55),"N/A"),"") ->  | R55: =Q55*(1+$G55) -> 
A56: ='FEA___(MPG-2)'!A56 ->  | C56: ='FEA___(MPG-2)'!D56 ->  | E56: ='FEA___(MPG-4)'!F56 ->  | F56: ='FEA___(MPG-4)'!H56 ->  | G56: ='FEA___(MPG-4)'!G56 ->  | H56: =IF('FEA___(MPG-2)'!$B56,IFERROR(G56-($G56-$M56)/6,"N/A"),"") ->  | I56: =IF('FEA___(MPG-2)'!$B56,IFERROR(H56-($G56-$M56)/6,"N/A"),"") ->  | J56: =IF('FEA___(MPG-2)'!$B56,IFERROR(I56-($G56-$M56)/6,"N/A"),"") ->  | K56: =IF('FEA___(MPG-2)'!$B56,IFERROR(J56-($G56-$M56)/6,"N/A"),"") ->  | L56: =IF('FEA___(MPG-2)'!$B56,IFERROR(K56-($G56-$M56)/6,"N/A"),"") ->  | M56: =IF('FEA___(MPG-2)'!$B56,$M$12,"") ->  | N56: =IF('FEA___(MPG-2)'!$B56,IFERROR(IRR(P56:HH56),"N/A"),"") ->  | R56: =Q56*(1+$G56) -> 
A57: ='FEA___(MPG-2)'!A57 ->  | C57: ='FEA___(MPG-2)'!D57 ->  | E57: ='FEA___(MPG-4)'!F57 ->  | F57: ='FEA___(MPG-4)'!H57 ->  | G57: ='FEA___(MPG-4)'!G57 ->  | H57: =IF('FEA___(MPG-2)'!$B57,IFERROR(G57-($G57-$M57)/6,"N/A"),"") ->  | I57: =IF('FEA___(MPG-2)'!$B57,IFERROR(H57-($G57-$M57)/6,"N/A"),"") ->  | J57: =IF('FEA___(MPG-2)'!$B57,IFERROR(I57-($G57-$M57)/6,"N/A"),"") ->  | K57: =IF('FEA___(MPG-2)'!$B57,IFERROR(J57-($G57-$M57)/6,"N/A"),"") ->  | L57: =IF('FEA___(MPG-2)'!$B57,IFERROR(K57-($G57-$M57)/6,"N/A"),"") ->  | M57: =IF('FEA___(MPG-2)'!$B57,$M$12,"") ->  | N57: =IF('FEA___(MPG-2)'!$B57,IFERROR(IRR(P57:HH57),"N/A"),"") ->  | R57: =Q57*(1+$G57) -> 
A58: ='FEA___(MPG-2)'!A58 ->  | C58: ='FEA___(MPG-2)'!D58 ->  | E58: ='FEA___(MPG-4)'!F58 ->  | F58: ='FEA___(MPG-4)'!H58 ->  | G58: ='FEA___(MPG-4)'!G58 ->  | H58: =IF('FEA___(MPG-2)'!$B58,IFERROR(G58-($G58-$M58)/6,"N/A"),"") ->  | I58: =IF('FEA___(MPG-2)'!$B58,IFERROR(H58-($G58-$M58)/6,"N/A"),"") ->  | J58: =IF('FEA___(MPG-2)'!$B58,IFERROR(I58-($G58-$M58)/6,"N/A"),"") ->  | K58: =IF('FEA___(MPG-2)'!$B58,IFERROR(J58-($G58-$M58)/6,"N/A"),"") ->  | L58: =IF('FEA___(MPG-2)'!$B58,IFERROR(K58-($G58-$M58)/6,"N/A"),"") ->  | M58: =IF('FEA___(MPG-2)'!$B58,$M$12,"") ->  | N58: =IF('FEA___(MPG-2)'!$B58,IFERROR(IRR(P58:HH58),"N/A"),"") ->  | R58: =Q58*(1+$G58) -> 
A59: ='FEA___(MPG-2)'!A59 ->  | C59: ='FEA___(MPG-2)'!D59 ->  | E59: ='FEA___(MPG-4)'!F59 ->  | F59: ='FEA___(MPG-4)'!H59 ->  | G59: ='FEA___(MPG-4)'!G59 ->  | H59: =IF('FEA___(MPG-2)'!$B59,IFERROR(G59-($G59-$M59)/6,"N/A"),"") ->  | I59: =IF('FEA___(MPG-2)'!$B59,IFERROR(H59-($G59-$M59)/6,"N/A"),"") ->  | J59: =IF('FEA___(MPG-2)'!$B59,IFERROR(I59-($G59-$M59)/6,"N/A"),"") ->  | K59: =IF('FEA___(MPG-2)'!$B59,IFERROR(J59-($G59-$M59)/6,"N/A"),"") ->  | L59: =IF('FEA___(MPG-2)'!$B59,IFERROR(K59-($G59-$M59)/6,"N/A"),"") ->  | M59: =IF('FEA___(MPG-2)'!$B59,$M$12,"") ->  | N59: =IF('FEA___(MPG-2)'!$B59,IFERROR(IRR(P59:HH59),"N/A"),"") ->  | R59: =Q59*(1+$G59) -> 
A60: ='FEA___(MPG-2)'!A60 ->  | C60: ='FEA___(MPG-2)'!D60 ->  | E60: ='FEA___(MPG-4)'!F60 ->  | F60: ='FEA___(MPG-4)'!H60 ->  | G60: ='FEA___(MPG-4)'!G60 ->  | H60: =IF('FEA___(MPG-2)'!$B60,IFERROR(G60-($G60-$M60)/6,"N/A"),"") ->  | I60: =IF('FEA___(MPG-2)'!$B60,IFERROR(H60-($G60-$M60)/6,"N/A"),"") ->  | J60: =IF('FEA___(MPG-2)'!$B60,IFERROR(I60-($G60-$M60)/6,"N/A"),"") ->  | K60: =IF('FEA___(MPG-2)'!$B60,IFERROR(J60-($G60-$M60)/6,"N/A"),"") ->  | L60: =IF('FEA___(MPG-2)'!$B60,IFERROR(K60-($G60-$M60)/6,"N/A"),"") ->  | M60: =IF('FEA___(MPG-2)'!$B60,$M$12,"") ->  | N60: =IF('FEA___(MPG-2)'!$B60,IFERROR(IRR(P60:HH60),"N/A"),"") ->  | R60: =Q60*(1+$G60) -> 
A61: ='FEA___(MPG-2)'!A61 ->  | C61: ='FEA___(MPG-2)'!D61 ->  | E61: ='FEA___(MPG-4)'!F61 ->  | F61: ='FEA___(MPG-4)'!H61 ->  | G61: ='FEA___(MPG-4)'!G61 ->  | H61: =IF('FEA___(MPG-2)'!$B61,IFERROR(G61-($G61-$M61)/6,"N/A"),"") ->  | I61: =IF('FEA___(MPG-2)'!$B61,IFERROR(H61-($G61-$M61)/6,"N/A"),"") ->  | J61: =IF('FEA___(MPG-2)'!$B61,IFERROR(I61-($G61-$M61)/6,"N/A"),"") ->  | K61: =IF('FEA___(MPG-2)'!$B61,IFERROR(J61-($G61-$M61)/6,"N/A"),"") ->  | L61: =IF('FEA___(MPG-2)'!$B61,IFERROR(K61-($G61-$M61)/6,"N/A"),"") ->  | M61: =IF('FEA___(MPG-2)'!$B61,$M$12,"") ->  | N61: =IF('FEA___(MPG-2)'!$B61,IFERROR(IRR(P61:HH61),"N/A"),"") ->  | R61: =Q61*(1+$G61) -> 
A63: =IF(C63=0,"N/A",MAX(A14:A62)+1) -> 14 | C63: Average | E63: =AVERAGE(E12:E61) -> 51.62399408 | F63: 1.896153846 | G63: 0.05266923077 | H63: 0.05172435897 | I63: 0.05077948718 | J63: 0.04983461538 | K63: 0.04888974359 | L63: 0.04794487179 | M63: 0.047 | N63: 0.08825535094
A64: =IF(C64=0,"N/A",MAX(A62:A63)+1) -> 15 | C64: Median | N64: =MEDIAN(N12:N61) -> 0.08938856927
B67: Sources:
B68: =+A68+1 -> 1 | C68: =+'FEA___(MPG-7)'!C68 -> SNL Financial, Downloaded on March 31, 2014.
B69: =+B68+1 -> 2 | C69: The Value Line Investment Survey, January 31, February 21, and March 21, 2014.
B70: =+B69+1 -> 3 | C70: Exhibit MPG-4.
B71: 4 | C71: Blue Chip Economic Indicators, March 1, 2014 at 14.

Sheet FEA___(MPG-10)
A1: ='FEA___(MPG-2)'!A1 -> Rocky Mountain Power | F1: =+A1 -> Rocky Mountain Power
A3: Market/Book Ratio
C7: Market | D7: Book | E7: Electric Utilities
A8: Line | B8: Year | C8: Price | D8: Value | E8: Market/Book
C9: (1) | D9: (2) | E9: (3)
A11: =MAX(A7:A10)+1 -> 1 | B11: 1980 | C11: 54.42 | D11: 83.82 | E11: =C11/D11 -> 0.6492483894
A12: =MAX(A8:A11)+1 -> 2 | B12: 1981 | C12: 57.2 | D12: 81.91 | E12: =C12/D12 -> 0.6983274325
A13: 3 | B13: 1982 | C13: 70.26 | D13: 82.77 | E13: 0.848858282
A14: 4 | B14: 1983 | C14: 72.03 | D14: 82.9 | E14: 0.8688781665
A15: 5 | B15: 1984 | C15: 80.16 | D15: 85.08 | E15: 0.9421720733
A16: 6 | B16: 1985 | C16: 94.98 | D16: 87.76 | E16: 1.082269827
A17: 7 | B17: 1986 | C17: 113.66 | D17: 90.35 | E17: 1.25799668
A18: 8 | B18: 1987 | C18: 94.24 | D18: 90.12 | E18: 1.045716822
A19: 9 | B19: 1988 | C19: 100.94 | D19: 88.04 | E19: 1.146524307
A20: 10 | B20: 1989 | C20: 122.52 | D20: 89.41 | E20: 1.370316519
A21: 11 | B21: 1990 | C21: 117.77 | D21: 84.45 | E21: 1.39455299
A22: 12 | B22: 1991 | C22: 144.02 | D22: 91.07 | E22: 1.581420885
A23: 13 | B23: 1992 | C23: 141.06 | D23: 93.68 | E23: 1.505764304
A24: 14 | B24: 1993 | C24: 146.7 | D24: 92.42 | E24: 1.587318762
A25: 15 | B25: 1994 | C25: 115.5 | D25: 93.8 | E25: 1.231343284
A26: 16 | B26: 1995 | C26: 142.9 | D26: 93.71 | E26: 1.524917298
A27: 17 | B27: 1996 | C27: 136 | D27: 98.63 | E27: 1.378890804
A28: 18 | B28: 1997 | C28: 155.73 | D28: 103.06 | E28: 1.511061518
A29: 19 | B29: 1998 | C29: 181.84 | D29: 92.11 | E29: 1.974161329
A30: 20 | B30: 1999 | C30: 137.3 | D30: 128.25 | E30: 1.070565302
A31: 21 | B31: 2000 | C31: 227.09 | D31: 166.4 | E31: 1.364723558
A32: 22 | B32: 2001 | E32: 1.73
A33: 23 | B33: 2002 | E33: 1.35
A34: 24 | B34: 2003 | E34: 1.57
A35: 25 | B35: 2004 | E35: 1.63
A36: 26 | B36: 2005 | E36: 1.7 | F36: Source:
A37: 27 | B37: 2006 | E37: 2.06 | F37: AUS Utility Reports, various dates.
A38: 28 | B38: 2007 | E38: 1.74
A39: 29 | B39: 2008 | E39: 1.18
A40: 30 | B40: 2009 | E40: 1.36
A41: 31 | B41: 2010 | E41: 1.426
A42: 32 | B42: 2011 | E42: 1.498
A43: 33 | B43: 2012 | E43: 1.715
A44: 34 | B44: 2013 | E44: =198.2/100 -> 1.982

Sheet FEA___(MPG-11)
A1: ='FEA___(MPG-2)'!A1 -> Rocky Mountain Power
A5: Equity Risk Premium - Treasury Bond
E9: Authorized | G9: Indicated
E10: Electric | F10: Treasury | G10: Risk
B11: Line | C11: Year | E11: Returns1 | F11: Bond Yield2 | G11: Premium
E12: (1) | F12: (2) | G12: (3)
B14: =MAX(B10:B13)+1 -> 1 | C14: 1986 | E14: 0.1393 | F14: =+'Annual Yields (WP)'!B15 -> 0.07798333333 | G14: =E14-F14 -> 0.06131666667 | I14: =VLOOKUP(K14,$L$14:$M$41,2,) -> 0.03830833333 | K14: 1 | L14: =RANK(G14,$G$14:$G$41,1) -> 23 | M14: =G14 -> 0.06131666667
B15: =MAX(B11:B14)+1 -> 2 | C15: 1987 | E15: 0.1299 | F15: =+'Annual Yields (WP)'!B16 -> 0.0858 | G15: 0.0441 | I15: =VLOOKUP(K15,$L$14:$M$41,2,) -> 0.0397 | K15: 2 | L15: =RANK(G15,$G$14:$G$41,1) -> 4 | M15: =G15 -> 0.0441
B16: 3 | C16: 1988 | E16: 0.1279 | F16: =+'Annual Yields (WP)'!B17 -> 0.08959166667 | G16: 0.03830833333 | I16: 0.04091666667 | K16: 3 | L16: 1 | M16: 0.03830833333
B17: 4 | C17: 1989 | E17: 0.1297 | F17: =+'Annual Yields (WP)'!B18 -> 0.08449166667 | G17: 0.04520833333 | I17: 0.0441 | K17: 4 | L17: 7 | M17: 0.04520833333
B18: 5 | C18: 1990 | E18: 0.127 | F18: =+'Annual Yields (WP)'!B19 -> 0.08608333333 | G18: 0.04091666667 | I18: 0.04414166667 | K18: 5 | L18: 3 | M18: 0.04091666667
B19: 6 | C19: 1991 | E19: 0.1255 | F19: =+'Annual Yields (WP)'!B20 -> 0.08135833333 | G19: 0.04414166667 | I19: 0.04423333333 | K19: 6 | L19: 5 | M19: 0.04414166667
B20: 7 | C20: 1992 | E20: 0.1209 | F20: =+'Annual Yields (WP)'!B21 -> 0.07666666667 | G20: 0.04423333333 | I20: 0.04520833333 | K20: 7 | L20: 6 | M20: 0.04423333333
B21: 8 | C21: 1993 | E21: 0.1141 | F21: =+'Annual Yields (WP)'!B22 -> 0.06598333333 | G21: 0.04811666667 | I21: 0.04665833333 | K21: 8 | L21: 11 | M21: 0.04811666667
B22: 9 | C22: 1994 | E22: 0.1134 | F22: =+'Annual Yields (WP)'!B23 -> 0.0737 | G22: 0.0397 | I22: 0.04689166667 | K22: 9 | L22: 2 | M22: 0.0397
B23: 10 | C23: 1995 | E23: 0.1155 | F23: =+'Annual Yields (WP)'!B24 -> 0.06884166667 | G23: 0.04665833333 | I23: 0.04794166667 | K23: 10 | L23: 8 | M23: 0.04665833333
B24: 11 | C24: 1996 | E24: 0.1139 | F24: =+'Annual Yields (WP)'!B25 -> 0.06700833333 | G24: 0.04689166667 | I24: 0.04811666667 | K24: 11 | L24: 9 | M24: 0.04689166667
B25: 12 | C25: 1997 | E25: 0.114 | F25: =+'Annual Yields (WP)'!B26 -> 0.06605833333 | G25: 0.04794166667 | I25: 0.04904166667 | K25: 12 | L25: 10 | M25: 0.04794166667
B26: 13 | C26: 1998 | E26: 0.1166 | F26: =+'Annual Yields (WP)'!B27 -> 0.05578333333 | G26: 0.06081666667 | I26: 0.053675 | K26: 13 | L26: 21 | M26: 0.06081666667
B27: 14 | C27: 1999 | E27: 0.1077 | F27: =+'Annual Yields (WP)'!B28 -> 0.05865833333 | G27: 0.04904166667 | I27: 0.054875 | K27: 14 | L27: 12 | M27: 0.04904166667
B28: 15 | C28: 2000 | E28: 0.1143 | F28: =+'Annual Yields (WP)'!B29 -> 0.059425 | G28: 0.054875 | I28: 0.05525833333 | K28: 15 | L28: 14 | M28: 0.054875
B29: 16 | C29: 2001 | E29: 0.1109 | F29: =+'Annual Yields (WP)'!B30 -> 0.05493333333 | G29: 0.05596666667 | I29: 0.05596666667 | K29: 16 | L29: 16 | M29: 0.05596666667
B30: 17 | C30: 2002 | E30: 0.1116 | F30: =+'Annual Yields (WP)'!B31 -> 0.0543 | G30: 0.0573 | I30: 0.05703333333 | K30: 17 | L30: 18 | M30: 0.0573
B31: 18 | C31: 2003 | E31: 0.1097 | F31: =+'Annual Yields (WP)'!B32 -> 0.049575 | G31: 0.060125 | I31: 0.0573 | K31: 18 | L31: 20 | M31: 0.060125
B32: 19 | C32: 2004 | E32: 0.1075 | F32: =+'Annual Yields (WP)'!B33 -> 0.05046666667 | G32: 0.05703333333 | I32: 0.05894166667 | K32: 19 | L32: 17 | M32: 0.05703333333
B33: 20 | C33: 2005 | E33: 0.1054 | F33: =+'Annual Yields (WP)'!B34 -> 0.04645833333 | G33: 0.05894166667 | I33: 0.060125 | K33: 20 | L33: 19 | M33: 0.05894166667
B34: 21 | C34: 2006 | E34: 0.1036 | F34: =+'Annual Yields (WP)'!B35 -> 0.049925 | G34: 0.053675 | I34: 0.06081666667 | K34: 21 | L34: 13 | M34: 0.053675
B35: 22 | C35: 2007 | E35: 0.1036 | F35: =+'Annual Yields (WP)'!B36 -> 0.04834166667 | G35: 0.05525833333 | I35: 0.06089166667 | K35: 22 | L35: 15 | M35: 0.05525833333
B36: 23 | C36: 2008 | E36: 0.1046 | F36: =+'Annual Yields (WP)'!B37 -> 0.04279166667 | G36: =E36-F36 -> 0.06180833333 | I36: 0.06131666667 | K36: 23 | L36: 24 | M36: 0.06180833333
B37: 24 | C37: 2009 | E37: 0.1048 | F37: =+'Annual Yields (WP)'!B38 -> 0.04069166667 | G37: 0.06410833333 | I37: 0.06180833333 | K37: 24 | L37: 27 | M37: 0.06410833333
B38: 25 | C38: 2010 | E38: 0.1034 | F38: =+'Annual Yields (WP)'!B39 -> 0.04250833333 | G38: 0.06089166667 | I38: 0.06309166667 | K38: 25 | L38: 22 | M38: 0.06089166667
B39: 26 | C39: 2011 | E39: 0.1022 | F39: =+'Annual Yields (WP)'!B40 -> 0.03910833333 | G39: 0.06309166667 | I39: 0.06351666667 | K39: 26 | L39: 25 | M39: 0.06309166667
B40: 27 | C40: 2012 | E40: 0.1001 | F40: =+'Annual Yields (WP)'!B41 -> 0.02920833333 | G40: 0.07089166667 | I40: 0.06410833333 | K40: 27 | L40: 28 | M40: =G40 -> 0.07089166667
B41: 28 | C41: 2013 | E41: 0.098 | F41: =+'Annual Yields (WP)'!B42 -> 0.03448333333 | G41: 0.06351666667 | I41: 0.07089166667 | K41: 28 | L41: 26 | M41: =G41 -> 0.06351666667
B43: =MAX(B37:B42)+1 -> 29 | C43: Average | E43: =AVERAGE(E14:E41) -> 0.1133964286 | F43: =AVERAGE(F14:F41) -> 0.06000803571 | G43: 0.05338839286
B47: Sources:
B48: 1 Regulatory Research Associates, Inc., Regulatory Focus, Jan. 85 - Dec. 06,
B49: and January 15, 2014, excluding the VA cases, which are subject to a
B50: 200 basis point adjustment for certain generation assets.
B51: 2 St. Louis Federal Reserve: Economic Research, http://research.stlouisfed.org/.
B52: The yields from 2002 to 2005 represent the 20-Year Treasury yields obtained
B53: from the Federal Reserve Bank.

Sheet FEA___(MPG-12)
A1: ='FEA___(MPG-2)'!A1 -> Rocky Mountain Power
A5: Equity Risk Premium - Utility Bond
E9: Authorized | F9: Average | G9: Indicated
E10: Electric | F10: "A" Rated Utility | G10: Risk
B11: Line | C11: Year | E11: Returns1 | F11: Bond Yield2 | G11: Premium
E12: (1) | F12: (2) | G12: (3)
B14: =MAX(B10:B13)+1 -> 1 | C14: 1986 | E14: ='FEA___(MPG-11)'!E14 -> 0.1393 | F14: ='MBR (WP)'!B14 -> 0.0958 | G14: =E14-F14 -> 0.0435 | I14: =VLOOKUP(K14,$L$14:$M$41,2,) -> 0.023 | K14: 1 | L14: =RANK(G14,$G$14:$G$41,1) -> 19 | M14: =G14 -> 0.0435
B15: =MAX(B11:B14)+1 -> 2 | C15: 1987 | E15: ='FEA___(MPG-11)'!E15 -> 0.1299 | F15: ='MBR (WP)'!B15 -> 0.101 | G15: =E15-F15 -> 0.0289 | I15: =VLOOKUP(K15,$L$14:$M$41,2,) -> 0.0284 | K15: 2 | L15: =RANK(G15,$G$14:$G$41,1) -> 3 | M15: =G15 -> 0.0289
B16: 3 | C16: 1988 | E16: ='FEA___(MPG-11)'!E16 -> 0.1279 | F16: ='MBR (WP)'!B16 -> 0.1049 | G16: 0.023 | I16: 0.0289 | K16: 3 | L16: 1 | M16: =G16 -> 0.023
B17: 4 | C17: 1989 | E17: ='FEA___(MPG-11)'!E17 -> 0.1297 | F17: ='MBR (WP)'!B17 -> 0.0977 | G17: 0.032 | I17: 0.0303 | K17: 4 | L17: 8 | M17: 0.032
B18: 5 | C18: 1990 | E18: ='FEA___(MPG-11)'!E18 -> 0.127 | F18: ='MBR (WP)'!B18 -> 0.0986 | G18: 0.0284 | I18: 0.0315 | K18: 5 | L18: 2 | M18: 0.0284
B19: 6 | C19: 1991 | E19: ='FEA___(MPG-11)'!E19 -> 0.1255 | F19: ='MBR (WP)'!B19 -> 0.0936 | G19: 0.0319 | I19: 0.03185833333 | K19: 6 | L19: 7 | M19: 0.0319
B20: 7 | C20: 1992 | E20: ='FEA___(MPG-11)'!E20 -> 0.1209 | F20: ='MBR (WP)'!B20 -> 0.0869 | G20: 0.034 | I20: 0.0319 | K20: 7 | L20: 10 | M20: 0.034
B21: 8 | C21: 1993 | E21: ='FEA___(MPG-11)'!E21 -> 0.1141 | F21: ='MBR (WP)'!B21 -> 0.0759 | G21: 0.0382 | I21: 0.032 | K21: 8 | L21: 15 | M21: 0.0382
B22: 9 | C22: 1994 | E22: ='FEA___(MPG-11)'!E22 -> 0.1134 | F22: ='MBR (WP)'!B22 -> 0.0831 | G22: 0.0303 | I22: 0.033275 | K22: 9 | L22: 4 | M22: 0.0303
B23: 10 | C23: 1995 | E23: ='FEA___(MPG-11)'!E23 -> 0.1155 | F23: ='MBR (WP)'!B23 -> 0.0789 | G23: 0.0366 | I23: 0.034 | K23: 10 | L23: 12 | M23: 0.0366
B24: 11 | C24: 1996 | E24: ='FEA___(MPG-11)'!E24 -> 0.1139 | F24: ='MBR (WP)'!B24 -> 0.0775 | G24: 0.0364 | I24: 0.0364 | K24: 11 | L24: 11 | M24: =G24 -> 0.0364
B25: 12 | C25: 1997 | E25: ='FEA___(MPG-11)'!E25 -> 0.114 | F25: ='MBR (WP)'!B25 -> 0.076 | G25: 0.038 | I25: 0.0366 | K25: 12 | L25: 14 | M25: =G25 -> 0.038
B26: 13 | C26: 1998 | E26: ='FEA___(MPG-11)'!E26 -> 0.1166 | F26: ='MBR (WP)'!B26 -> 0.0704 | G26: 0.0462 | I26: 0.037875 | K26: 13 | L26: 23 | M26: 0.0462
B27: 14 | C27: 1999 | E27: ='FEA___(MPG-11)'!E27 -> 0.1077 | F27: ='MBR (WP)'!B27 -> 0.0762 | G27: 0.0315 | I27: 0.038 | K27: 14 | L27: 5 | M27: 0.0315
B28: 15 | C28: 2000 | E28: ='FEA___(MPG-11)'!E28 -> 0.1143 | F28: ='MBR (WP)'!B28 -> 0.08244166667 | G28: 0.03185833333 | I28: 0.0382 | K28: 15 | L28: 6 | M28: 0.03185833333
B29: 16 | C29: 2001 | E29: ='FEA___(MPG-11)'!E29 -> 0.1109 | F29: ='MBR (WP)'!B29 -> 0.077625 | G29: 0.033275 | I29: 0.03931666667 | K29: 16 | L29: 9 | M29: 0.033275
B30: 17 | C30: 2002 | E30: ='FEA___(MPG-11)'!E30 -> 0.1116 | F30: ='MBR (WP)'!B30 -> 0.073725 | G30: 0.037875 | I30: 0.04286666667 | K30: 17 | L30: 13 | M30: 0.037875
B31: 18 | C31: 2003 | E31: ='FEA___(MPG-11)'!E31 -> 0.1097 | F31: ='MBR (WP)'!B31 -> 0.06580833333 | G31: 0.04389166667 | I31: 0.04291666667 | K31: 18 | L31: 20 | M31: 0.04389166667
B32: 19 | C32: 2004 | E32: ='FEA___(MPG-11)'!E32 -> 0.1075 | F32: ='MBR (WP)'!B32 -> 0.06160083333 | G32: 0.04589916667 | I32: 0.0435 | K32: 19 | L32: 22 | M32: 0.04589916667
B33: 20 | C33: 2005 | E33: ='FEA___(MPG-11)'!E33 -> 0.1054 | F33: ='MBR (WP)'!B33 -> 0.05649166667 | G33: 0.04890833333 | I33: 0.04389166667 | K33: 20 | L33: 25 | M33: 0.04890833333
B34: 21 | C34: 2006 | E34: ='FEA___(MPG-11)'!E34 -> 0.1036 | F34: ='MBR (WP)'!B34 -> 0.06068333333 | G34: 0.04291666667 | I34: 0.04443263497 | K34: 21 | L34: 18 | M34: 0.04291666667
B35: 22 | C35: 2007 | E35: ='FEA___(MPG-11)'!E35 -> 0.1036 | F35: ='MBR (WP)'!B35 -> 0.06073333333 | G35: 0.04286666667 | I35: 0.04589916667 | K35: 22 | L35: 17 | M35: 0.04286666667
B36: 23 | C36: 2008 | E36: ='FEA___(MPG-11)'!E36 -> 0.1046 | F36: ='MBR (WP)'!B36 -> 0.06528333333 | G36: =E36-F36 -> 0.03931666667 | I36: 0.0462 | K36: 23 | L36: 16 | M36: 0.03931666667
B37: 24 | C37: 2009 | E37: ='FEA___(MPG-11)'!E37 -> 0.1048 | F37: ='MBR (WP)'!B37 -> 0.06036736503 | G37: 0.04443263497 | I37: 0.04878744244 | K37: 24 | L37: 21 | M37: 0.04443263497
B38: 25 | C38: 2010 | E38: ='FEA___(MPG-11)'!E38 -> 0.1034 | F38: ='MBR (WP)'!B38 -> 0.05461255756 | G38: 0.04878744244 | I38: 0.04890833333 | K38: 25 | L38: 24 | M38: 0.04878744244
B39: 26 | C39: 2011 | E39: ='FEA___(MPG-11)'!E39 -> 0.1022 | F39: ='MBR (WP)'!B39 -> 0.0504111429 | G39: 0.0517888571 | I39: 0.0517888571 | K39: 26 | L39: 26 | M39: 0.0517888571
B40: 27 | C40: 2012 | E40: ='FEA___(MPG-11)'!E40 -> 0.1001 | F40: ='MBR (WP)'!B40 -> 0.04130786734 | G40: 0.05879213266 | I40: 0.05323893322 | K40: 27 | L40: 28 | M40: 0.05879213266
B41: 28 | C41: 2013 | E41: ='FEA___(MPG-11)'!E41 -> 0.098 | F41: ='MBR (WP)'!B41 -> 0.04476106678 | G41: 0.05323893322 | I41: =VLOOKUP(K41,$L$14:$M$41,2,) -> 0.05879213266 | K41: 28 | L41: 27 | M41: =G41 -> 0.05323893322
B43: =MAX(B37:B42)+1 -> 29 | C43: Average | E43: =AVERAGE(E14:E41) -> 0.1133964286 | F43: =AVERAGE(F14:F41) -> 0.07401258927 | G43: 0.0393838393
B47: Sources:
B48: 1 Regulatory Research Associates, Inc., Regulatory Focus, Jan. 85 - Dec. 06,
B49: and January 15, 2014, excluding the VA cases, which are subject to a
B50: 200 basis point adjustment for certain generation assets.
B51: 2 Mergent Public Utility Manual, Mergent Weekly News Reports, 2003. The utility yields
B52: for the period 2001-2009 were obtained from the Mergent Bond Record. The utility
B53: yields from 2010-2013 were obtained from http://credittrends.moodys.com/.

Sheet FEA___(MPG-13)
A1: ='FEA___(MPG-2)'!A1 -> Rocky Mountain Power
A5: Bond Yield Spreads
E9: Public Utility Bond | J9: Corporate Bond | O9: Utility to Corporate
A10: Line | B10: Year | D10: T-Bond Yield1 | E10: A2 | F10: Baa2 | G10: A-T-Bond Spread | H10: Baa-T-Bond Spread | J10: Aaa1 | K10: Baa1 | L10: Aaa-T-Bond Spread | M10: Baa-T-Bond Spread | O10: Baa Spread | P10: A-Aaa Spread
D11: (1) | E11: (2) | F11: (3) | G11: (4) | H11: (5) | J11: (6) | K11: (7) | L11: (8) | M11: (9) | O11: (10) | P11: (11)
A13: 1 | B13: 1980 | D13: =VLOOKUP($B13,'Annual Yields (WP)'!$A$6:$B$40,2) -> 0.1129833333 | E13: ='MBR (WP)'!B8 -> 0.1334 | F13: ='MBR (WP)'!C8 -> 0.1395 | G13: =E13-D13 -> 0.02041666667 | H13: =F13-D13 -> 0.02651666667 | J13: =+'Annual Yields (WP)'!E9 -> 0.1193833333 | K13: =+'Annual Yields (WP)'!H9 -> 0.1366833333 | L13: =J13-D13 -> 0.0064 | M13: =K13-D13 -> 0.0237 | O13: =F13-K13 -> 0.002816666667 | P13: =+E13-J13 -> 0.01401666667 | R13: Utility A - T-Bond Spread
A14: 2 | B14: =+B13+1 -> 1981 | D14: =VLOOKUP($B14,'Annual Yields (WP)'!$A$6:$B$40,2) -> 0.1344166667 | E14: ='MBR (WP)'!B9 -> 0.1595 | F14: ='MBR (WP)'!C9 -> 0.166 | G14: =E14-D14 -> 0.02508333333 | H14: =F14-D14 -> 0.03158333333 | J14: =+'Annual Yields (WP)'!E10 -> 0.1417083333 | K14: =+'Annual Yields (WP)'!H10 -> 0.1604416667 | L14: =J14-D14 -> 0.007291666667 | M14: =K14-D14 -> 0.026025 | O14: =F14-K14 -> 0.005558333333 | P14: =+E14-J14 -> 0.01779166667 | R14: Utility Baa - T-Bond Spread
A15: 3 | B15: =+B14+1 -> 1982 | D15: =VLOOKUP($B15,'Annual Yields (WP)'!$A$6:$B$40,2) -> 0.1276166667 | E15: ='MBR (WP)'!B10 -> 0.1586 | F15: ='MBR (WP)'!C10 -> 0.1645 | G15: 0.03098333333 | H15: 0.03688333333 | J15: =+'Annual Yields (WP)'!E11 -> 0.137875 | K15: =+'Annual Yields (WP)'!H11 -> 0.1611333333 | L15: 0.01025833333 | M15: 0.03351666667 | O15: 0.003366666667 | P15: 0.020725 | R15: Corporate Aaa - T-Bond Spread
A16: 4 | B16: 1983 | D16: =VLOOKUP($B16,'Annual Yields (WP)'!$A$6:$B$40,2) -> 0.1117833333 | E16: ='MBR (WP)'!B11 -> 0.1366 | F16: ='MBR (WP)'!C11 -> 0.142 | G16: 0.02481666667 | H16: 0.03021666667 | J16: =+'Annual Yields (WP)'!E12 -> 0.1204166667 | K16: =+'Annual Yields (WP)'!H12 -> 0.1355416667 | L16: 0.008633333333 | M16: 0.02375833333 | O16: 0.006458333333 | P16: 0.01618333333 | R16: Corporate Baa - T-Bond Spread
A17: 5 | B17: 1984 | D17: =VLOOKUP($B17,'Annual Yields (WP)'!$A$6:$B$40,2) -> 0.1239166667 | E17: ='MBR (WP)'!B12 -> 0.1403 | F17: ='MBR (WP)'!C12 -> 0.1453 | G17: 0.01638333333 | H17: 0.02138333333 | J17: =+'Annual Yields (WP)'!E13 -> 0.1270916667 | K17: =+'Annual Yields (WP)'!H13 -> 0.1419 | L17: 0.003175 | M17: 0.01798333333 | O17: 0.0034 | P17: 0.01320833333
A18: 6 | B18: 1985 | D18: =VLOOKUP($B18,'Annual Yields (WP)'!$A$6:$B$40,2) -> 0.1078916667 | E18: ='MBR (WP)'!B13 -> 0.1247 | F18: ='MBR (WP)'!C13 -> 0.1296 | G18: 0.01680833333 | H18: 0.02170833333 | J18: =+'Annual Yields (WP)'!E14 -> 0.1137333333 | K18: =+'Annual Yields (WP)'!H14 -> 0.12715 | L18: 0.005841666667 | M18: 0.01925833333 | O18: 0.00245 | P18: 0.01096666667
A19: 7 | B19: 1986 | D19: =VLOOKUP($B19,'Annual Yields (WP)'!$A$6:$B$40,2) -> 0.07798333333 | E19: ='MBR (WP)'!B14 -> 0.0958 | F19: ='MBR (WP)'!C14 -> 0.1 | G19: 0.01781666667 | H19: 0.02201666667 | J19: =+'Annual Yields (WP)'!E15 -> 0.09020833333 | K19: =+'Annual Yields (WP)'!H15 -> 0.1039083333 | L19: 0.012225 | M19: 0.025925 | O19: -0.003908333333 | P19: 0.005591666667
A20: 8 | B20: 1987 | D20: =VLOOKUP($B20,'Annual Yields (WP)'!$A$6:$B$40,2) -> 0.0858 | E20: ='MBR (WP)'!B15 -> 0.101 | F20: ='MBR (WP)'!C15 -> 0.1053 | G20: 0.0152 | H20: 0.0195 | J20: =+'Annual Yields (WP)'!E16 -> 0.09375833333 | K20: =+'Annual Yields (WP)'!H16 -> 0.1057583333 | L20: 0.007958333333 | M20: 0.01995833333 | O20: -0.0004583333333 | P20: 0.007241666667
A21: 9 | B21: 1988 | D21: =VLOOKUP($B21,'Annual Yields (WP)'!$A$6:$B$40,2) -> 0.08959166667 | E21: ='MBR (WP)'!B16 -> 0.1049 | F21: ='MBR (WP)'!C16 -> 0.11 | G21: 0.01530833333 | H21: 0.02040833333 | J21: =+'Annual Yields (WP)'!E17 -> 0.0971 | K21: =+'Annual Yields (WP)'!H17 -> 0.1083 | L21: 0.007508333333 | M21: 0.01870833333 | O21: 0.0017 | P21: 0.0078
A22: 10 | B22: 1989 | D22: =VLOOKUP($B22,'Annual Yields (WP)'!$A$6:$B$40,2) -> 0.08449166667 | E22: ='MBR (WP)'!B17 -> 0.0977 | F22: ='MBR (WP)'!C17 -> 0.0997 | G22: 0.01320833333 | H22: 0.01520833333 | J22: =+'Annual Yields (WP)'!E18 -> 0.092575 | K22: =+'Annual Yields (WP)'!H18 -> 0.101775 | L22: 0.008083333333 | M22: 0.01728333333 | O22: -0.002075 | P22: 0.005125
A23: 11 | B23: 1990 | D23: =VLOOKUP($B23,'Annual Yields (WP)'!$A$6:$B$40,2) -> 0.08608333333 | E23: ='MBR (WP)'!B18 -> 0.0986 | F23: ='MBR (WP)'!C18 -> 0.1006 | G23: 0.01251666667 | H23: 0.01451666667 | J23: =+'Annual Yields (WP)'!E19 -> 0.09321666667 | K23: =+'Annual Yields (WP)'!H19 -> 0.10355 | L23: 0.007133333333 | M23: 0.01746666667 | O23: -0.00295 | P23: 0.005383333333
A24: 12 | B24: 1991 | D24: =VLOOKUP($B24,'Annual Yields (WP)'!$A$6:$B$40,2) -> 0.08135833333 | E24: ='MBR (WP)'!B19 -> 0.0936 | F24: ='MBR (WP)'!C19 -> 0.0955 | G24: 0.01224166667 | H24: 0.01414166667 | J24: =+'Annual Yields (WP)'!E20 -> 0.08769166667 | K24: =+'Annual Yields (WP)'!H20 -> 0.09801666667 | L24: 0.006333333333 | M24: 0.01665833333 | O24: -0.002516666667 | P24: 0.005908333333
A25: 13 | B25: 1992 | D25: =VLOOKUP($B25,'Annual Yields (WP)'!$A$6:$B$40,2) -> 0.07666666667 | E25: ='MBR (WP)'!B20 -> 0.0869 | F25: ='MBR (WP)'!C20 -> 0.0886 | G25: 0.01023333333 | H25: 0.01193333333 | J25: =+'Annual Yields (WP)'!E21 -> 0.0814 | K25: =+'Annual Yields (WP)'!H21 -> 0.08976666667 | L25: 0.004733333333 | M25: 0.0131 | O25: -0.001166666667 | P25: 0.0055
A26: 14 | B26: 1993 | D26: =VLOOKUP($B26,'Annual Yields (WP)'!$A$6:$B$40,2) -> 0.06598333333 | E26: ='MBR (WP)'!B21 -> 0.0759 | F26: ='MBR (WP)'!C21 -> 0.0791 | G26: 0.009916666667 | H26: 0.01311666667 | J26: =+'Annual Yields (WP)'!E22 -> 0.07219166667 | K26: =+'Annual Yields (WP)'!H22 -> 0.0793 | L26: 0.006208333333 | M26: 0.01331666667 | O26: -0.0002 | P26: 0.003708333333
A27: 15 | B27: 1994 | D27: =VLOOKUP($B27,'Annual Yields (WP)'!$A$6:$B$40,2) -> 0.0737 | E27: ='MBR (WP)'!B22 -> 0.0831 | F27: ='MBR (WP)'!C22 -> 0.0863 | G27: 0.0094 | H27: 0.0126 | J27: =+'Annual Yields (WP)'!E23 -> 0.079625 | K27: =+'Annual Yields (WP)'!H23 -> 0.086225 | L27: 0.005925 | M27: 0.012525 | O27: 7.5e-05 | P27: 0.003475
A28: 16 | B28: 1995 | D28: =VLOOKUP($B28,'Annual Yields (WP)'!$A$6:$B$40,2) -> 0.06884166667 | E28: ='MBR (WP)'!B23 -> 0.0789 | F28: ='MBR (WP)'!C23 -> 0.0829 | G28: 0.01005833333 | H28: 0.01405833333 | J28: =+'Annual Yields (WP)'!E24 -> 0.0759 | K28: =+'Annual Yields (WP)'!H24 -> 0.08200833333 | L28: 0.007058333333 | M28: 0.01316666667 | O28: 0.0008916666667 | P28: 0.003
A29: 17 | B29: 1996 | D29: =VLOOKUP($B29,'Annual Yields (WP)'!$A$6:$B$40,2) -> 0.06700833333 | E29: ='MBR (WP)'!B24 -> 0.0775 | F29: ='MBR (WP)'!C24 -> 0.0817 | G29: 0.01049166667 | H29: 0.01469166667 | J29: =+'Annual Yields (WP)'!E25 -> 0.0737 | K29: =+'Annual Yields (WP)'!H25 -> 0.08054166667 | L29: 0.006691666667 | M29: 0.01353333333 | O29: 0.001158333333 | P29: 0.0038
A30: 18 | B30: 1997 | D30: =VLOOKUP($B30,'Annual Yields (WP)'!$A$6:$B$40,2) -> 0.06605833333 | E30: ='MBR (WP)'!B25 -> 0.076 | F30: ='MBR (WP)'!C25 -> 0.0795 | G30: 0.009941666667 | H30: 0.01344166667 | J30: =+'Annual Yields (WP)'!E26 -> 0.07261666667 | K30: =+'Annual Yields (WP)'!H26 -> 0.078625 | L30: 0.006558333333 | M30: 0.01256666667 | O30: 0.000875 | P30: 0.003383333333
A31: 19 | B31: 1998 | D31: =VLOOKUP($B31,'Annual Yields (WP)'!$A$6:$B$40,2) -> 0.05578333333 | E31: ='MBR (WP)'!B26 -> 0.0704 | F31: ='MBR (WP)'!C26 -> 0.0726 | G31: 0.01461666667 | H31: 0.01681666667 | J31: =+'Annual Yields (WP)'!E27 -> 0.06531666667 | K31: =+'Annual Yields (WP)'!H27 -> 0.07220833333 | L31: 0.009533333333 | M31: 0.016425 | O31: 0.0003916666667 | P31: 0.005083333333
A32: 20 | B32: 1999 | D32: =VLOOKUP($B32,'Annual Yields (WP)'!$A$6:$B$40,2) -> 0.05865833333 | E32: ='MBR (WP)'!B27 -> 0.0762 | F32: ='MBR (WP)'!C27 -> 0.0788 | G32: 0.01754166667 | H32: 0.02014166667 | J32: =+'Annual Yields (WP)'!E28 -> 0.07041666667 | K32: =+'Annual Yields (WP)'!H28 -> 0.07870833333 | L32: 0.01175833333 | M32: 0.02005 | O32: 9.166666667e-05 | P32: 0.005783333333
A33: 21 | B33: 2000 | D33: =VLOOKUP($B33,'Annual Yields (WP)'!$A$6:$B$40,2) -> 0.059425 | E33: ='MBR (WP)'!B28 -> 0.08244166667 | F33: ='MBR (WP)'!C28 -> 0.08359166667 | G33: 0.02301666667 | H33: 0.02416666667 | J33: =+'Annual Yields (WP)'!E29 -> 0.076225 | K33: =+'Annual Yields (WP)'!H29 -> 0.08364166667 | L33: 0.0168 | M33: 0.02421666667 | O33: -5e-05 | P33: 0.006216666667
A34: 22 | B34: 2001 | D34: =VLOOKUP($B34,'Annual Yields (WP)'!$A$6:$B$40,2) -> 0.05493333333 | E34: ='MBR (WP)'!B29 -> 0.077625 | F34: ='MBR (WP)'!C29 -> 0.08028333333 | G34: 0.02269166667 | H34: 0.02535 | J34: =+'Annual Yields (WP)'!E30 -> 0.070825 | K34: =+'Annual Yields (WP)'!H30 -> 0.079475 | L34: 0.01589166667 | M34: 0.02454166667 | O34: 0.0008083333333 | P34: 0.0068
A35: 23 | B35: 2002 | D35: =VLOOKUP($B35,'Annual Yields (WP)'!$A$6:$B$40,2) -> 0.0543 | E35: ='MBR (WP)'!B30 -> 0.073725 | F35: ='MBR (WP)'!C30 -> 0.08023333333 | G35: 0.019425 | H35: 0.02593333333 | J35: =+'Annual Yields (WP)'!E31 -> 0.06491666667 | K35: =+'Annual Yields (WP)'!H31 -> 0.07801666667 | L35: 0.01061666667 | M35: 0.02371666667 | O35: 0.002216666667 | P35: 0.008808333333
A36: 24 | B36: 2003 | D36: =VLOOKUP($B36,'Annual Yields (WP)'!$A$6:$B$40,2) -> 0.049575 | E36: ='MBR (WP)'!B31 -> 0.06580833333 | F36: ='MBR (WP)'!C31 -> 0.068425 | G36: 0.01623333333 | H36: 0.01885 | J36: =+'Annual Yields (WP)'!E32 -> 0.05666666667 | K36: =+'Annual Yields (WP)'!H32 -> 0.06765833333 | L36: 0.007091666667 | M36: 0.01808333333 | O36: 0.0007666666667 | P36: 0.009141666667
A37: 25 | B37: 2004 | D37: =VLOOKUP($B37,'Annual Yields (WP)'!$A$6:$B$40,2) -> 0.05046666667 | E37: ='MBR (WP)'!B32 -> 0.06160083333 | F37: ='MBR (WP)'!C32 -> 0.06395 | G37: 0.01113416667 | H37: 0.01348333333 | J37: =+'Annual Yields (WP)'!E33 -> 0.05628333333 | K37: =+'Annual Yields (WP)'!H33 -> 0.06393333333 | L37: 0.005816666667 | M37: 0.01346666667 | O37: 1.666666667e-05 | P37: 0.0053175
A38: 26 | B38: 2005 | D38: =VLOOKUP($B38,'Annual Yields (WP)'!$A$6:$B$40,2) -> 0.04645833333 | E38: ='MBR (WP)'!B33 -> 0.05649166667 | F38: ='MBR (WP)'!C33 -> 0.05925 | G38: 0.01003333333 | H38: 0.01279166667 | J38: =+'Annual Yields (WP)'!E34 -> 0.05235 | K38: =+'Annual Yields (WP)'!H34 -> 0.06064166667 | L38: 0.005891666667 | M38: 0.01418333333 | O38: -0.001391666667 | P38: 0.004141666667
A39: 27 | B39: 2006 | D39: =VLOOKUP($B39,'Annual Yields (WP)'!$A$6:$B$40,2) -> 0.049925 | E39: ='MBR (WP)'!B34 -> 0.06068333333 | F39: ='MBR (WP)'!C34 -> 0.06316666667 | G39: 0.01075833333 | H39: 0.01324166667 | J39: =+'Annual Yields (WP)'!E35 -> 0.055875 | K39: =+'Annual Yields (WP)'!H35 -> 0.06479166667 | L39: 0.00595 | M39: 0.01486666667 | O39: -0.001625 | P39: 0.004808333333
A40: 28 | B40: 2007 | D40: =VLOOKUP($B40,'Annual Yields (WP)'!$A$6:$B$40,2) -> 0.04834166667 | E40: ='MBR (WP)'!B35 -> 0.06073333333 | F40: ='MBR (WP)'!C35 -> 0.0633 | G40: 0.01239166667 | H40: 0.01495833333 | J40: =+'Annual Yields (WP)'!E36 -> 0.05555833333 | K40: =+'Annual Yields (WP)'!H36 -> 0.064825 | L40: 0.007216666667 | M40: 0.01648333333 | O40: -0.001525 | P40: 0.005175
A41: 29 | B41: 2008 | D41: =VLOOKUP($B41,'Annual Yields (WP)'!$A$6:$B$40,2) -> 0.04279166667 | E41: ='MBR (WP)'!B36 -> 0.06528333333 | F41: ='MBR (WP)'!C36 -> 0.07245833333 | G41: 0.02249166667 | H41: 0.02966666667 | J41: =+'Annual Yields (WP)'!E37 -> 0.05631666667 | K41: =+'Annual Yields (WP)'!H37 -> 0.07446666667 | L41: 0.013525 | M41: 0.031675 | O41: -0.002008333333 | P41: 0.008966666667
A42: 30 | B42: 2009 | D42: =VLOOKUP($B42,'Annual Yields (WP)'!$A$6:$B$40,2) -> 0.04069166667 | E42: ='MBR (WP)'!B37 -> 0.06036736503 | F42: ='MBR (WP)'!C37 -> 0.07055173167 | G42: 0.01967569836 | H42: 0.02986006501 | J42: =+'Annual Yields (WP)'!E38 -> 0.05313333333 | K42: =+'Annual Yields (WP)'!H38 -> 0.07295833333 | L42: 0.01244166667 | M42: 0.03226666667 | O42: -0.00240660166 | P42: 0.007234031694
A43: 31 | B43: 2010 | D43: =VLOOKUP($B43,'Annual Yields (WP)'!$A$6:$B$40,2) -> 0.04250833333 | E43: ='MBR (WP)'!B38 -> 0.05461255756 | F43: ='MBR (WP)'!C38 -> 0.05959817933 | G43: 0.01210422422 | H43: 0.017089846 | J43: =+'Annual Yields (WP)'!E39 -> 0.04943333333 | K43: =+'Annual Yields (WP)'!H39 -> 0.06038333333 | L43: 0.006925 | M43: 0.017875 | O43: -0.0007851540002 | P43: 0.005179224225
A44: 32 | B44: 2011 | D44: =VLOOKUP($B44,'Annual Yields (WP)'!$A$6:$B$40,2) -> 0.03910833333 | E44: ='MBR (WP)'!B39 -> 0.0504111429 | F44: ='MBR (WP)'!C39 -> 0.0556382407 | G44: =E44-D44 -> 0.01130280957 | H44: =F44-D44 -> 0.01652990737 | J44: =+'Annual Yields (WP)'!E40 -> 0.04639166667 | K44: =+'Annual Yields (WP)'!H40 -> 0.05664166667 | L44: =J44-D44 -> 0.007283333333 | M44: =K44-D44 -> 0.01753333333 | O44: -0.001003425966 | P44: 0.004019476237
A45: 33 | B45: 2012 | D45: =VLOOKUP($B45,'Annual Yields (WP)'!$A$6:$B$400,2) -> 0.02920833333 | E45: ='MBR (WP)'!B40 -> 0.04130786734 | F45: ='MBR (WP)'!C40 -> 0.04825901617 | G45: =E45-D45 -> 0.01209953401 | H45: =F45-D45 -> 0.01905068283 | J45: =+'Annual Yields (WP)'!E41 -> 0.03673333333 | K45: =+'Annual Yields (WP)'!H41 -> 0.04935 | L45: =J45-D45 -> 0.007525 | M45: =K45-D45 -> 0.02014166667 | O45: =F45-K45 -> -0.001090983832 | P45: 0.004574534007
A46: =+A45+1 -> 34 | B46: 2013 | D46: =VLOOKUP($B46,'Annual Yields (WP)'!$A$6:$B$400,2) -> 0.03448333333 | E46: ='MBR (WP)'!B41 -> 0.04476106678 | F46: ='MBR (WP)'!C41 -> 0.04981431571 | G46: =E46-D46 -> 0.01027773344 | H46: =F46-D46 -> 0.01533098238 | J46: =+'Annual Yields (WP)'!E42 -> 0.04235 | K46: =+'Annual Yields (WP)'!H42 -> 0.05101666667 | L46: =J46-D46 -> 0.007866666667 | M46: =K46-D46 -> 0.01653333333 | O46: =F46-K46 -> -0.001202350953 | P46: =+E46-J46 -> 0.002411066777
